Workbook

Sheet MENU
L4: =+TABLAS!A81 -> 1-2-3-4-5-T------
L5: =+TABLAS!A117 -> 1-2-3-4-5-T------
L6: =+TABLAS!A152 -> 1-2-3-4-5-T------
L7: =+TABLAS!A190 -> 1-2-3-4-5-T------
H27: CONTROL DE MESES
H29: =+TABLAS!A190 -> 1-2-3-4-5-T------

Sheet TABLAS (hidden)
C8: Valores | I8: Tabla | J8: =IF(I9="(Todas)","CUSCO ","") -> 
C9: RED | D9: 99 - (All) | I9: =IF(MID(D9,1,2)="99","(All)",MID(D9,1,2)) -> (All) | J9: =IF(I9="(All)"," ",I9) ->  | M9: =LEN(MID(D9,5,90)) -> 6 | O9: =IF(MID(D9,6,5)="(All)","",D9) -> 
C10: Micro RED | D10: 9999 - (All) | I10: =IF(MID(D10,3,2)="99","(All)",MID(D10,1,4)) -> (All) | M10: =LEN(MID(D10,7,90)) -> 6 | O10: =IF(MID(D10,8,5)="(All)","",D10) -> 
C11: Establecimiento | D11: 999999999 - (All) | I11: =IF(OR(MID(D11,1,9)="999999999",MID(D11,1,9)="000000000"),"(All)",MID(D11,1,9)) -> (All) | M11: =LEN(MID(D11,12,90)) -> 6 | O11: =IF(MID(D11,13,5)="(All)","",D11) ->  | Q11: =MID(O11,1,9) -> 
C12: Provincia | D12: 00 - (All) | I12: =IF(MID(D12,1,2)="00","(All)",MID(D12,1,2)) -> (All) | M12: =LEN(MID(D12,6,90)) -> 5 | O12: =IF(MID(D12,6,5)="(All)","",D12) -> 
C13: Distrito | D13: 0000 - (All) | I13: =IF(OR(MID(D13,1,4)="0000",MID(D13,3,2)="00"),"(All)",MID(D13,1,4)) -> (All) | M13: =LEN(MID(D13,8,90)) -> 5 | O13: =IF(MID(D13,8,5)="(All)","",D13) -> 
C14: Ejecutira | D14: 99 - (ALL) | I14: =IF(MID(D14,1,2)="99","(All)",MID(D14,1,2)) -> (All) | M14: =LEN(MID(D14,5,90)) -> 6 | O14: =IF(MID(D14,6,5)="(All)","",D14) -> 
C16: Año | D16: 2025 | I16: =+D16 -> 2025 | J16: =IF(I16="(Todas)"," ",I16) -> 2025
B20: 1 | C20: 1 | D20: 1 | E20: 1 | F20: 1 | G20: 0 | H20: 0 | I20: 0 | J20: 0 | K20: 0 | L20: 0 | M20: 0 | N20: =SUM(B20:M20) -> 5
B21: =IF(B20=1,"ENERO","") -> ENERO | C21: =IF(C20=1,"FEBRERO","") -> FEBRERO | D21: =IF(D20=1,"MARZO","") -> MARZO | E21: =IF(E20=1,"ABRIL","") -> ABRIL | F21: =IF(F20=1,"MAYO","") -> MAYO | G21: =IF(G20=1,"JUNIO","") ->  | H21: =IF(H20=1,"JULIO","") ->  | I21: =IF(I20=1,"AGOSTO","") ->  | J21: =IF(J20=1,"SETIEMBRE","") ->  | K21: =IF(K20=1,"OCTUBRE","") ->  | L21: =IF(L20=1,"NOVIEMBRE","") ->  | M21: =IF(M20=1,"DICIEMBRE","") ->  | N21: =IF(B20=1,B21,IF(C20=1,C21,IF(D20=1,D21,IF(E20=1,E21,IF(F20=1,F21,IF(G20=1,G21,IF(H20=1,H21,IF(I20=1,I21,IF(J20=1,J21,IF(K20=1,K21,IF(L20=1,L21,IF(M20=1,M21,"")))))))))))) -> ENERO
N22: =IF(N20=1,N21,"") -> 
B23: 2 | C23: 4 | D23: 6 | E23: 8 | F23: 10 | N23: =MIN(B23:M23) -> 2 | O23: =MAX(B23:M23) -> 10 | P23: =MAX(C23:N23) -> 10
B24: =IF(B23=2,"ENE","") -> ENE | C24: =IF(C23=4,"FEB","") -> FEB | D24: =IF(D23=6,"MAR","") -> MAR | E24: =IF(E23=8,"ABR","") -> ABR | F24: =IF(F23=10,"MAY","") -> MAY | G24: =IF(G23=12,"JUN","") ->  | H24: =IF(H23=14,"JUL","") ->  | I24: =IF(I23=16,"AGO","") ->  | J24: =IF(J23=18,"SET","") ->  | K24: =IF(K23=20,"OCT","") ->  | L24: =IF(L23=22,"NOV","") ->  | M24: =IF(M23=24,"DIC","") ->  | N24: =IF(N23=B23,B24,IF(N23=C23,C24,IF(N23=D23,D24,IF(N23=E23,E24,IF(N23=F23,F24,IF(N23=G23,G24,IF(N23=H23,#REF!,IF(N23=I23,I24,IF(N23=J23,J24,IF(N23=K23,K24,IF(N23=L23,L24,IF(N23=M23,M24,"")))))))))))) -> ENE | O24: =IF(O23=C23,C24,IF(O23=D23,D24,IF(O23=E23,E24,IF(O23=F23,F24,IF(O23=G23,G24,IF(O23=H23,H24,IF(O23=I23,I24,IF(O23=J23,J24,IF(O23=K23,K24,IF(O23=L23,L24,IF(O23=M23,M24,""))))))))))) -> MAY | P24: =IF(P23=D23,D24,IF(P23=E23,E24,IF(P23=F23,F24,IF(P23=G23,G24,IF(P23=H23,H24,IF(P23=I23,I24,IF(P23=J23,J24,IF(P23=K23,K24,IF(P23=L23,L24,IF(P23=M23,M24,IF(P23=N23,N24,""))))))))))) -> MAY
N25: =CONCATENATE(N24," - ",O24) -> ENE - MAY
N26: =IF(N23=O23,N22,N25) -> ENE - MAY
A50: CRED01
A51: anno | B51: 2025
A52: cod_red | B52: (Todas)
A53: codmic | B53: (Todas)
A54: cod_prov | B54: (Todas)
A55: coddist | B55: (Todas)
A56: cod_estab | B56: (Todas)
A57: cod_eje | B57: (Todas)
B59: Valores
A60: Etiquetas de fila | B60: BAS001 | C60: BAS002 | D60: BAS003 | E60: BAS004 | F60: BAS005 | G60: BAS006 | H60: BAS007 | I60: BAS008 | J60: BAS009 | K60: BAS010 | L60: BAS011 | M60: BAS012 | N60: BAS013 | O60: BAS014 | P60: BAS015 | Q60: BAS016 | R60: BAS017 | S60: BAS018 | T60: BAS019 | U60: BAS020 | V60: BAS021 | W60: BAS022 | X60: BAS023 | Y60: BAS024 | Z60: BAS025 | AA60: BAS026 | AB60: BAS027 | AC60: BAS028 | AD60: BAS029 | AE60: BAS030 | AF60: BAS031 | AG60: BAS032 | AH60: BAS033 | AI60: BAS034 | AJ60: BAS035 | AK60: BAS036 | AL60: BAS037 | AM60: BAS038 | AN60: BAS039 | AO60: BAS040 | AP60: BAS041 | AQ60: BAS042 | AR60: BAS043 | AS60: BAS044 | AT60: BAS045 | AU60: BAS046 | AV60: BAS047 | AW60: BAS048 | AX60: BAS049 | AY60: BAS050 | AZ60: BAS051 | BA60: BAS052 | BB60: BAS053 | BC60: BAS054 | BD60: BAS055 | BE60: BAS056 | BF60: BAS057 | BG60: BAS058 | BH60: BAS059 | BI60: BAS060 | BJ60: BAS061 | BK60: BAS062 | BL60: BAS063 | BM60: BAS064 | BN60: BAS065 | BO60: BAS066 | BP60: BAS067 | BQ60: BAS068 | BR60: BAS069 | BS60: BAS070 | BT60: BAS071 | BU60: BAS072 | BV60: BAS073 | BW60: BAS074 | BX60: BAS075 | BY60: BAS076 | BZ60: BAS077 | CA60: BAS078 | CB60: BAS079 | CC60: BAS080 | CD60: BAS081 | CE60: BAS082 | CF60: BAS083 | CG60: BAS084 | CH60: BAS085 | CI60: BAS086 | CJ60: BAS087 | CK60: BAS088 | CL60: BAS089 | CM60: BAS090 | CN60: BAS091 | CO60: BAS092 | CP60: BAS093 | CQ60: BAS094 | CR60: BAS095 | CS60: BAS096 | CT60: BAS097 | CU60: BAS098 | CV60: BAS099 | CW60: BAS100 | CX60: BAS101 | CY60: BAS102 | CZ60: BAS103 | DA60: BAS104 | DB60: BAS105 | DC60: BAS106 | DD60: BAS107 | DE60: BAS108 | DF60: BAS109 | DG60: BAS110 | DH60: BAS111 | DI60: BAS112 | DJ60: BAS113 | DK60: BAS114 | DL60: BAS115 | DM60: BAS116 | DN60: BAS117 | DO60: BAS118 | DP60: BAS119 | DQ60: BAS120 | DR60: BAS121 | DS60: BAS122 | DT60: BAS123 | DU60: BAS124 | DV60: BAS125 | DW60: BAS126 | DX60: BAS127 | DY60: BAS128 | DZ60: BAS129 | EA60: BAS130 | EB60: BAS131 | EC60: BAS132 | ED60: BAS133 | EE60: BAS134 | EF60: BAS135 | EG60: BAS136 | EH60: BAS137 | EI60: BAS138 | EJ60: BAS139 | EK60: BAS140 | EL60: BAS141 | EM60: BAS142 | EN60: BAS143 | EO60: BAS144 | EP60: BAS145 | EQ60: BAS146 | ER60: BAS147 | ES60: BAS148 | ET60: BAS149 | EU60: BAS150 | EV60: BAS151 | EW60: BAS152 | EX60: BAS153 | EY60: BAS154 | EZ60: BAS155 | FA60: BAS156 | FB60: BAS157 | FC60: BAS158 | FD60: BAS159 | FE60: BAS160 | FF60: BAS161 | FG60: BAS162 | FH60: BAS163 | FI60: BAS164 | FJ60: BAS165 | FK60: BAS166 | FL60: BAS167 | FM60: BAS168 | FN60: BAS169 | FO60: BAS170 | FP60: BAS171 | FQ60: BAS172 | FR60: BAS173 | FS60: BAS174 | FT60: BAS175 | FU60: BAS176 | FV60: BAS177 | FW60: BAS178 | FX60: BAS179 | FY60: BAS180 | FZ60: BAS181 | GA60: BAS182 | GB60: BAS183 | GC60: BAS184 | GD60: BAS185 | GE60: BAS186 | GF60: BAS187 | GG60: BAS188 | GH60: BAS189 | GI60: BAS190 | GJ60: BAS191 | GK60: BAS192 | GL60: BAS193 | GM60: BAS194 | GN60: BAS195 | GO60: BAS196 | GP60: BAS197 | GQ60: BAS198 | GR60: BAS199 | GS60: BAS200 | GT60: BAS201 | GU60: BAS202 | GV60: BAS203 | GW60: BAS204 | GX60: BAS205 | GY60: BAS206 | GZ60: BAS207 | HA60: BAS208 | HB60: BAS209 | HC60: BAS210 | HD60: BAS211 | HE60: BAS212 | HF60: BAS213 | HG60: BAS214 | HH60: BAS215 | HI60: BAS216 | HJ60: BAS217 | HK60: BAS218 | HL60: BAS219 | HM60: BAS220 | HN60: BAS221 | HO60: BAS222 | HP60: BAS223 | HQ60: BAS224 | HR60: BAS225 | HS60: BAS226 | HT60: BAS227 | HU60: BAS228 | HV60: BAS229 | HW60: BAS230
A61: 1 | B61: 94 | C61: 0 | D61: 113 | E61: 127 | F61: 127 | G61: 112 | H61: 0 | I61: 0 | J61: 0 | K61: 0 | L61: 0 | M61: 0 | N61: 0 | O61: 57 | P61: 57 | Q61: 0 | R61: 0 | S61: 0 | T61: 0 | U61: 0 | V61: 2 | W61: 0 | X61: 2 | Y61: 2 | Z61: 1 | AA61: 3 | AB61: 0 | AC61: 0 | AD61: 0 | AE61: 0 | AF61: 0 | AG61: 0 | AH61: 0 | AI61: 0 | AJ61: 0 | AK61: 0 | AL61: 0 | AM61: 0 | AN61: 0 | AO61: 0 | AP61: 0 | AQ61: 0 | AR61: 0 | AS61: 0 | AT61: 0 | AU61: 0 | AV61: 0 | AW61: 0 | AX61: 0 | AY61: 0 | AZ61: 0 | BA61: 0 | BB61: 0 | BC61: 0 | BD61: 0 | BE61: 0 | BF61: 0 | BG61: 0 | BH61: 0 | BI61: 0 | BJ61: 0 | BK61: 0 | BL61: 0 | BM61: 0 | BN61: 0 | BO61: 0 | BP61: 0 | BQ61: 0 | BR61: 0 | BS61: 0 | BT61: 0 | BU61: 0 | BV61: 0 | BW61: 0 | BX61: 0 | BY61: 0 | BZ61: 0 | CA61: 0 | CB61: 0 | CC61: 0 | CD61: 140 | CE61: 117 | CF61: 117 | CG61: 137 | CH61: 116 | CI61: 111 | CJ61: 122 | CK61: 137 | CL61: 130 | CM61: 111 | CN61: 96 | CO61: 1182 | CP61: 1173 | CQ61: 0 | CR61: 0 | CS61: 0 | CT61: 0 | CU61: 0 | CV61: 130 | CW61: 146 | CX61: 132 | CY61: 132 | CZ61: 98 | DA61: 97 | DB61: 0 | DC61: 0 | DD61: 0 | DE61: 0 | DF61: 0 | DG61: 608 | DH61: 600 | DI61: 0 | DJ61: 0 | DK61: 0 | DL61: 0 | DM61: 0 | DN61: 149 | DO61: 123 | DP61: 101 | DQ61: 127 | DR61: 0 | DS61: 0 | DT61: 0 | DU61: 0 | DV61: 0 | DW61: 0 | DX61: 0 | DY61: 453 | DZ61: 448 | EA61: 0 | EB61: 0 | EC61: 0 | ED61: 0 | EE61: 0 | EF61: 135 | EG61: 112 | EH61: 94 | EI61: 92 | EJ61: 0 | EK61: 1 | EL61: 0 | EM61: 0 | EN61: 0 | EO61: 0 | EP61: 0 | EQ61: 383 | ER61: 380 | ES61: 0 | ET61: 0 | EU61: 0 | EV61: 0 | EW61: 0 | EX61: 145 | EY61: 92 | EZ61: 90 | FA61: 70 | FB61: 0 | FC61: 0 | FD61: 0 | FE61: 0 | FF61: 0 | FG61: 0 | FH61: 0 | FI61: 294 | FJ61: 294 | FK61: 0 | FL61: 0 | FM61: 0 | FN61: 0 | FO61: 0 | FP61: 152 | FQ61: 35 | FR61: 35 | FS61: 0 | FT61: 0 | FU61: 0 | FV61: 0 | FW61: 0 | FX61: 10 | FY61: 5 | FZ61: 5 | GA61: 0 | GB61: 0 | GC61: 0 | GD61: 0 | GE61: 0 | GF61: 0 | GG61: 0 | GH61: 0 | GI61: 0 | GJ61: 0 | GK61: 0 | GL61: 0 | GM61: 0 | GN61: 0 | GO61: 0 | GP61: 0 | GQ61: 0 | GR61: 0 | GS61: 0 | GT61: 0 | GU61: 0 | GV61: 0 | GW61: 0 | GX61: 0 | GY61: 0 | GZ61: 0 | HA61: 0 | HB61: 0 | HC61: 0 | HD61: 0 | HE61: 0 | HF61: 0 | HG61: 0 | HH61: 0 | HI61: 0 | HJ61: 0 | HK61: 0 | HL61: 0 | HM61: 0 | HN61: 0 | HO61: 0 | HP61: 0 | HQ61: 0 | HR61: 0 | HS61: 0 | HT61: 0 | HU61: 0 | HV61: 0 | HW61: 0
A62: 2 | B62: 101 | C62: 0 | D62: 99 | E62: 103 | F62: 86 | G62: 101 | H62: 0 | I62: 0 | J62: 0 | K62: 0 | L62: 0 | M62: 0 | N62: 0 | O62: 31 | P62: 30 | Q62: 0 | R62: 0 | S62: 0 | T62: 0 | U62: 0 | V62: 3 | W62: 0 | X62: 7 | Y62: 5 | Z62: 3 | AA62: 1 | AB62: 0 | AC62: 0 | AD62: 0 | AE62: 0 | AF62: 0 | AG62: 0 | AH62: 0 | AI62: 0 | AJ62: 0 | AK62: 0 | AL62: 0 | AM62: 0 | AN62: 0 | AO62: 0 | AP62: 0 | AQ62: 0 | AR62: 0 | AS62: 0 | AT62: 0 | AU62: 0 | AV62: 0 | AW62: 0 | AX62: 0 | AY62: 0 | AZ62: 0 | BA62: 0 | BB62: 0 | BC62: 0 | BD62: 0 | BE62: 0 | BF62: 0 | BG62: 0 | BH62: 0 | BI62: 0 | BJ62: 0 | BK62: 0 | BL62: 0 | BM62: 0 | BN62: 0 | BO62: 0 | BP62: 0 | BQ62: 0 | BR62: 0 | BS62: 0 | BT62: 0 | BU62: 0 | BV62: 0 | BW62: 0 | BX62: 0 | BY62: 0 | BZ62: 0 | CA62: 0 | CB62: 0 | CC62: 0 | CD62: 118 | CE62: 129 | CF62: 101 | CG62: 121 | CH62: 115 | CI62: 111 | CJ62: 114 | CK62: 105 | CL62: 123 | CM62: 115 | CN62: 96 | CO62: 1005 | CP62: 991 | CQ62: 0 | CR62: 0 | CS62: 0 | CT62: 0 | CU62: 0 | CV62: 112 | CW62: 122 | CX62: 133 | CY62: 124 | CZ62: 124 | DA62: 84 | DB62: 0 | DC62: 0 | DD62: 0 | DE62: 0 | DF62: 0 | DG62: 551 | DH62: 545 | DI62: 0 | DJ62: 0 | DK62: 0 | DL62: 0 | DM62: 0 | DN62: 124 | DO62: 90 | DP62: 96 | DQ62: 89 | DR62: 0 | DS62: 0 | DT62: 0 | DU62: 0 | DV62: 0 | DW62: 0 | DX62: 0 | DY62: 319 | DZ62: 315 | EA62: 0 | EB62: 0 | EC62: 0 | ED62: 0 | EE62: 0 | EF62: 126 | EG62: 98 | EH62: 91 | EI62: 78 | EJ62: 1 | EK62: 0 | EL62: 0 | EM62: 0 | EN62: 0 | EO62: 0 | EP62: 0 | EQ62: 327 | ER62: 321 | ES62: 0 | ET62: 0 | EU62: 0 | EV62: 0 | EW62: 0 | EX62: 128 | EY62: 87 | EZ62: 72 | FA62: 58 | FB62: 0 | FC62: 0 | FD62: 0 | FE62: 0 | FF62: 0 | FG62: 0 | FH62: 0 | FI62: 262 | FJ62: 256 | FK62: 0 | FL62: 0 | FM62: 0 | FN62: 0 | FO62: 0 | FP62: 133 | FQ62: 61 | FR62: 60 | FS62: 0 | FT62: 0 | FU62: 0 | FV62: 0 | FW62: 0 | FX62: 16 | FY62: 5 | FZ62: 5 | GA62: 0 | GB62: 0 | GC62: 0 | GD62: 0 | GE62: 0 | GF62: 0 | GG62: 0 | GH62: 0 | GI62: 0 | GJ62: 0 | GK62: 0 | GL62: 0 | GM62: 0 | GN62: 0 | GO62: 0 | GP62: 0 | GQ62: 0 | GR62: 0 | GS62: 0 | GT62: 0 | GU62: 0 | GV62: 0 | GW62: 0 | GX62: 0 | GY62: 0 | GZ62: 0 | HA62: 0 | HB62: 0 | HC62: 0 | HD62: 0 | HE62: 0 | HF62: 0 | HG62: 0 | HH62: 0 | HI62: 0 | HJ62: 0 | HK62: 0 | HL62: 0 | HM62: 0 | HN62: 0 | HO62: 0 | HP62: 0 | HQ62: 0 | HR62: 0 | HS62: 0 | HT62: 0 | HU62: 0 | HV62: 0 | HW62: 0
A63: 3 | B63: 95 | C63: 0 | D63: 118 | E63: 110 | F63: 132 | G63: 122 | H63: 1 | I63: 0 | J63: 0 | K63: 0 | L63: 0 | M63: 0 | N63: 0 | O63: 24 | P63: 24 | Q63: 0 | R63: 0 | S63: 0 | T63: 0 | U63: 0 | V63: 0 | W63: 0 | X63: 1 | Y63: 4 | Z63: 2 | AA63: 3 | AB63: 0 | AC63: 0 | AD63: 0 | AE63: 0 | AF63: 0 | AG63: 0 | AH63: 0 | AI63: 0 | AJ63: 0 | AK63: 0 | AL63: 0 | AM63: 0 | AN63: 0 | AO63: 0 | AP63: 0 | AQ63: 0 | AR63: 0 | AS63: 0 | AT63: 0 | AU63: 0 | AV63: 0 | AW63: 0 | AX63: 0 | AY63: 0 | AZ63: 0 | BA63: 0 | BB63: 0 | BC63: 0 | BD63: 0 | BE63: 0 | BF63: 0 | BG63: 0 | BH63: 0 | BI63: 0 | BJ63: 0 | BK63: 0 | BL63: 0 | BM63: 0 | BN63: 0 | BO63: 0 | BP63: 0 | BQ63: 0 | BR63: 0 | BS63: 0 | BT63: 0 | BU63: 0 | BV63: 0 | BW63: 0 | BX63: 0 | BY63: 0 | BZ63: 0 | CA63: 0 | CB63: 0 | CC63: 0 | CD63: 142 | CE63: 135 | CF63: 145 | CG63: 120 | CH63: 136 | CI63: 140 | CJ63: 111 | CK63: 123 | CL63: 130 | CM63: 134 | CN63: 128 | CO63: 1062 | CP63: 1052 | CQ63: 0 | CR63: 0 | CS63: 0 | CT63: 0 | CU63: 0 | CV63: 128 | CW63: 139 | CX63: 141 | CY63: 146 | CZ63: 117 | DA63: 98 | DB63: 0 | DC63: 0 | DD63: 0 | DE63: 0 | DF63: 0 | DG63: 587 | DH63: 584 | DI63: 0 | DJ63: 0 | DK63: 0 | DL63: 0 | DM63: 0 | DN63: 136 | DO63: 135 | DP63: 129 | DQ63: 103 | DR63: 1 | DS63: 3 | DT63: 0 | DU63: 0 | DV63: 0 | DW63: 0 | DX63: 0 | DY63: 396 | DZ63: 396 | EA63: 0 | EB63: 0 | EC63: 0 | ED63: 0 | EE63: 0 | EF63: 118 | EG63: 120 | EH63: 97 | EI63: 98 | EJ63: 0 | EK63: 0 | EL63: 0 | EM63: 0 | EN63: 0 | EO63: 0 | EP63: 0 | EQ63: 324 | ER63: 320 | ES63: 0 | ET63: 0 | EU63: 0 | EV63: 0 | EW63: 0 | EX63: 137 | EY63: 92 | EZ63: 88 | FA63: 62 | FB63: 0 | FC63: 0 | FD63: 0 | FE63: 0 | FF63: 0 | FG63: 0 | FH63: 0 | FI63: 262 | FJ63: 261 | FK63: 0 | FL63: 0 | FM63: 0 | FN63: 0 | FO63: 0 | FP63: 239 | FQ63: 45 | FR63: 45 | FS63: 0 | FT63: 0 | FU63: 0 | FV63: 0 | FW63: 0 | FX63: 56 | FY63: 4 | FZ63: 4 | GA63: 0 | GB63: 0 | GC63: 0 | GD63: 0 | GE63: 0 | GF63: 0 | GG63: 0 | GH63: 0 | GI63: 0 | GJ63: 0 | GK63: 0 | GL63: 0 | GM63: 0 | GN63: 0 | GO63: 0 | GP63: 0 | GQ63: 0 | GR63: 0 | GS63: 0 | GT63: 0 | GU63: 0 | GV63: 0 | GW63: 0 | GX63: 0 | GY63: 0 | GZ63: 0 | HA63: 0 | HB63: 0 | HC63: 0 | HD63: 0 | HE63: 0 | HF63: 0 | HG63: 0 | HH63: 0 | HI63: 0 | HJ63: 0 | HK63: 0 | HL63: 0 | HM63: 0 | HN63: 0 | HO63: 0 | HP63: 0 | HQ63: 0 | HR63: 0 | HS63: 0 | HT63: 0 | HU63: 0 | HV63: 0 | HW63: 0
A64: 4 | B64: 96 | C64: 0 | D64: 117 | E64: 114 | F64: 97 | G64: 101 | H64: 0 | I64: 0 | J64: 0 | K64: 0 | L64: 0 | M64: 0 | N64: 0 | O64: 22 | P64: 22 | Q64: 0 | R64: 0 | S64: 0 | T64: 0 | U64: 0 | V64: 0 | W64: 0 | X64: 1 | Y64: 1 | Z64: 1 | AA64: 0 | AB64: 0 | AC64: 0 | AD64: 0 | AE64: 0 | AF64: 0 | AG64: 0 | AH64: 0 | AI64: 0 | AJ64: 0 | AK64: 0 | AL64: 0 | AM64: 0 | AN64: 0 | AO64: 0 | AP64: 0 | AQ64: 0 | AR64: 0 | AS64: 0 | AT64: 0 | AU64: 0 | AV64: 0 | AW64: 0 | AX64: 0 | AY64: 0 | AZ64: 0 | BA64: 0 | BB64: 0 | BC64: 0 | BD64: 0 | BE64: 0 | BF64: 0 | BG64: 0 | BH64: 0 | BI64: 0 | BJ64: 0 | BK64: 0 | BL64: 0 | BM64: 0 | BN64: 0 | BO64: 0 | BP64: 0 | BQ64: 0 | BR64: 0 | BS64: 0 | BT64: 0 | BU64: 0 | BV64: 0 | BW64: 0 | BX64: 0 | BY64: 0 | BZ64: 0 | CA64: 0 | CB64: 0 | CC64: 0 | CD64: 125 | CE64: 133 | CF64: 132 | CG64: 140 | CH64: 127 | CI64: 138 | CJ64: 132 | CK64: 113 | CL64: 104 | CM64: 117 | CN64: 118 | CO64: 1039 | CP64: 1033 | CQ64: 0 | CR64: 0 | CS64: 0 | CT64: 0 | CU64: 0 | CV64: 155 | CW64: 129 | CX64: 125 | CY64: 131 | CZ64: 135 | DA64: 108 | DB64: 0 | DC64: 0 | DD64: 0 | DE64: 0 | DF64: 0 | DG64: 571 | DH64: 568 | DI64: 0 | DJ64: 0 | DK64: 0 | DL64: 0 | DM64: 0 | DN64: 136 | DO64: 142 | DP64: 99 | DQ64: 105 | DR64: 0 | DS64: 1 | DT64: 0 | DU64: 0 | DV64: 0 | DW64: 0 | DX64: 0 | DY64: 366 | DZ64: 364 | EA64: 0 | EB64: 0 | EC64: 0 | ED64: 0 | EE64: 0 | EF64: 155 | EG64: 111 | EH64: 91 | EI64: 79 | EJ64: 0 | EK64: 0 | EL64: 0 | EM64: 0 | EN64: 0 | EO64: 0 | EP64: 0 | EQ64: 314 | ER64: 310 | ES64: 0 | ET64: 0 | EU64: 0 | EV64: 0 | EW64: 0 | EX64: 164 | EY64: 111 | EZ64: 75 | FA64: 70 | FB64: 0 | FC64: 0 | FD64: 0 | FE64: 0 | FF64: 0 | FG64: 0 | FH64: 0 | FI64: 300 | FJ64: 295 | FK64: 0 | FL64: 0 | FM64: 0 | FN64: 0 | FO64: 0 | FP64: 352 | FQ64: 109 | FR64: 109 | FS64: 0 | FT64: 0 | FU64: 0 | FV64: 0 | FW64: 0 | FX64: 162 | FY64: 55 | FZ64: 55 | GA64: 0 | GB64: 0 | GC64: 0 | GD64: 0 | GE64: 0 | GF64: 0 | GG64: 0 | GH64: 0 | GI64: 0 | GJ64: 0 | GK64: 0 | GL64: 0 | GM64: 0 | GN64: 0 | GO64: 0 | GP64: 0 | GQ64: 0 | GR64: 0 | GS64: 0 | GT64: 0 | GU64: 0 | GV64: 0 | GW64: 0 | GX64: 0 | GY64: 0 | GZ64: 0 | HA64: 0 | HB64: 0 | HC64: 0 | HD64: 0 | HE64: 0 | HF64: 0 | HG64: 0 | HH64: 0 | HI64: 0 | HJ64: 0 | HK64: 0 | HL64: 0 | HM64: 0 | HN64: 0 | HO64: 0 | HP64: 0 | HQ64: 0 | HR64: 0 | HS64: 0 | HT64: 0 | HU64: 0 | HV64: 0 | HW64: 0
A65: 5 | B65: 96 | C65: 0 | D65: 98 | E65: 99 | F65: 109 | G65: 114 | H65: 0 | I65: 0 | J65: 0 | K65: 0 | L65: 0 | M65: 0 | N65: 0 | O65: 30 | P65: 30 | Q65: 0 | R65: 0 | S65: 0 | T65: 0 | U65: 0 | V65: 2 | W65: 0 | X65: 4 | Y65: 2 | Z65: 4 | AA65: 1 | AB65: 0 | AC65: 0 | AD65: 0 | AE65: 0 | AF65: 0 | AG65: 0 | AH65: 0 | AI65: 0 | AJ65: 0 | AK65: 0 | AL65: 0 | AM65: 0 | AN65: 0 | AO65: 0 | AP65: 0 | AQ65: 0 | AR65: 0 | AS65: 0 | AT65: 0 | AU65: 0 | AV65: 0 | AW65: 0 | AX65: 0 | AY65: 0 | AZ65: 0 | BA65: 0 | BB65: 0 | BC65: 0 | BD65: 0 | BE65: 0 | BF65: 0 | BG65: 0 | BH65: 0 | BI65: 0 | BJ65: 0 | BK65: 0 | BL65: 0 | BM65: 0 | BN65: 0 | BO65: 0 | BP65: 0 | BQ65: 0 | BR65: 0 | BS65: 0 | BT65: 0 | BU65: 0 | BV65: 0 | BW65: 0 | BX65: 0 | BY65: 0 | BZ65: 0 | CA65: 0 | CB65: 0 | CC65: 0 | CD65: 115 | CE65: 115 | CF65: 131 | CG65: 129 | CH65: 142 | CI65: 131 | CJ65: 135 | CK65: 128 | CL65: 109 | CM65: 106 | CN65: 112 | CO65: 1016 | CP65: 1008 | CQ65: 0 | CR65: 0 | CS65: 0 | CT65: 0 | CU65: 0 | CV65: 129 | CW65: 127 | CX65: 120 | CY65: 137 | CZ65: 107 | DA65: 106 | DB65: 0 | DC65: 0 | DD65: 0 | DE65: 0 | DF65: 0 | DG65: 547 | DH65: 542 | DI65: 0 | DJ65: 0 | DK65: 0 | DL65: 0 | DM65: 0 | DN65: 119 | DO65: 107 | DP65: 89 | DQ65: 84 | DR65: 0 | DS65: 4 | DT65: 0 | DU65: 0 | DV65: 0 | DW65: 0 | DX65: 0 | DY65: 314 | DZ65: 313 | EA65: 0 | EB65: 0 | EC65: 0 | ED65: 0 | EE65: 0 | EF65: 116 | EG65: 113 | EH65: 79 | EI65: 69 | EJ65: 0 | EK65: 0 | EL65: 0 | EM65: 0 | EN65: 0 | EO65: 0 | EP65: 0 | EQ65: 260 | ER65: 259 | ES65: 0 | ET65: 0 | EU65: 0 | EV65: 0 | EW65: 0 | EX65: 130 | EY65: 116 | EZ65: 71 | FA65: 59 | FB65: 0 | FC65: 0 | FD65: 0 | FE65: 0 | FF65: 0 | FG65: 0 | FH65: 0 | FI65: 257 | FJ65: 255 | FK65: 0 | FL65: 0 | FM65: 0 | FN65: 0 | FO65: 0 | FP65: 249 | FQ65: 68 | FR65: 68 | FS65: 0 | FT65: 0 | FU65: 0 | FV65: 0 | FW65: 0 | FX65: 113 | FY65: 14 | FZ65: 14 | GA65: 0 | GB65: 0 | GC65: 0 | GD65: 0 | GE65: 0 | GF65: 0 | GG65: 0 | GH65: 0 | GI65: 0 | GJ65: 0 | GK65: 0 | GL65: 0 | GM65: 0 | GN65: 0 | GO65: 0 | GP65: 0 | GQ65: 0 | GR65: 0 | GS65: 0 | GT65: 0 | GU65: 0 | GV65: 0 | GW65: 0 | GX65: 0 | GY65: 0 | GZ65: 0 | HA65: 0 | HB65: 0 | HC65: 0 | HD65: 0 | HE65: 0 | HF65: 0 | HG65: 0 | HH65: 0 | HI65: 0 | HJ65: 0 | HK65: 0 | HL65: 0 | HM65: 0 | HN65: 0 | HO65: 0 | HP65: 0 | HQ65: 0 | HR65: 0 | HS65: 0 | HT65: 0 | HU65: 0 | HV65: 0 | HW65: 0
A66: T | B66: 482 | C66: 0 | D66: 545 | E66: 553 | F66: 551 | G66: 550 | H66: 1 | I66: 0 | J66: 0 | K66: 0 | L66: 0 | M66: 0 | N66: 0 | O66: 164 | P66: 163 | Q66: 0 | R66: 0 | S66: 0 | T66: 0 | U66: 0 | V66: 7 | W66: 0 | X66: 15 | Y66: 14 | Z66: 11 | AA66: 8 | AB66: 0 | AC66: 0 | AD66: 0 | AE66: 0 | AF66: 0 | AG66: 0 | AH66: 0 | AI66: 0 | AJ66: 0 | AK66: 0 | AL66: 0 | AM66: 0 | AN66: 0 | AO66: 0 | AP66: 0 | AQ66: 0 | AR66: 0 | AS66: 0 | AT66: 0 | AU66: 0 | AV66: 0 | AW66: 0 | AX66: 0 | AY66: 0 | AZ66: 0 | BA66: 0 | BB66: 0 | BC66: 0 | BD66: 0 | BE66: 0 | BF66: 0 | BG66: 0 | BH66: 0 | BI66: 0 | BJ66: 0 | BK66: 0 | BL66: 0 | BM66: 0 | BN66: 0 | BO66: 0 | BP66: 0 | BQ66: 0 | BR66: 0 | BS66: 0 | BT66: 0 | BU66: 0 | BV66: 0 | BW66: 0 | BX66: 0 | BY66: 0 | BZ66: 0 | CA66: 0 | CB66: 0 | CC66: 0 | CD66: 640 | CE66: 629 | CF66: 626 | CG66: 647 | CH66: 636 | CI66: 631 | CJ66: 614 | CK66: 606 | CL66: 596 | CM66: 583 | CN66: 550 | CO66: 5304 | CP66: 5257 | CQ66: 0 | CR66: 0 | CS66: 0 | CT66: 0 | CU66: 0 | CV66: 654 | CW66: 663 | CX66: 651 | CY66: 670 | CZ66: 581 | DA66: 493 | DB66: 0 | DC66: 0 | DD66: 0 | DE66: 0 | DF66: 0 | DG66: 2864 | DH66: 2839 | DI66: 0 | DJ66: 0 | DK66: 0 | DL66: 0 | DM66: 0 | DN66: 664 | DO66: 597 | DP66: 514 | DQ66: 508 | DR66: 1 | DS66: 8 | DT66: 0 | DU66: 0 | DV66: 0 | DW66: 0 | DX66: 0 | DY66: 1848 | DZ66: 1836 | EA66: 0 | EB66: 0 | EC66: 0 | ED66: 0 | EE66: 0 | EF66: 650 | EG66: 554 | EH66: 452 | EI66: 416 | EJ66: 1 | EK66: 1 | EL66: 0 | EM66: 0 | EN66: 0 | EO66: 0 | EP66: 0 | EQ66: 1608 | ER66: 1590 | ES66: 0 | ET66: 0 | EU66: 0 | EV66: 0 | EW66: 0 | EX66: 704 | EY66: 498 | EZ66: 396 | FA66: 319 | FB66: 0 | FC66: 0 | FD66: 0 | FE66: 0 | FF66: 0 | FG66: 0 | FH66: 0 | FI66: 1375 | FJ66: 1361 | FK66: 0 | FL66: 0 | FM66: 0 | FN66: 0 | FO66: 0 | FP66: 1125 | FQ66: 318 | FR66: 317 | FS66: 0 | FT66: 0 | FU66: 0 | FV66: 0 | FW66: 0 | FX66: 357 | FY66: 83 | FZ66: 83 | GA66: 0 | GB66: 0 | GC66: 0 | GD66: 0 | GE66: 0 | GF66: 0 | GG66: 0 | GH66: 0 | GI66: 0 | GJ66: 0 | GK66: 0 | GL66: 0 | GM66: 0 | GN66: 0 | GO66: 0 | GP66: 0 | GQ66: 0 | GR66: 0 | GS66: 0 | GT66: 0 | GU66: 0 | GV66: 0 | GW66: 0 | GX66: 0 | GY66: 0 | GZ66: 0 | HA66: 0 | HB66: 0 | HC66: 0 | HD66: 0 | HE66: 0 | HF66: 0 | HG66: 0 | HH66: 0 | HI66: 0 | HJ66: 0 | HK66: 0 | HL66: 0 | HM66: 0 | HN66: 0 | HO66: 0 | HP66: 0 | HQ66: 0 | HR66: 0 | HS66: 0 | HT66: 0 | HU66: 0 | HV66: 0 | HW66: 0
A79: TOTAL
A80: =COUNT(A61:A77) -> 5 | B80: =SUM(B61:B77) -> 964 | C80: =SUM(C61:C77) -> 0 | D80: 1090 | E80: 1106 | F80: 1102 | G80: 1100 | H80: 2 | I80: 0 | J80: 0 | K80: 0 | L80: 0 | M80: 0 | N80: 0 | O80: 328 | P80: 326 | Q80: 0 | R80: 0 | S80: 0 | T80: 0 | U80: 0 | V80: 14 | W80: 0 | X80: 30 | Y80: 28 | Z80: 22 | AA80: 16 | AB80: 0 | AC80: 0 | AD80: 0 | AE80: 0 | AF80: 0 | AG80: 0 | AH80: 0 | AI80: 0 | AJ80: 0 | AK80: 0 | AL80: 0 | AM80: 0 | AN80: 0 | AO80: 0 | AP80: 0 | AQ80: 0 | AR80: 0 | AS80: 0 | AT80: 0 | AU80: 0 | AV80: 0 | AW80: 0 | AX80: 0 | AY80: 0 | AZ80: 0 | BA80: 0 | BB80: 0 | BC80: 0 | BD80: 0 | BE80: 0 | BF80: 0 | BG80: 0 | BH80: 0 | BI80: 0 | BJ80: 0 | BK80: 0 | BL80: 0 | BM80: 0 | BN80: 0 | BO80: =SUM(BO61:BO77) -> 0 | BP80: 0 | BQ80: 0 | BR80: 0 | BS80: 0 | BT80: 0 | BU80: 0 | BV80: 0 | BW80: 0 | BX80: 0 | BY80: 0 | BZ80: 0 | CA80: 0 | CB80: 0 | CC80: 0 | CD80: 1280 | CE80: 1258 | CF80: 1252 | CG80: 1294 | CH80: 1272 | CI80: 1262 | CJ80: 1228 | CK80: 1212 | CL80: 1192 | CM80: 1166 | CN80: 1100 | CO80: 10608 | CP80: 10514 | CQ80: 0 | CR80: 0 | CS80: 0 | CT80: 0 | CU80: 0 | CV80: 1308 | CW80: 1326 | CX80: 1302 | CY80: 1340 | CZ80: 1162 | DA80: 986 | DB80: 0 | DC80: 0 | DD80: 0 | DE80: 0 | DF80: 0 | DG80: 5728 | DH80: 5678 | DI80: 0 | DJ80: 0 | DK80: 0 | DL80: 0 | DM80: 0 | DN80: 1328 | DO80: 1194 | DP80: 1028 | DQ80: 1016 | DR80: 2 | DS80: 16 | DT80: 0 | DU80: 0 | DV80: 0 | DW80: 0 | DX80: 0 | DY80: 3696 | DZ80: 3672 | EA80: =SUM(EA61:EA77) -> 0 | EB80: 0 | EC80: 0 | ED80: 0 | EE80: 0 | EF80: 1300 | EG80: 1108 | EH80: 904 | EI80: 832 | EJ80: 2 | EK80: 2 | EL80: 0 | EM80: 0 | EN80: 0 | EO80: 0 | EP80: 0 | EQ80: 3216 | ER80: 3180 | ES80: 0 | ET80: 0 | EU80: 0 | EV80: 0 | EW80: 0 | EX80: 1408 | EY80: 996 | EZ80: 792 | FA80: 638 | FB80: 0 | FC80: 0 | FD80: 0 | FE80: 0 | FF80: 0 | FG80: 0 | FH80: 0 | FI80: 2750 | FJ80: 2722 | FK80: 0 | FL80: 0 | FM80: 0 | FN80: 0 | FO80: 0 | FP80: 2250 | FQ80: 636 | FR80: 634 | FS80: 0 | FT80: 0 | FU80: 0 | FV80: 0 | FW80: 0 | FX80: 714 | FY80: 166 | FZ80: 166 | GA80: 0 | GB80: 0 | GC80: 0 | GD80: 0 | GE80: 0 | GF80: 0 | GG80: 0 | GH80: 0 | GI80: 0 | GJ80: 0 | GK80: 0 | GL80: 0 | GM80: =SUM(GM61:GM77) -> 0 | GN80: 0 | GO80: 0 | GP80: 0 | GQ80: 0 | GR80: 0 | GS80: 0 | GT80: 0 | GU80: 0 | GV80: 0 | GW80: 0 | GX80: 0 | GY80: 0 | GZ80: 0 | HA80: 0 | HB80: 0 | HC80: 0 | HD80: 0 | HE80: 0 | HF80: 0 | HG80: 0 | HH80: 0 | HI80: 0 | HJ80: 0 | HK80: 0 | HL80: 0 | HM80: 0 | HN80: 0 | HO80: 0 | HP80: 0 | HQ80: 0 | HR80: 0 | HS80: 0 | HT80: 0 | HU80: 0 | HV80: 0 | HW80: 0 | HX80: 0
A81: =CONCATENATE(A61,"-",A62,"-",A63,"-",A64,"-",A65,"-",A66,"-",A67,"-",A68,"-",A69,"-",A70,"-",A71,"-",A72) -> 1-2-3-4-5-T------
B82: BAS001 | C82: BAS002 | D82: BAS003 | E82: BAS004 | F82: BAS005 | G82: BAS006 | H82: BAS007 | I82: BAS008 | J82: BAS009 | K82: BAS010 | L82: BAS011 | M82: BAS012 | N82: BAS013 | O82: BAS014 | P82: BAS015 | Q82: BAS016 | R82: BAS017 | S82: BAS018 | T82: BAS019 | U82: BAS020 | V82: BAS021 | W82: BAS022 | X82: BAS023 | Y82: BAS024 | Z82: BAS025 | AA82: BAS026 | AB82: BAS027 | AC82: BAS028 | AD82: BAS029 | AE82: BAS030 | AF82: BAS031 | AG82: BAS032 | AH82: BAS033 | AI82: BAS034 | AJ82: BAS035 | AK82: BAS036 | AL82: BAS037 | AM82: BAS038 | AN82: BAS039 | AO82: BAS040 | AP82: BAS041 | AQ82: BAS042 | AR82: BAS043 | AS82: BAS044 | AT82: BAS045 | AU82: BAS046 | AV82: BAS047 | AW82: BAS048 | AX82: BAS049 | AY82: BAS050 | AZ82: BAS051 | BA82: BAS052 | BB82: BAS053 | BC82: BAS054 | BD82: BAS055 | BE82: BAS056 | BF82: BAS057 | BG82: BAS058 | BH82: BAS059 | BI82: BAS060 | BJ82: BAS061 | BK82: BAS062 | BL82: BAS063 | BM82: BAS064 | BN82: BAS065 | BO82: BAS066 | BP82: BAS067 | BQ82: BAS068 | BR82: BAS069 | BS82: BAS070 | BT82: BAS071 | BU82: BAS072 | BV82: BAS073 | BW82: BAS074 | BX82: BAS075 | BY82: BAS076 | BZ82: BAS077 | CA82: BAS078 | CB82: BAS079 | CC82: BAS080 | CD82: BAS081 | CE82: BAS082 | CF82: BAS083 | CG82: BAS084 | CH82: BAS085 | CI82: BAS086 | CJ82: BAS087 | CK82: BAS088 | CL82: BAS089 | CM82: BAS090 | CN82: BAS091 | CO82: BAS092 | CP82: BAS093 | CQ82: BAS094 | CR82: BAS095 | CS82: BAS096 | CT82: BAS097 | CU82: BAS098 | CV82: BAS099 | CW82: BAS100 | CX82: BAS101 | CY82: BAS102 | CZ82: BAS103 | DA82: BAS104 | DB82: BAS105 | DC82: BAS106 | DD82: BAS107 | DE82: BAS108 | DF82: BAS109 | DG82: BAS110 | DH82: BAS111 | DI82: BAS112 | DJ82: BAS113 | DK82: BAS114 | DL82: BAS115 | DM82: BAS116 | DN82: BAS117 | DO82: BAS118 | DP82: BAS119 | DQ82: BAS120 | DR82: BAS121 | DS82: BAS122 | DT82: BAS123 | DU82: BAS124 | DV82: BAS125 | DW82: BAS126 | DX82: BAS127 | DY82: BAS128 | DZ82: BAS129 | EA82: BAS130 | EB82: BAS131 | EC82: BAS132 | ED82: BAS133 | EE82: BAS134 | EF82: BAS135 | EG82: BAS136 | EH82: BAS137 | EI82: BAS138 | EJ82: BAS139 | EK82: BAS140 | EL82: BAS141 | EM82: BAS142 | EN82: BAS143 | EO82: BAS144 | EP82: BAS145 | EQ82: BAS146 | ER82: BAS147 | ES82: BAS148 | ET82: BAS149 | EU82: BAS150 | EV82: BAS151 | EW82: BAS152 | EX82: BAS153 | EY82: BAS154 | EZ82: BAS155 | FA82: BAS156 | FB82: BAS157 | FC82: BAS158 | FD82: BAS159 | FE82: BAS160 | FF82: BAS161 | FG82: BAS162 | FH82: BAS163 | FI82: BAS164 | FJ82: BAS165 | FK82: BAS166 | FL82: BAS167 | FM82: BAS168 | FN82: BAS169 | FO82: BAS170 | FP82: BAS171 | FQ82: BAS172 | FR82: BAS173 | FS82: BAS174 | FT82: BAS175 | FU82: BAS176 | FV82: BAS177 | FW82: BAS178 | FX82: BAS179 | FY82: BAS180 | FZ82: BAS181 | GA82: BAS182 | GB82: BAS183 | GC82: BAS184 | GD82: BAS185 | GE82: BAS186 | GF82: BAS187 | GG82: BAS188 | GH82: BAS189 | GI82: BAS190 | GJ82: BAS191 | GK82: BAS192 | GL82: BAS193 | GM82: BAS194 | GN82: BAS195 | GO82: BAS196 | GP82: BAS197 | GQ82: BAS198 | GR82: BAS199 | GS82: BAS200 | GT82: BAS201 | GU82: BAS202 | GV82: BAS203 | GW82: BAS204 | GX82: BAS205 | GY82: BAS206 | GZ82: BAS207 | HA82: BAS208 | HB82: BAS209 | HC82: BAS210 | HD82: BAS211 | HE82: BAS212 | HF82: BAS213 | HG82: BAS214 | HH82: BAS215 | HI82: BAS216 | HJ82: BAS217 | HK82: BAS218 | HL82: BAS219 | HM82: BAS220 | HN82: BAS221 | HO82: BAS222 | HP82: BAS223 | HQ82: BAS224 | HR82: BAS225 | HS82: BAS226 | HT82: BAS227 | HU82: BAS228 | HV82: BAS229 | HW82: BAS230
B83: =IF(B82=B60,"SI","NO") -> SI | C83: =IF(C82=C60,"SI","NO") -> SI | D83: SI | E83: SI | F83: SI | G83: SI | H83: SI | I83: SI | J83: SI | K83: SI | L83: SI | M83: SI | N83: SI | O83: SI | P83: SI | Q83: SI | R83: SI | S83: SI | T83: SI | U83: SI | V83: SI | W83: SI | X83: SI | Y83: SI | Z83: SI | AA83: SI | AB83: SI | AC83: SI | AD83: SI | AE83: SI | AF83: SI | AG83: SI | AH83: SI | AI83: SI | AJ83: SI | AK83: SI | AL83: SI | AM83: SI | AN83: SI | AO83: SI | AP83: SI | AQ83: SI | AR83: SI | AS83: SI | AT83: SI | AU83: SI | AV83: SI | AW83: SI | AX83: SI | AY83: SI | AZ83: SI | BA83: SI | BB83: SI | BC83: SI | BD83: SI | BE83: SI | BF83: SI | BG83: SI | BH83: SI | BI83: SI | BJ83: SI | BK83: SI | BL83: SI | BM83: SI | BN83: SI | BO83: =IF(BO82=BO60,"SI","NO") -> SI | BP83: SI | BQ83: SI | BR83: SI | BS83: SI | BT83: SI | BU83: SI | BV83: SI | BW83: SI | BX83: SI | BY83: SI | BZ83: SI | CA83: SI | CB83: SI | CC83: SI | CD83: SI | CE83: SI | CF83: SI | CG83: SI | CH83: SI | CI83: SI | CJ83: SI | CK83: SI | CL83: SI | CM83: SI | CN83: SI | CO83: SI | CP83: SI | CQ83: SI | CR83: SI | CS83: SI | CT83: SI | CU83: SI | CV83: SI | CW83: SI | CX83: SI | CY83: SI | CZ83: SI | DA83: SI | DB83: SI | DC83: SI | DD83: SI | DE83: SI | DF83: SI | DG83: SI | DH83: SI | DI83: SI | DJ83: SI | DK83: SI | DL83: SI | DM83: SI | DN83: SI | DO83: SI | DP83: SI | DQ83: SI | DR83: SI | DS83: SI | DT83: SI | DU83: SI | DV83: SI | DW83: SI | DX83: SI | DY83: SI | DZ83: SI | EA83: =IF(EA82=EA60,"SI","NO") -> SI | EB83: SI | EC83: SI | ED83: SI | EE83: SI | EF83: SI | EG83: SI | EH83: SI | EI83: SI | EJ83: SI | EK83: SI | EL83: SI | EM83: SI | EN83: SI | EO83: SI | EP83: SI | EQ83: SI | ER83: SI | ES83: SI | ET83: SI | EU83: SI | EV83: SI | EW83: SI | EX83: SI | EY83: SI | EZ83: SI | FA83: SI | FB83: SI | FC83: SI | FD83: SI | FE83: SI | FF83: SI | FG83: SI | FH83: SI | FI83: SI | FJ83: SI | FK83: SI | FL83: SI | FM83: SI | FN83: SI | FO83: SI | FP83: SI | FQ83: SI | FR83: SI | FS83: SI | FT83: SI | FU83: SI | FV83: SI | FW83: SI | FX83: SI | FY83: SI | FZ83: SI | GA83: SI | GB83: SI | GC83: SI | GD83: SI | GE83: SI | GF83: SI | GG83: SI | GH83: SI | GI83: SI | GJ83: SI | GK83: SI | GL83: SI | GM83: =IF(GM82=GM60,"SI","NO") -> SI | GN83: SI | GO83: SI | GP83: SI | GQ83: SI | GR83: SI | GS83: SI | GT83: SI | GU83: SI | GV83: SI | GW83: SI | GX83: SI | GY83: SI | GZ83: SI | HA83: SI | HB83: SI | HC83: SI | HD83: SI | HE83: SI | HF83: SI | HG83: SI | HH83: SI | HI83: SI | HJ83: SI | HK83: SI | HL83: SI | HM83: SI | HN83: SI | HO83: SI | HP83: SI | HQ83: SI | HR83: SI | HS83: SI | HT83: SI | HU83: SI | HV83: SI | HW83: SI | HX83: =IF(HW82=HX60,"SI","NO") -> NO
A86: CRED02
A87: anno | B87: 2025
A88: cod_red | B88: (Todas)
A89: codmic | B89: (Todas)
A90: cod_prov | B90: (Todas)
A91: coddist | B91: (Todas)
A92: cod_estab | B92: (Todas)
A93: cod_eje | B93: (Todas)
B95: Valores
A96: Etiquetas de fila | B96: BAS001 | C96: BAS002 | D96: BAS003 | E96: BAS004 | F96: BAS005 | G96: BAS006 | H96: BAS007 | I96: BAS008 | J96: BAS009 | K96: BAS010 | L96: BAS011 | M96: BAS012 | N96: BAS013 | O96: BAS014 | P96: BAS015 | Q96: BAS016 | R96: BAS017 | S96: BAS018 | T96: BAS019 | U96: BAS020 | V96: BAS021 | W96: BAS022 | X96: BAS023 | Y96: BAS024 | Z96: BAS025 | AA96: BAS026 | AB96: BAS027 | AC96: BAS028 | AD96: BAS029 | AE96: BAS030 | AF96: BAS031 | AG96: BAS032 | AH96: BAS033 | AI96: BAS034 | AJ96: BAS035 | AK96: BAS036 | AL96: BAS037 | AM96: BAS038 | AN96: BAS039 | AO96: BAS040 | AP96: BAS041 | AQ96: BAS042 | AR96: BAS043 | AS96: BAS044 | AT96: BAS045 | AU96: BAS046 | AV96: BAS047 | AW96: BAS048 | AX96: BAS049 | AY96: BAS050 | AZ96: BAS051 | BA96: BAS052 | BB96: BAS053 | BC96: BAS054 | BD96: BAS055 | BE96: BAS056 | BF96: BAS057 | BG96: BAS058 | BH96: BAS059 | BI96: BAS060 | BJ96: BAS061 | BK96: BAS062 | BL96: BAS063 | BM96: BAS064 | BN96: BAS065 | BO96: BAS066 | BP96: BAS067 | BQ96: BAS068 | BR96: BAS069 | BS96: BAS070 | BT96: BAS071 | BU96: BAS072 | BV96: BAS073 | BW96: BAS074 | BX96: BAS075 | BY96: BAS076 | BZ96: BAS077 | CA96: BAS078 | CB96: BAS079 | CC96: BAS080 | CD96: BAS081 | CE96: BAS082 | CF96: BAS083 | CG96: BAS084 | CH96: BAS085 | CI96: BAS086 | CJ96: BAS087 | CK96: BAS088 | CL96: BAS089 | CM96: BAS090 | CN96: BAS091 | CO96: BAS092 | CP96: BAS093 | CQ96: BAS094 | CR96: BAS095 | CS96: BAS096 | CT96: BAS097 | CU96: BAS098 | CV96: BAS099 | CW96: BAS100 | CX96: BAS101 | CY96: BAS102 | CZ96: BAS103 | DA96: BAS104 | DB96: BAS105 | DC96: BAS106 | DD96: BAS107 | DE96: BAS108 | DF96: BAS109 | DG96: BAS110 | DH96: BAS111 | DI96: BAS112 | DJ96: BAS113 | DK96: BAS114 | DL96: BAS115 | DM96: BAS116 | DN96: BAS117 | DO96: BAS118 | DP96: BAS119 | DQ96: BAS120 | DR96: BAS121 | DS96: BAS122 | DT96: BAS123 | DU96: BAS124 | DV96: BAS125 | DW96: BAS126 | DX96: BAS127 | DY96: BAS128 | DZ96: BAS129 | EA96: BAS130 | EB96: BAS131 | EC96: BAS132 | ED96: BAS133 | EE96: BAS134 | EF96: BAS135 | EG96: BAS136 | EH96: BAS137 | EI96: BAS138 | EJ96: BAS139 | EK96: BAS140 | EL96: BAS141 | EM96: BAS142 | EN96: BAS143 | EO96: BAS144 | EP96: BAS145 | EQ96: BAS146 | ER96: BAS147 | ES96: BAS148 | ET96: BAS149 | EU96: BAS150 | EV96: BAS151 | EW96: BAS152 | EX96: BAS153 | EY96: BAS154 | EZ96: BAS155 | FA96: BAS156 | FB96: BAS157 | FC96: BAS158 | FD96: BAS159 | FE96: BAS160 | FF96: BAS161 | FG96: BAS162 | FH96: BAS163 | FI96: BAS164 | FJ96: BAS165 | FK96: BAS166 | FL96: BAS167 | FM96: BAS168 | FN96: BAS169 | FO96: BAS170 | FP96: BAS171 | FQ96: BAS172 | FR96: BAS173 | FS96: BAS174 | FT96: BAS175 | FU96: BAS176 | FV96: BAS177 | FW96: BAS178 | FX96: BAS179 | FY96: BAS180 | FZ96: BAS181 | GA96: BAS182 | GB96: BAS183 | GC96: BAS184 | GD96: BAS185 | GE96: BAS186 | GF96: BAS187 | GG96: BAS188 | GH96: BAS189 | GI96: BAS190 | GJ96: BAS191 | GK96: BAS192 | GL96: BAS193 | GM96: BAS194 | GN96: BAS195 | GO96: BAS196 | GP96: BAS197 | GQ96: BAS198 | GR96: BAS199 | GS96: BAS200 | GT96: BAS201 | GU96: BAS202 | GV96: BAS203 | GW96: BAS204 | GX96: BAS205 | GY96: BAS206 | GZ96: BAS207 | HA96: BAS208 | HB96: BAS209 | HC96: BAS210 | HD96: BAS211 | HE96: BAS212 | HF96: BAS213 | HG96: BAS214 | HH96: BAS215 | HI96: BAS216 | HJ96: BAS217 | HK96: BAS218 | HL96: BAS219 | HM96: BAS220 | HN96: BAS221 | HO96: BAS222 | HP96: BAS223 | HQ96: BAS224 | HR96: BAS225 | HS96: BAS226 | HT96: BAS227 | HU96: BAS228 | HV96: BAS229 | HW96: BAS230
A97: 1 | B97: 98 | C97: 95 | D97: 0 | E97: 96 | F97: 90 | G97: 96 | H97: 90 | I97: 10 | J97: 0 | K97: 0 | L97: 0 | M97: 0 | N97: 0 | O97: 0 | P97: 0 | Q97: 0 | R97: 0 | S97: 0 | T97: 0 | U97: 0 | V97: 2 | W97: 100 | X97: 61 | Y97: 95 | Z97: 78 | AA97: 78 | AB97: 0 | AC97: 1188 | AD97: 0 | AE97: 0 | AF97: 5 | AG97: 1 | AH97: 0 | AI97: 0 | AJ97: 126 | AK97: 0 | AL97: 0 | AM97: 0 | AN97: 0 | AO97: 0 | AP97: 0 | AQ97: 0 | AR97: 0 | AS97: 0 | AT97: 0 | AU97: 0 | AV97: 0 | AW97: 0 | AX97: 0 | AY97: 0 | AZ97: 0 | BA97: 0 | BB97: 0 | BC97: 0 | BD97: 0 | BE97: 0 | BF97: 0 | BG97: 0 | BH97: 0 | BI97: 0 | BJ97: 0 | BK97: 0 | BL97: 0 | BM97: 0 | BN97: 0 | BO97: 0 | BP97: 0 | BQ97: 0 | BR97: 0 | BS97: 0 | BT97: 0 | BU97: 0 | BV97: 0 | BW97: 0 | BX97: 0 | BY97: 0 | BZ97: 0 | CA97: 0 | CB97: 0 | CC97: 0 | CD97: 0 | CE97: 0 | CF97: 0 | CG97: 0 | CH97: 0 | CI97: 0 | CJ97: 0 | CK97: 0 | CL97: 0 | CM97: 0 | CN97: 0 | CO97: 0 | CP97: 0 | CQ97: 0 | CR97: 0 | CS97: 0 | CT97: 0 | CU97: 0 | CV97: 0 | CW97: 0 | CX97: 0 | CY97: 0 | CZ97: 71 | DA97: 0 | DB97: 0 | DC97: 0 | DD97: 0 | DE97: 0 | DF97: 0 | DG97: 119 | DH97: 97 | DI97: 119 | DJ97: 106 | DK97: 104 | DL97: 133 | DM97: 0 | DN97: 89 | DO97: 98 | DP97: 92 | DQ97: 44 | DR97: 1 | DS97: 0 | DT97: 0 | DU97: 90 | DV97: 46 | DW97: 0 | DX97: 0 | DY97: 0 | DZ97: 0 | EA97: 0 | EB97: 32 | EC97: 0 | ED97: 0 | EE97: 0 | EF97: 0 | EG97: 0 | EH97: 0 | EI97: 0 | EJ97: 0 | EK97: 0 | EL97: 0 | EM97: 0 | EN97: 0 | EO97: 0 | EP97: 0 | EQ97: 0 | ER97: 0 | ES97: 0 | ET97: 0 | EU97: 0 | EV97: 0 | EW97: 0 | EX97: 0 | EY97: 0 | EZ97: 0 | FA97: 0 | FB97: 0 | FC97: 0 | FD97: 0 | FE97: 0 | FF97: 0 | FG97: 0 | FH97: 0 | FI97: 0 | FJ97: 0 | FK97: 0 | FL97: 0 | FM97: 0 | FN97: 0 | FO97: 0 | FP97: 0 | FQ97: 0 | FR97: 0 | FS97: 0 | FT97: 0 | FU97: 0 | FV97: 0 | FW97: 0 | FX97: 0 | FY97: 0 | FZ97: 0 | GA97: 0 | GB97: 0 | GC97: 0 | GD97: 0 | GE97: 0 | GF97: 0 | GG97: 0 | GH97: 0 | GI97: 0 | GJ97: 0 | GK97: 0 | GL97: 0 | GM97: 0 | GN97: 0 | GO97: 0 | GP97: 0 | GQ97: 0 | GR97: 0 | GS97: 0 | GT97: 0 | GU97: 0 | GV97: 0 | GW97: 0 | GX97: 0 | GY97: 0 | GZ97: 0 | HA97: 0 | HB97: 0 | HC97: 0 | HD97: 0 | HE97: 0 | HF97: 0 | HG97: 0 | HH97: 0 | HI97: 0 | HJ97: 0 | HK97: 0 | HL97: 0 | HM97: 0 | HN97: 0 | HO97: 0 | HP97: 0 | HQ97: 0 | HR97: 0 | HS97: 0 | HT97: 0 | HU97: 0 | HV97: 0 | HW97: 0
A98: 2 | B98: 104 | C98: 89 | D98: 0 | E98: 103 | F98: 81 | G98: 82 | H98: 81 | I98: 15 | J98: 1 | K98: 0 | L98: 0 | M98: 0 | N98: 0 | O98: 0 | P98: 0 | Q98: 0 | R98: 0 | S98: 0 | T98: 0 | U98: 0 | V98: 1 | W98: 105 | X98: 35 | Y98: 82 | Z98: 63 | AA98: 66 | AB98: 0 | AC98: 1047 | AD98: 0 | AE98: 0 | AF98: 11 | AG98: 0 | AH98: 1 | AI98: 7 | AJ98: 136 | AK98: 1 | AL98: 0 | AM98: 0 | AN98: 0 | AO98: 0 | AP98: 0 | AQ98: 0 | AR98: 0 | AS98: 0 | AT98: 0 | AU98: 0 | AV98: 0 | AW98: 0 | AX98: 0 | AY98: 0 | AZ98: 0 | BA98: 0 | BB98: 0 | BC98: 0 | BD98: 0 | BE98: 0 | BF98: 0 | BG98: 0 | BH98: 0 | BI98: 0 | BJ98: 0 | BK98: 0 | BL98: 1 | BM98: 0 | BN98: 0 | BO98: 0 | BP98: 0 | BQ98: 0 | BR98: 0 | BS98: 0 | BT98: 0 | BU98: 0 | BV98: 0 | BW98: 0 | BX98: 0 | BY98: 0 | BZ98: 0 | CA98: 0 | CB98: 0 | CC98: 0 | CD98: 0 | CE98: 0 | CF98: 0 | CG98: 0 | CH98: 0 | CI98: 0 | CJ98: 0 | CK98: 0 | CL98: 0 | CM98: 0 | CN98: 0 | CO98: 0 | CP98: 1 | CQ98: 1 | CR98: 0 | CS98: 0 | CT98: 1 | CU98: 0 | CV98: 0 | CW98: 0 | CX98: 0 | CY98: 0 | CZ98: 57 | DA98: 0 | DB98: 0 | DC98: 0 | DD98: 0 | DE98: 0 | DF98: 0 | DG98: 93 | DH98: 111 | DI98: 105 | DJ98: 96 | DK98: 102 | DL98: 104 | DM98: 0 | DN98: 70 | DO98: 83 | DP98: 83 | DQ98: 47 | DR98: 0 | DS98: 0 | DT98: 0 | DU98: 69 | DV98: 49 | DW98: 1 | DX98: 0 | DY98: 0 | DZ98: 0 | EA98: 0 | EB98: 23 | EC98: 1 | ED98: 0 | EE98: 0 | EF98: 0 | EG98: 0 | EH98: 0 | EI98: 0 | EJ98: 0 | EK98: 0 | EL98: 0 | EM98: 0 | EN98: 0 | EO98: 0 | EP98: 0 | EQ98: 0 | ER98: 0 | ES98: 0 | ET98: 0 | EU98: 0 | EV98: 0 | EW98: 0 | EX98: 0 | EY98: 0 | EZ98: 0 | FA98: 0 | FB98: 0 | FC98: 0 | FD98: 0 | FE98: 0 | FF98: 0 | FG98: 0 | FH98: 0 | FI98: 0 | FJ98: 0 | FK98: 0 | FL98: 0 | FM98: 0 | FN98: 0 | FO98: 0 | FP98: 0 | FQ98: 0 | FR98: 0 | FS98: 0 | FT98: 0 | FU98: 0 | FV98: 0 | FW98: 0 | FX98: 0 | FY98: 0 | FZ98: 0 | GA98: 0 | GB98: 0 | GC98: 0 | GD98: 0 | GE98: 0 | GF98: 0 | GG98: 0 | GH98: 0 | GI98: 0 | GJ98: 0 | GK98: 0 | GL98: 0 | GM98: 0 | GN98: 0 | GO98: 0 | GP98: 0 | GQ98: 0 | GR98: 0 | GS98: 0 | GT98: 0 | GU98: 0 | GV98: 0 | GW98: 0 | GX98: 0 | GY98: 0 | GZ98: 0 | HA98: 0 | HB98: 0 | HC98: 0 | HD98: 0 | HE98: 0 | HF98: 0 | HG98: 0 | HH98: 0 | HI98: 0 | HJ98: 0 | HK98: 0 | HL98: 0 | HM98: 0 | HN98: 0 | HO98: 0 | HP98: 0 | HQ98: 0 | HR98: 0 | HS98: 0 | HT98: 0 | HU98: 0 | HV98: 0 | HW98: 0
A99: 3 | B99: 98 | C99: 93 | D99: 0 | E99: 98 | F99: 83 | G99: 82 | H99: 82 | I99: 10 | J99: 0 | K99: 0 | L99: 0 | M99: 0 | N99: 0 | O99: 0 | P99: 0 | Q99: 0 | R99: 0 | S99: 0 | T99: 0 | U99: 0 | V99: 1 | W99: 98 | X99: 27 | Y99: 82 | Z99: 62 | AA99: 65 | AB99: 0 | AC99: 1198 | AD99: 0 | AE99: 0 | AF99: 4 | AG99: 3 | AH99: 0 | AI99: 5 | AJ99: 138 | AK99: 0 | AL99: 0 | AM99: 0 | AN99: 0 | AO99: 0 | AP99: 0 | AQ99: 0 | AR99: 0 | AS99: 0 | AT99: 0 | AU99: 0 | AV99: 0 | AW99: 0 | AX99: 0 | AY99: 0 | AZ99: 0 | BA99: 0 | BB99: 0 | BC99: 0 | BD99: 0 | BE99: 0 | BF99: 0 | BG99: 0 | BH99: 0 | BI99: 0 | BJ99: 0 | BK99: 0 | BL99: 0 | BM99: 0 | BN99: 0 | BO99: 0 | BP99: 0 | BQ99: 0 | BR99: 0 | BS99: 0 | BT99: 0 | BU99: 0 | BV99: 0 | BW99: 0 | BX99: 0 | BY99: 0 | BZ99: 0 | CA99: 0 | CB99: 0 | CC99: 0 | CD99: 0 | CE99: 0 | CF99: 0 | CG99: 0 | CH99: 0 | CI99: 0 | CJ99: 0 | CK99: 0 | CL99: 0 | CM99: 0 | CN99: 0 | CO99: 0 | CP99: 0 | CQ99: 0 | CR99: 0 | CS99: 0 | CT99: 0 | CU99: 0 | CV99: 0 | CW99: 0 | CX99: 0 | CY99: 0 | CZ99: 69 | DA99: 0 | DB99: 0 | DC99: 0 | DD99: 0 | DE99: 0 | DF99: 0 | DG99: 121 | DH99: 111 | DI99: 106 | DJ99: 116 | DK99: 96 | DL99: 98 | DM99: 0 | DN99: 85 | DO99: 74 | DP99: 97 | DQ99: 60 | DR99: 3 | DS99: 0 | DT99: 0 | DU99: 76 | DV99: 60 | DW99: 7 | DX99: 1 | DY99: 0 | DZ99: 0 | EA99: 0 | EB99: 12 | EC99: 0 | ED99: 0 | EE99: 0 | EF99: 0 | EG99: 0 | EH99: 0 | EI99: 0 | EJ99: 0 | EK99: 0 | EL99: 0 | EM99: 0 | EN99: 0 | EO99: 0 | EP99: 0 | EQ99: 0 | ER99: 0 | ES99: 0 | ET99: 0 | EU99: 0 | EV99: 0 | EW99: 0 | EX99: 0 | EY99: 0 | EZ99: 0 | FA99: 0 | FB99: 0 | FC99: 0 | FD99: 0 | FE99: 0 | FF99: 0 | FG99: 0 | FH99: 0 | FI99: 0 | FJ99: 0 | FK99: 0 | FL99: 0 | FM99: 0 | FN99: 0 | FO99: 0 | FP99: 0 | FQ99: 0 | FR99: 0 | FS99: 0 | FT99: 0 | FU99: 0 | FV99: 0 | FW99: 0 | FX99: 0 | FY99: 0 | FZ99: 0 | GA99: 0 | GB99: 0 | GC99: 0 | GD99: 0 | GE99: 0 | GF99: 0 | GG99: 0 | GH99: 0 | GI99: 0 | GJ99: 0 | GK99: 0 | GL99: 0 | GM99: 0 | GN99: 0 | GO99: 0 | GP99: 0 | GQ99: 0 | GR99: 0 | GS99: 0 | GT99: 0 | GU99: 0 | GV99: 0 | GW99: 0 | GX99: 0 | GY99: 0 | GZ99: 0 | HA99: 0 | HB99: 0 | HC99: 0 | HD99: 0 | HE99: 0 | HF99: 0 | HG99: 0 | HH99: 0 | HI99: 0 | HJ99: 0 | HK99: 0 | HL99: 0 | HM99: 0 | HN99: 0 | HO99: 0 | HP99: 0 | HQ99: 0 | HR99: 0 | HS99: 0 | HT99: 0 | HU99: 0 | HV99: 0 | HW99: 0
A100: 4 | B100: 96 | C100: 93 | D100: 1 | E100: 95 | F100: 75 | G100: 78 | H100: 75 | I100: 8 | J100: 0 | K100: 0 | L100: 0 | M100: 0 | N100: 0 | O100: 0 | P100: 0 | Q100: 0 | R100: 0 | S100: 0 | T100: 0 | U100: 0 | V100: 0 | W100: 96 | X100: 48 | Y100: 73 | Z100: 63 | AA100: 63 | AB100: 0 | AC100: 1099 | AD100: 0 | AE100: 0 | AF100: 2 | AG100: 0 | AH100: 0 | AI100: 3 | AJ100: 120 | AK100: 0 | AL100: 0 | AM100: 0 | AN100: 0 | AO100: 0 | AP100: 0 | AQ100: 0 | AR100: 0 | AS100: 0 | AT100: 0 | AU100: 0 | AV100: 0 | AW100: 0 | AX100: 0 | AY100: 0 | AZ100: 0 | BA100: 0 | BB100: 0 | BC100: 0 | BD100: 0 | BE100: 0 | BF100: 0 | BG100: 0 | BH100: 0 | BI100: 0 | BJ100: 0 | BK100: 0 | BL100: 0 | BM100: 1 | BN100: 0 | BO100: 0 | BP100: 0 | BQ100: 0 | BR100: 0 | BS100: 0 | BT100: 0 | BU100: 0 | BV100: 1 | BW100: 0 | BX100: 0 | BY100: 0 | BZ100: 0 | CA100: 0 | CB100: 0 | CC100: 0 | CD100: 0 | CE100: 0 | CF100: 0 | CG100: 0 | CH100: 0 | CI100: 0 | CJ100: 0 | CK100: 0 | CL100: 0 | CM100: 0 | CN100: 0 | CO100: 0 | CP100: 0 | CQ100: 0 | CR100: 0 | CS100: 0 | CT100: 0 | CU100: 0 | CV100: 0 | CW100: 0 | CX100: 0 | CY100: 0 | CZ100: 67 | DA100: 0 | DB100: 0 | DC100: 0 | DD100: 0 | DE100: 0 | DF100: 0 | DG100: 97 | DH100: 114 | DI100: 121 | DJ100: 116 | DK100: 101 | DL100: 92 | DM100: 0 | DN100: 108 | DO100: 83 | DP100: 85 | DQ100: 49 | DR100: 1 | DS100: 1 | DT100: 0 | DU100: 83 | DV100: 47 | DW100: 6 | DX100: 1 | DY100: 0 | DZ100: 0 | EA100: 0 | EB100: 18 | EC100: 0 | ED100: 0 | EE100: 0 | EF100: 0 | EG100: 0 | EH100: 0 | EI100: 0 | EJ100: 0 | EK100: 0 | EL100: 0 | EM100: 0 | EN100: 0 | EO100: 0 | EP100: 0 | EQ100: 0 | ER100: 0 | ES100: 0 | ET100: 0 | EU100: 0 | EV100: 0 | EW100: 0 | EX100: 0 | EY100: 0 | EZ100: 0 | FA100: 0 | FB100: 0 | FC100: 0 | FD100: 0 | FE100: 0 | FF100: 0 | FG100: 0 | FH100: 0 | FI100: 0 | FJ100: 0 | FK100: 0 | FL100: 0 | FM100: 0 | FN100: 0 | FO100: 0 | FP100: 0 | FQ100: 0 | FR100: 0 | FS100: 0 | FT100: 0 | FU100: 0 | FV100: 0 | FW100: 0 | FX100: 0 | FY100: 0 | FZ100: 0 | GA100: 0 | GB100: 0 | GC100: 0 | GD100: 0 | GE100: 0 | GF100: 0 | GG100: 0 | GH100: 0 | GI100: 0 | GJ100: 0 | GK100: 0 | GL100: 0 | GM100: 0 | GN100: 0 | GO100: 0 | GP100: 0 | GQ100: 0 | GR100: 0 | GS100: 0 | GT100: 0 | GU100: 0 | GV100: 0 | GW100: 0 | GX100: 0 | GY100: 0 | GZ100: 0 | HA100: 0 | HB100: 0 | HC100: 0 | HD100: 0 | HE100: 0 | HF100: 0 | HG100: 0 | HH100: 0 | HI100: 0 | HJ100: 0 | HK100: 0 | HL100: 0 | HM100: 0 | HN100: 0 | HO100: 0 | HP100: 0 | HQ100: 0 | HR100: 0 | HS100: 0 | HT100: 0 | HU100: 0 | HV100: 0 | HW100: 0
A101: 5 | B101: 100 | C101: 88 | D101: 1 | E101: 99 | F101: 82 | G101: 85 | H101: 79 | I101: 5 | J101: 0 | K101: 0 | L101: 1 | M101: 0 | N101: 0 | O101: 0 | P101: 0 | Q101: 0 | R101: 0 | S101: 0 | T101: 0 | U101: 0 | V101: 2 | W101: 99 | X101: 67 | Y101: 86 | Z101: 73 | AA101: 76 | AB101: 0 | AC101: 1074 | AD101: 0 | AE101: 0 | AF101: 7 | AG101: 0 | AH101: 0 | AI101: 1 | AJ101: 127 | AK101: 0 | AL101: 0 | AM101: 0 | AN101: 0 | AO101: 0 | AP101: 0 | AQ101: 0 | AR101: 0 | AS101: 0 | AT101: 0 | AU101: 0 | AV101: 0 | AW101: 0 | AX101: 0 | AY101: 0 | AZ101: 0 | BA101: 0 | BB101: 0 | BC101: 0 | BD101: 0 | BE101: 0 | BF101: 0 | BG101: 0 | BH101: 0 | BI101: 0 | BJ101: 0 | BK101: 0 | BL101: 0 | BM101: 0 | BN101: 0 | BO101: 0 | BP101: 0 | BQ101: 0 | BR101: 0 | BS101: 0 | BT101: 0 | BU101: 0 | BV101: 0 | BW101: 0 | BX101: 0 | BY101: 0 | BZ101: 0 | CA101: 0 | CB101: 0 | CC101: 0 | CD101: 0 | CE101: 0 | CF101: 0 | CG101: 0 | CH101: 0 | CI101: 0 | CJ101: 0 | CK101: 0 | CL101: 0 | CM101: 0 | CN101: 0 | CO101: 0 | CP101: 0 | CQ101: 0 | CR101: 0 | CS101: 0 | CT101: 0 | CU101: 0 | CV101: 0 | CW101: 0 | CX101: 0 | CY101: 0 | CZ101: 52 | DA101: 0 | DB101: 0 | DC101: 0 | DD101: 0 | DE101: 0 | DF101: 0 | DG101: 98 | DH101: 93 | DI101: 115 | DJ101: 112 | DK101: 100 | DL101: 90 | DM101: 0 | DN101: 89 | DO101: 69 | DP101: 89 | DQ101: 47 | DR101: 1 | DS101: 0 | DT101: 0 | DU101: 65 | DV101: 43 | DW101: 0 | DX101: 1 | DY101: 0 | DZ101: 0 | EA101: 0 | EB101: 20 | EC101: 0 | ED101: 0 | EE101: 0 | EF101: 0 | EG101: 0 | EH101: 0 | EI101: 0 | EJ101: 0 | EK101: 0 | EL101: 0 | EM101: 0 | EN101: 0 | EO101: 0 | EP101: 0 | EQ101: 0 | ER101: 0 | ES101: 0 | ET101: 0 | EU101: 0 | EV101: 0 | EW101: 0 | EX101: 0 | EY101: 0 | EZ101: 0 | FA101: 0 | FB101: 0 | FC101: 0 | FD101: 0 | FE101: 0 | FF101: 0 | FG101: 0 | FH101: 0 | FI101: 0 | FJ101: 0 | FK101: 0 | FL101: 0 | FM101: 0 | FN101: 0 | FO101: 0 | FP101: 0 | FQ101: 0 | FR101: 0 | FS101: 0 | FT101: 0 | FU101: 0 | FV101: 0 | FW101: 0 | FX101: 0 | FY101: 0 | FZ101: 0 | GA101: 0 | GB101: 0 | GC101: 0 | GD101: 0 | GE101: 0 | GF101: 0 | GG101: 0 | GH101: 0 | GI101: 0 | GJ101: 0 | GK101: 0 | GL101: 0 | GM101: 0 | GN101: 0 | GO101: 0 | GP101: 0 | GQ101: 0 | GR101: 0 | GS101: 0 | GT101: 0 | GU101: 0 | GV101: 0 | GW101: 0 | GX101: 0 | GY101: 0 | GZ101: 0 | HA101: 0 | HB101: 0 | HC101: 0 | HD101: 0 | HE101: 0 | HF101: 0 | HG101: 0 | HH101: 0 | HI101: 0 | HJ101: 0 | HK101: 0 | HL101: 0 | HM101: 0 | HN101: 0 | HO101: 0 | HP101: 0 | HQ101: 0 | HR101: 0 | HS101: 0 | HT101: 0 | HU101: 0 | HV101: 0 | HW101: 0
A102: T | B102: 496 | C102: 458 | D102: 2 | E102: 491 | F102: 411 | G102: 423 | H102: 407 | I102: 48 | J102: 1 | K102: 0 | L102: 1 | M102: 0 | N102: 0 | O102: 0 | P102: 0 | Q102: 0 | R102: 0 | S102: 0 | T102: 0 | U102: 0 | V102: 6 | W102: 498 | X102: 238 | Y102: 418 | Z102: 339 | AA102: 348 | AB102: 0 | AC102: 5606 | AD102: 0 | AE102: 0 | AF102: 29 | AG102: 4 | AH102: 1 | AI102: 16 | AJ102: 647 | AK102: 1 | AL102: 0 | AM102: 0 | AN102: 0 | AO102: 0 | AP102: 0 | AQ102: 0 | AR102: 0 | AS102: 0 | AT102: 0 | AU102: 0 | AV102: 0 | AW102: 0 | AX102: 0 | AY102: 0 | AZ102: 0 | BA102: 0 | BB102: 0 | BC102: 0 | BD102: 0 | BE102: 0 | BF102: 0 | BG102: 0 | BH102: 0 | BI102: 0 | BJ102: 0 | BK102: 0 | BL102: 1 | BM102: 1 | BN102: 0 | BO102: 0 | BP102: 0 | BQ102: 0 | BR102: 0 | BS102: 0 | BT102: 0 | BU102: 0 | BV102: 1 | BW102: 0 | BX102: 0 | BY102: 0 | BZ102: 0 | CA102: 0 | CB102: 0 | CC102: 0 | CD102: 0 | CE102: 0 | CF102: 0 | CG102: 0 | CH102: 0 | CI102: 0 | CJ102: 0 | CK102: 0 | CL102: 0 | CM102: 0 | CN102: 0 | CO102: 0 | CP102: 1 | CQ102: 1 | CR102: 0 | CS102: 0 | CT102: 1 | CU102: 0 | CV102: 0 | CW102: 0 | CX102: 0 | CY102: 0 | CZ102: 316 | DA102: 0 | DB102: 0 | DC102: 0 | DD102: 0 | DE102: 0 | DF102: 0 | DG102: 528 | DH102: 526 | DI102: 566 | DJ102: 546 | DK102: 503 | DL102: 517 | DM102: 0 | DN102: 441 | DO102: 407 | DP102: 446 | DQ102: 247 | DR102: 6 | DS102: 1 | DT102: 0 | DU102: 383 | DV102: 245 | DW102: 14 | DX102: 3 | DY102: 0 | DZ102: 0 | EA102: 0 | EB102: 105 | EC102: 1 | ED102: 0 | EE102: 0 | EF102: 0 | EG102: 0 | EH102: 0 | EI102: 0 | EJ102: 0 | EK102: 0 | EL102: 0 | EM102: 0 | EN102: 0 | EO102: 0 | EP102: 0 | EQ102: 0 | ER102: 0 | ES102: 0 | ET102: 0 | EU102: 0 | EV102: 0 | EW102: 0 | EX102: 0 | EY102: 0 | EZ102: 0 | FA102: 0 | FB102: 0 | FC102: 0 | FD102: 0 | FE102: 0 | FF102: 0 | FG102: 0 | FH102: 0 | FI102: 0 | FJ102: 0 | FK102: 0 | FL102: 0 | FM102: 0 | FN102: 0 | FO102: 0 | FP102: 0 | FQ102: 0 | FR102: 0 | FS102: 0 | FT102: 0 | FU102: 0 | FV102: 0 | FW102: 0 | FX102: 0 | FY102: 0 | FZ102: 0 | GA102: 0 | GB102: 0 | GC102: 0 | GD102: 0 | GE102: 0 | GF102: 0 | GG102: 0 | GH102: 0 | GI102: 0 | GJ102: 0 | GK102: 0 | GL102: 0 | GM102: 0 | GN102: 0 | GO102: 0 | GP102: 0 | GQ102: 0 | GR102: 0 | GS102: 0 | GT102: 0 | GU102: 0 | GV102: 0 | GW102: 0 | GX102: 0 | GY102: 0 | GZ102: 0 | HA102: 0 | HB102: 0 | HC102: 0 | HD102: 0 | HE102: 0 | HF102: 0 | HG102: 0 | HH102: 0 | HI102: 0 | HJ102: 0 | HK102: 0 | HL102: 0 | HM102: 0 | HN102: 0 | HO102: 0 | HP102: 0 | HQ102: 0 | HR102: 0 | HS102: 0 | HT102: 0 | HU102: 0 | HV102: 0 | HW102: 0
A115: TOTAL
A116: =COUNT(A97:A113) -> 5 | B116: =SUM(B97:B113) -> 992 | C116: =SUM(C97:C113) -> 916 | D116: 4 | E116: 982 | F116: 822 | G116: 846 | H116: 814 | I116: 96 | J116: 2 | K116: 0 | L116: 2 | M116: 0 | N116: 0 | O116: 0 | P116: 0 | Q116: 0 | R116: 0 | S116: 0 | T116: 0 | U116: 0 | V116: 12 | W116: 996 | X116: 476 | Y116: 836 | Z116: 678 | AA116: 696 | AB116: 0 | AC116: 11212 | AD116: 0 | AE116: 0 | AF116: 58 | AG116: 8 | AH116: 2 | AI116: 32 | AJ116: 1294 | AK116: 2 | AL116: 0 | AM116: 0 | AN116: 0 | AO116: 0 | AP116: 0 | AQ116: 0 | AR116: 0 | AS116: 0 | AT116: 0 | AU116: 0 | AV116: 0 | AW116: 0 | AX116: 0 | AY116: 0 | AZ116: 0 | BA116: 0 | BB116: 0 | BC116: 0 | BD116: 0 | BE116: 0 | BF116: 0 | BG116: 0 | BH116: 0 | BI116: 0 | BJ116: 0 | BK116: 0 | BL116: 2 | BM116: 2 | BN116: 0 | BO116: =SUM(BO97:BO113) -> 0 | BP116: 0 | BQ116: 0 | BR116: 0 | BS116: 0 | BT116: 0 | BU116: 0 | BV116: 2 | BW116: 0 | BX116: 0 | BY116: 0 | BZ116: 0 | CA116: 0 | CB116: 0 | CC116: 0 | CD116: 0 | CE116: 0 | CF116: 0 | CG116: 0 | CH116: 0 | CI116: 0 | CJ116: 0 | CK116: 0 | CL116: 0 | CM116: 0 | CN116: 0 | CO116: 0 | CP116: 2 | CQ116: 2 | CR116: 0 | CS116: 0 | CT116: 2 | CU116: 0 | CV116: 0 | CW116: 0 | CX116: 0 | CY116: 0 | CZ116: 632 | DA116: 0 | DB116: 0 | DC116: 0 | DD116: 0 | DE116: 0 | DF116: 0 | DG116: 1056 | DH116: 1052 | DI116: 1132 | DJ116: 1092 | DK116: 1006 | DL116: 1034 | DM116: 0 | DN116: 882 | DO116: 814 | DP116: 892 | DQ116: 494 | DR116: 12 | DS116: 2 | DT116: 0 | DU116: 766 | DV116: 490 | DW116: 28 | DX116: 6 | DY116: 0 | DZ116: 0 | EA116: =SUM(EA97:EA113) -> 0 | EB116: 210 | EC116: 2 | ED116: 0 | EE116: 0 | EF116: 0 | EG116: 0 | EH116: 0 | EI116: 0 | EJ116: 0 | EK116: 0 | EL116: 0 | EM116: 0 | EN116: 0 | EO116: 0 | EP116: 0 | EQ116: 0 | ER116: 0 | ES116: 0 | ET116: 0 | EU116: 0 | EV116: 0 | EW116: 0 | EX116: 0 | EY116: 0 | EZ116: 0 | FA116: 0 | FB116: 0 | FC116: 0 | FD116: 0 | FE116: 0 | FF116: 0 | FG116: 0 | FH116: 0 | FI116: 0 | FJ116: 0 | FK116: 0 | FL116: 0 | FM116: 0 | FN116: 0 | FO116: 0 | FP116: 0 | FQ116: 0 | FR116: 0 | FS116: 0 | FT116: 0 | FU116: 0 | FV116: 0 | FW116: 0 | FX116: 0 | FY116: 0 | FZ116: 0 | GA116: 0 | GB116: 0 | GC116: 0 | GD116: 0 | GE116: 0 | GF116: 0 | GG116: 0 | GH116: 0 | GI116: 0 | GJ116: 0 | GK116: 0 | GL116: 0 | GM116: =SUM(GM97:GM113) -> 0 | GN116: 0 | GO116: 0 | GP116: 0 | GQ116: 0 | GR116: 0 | GS116: 0 | GT116: 0 | GU116: 0 | GV116: 0 | GW116: 0 | GX116: 0 | GY116: 0 | GZ116: 0 | HA116: 0 | HB116: 0 | HC116: 0 | HD116: 0 | HE116: 0 | HF116: 0 | HG116: 0 | HH116: 0 | HI116: 0 | HJ116: 0 | HK116: 0 | HL116: 0 | HM116: 0 | HN116: 0 | HO116: 0 | HP116: 0 | HQ116: 0 | HR116: 0 | HS116: 0 | HT116: 0 | HU116: 0 | HV116: 0 | HW116: 0
A117: =CONCATENATE(A97,"-",A98,"-",A99,"-",A100,"-",A101,"-",A102,"-",A103,"-",A104,"-",A105,"-",A106,"-",A107,"-",A108) -> 1-2-3-4-5-T------
B118: BAS001 | C118: BAS002 | D118: BAS003 | E118: BAS004 | F118: BAS005 | G118: BAS006 | H118: BAS007 | I118: BAS008 | J118: BAS009 | K118: BAS010 | L118: BAS011 | M118: BAS012 | N118: BAS013 | O118: BAS014 | P118: BAS015 | Q118: BAS016 | R118: BAS017 | S118: BAS018 | T118: BAS019 | U118: BAS020 | V118: BAS021 | W118: BAS022 | X118: BAS023 | Y118: BAS024 | Z118: BAS025 | AA118: BAS026 | AB118: BAS027 | AC118: BAS028 | AD118: BAS029 | AE118: BAS030 | AF118: BAS031 | AG118: BAS032 | AH118: BAS033 | AI118: BAS034 | AJ118: BAS035 | AK118: BAS036 | AL118: BAS037 | AM118: BAS038 | AN118: BAS039 | AO118: BAS040 | AP118: BAS041 | AQ118: BAS042 | AR118: BAS043 | AS118: BAS044 | AT118: BAS045 | AU118: BAS046 | AV118: BAS047 | AW118: BAS048 | AX118: BAS049 | AY118: BAS050 | AZ118: BAS051 | BA118: BAS052 | BB118: BAS053 | BC118: BAS054 | BD118: BAS055 | BE118: BAS056 | BF118: BAS057 | BG118: BAS058 | BH118: BAS059 | BI118: BAS060 | BJ118: BAS061 | BK118: BAS062 | BL118: BAS063 | BM118: BAS064 | BN118: BAS065 | BO118: BAS066 | BP118: BAS067 | BQ118: BAS068 | BR118: BAS069 | BS118: BAS070 | BT118: BAS071 | BU118: BAS072 | BV118: BAS073 | BW118: BAS074 | BX118: BAS075 | BY118: BAS076 | BZ118: BAS077 | CA118: BAS078 | CB118: BAS079 | CC118: BAS080 | CD118: BAS081 | CE118: BAS082 | CF118: BAS083 | CG118: BAS084 | CH118: BAS085 | CI118: BAS086 | CJ118: BAS087 | CK118: BAS088 | CL118: BAS089 | CM118: BAS090 | CN118: BAS091 | CO118: BAS092 | CP118: BAS093 | CQ118: BAS094 | CR118: BAS095 | CS118: BAS096 | CT118: BAS097 | CU118: BAS098 | CV118: BAS099 | CW118: BAS100 | CX118: BAS101 | CY118: BAS102 | CZ118: BAS103 | DA118: BAS104 | DB118: BAS105 | DC118: BAS106 | DD118: BAS107 | DE118: BAS108 | DF118: BAS109 | DG118: BAS110 | DH118: BAS111 | DI118: BAS112 | DJ118: BAS113 | DK118: BAS114 | DL118: BAS115 | DM118: BAS116 | DN118: BAS117 | DO118: BAS118 | DP118: BAS119 | DQ118: BAS120 | DR118: BAS121 | DS118: BAS122 | DT118: BAS123 | DU118: BAS124 | DV118: BAS125 | DW118: BAS126 | DX118: BAS127 | DY118: BAS128 | DZ118: BAS129 | EA118: BAS130 | EB118: BAS131 | EC118: BAS132 | ED118: BAS133 | EE118: BAS134 | EF118: BAS135 | EG118: BAS136 | EH118: BAS137 | EI118: BAS138 | EJ118: BAS139 | EK118: BAS140 | EL118: BAS141 | EM118: BAS142 | EN118: BAS143 | EO118: BAS144 | EP118: BAS145 | EQ118: BAS146 | ER118: BAS147 | ES118: BAS148 | ET118: BAS149 | EU118: BAS150 | EV118: BAS151 | EW118: BAS152 | EX118: BAS153 | EY118: BAS154 | EZ118: BAS155 | FA118: BAS156 | FB118: BAS157 | FC118: BAS158 | FD118: BAS159 | FE118: BAS160 | FF118: BAS161 | FG118: BAS162 | FH118: BAS163 | FI118: BAS164 | FJ118: BAS165 | FK118: BAS166 | FL118: BAS167 | FM118: BAS168 | FN118: BAS169 | FO118: BAS170 | FP118: BAS171 | FQ118: BAS172 | FR118: BAS173 | FS118: BAS174 | FT118: BAS175 | FU118: BAS176 | FV118: BAS177 | FW118: BAS178 | FX118: BAS179 | FY118: BAS180 | FZ118: BAS181 | GA118: BAS182 | GB118: BAS183 | GC118: BAS184 | GD118: BAS185 | GE118: BAS186 | GF118: BAS187 | GG118: BAS188 | GH118: BAS189 | GI118: BAS190 | GJ118: BAS191 | GK118: BAS192 | GL118: BAS193 | GM118: BAS194 | GN118: BAS195 | GO118: BAS196 | GP118: BAS197 | GQ118: BAS198 | GR118: BAS199 | GS118: BAS200 | GT118: BAS201 | GU118: BAS202 | GV118: BAS203 | GW118: BAS204 | GX118: BAS205 | GY118: BAS206 | GZ118: BAS207 | HA118: BAS208 | HB118: BAS209 | HC118: BAS210 | HD118: BAS211 | HE118: BAS212 | HF118: BAS213 | HG118: BAS214 | HH118: BAS215 | HI118: BAS216 | HJ118: BAS217 | HK118: BAS218 | HL118: BAS219 | HM118: BAS220 | HN118: BAS221 | HO118: BAS222 | HP118: BAS223 | HQ118: BAS224 | HR118: BAS225 | HS118: BAS226 | HT118: BAS227 | HU118: BAS228 | HV118: BAS229 | HW118: BAS230
B119: =IF(B118=B96,"SI","NO") -> SI | C119: =IF(C118=C96,"SI","NO") -> SI | D119: SI | E119: SI | F119: SI | G119: SI | H119: SI | I119: SI | J119: SI | K119: SI | L119: SI | M119: SI | N119: SI | O119: SI | P119: SI | Q119: SI | R119: SI | S119: SI | T119: SI | U119: SI | V119: SI | W119: SI | X119: SI | Y119: SI | Z119: SI | AA119: SI | AB119: SI | AC119: SI | AD119: SI | AE119: SI | AF119: SI | AG119: SI | AH119: SI | AI119: SI | AJ119: SI | AK119: SI | AL119: SI | AM119: SI | AN119: SI | AO119: SI | AP119: SI | AQ119: SI | AR119: SI | AS119: SI | AT119: SI | AU119: SI | AV119: SI | AW119: SI | AX119: SI | AY119: SI | AZ119: SI | BA119: SI | BB119: SI | BC119: SI | BD119: SI | BE119: SI | BF119: SI | BG119: SI | BH119: SI | BI119: SI | BJ119: SI | BK119: SI | BL119: SI | BM119: SI | BN119: SI | BO119: =IF(BO118=BO96,"SI","NO") -> SI | BP119: SI | BQ119: SI | BR119: SI | BS119: SI | BT119: SI | BU119: SI | BV119: SI | BW119: SI | BX119: SI | BY119: SI | BZ119: SI | CA119: SI | CB119: SI | CC119: SI | CD119: SI | CE119: SI | CF119: SI | CG119: SI | CH119: SI | CI119: SI | CJ119: SI | CK119: SI | CL119: SI | CM119: SI | CN119: SI | CO119: SI | CP119: SI | CQ119: SI | CR119: SI | CS119: SI | CT119: SI | CU119: SI | CV119: SI | CW119: SI | CX119: SI | CY119: SI | CZ119: SI | DA119: SI | DB119: SI | DC119: SI | DD119: SI | DE119: SI | DF119: SI | DG119: SI | DH119: SI | DI119: SI | DJ119: SI | DK119: SI | DL119: SI | DM119: SI | DN119: SI | DO119: SI | DP119: SI | DQ119: SI | DR119: SI | DS119: SI | DT119: SI | DU119: SI | DV119: SI | DW119: SI | DX119: SI | DY119: SI | DZ119: SI | EA119: =IF(EA118=EA96,"SI","NO") -> SI | EB119: SI | EC119: SI | ED119: SI | EE119: SI | EF119: SI | EG119: SI | EH119: SI | EI119: SI | EJ119: SI | EK119: SI | EL119: SI | EM119: SI | EN119: SI | EO119: SI | EP119: SI | EQ119: SI | ER119: SI | ES119: SI | ET119: SI | EU119: SI | EV119: SI | EW119: SI | EX119: SI | EY119: SI | EZ119: SI | FA119: SI | FB119: SI | FC119: SI | FD119: SI | FE119: SI | FF119: SI | FG119: SI | FH119: SI | FI119: SI | FJ119: SI | FK119: SI | FL119: SI | FM119: SI | FN119: SI | FO119: SI | FP119: SI | FQ119: SI | FR119: SI | FS119: SI | FT119: SI | FU119: SI | FV119: SI | FW119: SI | FX119: SI | FY119: SI | FZ119: SI | GA119: SI | GB119: SI | GC119: SI | GD119: SI | GE119: SI | GF119: SI | GG119: SI | GH119: SI | GI119: SI | GJ119: SI | GK119: SI | GL119: SI | GM119: =IF(GM118=GM96,"SI","NO") -> SI | GN119: SI | GO119: SI | GP119: SI | GQ119: SI | GR119: SI | GS119: SI | GT119: SI | GU119: SI | GV119: SI | GW119: SI | GX119: SI | GY119: SI | GZ119: SI | HA119: SI | HB119: SI | HC119: SI | HD119: SI | HE119: SI | HF119: SI | HG119: SI | HH119: SI | HI119: SI | HJ119: SI | HK119: SI | HL119: SI | HM119: SI | HN119: SI | HO119: SI | HP119: SI | HQ119: SI | HR119: SI | HS119: SI | HT119: SI | HU119: SI | HV119: SI | HW119: SI
A121: CRED03
A122: anno | B122: 2025
A123: cod_red | B123: (Todas)
A124: codmic | B124: (Todas)
A125: cod_prov | B125: (Todas)
A126: coddist | B126: (Todas)
A127: cod_estab | B127: (Todas)
A128: cod_eje | B128: (Todas)
B130: Valores
A131: Etiquetas de fila | B131: BAS001 | C131: BAS002 | D131: BAS003 | E131: BAS004 | F131: BAS005 | G131: BAS006 | H131: BAS007 | I131: BAS008 | J131: BAS009 | K131: BAS010 | L131: BAS011 | M131: BAS012 | N131: BAS013 | O131: BAS014 | P131: BAS015 | Q131: BAS016 | R131: BAS017 | S131: BAS018 | T131: BAS019 | U131: BAS020 | V131: BAS021 | W131: BAS022 | X131: BAS023 | Y131: BAS024 | Z131: BAS025 | AA131: BAS026 | AB131: BAS027 | AC131: BAS028 | AD131: BAS029 | AE131: BAS030 | AF131: BAS031 | AG131: BAS032 | AH131: BAS033 | AI131: BAS034 | AJ131: BAS035 | AK131: BAS036 | AL131: BAS037 | AM131: BAS038 | AN131: BAS039 | AO131: BAS040 | AP131: BAS041 | AQ131: BAS042 | AR131: BAS043 | AS131: BAS044 | AT131: BAS045 | AU131: BAS046 | AV131: BAS047 | AW131: BAS048 | AX131: BAS049 | AY131: BAS050 | AZ131: BAS051 | BA131: BAS052 | BB131: BAS053 | BC131: BAS054 | BD131: BAS055 | BE131: BAS056 | BF131: BAS057 | BG131: BAS058 | BH131: BAS059 | BI131: BAS060 | BJ131: BAS061 | BK131: BAS062 | BL131: BAS063 | BM131: BAS064 | BN131: BAS065 | BO131: BAS066 | BP131: BAS067 | BQ131: BAS068 | BR131: BAS069 | BS131: BAS070 | BT131: BAS071 | BU131: BAS072 | BV131: BAS073 | BW131: BAS074 | BX131: BAS075 | BY131: BAS076 | BZ131: BAS077 | CA131: BAS078 | CB131: BAS079 | CC131: BAS080 | CD131: BAS081 | CE131: BAS082 | CF131: BAS083 | CG131: BAS084 | CH131: BAS085 | CI131: BAS086 | CJ131: BAS087 | CK131: BAS088 | CL131: BAS089 | CM131: BAS090 | CN131: BAS091 | CO131: BAS092 | CP131: BAS093 | CQ131: BAS094 | CR131: BAS095 | CS131: BAS096 | CT131: BAS097 | CU131: BAS098 | CV131: BAS099 | CW131: BAS100 | CX131: BAS101 | CY131: BAS102 | CZ131: BAS103 | DA131: BAS104 | DB131: BAS105 | DC131: BAS106 | DD131: BAS107 | DE131: BAS108 | DF131: BAS109 | DG131: BAS110 | DH131: BAS111 | DI131: BAS112 | DJ131: BAS113 | DK131: BAS114 | DL131: BAS115 | DM131: BAS116 | DN131: BAS117 | DO131: BAS118 | DP131: BAS119 | DQ131: BAS120 | DR131: BAS121 | DS131: BAS122 | DT131: BAS123 | DU131: BAS124 | DV131: BAS125 | DW131: BAS126 | DX131: BAS127 | DY131: BAS128 | DZ131: BAS129 | EA131: BAS130 | EB131: BAS131 | EC131: BAS132 | ED131: BAS133 | EE131: BAS134 | EF131: BAS135 | EG131: BAS136 | EH131: BAS137 | EI131: BAS138 | EJ131: BAS139 | EK131: BAS140 | EL131: BAS141 | EM131: BAS142 | EN131: BAS143 | EO131: BAS144 | EP131: BAS145 | EQ131: BAS146 | ER131: BAS147 | ES131: BAS148 | ET131: BAS149 | EU131: BAS150 | EV131: BAS151 | EW131: BAS152 | EX131: BAS153 | EY131: BAS154 | EZ131: BAS155 | FA131: BAS156 | FB131: BAS157 | FC131: BAS158 | FD131: BAS159 | FE131: BAS160 | FF131: BAS161 | FG131: BAS162 | FH131: BAS163 | FI131: BAS164 | FJ131: BAS165 | FK131: BAS166 | FL131: BAS167 | FM131: BAS168 | FN131: BAS169 | FO131: BAS170 | FP131: BAS171 | FQ131: BAS172 | FR131: BAS173 | FS131: BAS174 | FT131: BAS175 | FU131: BAS176 | FV131: BAS177 | FW131: BAS178 | FX131: BAS179 | FY131: BAS180 | FZ131: BAS181 | GA131: BAS182 | GB131: BAS183 | GC131: BAS184 | GD131: BAS185 | GE131: BAS186 | GF131: BAS187 | GG131: BAS188 | GH131: BAS189 | GI131: BAS190 | GJ131: BAS191 | GK131: BAS192 | GL131: BAS193 | GM131: BAS194 | GN131: BAS195 | GO131: BAS196 | GP131: BAS197 | GQ131: BAS198 | GR131: BAS199 | GS131: BAS200 | GT131: BAS201 | GU131: BAS202 | GV131: BAS203 | GW131: BAS204 | GX131: BAS205 | GY131: BAS206 | GZ131: BAS207 | HA131: BAS208 | HB131: BAS209 | HC131: BAS210 | HD131: BAS211 | HE131: BAS212 | HF131: BAS213 | HG131: BAS214 | HH131: BAS215 | HI131: BAS216 | HJ131: BAS217 | HK131: BAS218 | HL131: BAS219 | HM131: BAS220 | HN131: BAS221 | HO131: BAS222 | HP131: BAS223 | HQ131: BAS224 | HR131: BAS225 | HS131: BAS226 | HT131: BAS227 | HU131: BAS228 | HV131: BAS229 | HW131: BAS230
A132: 1 | B132: 2 | C132: 4 | D132: 1 | E132: 0 | F132: 0 | G132: 0 | H132: 1 | I132: 0 | J132: 0 | K132: 0 | L132: 0 | M132: 0 | N132: 0 | O132: 78 | P132: 178 | Q132: 103 | R132: 0 | S132: 1 | T132: 10 | U132: 0 | V132: 1 | W132: 0 | X132: 0 | Y132: 0 | Z132: 0 | AA132: 0 | AB132: 184 | AC132: 43 | AD132: 11 | AE132: 2 | AF132: 5 | AG132: 3 | AH132: 1 | AI132: 0 | AJ132: 0 | AK132: 0 | AL132: 0 | AM132: 0 | AN132: 0 | AO132: 1 | AP132: 1 | AQ132: 0 | AR132: 0 | AS132: 1 | AT132: 3 | AU132: 0 | AV132: 0 | AW132: 0 | AX132: 0 | AY132: 0 | AZ132: 0 | BA132: 0 | BB132: 2 | BC132: 19 | BD132: 13 | BE132: 1 | BF132: 0 | BG132: 7 | BH132: 2 | BI132: 1 | BJ132: 0 | BK132: 0 | BL132: 0 | BM132: 0 | BN132: 0 | BO132: 0 | BP132: 0 | BQ132: 0 | BR132: 1 | BS132: 4 | BT132: 3 | BU132: 2 | BV132: 0 | BW132: 0 | BX132: 0 | BY132: 0 | BZ132: 0 | CA132: 0 | CB132: 4 | CC132: 15 | CD132: 13 | CE132: 9 | CF132: 20 | CG132: 19 | CH132: 3 | CI132: 1 | CJ132: 1 | CK132: 0 | CL132: 3 | CM132: 4 | CN132: 1 | CO132: 24 | CP132: 87 | CQ132: 92 | CR132: 89 | CS132: 53 | CT132: 33 | CU132: 4 | CV132: 0 | CW132: 1 | CX132: 1 | CY132: 1 | CZ132: 2 | DA132: 1 | DB132: 22 | DC132: 961 | DD132: 832 | DE132: 660 | DF132: 448 | DG132: 397 | DH132: 93 | DI132: 66 | DJ132: 14 | DK132: 15 | DL132: 12 | DM132: 13 | DN132: 8 | DO132: 680 | DP132: 513 | DQ132: 3 | DR132: 4 | DS132: 0 | DT132: 0 | DU132: 0 | DV132: 2 | DW132: 0 | DX132: 0 | DY132: 0 | DZ132: 0 | EA132: 0 | EB132: 15 | EC132: 0 | ED132: 8 | EE132: 3 | EF132: 0 | EG132: 3 | EH132: 15 | EI132: 0 | EJ132: 0 | EK132: 0 | EL132: 18 | EM132: 0 | EN132: 3 | EO132: 0 | EP132: 10 | EQ132: 1 | ER132: 8 | ES132: 1 | ET132: 0 | EU132: 0 | EV132: 10 | EW132: 0 | EX132: 0 | EY132: 0 | EZ132: 7 | FA132: 0 | FB132: 1 | FC132: 0 | FD132: 11 | FE132: 0 | FF132: 12 | FG132: 1 | FH132: 0 | FI132: 0 | FJ132: 3 | FK132: 0 | FL132: 0 | FM132: 0 | FN132: 4 | FO132: 0 | FP132: 0 | FQ132: 0 | FR132: 4 | FS132: 0 | FT132: 9 | FU132: 0 | FV132: 0 | FW132: 0 | FX132: 6 | FY132: 0 | FZ132: 0 | GA132: 0 | GB132: 3 | GC132: 0 | GD132: 3 | GE132: 0 | GF132: 4 | GG132: 1 | GH132: 3 | GI132: 0 | GJ132: 0 | GK132: 0 | GL132: 3 | GM132: 0 | GN132: 0 | GO132: 0 | GP132: 3 | GQ132: 0 | GR132: 0 | GS132: 0 | GT132: 0 | GU132: 0 | GV132: 0 | GW132: 0 | GX132: 0 | GY132: 0 | GZ132: 0 | HA132: 0 | HB132: 0 | HC132: 0 | HD132: 0 | HE132: 0 | HF132: 0 | HG132: 0 | HH132: 0 | HI132: 0 | HJ132: 0 | HK132: 0 | HL132: 0 | HM132: 0 | HN132: 0 | HO132: 0 | HP132: 0 | HQ132: 0 | HR132: 0 | HS132: 0 | HT132: 0 | HU132: 0 | HV132: 0 | HW132: 0
A133: 2 | B133: 0 | C133: 4 | D133: 2 | E133: 0 | F133: 0 | G133: 1 | H133: 0 | I133: 1 | J133: 0 | K133: 0 | L133: 0 | M133: 1 | N133: 0 | O133: 65 | P133: 193 | Q133: 98 | R133: 0 | S133: 0 | T133: 14 | U133: 0 | V133: 0 | W133: 1 | X133: 0 | Y133: 0 | Z133: 0 | AA133: 0 | AB133: 154 | AC133: 34 | AD133: 19 | AE133: 0 | AF133: 0 | AG133: 1 | AH133: 1 | AI133: 0 | AJ133: 0 | AK133: 0 | AL133: 0 | AM133: 0 | AN133: 0 | AO133: 1 | AP133: 1 | AQ133: 1 | AR133: 0 | AS133: 1 | AT133: 0 | AU133: 1 | AV133: 0 | AW133: 1 | AX133: 0 | AY133: 0 | AZ133: 0 | BA133: 0 | BB133: 1 | BC133: 14 | BD133: 14 | BE133: 3 | BF133: 4 | BG133: 1 | BH133: 0 | BI133: 0 | BJ133: 0 | BK133: 0 | BL133: 0 | BM133: 0 | BN133: 0 | BO133: 0 | BP133: 1 | BQ133: 2 | BR133: 0 | BS133: 11 | BT133: 6 | BU133: 4 | BV133: 3 | BW133: 2 | BX133: 1 | BY133: 1 | BZ133: 1 | CA133: 0 | CB133: 8 | CC133: 28 | CD133: 20 | CE133: 13 | CF133: 21 | CG133: 9 | CH133: 2 | CI133: 6 | CJ133: 2 | CK133: 1 | CL133: 2 | CM133: 1 | CN133: 1 | CO133: 24 | CP133: 77 | CQ133: 82 | CR133: 61 | CS133: 57 | CT133: 31 | CU133: 6 | CV133: 0 | CW133: 1 | CX133: 0 | CY133: 0 | CZ133: 0 | DA133: 1 | DB133: 16 | DC133: 869 | DD133: 874 | DE133: 620 | DF133: 488 | DG133: 394 | DH133: 97 | DI133: 46 | DJ133: 26 | DK133: 17 | DL133: 13 | DM133: 18 | DN133: 7 | DO133: 570 | DP133: 478 | DQ133: 6 | DR133: 7 | DS133: 3 | DT133: 3 | DU133: 0 | DV133: 1 | DW133: 1 | DX133: 0 | DY133: 0 | DZ133: 1 | EA133: 0 | EB133: 12 | EC133: 6 | ED133: 4 | EE133: 3 | EF133: 0 | EG133: 3 | EH133: 9 | EI133: 1 | EJ133: 0 | EK133: 0 | EL133: 27 | EM133: 0 | EN133: 3 | EO133: 0 | EP133: 5 | EQ133: 0 | ER133: 8 | ES133: 0 | ET133: 0 | EU133: 0 | EV133: 16 | EW133: 1 | EX133: 0 | EY133: 0 | EZ133: 10 | FA133: 0 | FB133: 4 | FC133: 0 | FD133: 0 | FE133: 0 | FF133: 1 | FG133: 0 | FH133: 0 | FI133: 0 | FJ133: 7 | FK133: 0 | FL133: 0 | FM133: 0 | FN133: 2 | FO133: 0 | FP133: 1 | FQ133: 0 | FR133: 5 | FS133: 0 | FT133: 7 | FU133: 0 | FV133: 0 | FW133: 0 | FX133: 5 | FY133: 0 | FZ133: 0 | GA133: 0 | GB133: 2 | GC133: 0 | GD133: 1 | GE133: 0 | GF133: 0 | GG133: 0 | GH133: 4 | GI133: 0 | GJ133: 0 | GK133: 0 | GL133: 3 | GM133: 0 | GN133: 0 | GO133: 0 | GP133: 4 | GQ133: 0 | GR133: 1 | GS133: 0 | GT133: 0 | GU133: 0 | GV133: 0 | GW133: 0 | GX133: 0 | GY133: 0 | GZ133: 0 | HA133: 0 | HB133: 0 | HC133: 0 | HD133: 0 | HE133: 0 | HF133: 0 | HG133: 0 | HH133: 0 | HI133: 0 | HJ133: 0 | HK133: 0 | HL133: 0 | HM133: 0 | HN133: 0 | HO133: 0 | HP133: 0 | HQ133: 0 | HR133: 0 | HS133: 0 | HT133: 0 | HU133: 0 | HV133: 0 | HW133: 0
A134: 3 | B134: 1 | C134: 7 | D134: 7 | E134: 0 | F134: 0 | G134: 0 | H134: 0 | I134: 0 | J134: 0 | K134: 0 | L134: 0 | M134: 0 | N134: 0 | O134: 65 | P134: 206 | Q134: 81 | R134: 0 | S134: 0 | T134: 11 | U134: 0 | V134: 1 | W134: 0 | X134: 0 | Y134: 0 | Z134: 0 | AA134: 0 | AB134: 144 | AC134: 62 | AD134: 12 | AE134: 2 | AF134: 4 | AG134: 1 | AH134: 1 | AI134: 0 | AJ134: 1 | AK134: 0 | AL134: 0 | AM134: 0 | AN134: 0 | AO134: 1 | AP134: 0 | AQ134: 0 | AR134: 0 | AS134: 0 | AT134: 0 | AU134: 0 | AV134: 0 | AW134: 0 | AX134: 0 | AY134: 0 | AZ134: 0 | BA134: 0 | BB134: 0 | BC134: 14 | BD134: 5 | BE134: 0 | BF134: 1 | BG134: 1 | BH134: 1 | BI134: 0 | BJ134: 0 | BK134: 0 | BL134: 0 | BM134: 0 | BN134: 0 | BO134: 0 | BP134: 1 | BQ134: 0 | BR134: 2 | BS134: 12 | BT134: 10 | BU134: 4 | BV134: 10 | BW134: 31 | BX134: 25 | BY134: 34 | BZ134: 29 | CA134: 23 | CB134: 15 | CC134: 25 | CD134: 16 | CE134: 7 | CF134: 22 | CG134: 14 | CH134: 2 | CI134: 3 | CJ134: 1 | CK134: 2 | CL134: 0 | CM134: 2 | CN134: 0 | CO134: 29 | CP134: 60 | CQ134: 64 | CR134: 57 | CS134: 43 | CT134: 24 | CU134: 3 | CV134: 1 | CW134: 0 | CX134: 0 | CY134: 0 | CZ134: 0 | DA134: 0 | DB134: 17 | DC134: 997 | DD134: 1030 | DE134: 715 | DF134: 547 | DG134: 455 | DH134: 118 | DI134: 70 | DJ134: 78 | DK134: 72 | DL134: 73 | DM134: 52 | DN134: 63 | DO134: 659 | DP134: 551 | DQ134: 5 | DR134: 1 | DS134: 0 | DT134: 1 | DU134: 6 | DV134: 2 | DW134: 0 | DX134: 0 | DY134: 0 | DZ134: 0 | EA134: 0 | EB134: 4 | EC134: 6 | ED134: 2 | EE134: 1 | EF134: 0 | EG134: 1 | EH134: 13 | EI134: 0 | EJ134: 0 | EK134: 0 | EL134: 23 | EM134: 0 | EN134: 3 | EO134: 0 | EP134: 9 | EQ134: 1 | ER134: 1 | ES134: 2 | ET134: 0 | EU134: 0 | EV134: 10 | EW134: 0 | EX134: 0 | EY134: 0 | EZ134: 8 | FA134: 0 | FB134: 2 | FC134: 0 | FD134: 2 | FE134: 1 | FF134: 5 | FG134: 0 | FH134: 1 | FI134: 0 | FJ134: 2 | FK134: 0 | FL134: 0 | FM134: 0 | FN134: 6 | FO134: 0 | FP134: 1 | FQ134: 0 | FR134: 4 | FS134: 0 | FT134: 4 | FU134: 1 | FV134: 1 | FW134: 0 | FX134: 2 | FY134: 0 | FZ134: 0 | GA134: 0 | GB134: 6 | GC134: 0 | GD134: 1 | GE134: 0 | GF134: 1 | GG134: 0 | GH134: 3 | GI134: 0 | GJ134: 0 | GK134: 0 | GL134: 3 | GM134: 0 | GN134: 0 | GO134: 0 | GP134: 2 | GQ134: 0 | GR134: 0 | GS134: 0 | GT134: 0 | GU134: 0 | GV134: 0 | GW134: 0 | GX134: 0 | GY134: 0 | GZ134: 0 | HA134: 0 | HB134: 0 | HC134: 0 | HD134: 0 | HE134: 0 | HF134: 0 | HG134: 0 | HH134: 0 | HI134: 0 | HJ134: 0 | HK134: 0 | HL134: 0 | HM134: 0 | HN134: 0 | HO134: 0 | HP134: 0 | HQ134: 0 | HR134: 0 | HS134: 0 | HT134: 0 | HU134: 0 | HV134: 0 | HW134: 0
A135: 4 | B135: 4 | C135: 8 | D135: 2 | E135: 0 | F135: 0 | G135: 1 | H135: 0 | I135: 0 | J135: 0 | K135: 0 | L135: 0 | M135: 0 | N135: 0 | O135: 63 | P135: 204 | Q135: 118 | R135: 7 | S135: 7 | T135: 5 | U135: 0 | V135: 0 | W135: 0 | X135: 0 | Y135: 0 | Z135: 0 | AA135: 0 | AB135: 148 | AC135: 36 | AD135: 23 | AE135: 10 | AF135: 4 | AG135: 6 | AH135: 2 | AI135: 1 | AJ135: 1 | AK135: 0 | AL135: 0 | AM135: 1 | AN135: 0 | AO135: 0 | AP135: 0 | AQ135: 1 | AR135: 1 | AS135: 0 | AT135: 1 | AU135: 0 | AV135: 1 | AW135: 0 | AX135: 0 | AY135: 1 | AZ135: 0 | BA135: 0 | BB135: 0 | BC135: 12 | BD135: 12 | BE135: 0 | BF135: 0 | BG135: 0 | BH135: 0 | BI135: 0 | BJ135: 0 | BK135: 0 | BL135: 0 | BM135: 0 | BN135: 0 | BO135: 0 | BP135: 1 | BQ135: 1 | BR135: 3 | BS135: 11 | BT135: 4 | BU135: 8 | BV135: 30 | BW135: 30 | BX135: 39 | BY135: 34 | BZ135: 33 | CA135: 44 | CB135: 5 | CC135: 24 | CD135: 26 | CE135: 17 | CF135: 19 | CG135: 14 | CH135: 2 | CI135: 0 | CJ135: 2 | CK135: 1 | CL135: 4 | CM135: 0 | CN135: 0 | CO135: 13 | CP135: 67 | CQ135: 53 | CR135: 40 | CS135: 41 | CT135: 23 | CU135: 1 | CV135: 1 | CW135: 0 | CX135: 0 | CY135: 0 | CZ135: 0 | DA135: 0 | DB135: 13 | DC135: 960 | DD135: 1078 | DE135: 733 | DF135: 541 | DG135: 519 | DH135: 151 | DI135: 79 | DJ135: 66 | DK135: 64 | DL135: 69 | DM135: 81 | DN135: 79 | DO135: 592 | DP135: 512 | DQ135: 4 | DR135: 0 | DS135: 1 | DT135: 1 | DU135: 2 | DV135: 1 | DW135: 0 | DX135: 0 | DY135: 0 | DZ135: 0 | EA135: 0 | EB135: 5 | EC135: 1 | ED135: 5 | EE135: 1 | EF135: 0 | EG135: 1 | EH135: 12 | EI135: 0 | EJ135: 0 | EK135: 0 | EL135: 18 | EM135: 0 | EN135: 3 | EO135: 0 | EP135: 6 | EQ135: 1 | ER135: 4 | ES135: 0 | ET135: 0 | EU135: 0 | EV135: 7 | EW135: 0 | EX135: 0 | EY135: 0 | EZ135: 10 | FA135: 0 | FB135: 4 | FC135: 0 | FD135: 2 | FE135: 0 | FF135: 5 | FG135: 0 | FH135: 0 | FI135: 0 | FJ135: 2 | FK135: 0 | FL135: 0 | FM135: 0 | FN135: 5 | FO135: 0 | FP135: 2 | FQ135: 0 | FR135: 2 | FS135: 0 | FT135: 3 | FU135: 0 | FV135: 0 | FW135: 0 | FX135: 3 | FY135: 0 | FZ135: 0 | GA135: 0 | GB135: 6 | GC135: 0 | GD135: 0 | GE135: 0 | GF135: 3 | GG135: 0 | GH135: 5 | GI135: 0 | GJ135: 0 | GK135: 0 | GL135: 9 | GM135: 0 | GN135: 0 | GO135: 0 | GP135: 4 | GQ135: 0 | GR135: 1 | GS135: 0 | GT135: 0 | GU135: 0 | GV135: 0 | GW135: 0 | GX135: 0 | GY135: 0 | GZ135: 0 | HA135: 0 | HB135: 0 | HC135: 0 | HD135: 0 | HE135: 0 | HF135: 0 | HG135: 0 | HH135: 0 | HI135: 0 | HJ135: 0 | HK135: 0 | HL135: 0 | HM135: 0 | HN135: 0 | HO135: 0 | HP135: 0 | HQ135: 0 | HR135: 0 | HS135: 0 | HT135: 0 | HU135: 0 | HV135: 0 | HW135: 0
A136: 5 | B136: 1 | C136: 6 | D136: 4 | E136: 0 | F136: 1 | G136: 0 | H136: 0 | I136: 0 | J136: 0 | K136: 0 | L136: 0 | M136: 0 | N136: 0 | O136: 78 | P136: 211 | Q136: 97 | R136: 20 | S136: 14 | T136: 12 | U136: 1 | V136: 1 | W136: 0 | X136: 0 | Y136: 0 | Z136: 1 | AA136: 0 | AB136: 154 | AC136: 40 | AD136: 4 | AE136: 3 | AF136: 2 | AG136: 4 | AH136: 1 | AI136: 0 | AJ136: 1 | AK136: 1 | AL136: 1 | AM136: 1 | AN136: 1 | AO136: 0 | AP136: 1 | AQ136: 0 | AR136: 0 | AS136: 0 | AT136: 0 | AU136: 0 | AV136: 0 | AW136: 0 | AX136: 0 | AY136: 0 | AZ136: 0 | BA136: 0 | BB136: 0 | BC136: 13 | BD136: 5 | BE136: 1 | BF136: 0 | BG136: 3 | BH136: 1 | BI136: 1 | BJ136: 0 | BK136: 1 | BL136: 0 | BM136: 0 | BN136: 0 | BO136: 0 | BP136: 0 | BQ136: 5 | BR136: 0 | BS136: 8 | BT136: 8 | BU136: 12 | BV136: 23 | BW136: 6 | BX136: 9 | BY136: 17 | BZ136: 46 | CA136: 20 | CB136: 8 | CC136: 18 | CD136: 16 | CE136: 7 | CF136: 13 | CG136: 23 | CH136: 2 | CI136: 0 | CJ136: 0 | CK136: 0 | CL136: 2 | CM136: 1 | CN136: 0 | CO136: 17 | CP136: 72 | CQ136: 47 | CR136: 25 | CS136: 25 | CT136: 20 | CU136: 5 | CV136: 0 | CW136: 0 | CX136: 0 | CY136: 0 | CZ136: 0 | DA136: 0 | DB136: 27 | DC136: 883 | DD136: 943 | DE136: 688 | DF136: 490 | DG136: 463 | DH136: 168 | DI136: 65 | DJ136: 30 | DK136: 27 | DL136: 37 | DM136: 67 | DN136: 18 | DO136: 574 | DP136: 511 | DQ136: 5 | DR136: 4 | DS136: 0 | DT136: 1 | DU136: 0 | DV136: 0 | DW136: 0 | DX136: 3 | DY136: 0 | DZ136: 0 | EA136: 0 | EB136: 6 | EC136: 3 | ED136: 5 | EE136: 3 | EF136: 0 | EG136: 3 | EH136: 9 | EI136: 0 | EJ136: 0 | EK136: 0 | EL136: 18 | EM136: 0 | EN136: 1 | EO136: 0 | EP136: 6 | EQ136: 0 | ER136: 0 | ES136: 2 | ET136: 0 | EU136: 0 | EV136: 7 | EW136: 0 | EX136: 0 | EY136: 0 | EZ136: 5 | FA136: 0 | FB136: 0 | FC136: 0 | FD136: 0 | FE136: 0 | FF136: 2 | FG136: 0 | FH136: 0 | FI136: 0 | FJ136: 4 | FK136: 0 | FL136: 0 | FM136: 0 | FN136: 4 | FO136: 0 | FP136: 1 | FQ136: 0 | FR136: 0 | FS136: 0 | FT136: 3 | FU136: 0 | FV136: 0 | FW136: 0 | FX136: 1 | FY136: 0 | FZ136: 0 | GA136: 0 | GB136: 0 | GC136: 0 | GD136: 0 | GE136: 0 | GF136: 1 | GG136: 0 | GH136: 3 | GI136: 0 | GJ136: 0 | GK136: 0 | GL136: 0 | GM136: 0 | GN136: 0 | GO136: 0 | GP136: 3 | GQ136: 0 | GR136: 2 | GS136: 0 | GT136: 0 | GU136: 0 | GV136: 0 | GW136: 0 | GX136: 0 | GY136: 0 | GZ136: 0 | HA136: 0 | HB136: 0 | HC136: 0 | HD136: 0 | HE136: 0 | HF136: 0 | HG136: 0 | HH136: 0 | HI136: 0 | HJ136: 0 | HK136: 0 | HL136: 0 | HM136: 0 | HN136: 0 | HO136: 0 | HP136: 0 | HQ136: 0 | HR136: 0 | HS136: 0 | HT136: 0 | HU136: 0 | HV136: 0 | HW136: 0
A137: T | B137: 8 | C137: 29 | D137: 16 | E137: 0 | F137: 1 | G137: 2 | H137: 1 | I137: 1 | J137: 0 | K137: 0 | L137: 0 | M137: 1 | N137: 0 | O137: 349 | P137: 992 | Q137: 497 | R137: 27 | S137: 22 | T137: 52 | U137: 1 | V137: 3 | W137: 1 | X137: 0 | Y137: 0 | Z137: 1 | AA137: 0 | AB137: 784 | AC137: 215 | AD137: 69 | AE137: 17 | AF137: 15 | AG137: 15 | AH137: 6 | AI137: 1 | AJ137: 3 | AK137: 1 | AL137: 1 | AM137: 2 | AN137: 1 | AO137: 3 | AP137: 3 | AQ137: 2 | AR137: 1 | AS137: 2 | AT137: 4 | AU137: 1 | AV137: 1 | AW137: 1 | AX137: 0 | AY137: 1 | AZ137: 0 | BA137: 0 | BB137: 3 | BC137: 72 | BD137: 49 | BE137: 5 | BF137: 5 | BG137: 12 | BH137: 4 | BI137: 2 | BJ137: 0 | BK137: 1 | BL137: 0 | BM137: 0 | BN137: 0 | BO137: 0 | BP137: 3 | BQ137: 8 | BR137: 6 | BS137: 46 | BT137: 31 | BU137: 30 | BV137: 66 | BW137: 69 | BX137: 74 | BY137: 86 | BZ137: 109 | CA137: 87 | CB137: 40 | CC137: 110 | CD137: 91 | CE137: 53 | CF137: 95 | CG137: 79 | CH137: 11 | CI137: 10 | CJ137: 6 | CK137: 4 | CL137: 11 | CM137: 8 | CN137: 2 | CO137: 107 | CP137: 363 | CQ137: 338 | CR137: 272 | CS137: 219 | CT137: 131 | CU137: 19 | CV137: 2 | CW137: 2 | CX137: 1 | CY137: 1 | CZ137: 2 | DA137: 2 | DB137: 95 | DC137: 4670 | DD137: 4757 | DE137: 3416 | DF137: 2514 | DG137: 2228 | DH137: 627 | DI137: 326 | DJ137: 214 | DK137: 195 | DL137: 204 | DM137: 231 | DN137: 175 | DO137: 3075 | DP137: 2565 | DQ137: 23 | DR137: 16 | DS137: 4 | DT137: 6 | DU137: 8 | DV137: 6 | DW137: 1 | DX137: 3 | DY137: 0 | DZ137: 1 | EA137: 0 | EB137: 42 | EC137: 16 | ED137: 24 | EE137: 11 | EF137: 0 | EG137: 11 | EH137: 58 | EI137: 1 | EJ137: 0 | EK137: 0 | EL137: 104 | EM137: 0 | EN137: 13 | EO137: 0 | EP137: 36 | EQ137: 3 | ER137: 21 | ES137: 5 | ET137: 0 | EU137: 0 | EV137: 50 | EW137: 1 | EX137: 0 | EY137: 0 | EZ137: 40 | FA137: 0 | FB137: 11 | FC137: 0 | FD137: 15 | FE137: 1 | FF137: 25 | FG137: 1 | FH137: 1 | FI137: 0 | FJ137: 18 | FK137: 0 | FL137: 0 | FM137: 0 | FN137: 21 | FO137: 0 | FP137: 5 | FQ137: 0 | FR137: 15 | FS137: 0 | FT137: 26 | FU137: 1 | FV137: 1 | FW137: 0 | FX137: 17 | FY137: 0 | FZ137: 0 | GA137: 0 | GB137: 17 | GC137: 0 | GD137: 5 | GE137: 0 | GF137: 9 | GG137: 1 | GH137: 18 | GI137: 0 | GJ137: 0 | GK137: 0 | GL137: 18 | GM137: 0 | GN137: 0 | GO137: 0 | GP137: 16 | GQ137: 0 | GR137: 4 | GS137: 0 | GT137: 0 | GU137: 0 | GV137: 0 | GW137: 0 | GX137: 0 | GY137: 0 | GZ137: 0 | HA137: 0 | HB137: 0 | HC137: 0 | HD137: 0 | HE137: 0 | HF137: 0 | HG137: 0 | HH137: 0 | HI137: 0 | HJ137: 0 | HK137: 0 | HL137: 0 | HM137: 0 | HN137: 0 | HO137: 0 | HP137: 0 | HQ137: 0 | HR137: 0 | HS137: 0 | HT137: 0 | HU137: 0 | HV137: 0 | HW137: 0
A150: TOTAL
A151: =COUNT(A132:A148) -> 5 | B151: =SUM(B132:B148) -> 16 | C151: =SUM(C132:C148) -> 58 | D151: 32 | E151: 0 | F151: 2 | G151: 4 | H151: 2 | I151: 2 | J151: 0 | K151: 0 | L151: 0 | M151: 2 | N151: 0 | O151: 698 | P151: 1984 | Q151: 994 | R151: 54 | S151: 44 | T151: 104 | U151: 2 | V151: 6 | W151: 2 | X151: 0 | Y151: 0 | Z151: 2 | AA151: 0 | AB151: 1568 | AC151: 430 | AD151: 138 | AE151: 34 | AF151: 30 | AG151: 30 | AH151: 12 | AI151: 2 | AJ151: 6 | AK151: 2 | AL151: 2 | AM151: 4 | AN151: 2 | AO151: 6 | AP151: 6 | AQ151: 4 | AR151: 2 | AS151: 4 | AT151: 8 | AU151: 2 | AV151: 2 | AW151: 2 | AX151: 0 | AY151: 2 | AZ151: 0 | BA151: 0 | BB151: 6 | BC151: 144 | BD151: 98 | BE151: 10 | BF151: 10 | BG151: 24 | BH151: 8 | BI151: 4 | BJ151: 0 | BK151: 2 | BL151: 0 | BM151: 0 | BN151: 0 | BO151: =SUM(BO132:BO148) -> 0 | BP151: 6 | BQ151: 16 | BR151: 12 | BS151: 92 | BT151: 62 | BU151: 60 | BV151: 132 | BW151: 138 | BX151: 148 | BY151: 172 | BZ151: 218 | CA151: 174 | CB151: 80 | CC151: 220 | CD151: 182 | CE151: 106 | CF151: 190 | CG151: 158 | CH151: 22 | CI151: 20 | CJ151: 12 | CK151: 8 | CL151: 22 | CM151: 16 | CN151: 4 | CO151: 214 | CP151: 726 | CQ151: 676 | CR151: 544 | CS151: 438 | CT151: 262 | CU151: 38 | CV151: 4 | CW151: 4 | CX151: 2 | CY151: 2 | CZ151: 4 | DA151: 4 | DB151: 190 | DC151: 9340 | DD151: 9514 | DE151: 6832 | DF151: 5028 | DG151: 4456 | DH151: 1254 | DI151: 652 | DJ151: 428 | DK151: 390 | DL151: 408 | DM151: 462 | DN151: 350 | DO151: 6150 | DP151: 5130 | DQ151: 46 | DR151: 32 | DS151: 8 | DT151: 12 | DU151: 16 | DV151: 12 | DW151: 2 | DX151: 6 | DY151: 0 | DZ151: 2 | EA151: =SUM(EA132:EA148) -> 0 | EB151: 84 | EC151: 32 | ED151: 48 | EE151: 22 | EF151: 0 | EG151: 22 | EH151: 116 | EI151: 2 | EJ151: 0 | EK151: 0 | EL151: 208 | EM151: 0 | EN151: 26 | EO151: 0 | EP151: 72 | EQ151: 6 | ER151: 42 | ES151: 10 | ET151: 0 | EU151: 0 | EV151: 100 | EW151: 2 | EX151: 0 | EY151: 0 | EZ151: 80 | FA151: 0 | FB151: 22 | FC151: 0 | FD151: 30 | FE151: 2 | FF151: 50 | FG151: 2 | FH151: 2 | FI151: 0 | FJ151: 36 | FK151: 0 | FL151: 0 | FM151: 0 | FN151: 42 | FO151: 0 | FP151: 10 | FQ151: 0 | FR151: 30 | FS151: 0 | FT151: 52 | FU151: 2 | FV151: 2 | FW151: 0 | FX151: 34 | FY151: 0 | FZ151: 0 | GA151: 0 | GB151: 34 | GC151: 0 | GD151: 10 | GE151: 0 | GF151: 18 | GG151: 2 | GH151: 36 | GI151: 0 | GJ151: 0 | GK151: 0 | GL151: 36 | GM151: =SUM(GM132:GM148) -> 0 | GN151: 0 | GO151: 0 | GP151: 32 | GQ151: 0 | GR151: 8 | GS151: 0 | GT151: 0 | GU151: 0 | GV151: 0 | GW151: 0 | GX151: 0 | GY151: 0 | GZ151: 0 | HA151: 0 | HB151: 0 | HC151: 0 | HD151: 0 | HE151: 0 | HF151: 0 | HG151: 0 | HH151: 0 | HI151: 0 | HJ151: 0 | HK151: 0 | HL151: 0 | HM151: 0 | HN151: 0 | HO151: 0 | HP151: 0 | HQ151: 0 | HR151: 0 | HS151: 0 | HT151: 0 | HU151: 0 | HV151: 0 | HW151: 0
A152: =CONCATENATE(A132,"-",A133,"-",A134,"-",A135,"-",A136,"-",A137,"-",A138,"-",A139,"-",A140,"-",A141,"-",A142,"-",A143) -> 1-2-3-4-5-T------
B153: BAS001 | C153: BAS002 | D153: BAS003 | E153: BAS004 | F153: BAS005 | G153: BAS006 | H153: BAS007 | I153: BAS008 | J153: BAS009 | K153: BAS010 | L153: BAS011 | M153: BAS012 | N153: BAS013 | O153: BAS014 | P153: BAS015 | Q153: BAS016 | R153: BAS017 | S153: BAS018 | T153: BAS019 | U153: BAS020 | V153: BAS021 | W153: BAS022 | X153: BAS023 | Y153: BAS024 | Z153: BAS025 | AA153: BAS026 | AB153: BAS027 | AC153: BAS028 | AD153: BAS029 | AE153: BAS030 | AF153: BAS031 | AG153: BAS032 | AH153: BAS033 | AI153: BAS034 | AJ153: BAS035 | AK153: BAS036 | AL153: BAS037 | AM153: BAS038 | AN153: BAS039 | AO153: BAS040 | AP153: BAS041 | AQ153: BAS042 | AR153: BAS043 | AS153: BAS044 | AT153: BAS045 | AU153: BAS046 | AV153: BAS047 | AW153: BAS048 | AX153: BAS049 | AY153: BAS050 | AZ153: BAS051 | BA153: BAS052 | BB153: BAS053 | BC153: BAS054 | BD153: BAS055 | BE153: BAS056 | BF153: BAS057 | BG153: BAS058 | BH153: BAS059 | BI153: BAS060 | BJ153: BAS061 | BK153: BAS062 | BL153: BAS063 | BM153: BAS064 | BN153: BAS065 | BO153: BAS066 | BP153: BAS067 | BQ153: BAS068 | BR153: BAS069 | BS153: BAS070 | BT153: BAS071 | BU153: BAS072 | BV153: BAS073 | BW153: BAS074 | BX153: BAS075 | BY153: BAS076 | BZ153: BAS077 | CA153: BAS078 | CB153: BAS079 | CC153: BAS080 | CD153: BAS081 | CE153: BAS082 | CF153: BAS083 | CG153: BAS084 | CH153: BAS085 | CI153: BAS086 | CJ153: BAS087 | CK153: BAS088 | CL153: BAS089 | CM153: BAS090 | CN153: BAS091 | CO153: BAS092 | CP153: BAS093 | CQ153: BAS094 | CR153: BAS095 | CS153: BAS096 | CT153: BAS097 | CU153: BAS098 | CV153: BAS099 | CW153: BAS100 | CX153: BAS101 | CY153: BAS102 | CZ153: BAS103 | DA153: BAS104 | DB153: BAS105 | DC153: BAS106 | DD153: BAS107 | DE153: BAS108 | DF153: BAS109 | DG153: BAS110 | DH153: BAS111 | DI153: BAS112 | DJ153: BAS113 | DK153: BAS114 | DL153: BAS115 | DM153: BAS116 | DN153: BAS117 | DO153: BAS118 | DP153: BAS119 | DQ153: BAS120 | DR153: BAS121 | DS153: BAS122 | DT153: BAS123 | DU153: BAS124 | DV153: BAS125 | DW153: BAS126 | DX153: BAS127 | DY153: BAS128 | DZ153: BAS129 | EA153: BAS130 | EB153: BAS131 | EC153: BAS132 | ED153: BAS133 | EE153: BAS134 | EF153: BAS135 | EG153: BAS136 | EH153: BAS137 | EI153: BAS138 | EJ153: BAS139 | EK153: BAS140 | EL153: BAS141 | EM153: BAS142 | EN153: BAS143 | EO153: BAS144 | EP153: BAS145 | EQ153: BAS146 | ER153: BAS147 | ES153: BAS148 | ET153: BAS149 | EU153: BAS150 | EV153: BAS151 | EW153: BAS152 | EX153: BAS153 | EY153: BAS154 | EZ153: BAS155 | FA153: BAS156 | FB153: BAS157 | FC153: BAS158 | FD153: BAS159 | FE153: BAS160 | FF153: BAS161 | FG153: BAS162 | FH153: BAS163 | FI153: BAS164 | FJ153: BAS165 | FK153: BAS166 | FL153: BAS167 | FM153: BAS168 | FN153: BAS169 | FO153: BAS170 | FP153: BAS171 | FQ153: BAS172 | FR153: BAS173 | FS153: BAS174 | FT153: BAS175 | FU153: BAS176 | FV153: BAS177 | FW153: BAS178 | FX153: BAS179 | FY153: BAS180 | FZ153: BAS181 | GA153: BAS182 | GB153: BAS183 | GC153: BAS184 | GD153: BAS185 | GE153: BAS186 | GF153: BAS187 | GG153: BAS188 | GH153: BAS189 | GI153: BAS190 | GJ153: BAS191 | GK153: BAS192 | GL153: BAS193 | GM153: BAS194 | GN153: BAS195 | GO153: BAS196 | GP153: BAS197 | GQ153: BAS198 | GR153: BAS199 | GS153: BAS200 | GT153: BAS201 | GU153: BAS202 | GV153: BAS203 | GW153: BAS204 | GX153: BAS205 | GY153: BAS206 | GZ153: BAS207 | HA153: BAS208 | HB153: BAS209 | HC153: BAS210 | HD153: BAS211 | HE153: BAS212 | HF153: BAS213 | HG153: BAS214 | HH153: BAS215 | HI153: BAS216 | HJ153: BAS217 | HK153: BAS218 | HL153: BAS219 | HM153: BAS220 | HN153: BAS221 | HO153: BAS222 | HP153: BAS223 | HQ153: BAS224 | HR153: BAS225 | HS153: BAS226 | HT153: BAS227 | HU153: BAS228 | HV153: BAS229 | HW153: BAS230
B154: =IF(B153=B131,"SI","NO") -> SI | C154: =IF(C153=C131,"SI","NO") -> SI | D154: SI | E154: SI | F154: SI | G154: SI | H154: SI | I154: SI | J154: SI | K154: SI | L154: SI | M154: SI | N154: SI | O154: SI | P154: SI | Q154: SI | R154: SI | S154: SI | T154: SI | U154: SI | V154: SI | W154: SI | X154: SI | Y154: SI | Z154: SI | AA154: SI | AB154: SI | AC154: SI | AD154: SI | AE154: SI | AF154: SI | AG154: SI | AH154: SI | AI154: SI | AJ154: SI | AK154: SI | AL154: SI | AM154: SI | AN154: SI | AO154: SI | AP154: SI | AQ154: SI | AR154: SI | AS154: SI | AT154: SI | AU154: SI | AV154: SI | AW154: SI | AX154: SI | AY154: SI | AZ154: SI | BA154: SI | BB154: SI | BC154: SI | BD154: SI | BE154: SI | BF154: SI | BG154: SI | BH154: SI | BI154: SI | BJ154: SI | BK154: SI | BL154: SI | BM154: SI | BN154: SI | BO154: =IF(BO153=BO131,"SI","NO") -> SI | BP154: SI | BQ154: SI | BR154: SI | BS154: SI | BT154: SI | BU154: SI | BV154: SI | BW154: SI | BX154: SI | BY154: SI | BZ154: SI | CA154: SI | CB154: SI | CC154: SI | CD154: SI | CE154: SI | CF154: SI | CG154: SI | CH154: SI | CI154: SI | CJ154: SI | CK154: SI | CL154: SI | CM154: SI | CN154: SI | CO154: SI | CP154: SI | CQ154: SI | CR154: SI | CS154: SI | CT154: SI | CU154: SI | CV154: SI | CW154: SI | CX154: SI | CY154: SI | CZ154: SI | DA154: SI | DB154: SI | DC154: SI | DD154: SI | DE154: SI | DF154: SI | DG154: SI | DH154: SI | DI154: SI | DJ154: SI | DK154: SI | DL154: SI | DM154: SI | DN154: SI | DO154: SI | DP154: SI | DQ154: SI | DR154: SI | DS154: SI | DT154: SI | DU154: SI | DV154: SI | DW154: SI | DX154: SI | DY154: SI | DZ154: SI | EA154: =IF(EA153=EA131,"SI","NO") -> SI | EB154: SI | EC154: SI | ED154: SI | EE154: SI | EF154: SI | EG154: SI | EH154: SI | EI154: SI | EJ154: SI | EK154: SI | EL154: SI | EM154: SI | EN154: SI | EO154: SI | EP154: SI | EQ154: SI | ER154: SI | ES154: SI | ET154: SI | EU154: SI | EV154: SI | EW154: SI | EX154: SI | EY154: SI | EZ154: SI | FA154: SI | FB154: SI | FC154: SI | FD154: SI | FE154: SI | FF154: SI | FG154: SI | FH154: SI | FI154: SI | FJ154: SI | FK154: SI | FL154: SI | FM154: SI | FN154: SI | FO154: SI | FP154: SI | FQ154: SI | FR154: SI | FS154: SI | FT154: SI | FU154: SI | FV154: SI | FW154: SI | FX154: SI | FY154: SI | FZ154: SI | GA154: SI | GB154: SI | GC154: SI | GD154: SI | GE154: SI | GF154: SI | GG154: SI | GH154: SI | GI154: SI | GJ154: SI | GK154: SI | GL154: SI | GM154: =IF(GM153=GM131,"SI","NO") -> SI | GN154: SI | GO154: SI | GP154: SI | GQ154: SI | GR154: SI | GS154: SI | GT154: SI | GU154: SI | GV154: SI | GW154: SI | GX154: SI | GY154: SI | GZ154: SI | HA154: SI | HB154: SI | HC154: SI | HD154: SI | HE154: SI | HF154: SI | HG154: SI | HH154: SI | HI154: SI | HJ154: SI | HK154: SI | HL154: SI | HM154: SI | HN154: SI | HO154: SI | HP154: SI | HQ154: SI | HR154: SI | HS154: SI | HT154: SI | HU154: SI | HV154: SI | HW154: SI
A159: CRED04
A160: anno | B160: 2025
A161: cod_red | B161: (Todas)
A162: codmic | B162: (Todas)
A163: cod_prov | B163: (Todas)
A164: coddist | B164: (Todas)
A165: cod_estab | B165: (Todas)
A166: cod_eje | B166: (Todas)
B168: Valores
A169: Etiquetas de fila | B169: BAS001 | C169: BAS002 | D169: BAS003 | E169: BAS004 | F169: BAS005 | G169: BAS006 | H169: BAS007 | I169: BAS008 | J169: BAS009 | K169: BAS010 | L169: BAS011 | M169: BAS012 | N169: BAS013 | O169: BAS014 | P169: BAS015 | Q169: BAS016 | R169: BAS017 | S169: BAS018 | T169: BAS019 | U169: BAS020 | V169: BAS021 | W169: BAS022 | X169: BAS023 | Y169: BAS024 | Z169: BAS025 | AA169: BAS026 | AB169: BAS027 | AC169: BAS028 | AD169: BAS029 | AE169: BAS030 | AF169: BAS031 | AG169: BAS032 | AH169: BAS033 | AI169: BAS034 | AJ169: BAS035 | AK169: BAS036 | AL169: BAS037 | AM169: BAS038 | AN169: BAS039 | AO169: BAS040 | AP169: BAS041 | AQ169: BAS042 | AR169: BAS043 | AS169: BAS044 | AT169: BAS045 | AU169: BAS046 | AV169: BAS047 | AW169: BAS048 | AX169: BAS049 | AY169: BAS050 | AZ169: BAS051 | BA169: BAS052 | BB169: BAS053 | BC169: BAS054 | BD169: BAS055 | BE169: BAS056 | BF169: BAS057 | BG169: BAS058 | BH169: BAS059 | BI169: BAS060 | BJ169: BAS061 | BK169: BAS062 | BL169: BAS063 | BM169: BAS064 | BN169: BAS065 | BO169: BAS066 | BP169: BAS067 | BQ169: BAS068 | BR169: BAS069 | BS169: BAS070 | BT169: BAS071 | BU169: BAS072 | BV169: BAS073 | BW169: BAS074 | BX169: BAS075 | BY169: BAS076 | BZ169: BAS077 | CA169: BAS078 | CB169: BAS079 | CC169: BAS080 | CD169: BAS081 | CE169: BAS082 | CF169: BAS083 | CG169: BAS084 | CH169: BAS085 | CI169: BAS086 | CJ169: BAS087 | CK169: BAS088 | CL169: BAS089 | CM169: BAS090 | CN169: BAS091 | CO169: BAS092 | CP169: BAS093 | CQ169: BAS094 | CR169: BAS095 | CS169: BAS096 | CT169: BAS097 | CU169: BAS098 | CV169: BAS099 | CW169: BAS100 | CX169: BAS101 | CY169: BAS102 | CZ169: BAS103 | DA169: BAS104 | DB169: BAS105 | DC169: BAS106 | DD169: BAS107 | DE169: BAS108 | DF169: BAS109 | DG169: BAS110 | DH169: BAS111 | DI169: BAS112 | DJ169: BAS113 | DK169: BAS114 | DL169: BAS115 | DM169: BAS116 | DN169: BAS117 | DO169: BAS118 | DP169: BAS119 | DQ169: BAS120 | DR169: BAS121 | DS169: BAS122 | DT169: BAS123 | DU169: BAS124 | DV169: BAS125 | DW169: BAS126 | DX169: BAS127 | DY169: BAS128 | DZ169: BAS129 | EA169: BAS130 | EB169: BAS131 | EC169: BAS132 | ED169: BAS133 | EE169: BAS134 | EF169: BAS135 | EG169: BAS136 | EH169: BAS137 | EI169: BAS138 | EJ169: BAS139 | EK169: BAS140 | EL169: BAS141 | EM169: BAS142 | EN169: BAS143 | EO169: BAS144 | EP169: BAS145 | EQ169: BAS146 | ER169: BAS147 | ES169: BAS148 | ET169: BAS149 | EU169: BAS150 | EV169: BAS151 | EW169: BAS152 | EX169: BAS153 | EY169: BAS154 | EZ169: BAS155 | FA169: BAS156 | FB169: BAS157 | FC169: BAS158 | FD169: BAS159 | FE169: BAS160 | FF169: BAS161 | FG169: BAS162 | FH169: BAS163 | FI169: BAS164 | FJ169: BAS165 | FK169: BAS166 | FL169: BAS167 | FM169: BAS168 | FN169: BAS169 | FO169: BAS170 | FP169: BAS171 | FQ169: BAS172 | FR169: BAS173 | FS169: BAS174 | FT169: BAS175 | FU169: BAS176 | FV169: BAS177 | FW169: BAS178 | FX169: BAS179 | FY169: BAS180 | FZ169: BAS181 | GA169: BAS182 | GB169: BAS183 | GC169: BAS184 | GD169: BAS185 | GE169: BAS186 | GF169: BAS187 | GG169: BAS188 | GH169: BAS189 | GI169: BAS190 | GJ169: BAS191 | GK169: BAS192 | GL169: BAS193 | GM169: BAS194 | GN169: BAS195 | GO169: BAS196 | GP169: BAS197 | GQ169: BAS198 | GR169: BAS199 | GS169: BAS200 | GT169: BAS201 | GU169: BAS202 | GV169: BAS203 | GW169: BAS204 | GX169: BAS205 | GY169: BAS206 | GZ169: BAS207 | HA169: BAS208 | HB169: BAS209 | HC169: BAS210 | HD169: BAS211 | HE169: BAS212 | HF169: BAS213 | HG169: BAS214 | HH169: BAS215 | HI169: BAS216 | HJ169: BAS217 | HK169: BAS218 | HL169: BAS219 | HM169: BAS220 | HN169: BAS221 | HO169: BAS222 | HP169: BAS223 | HQ169: BAS224 | HR169: BAS225 | HS169: BAS226 | HT169: BAS227 | HU169: BAS228 | HV169: BAS229 | HW169: BAS230
A170: 1 | B170: 46 | C170: 84 | D170: 65 | E170: 57 | F170: 46 | G170: 12 | H170: 9 | I170: 16 | J170: 13 | K170: 70 | L170: 52 | M170: 91 | N170: 71 | O170: 56 | P170: 51 | Q170: 14 | R170: 12 | S170: 21 | T170: 18 | U170: 85 | V170: 0 | W170: 98 | X170: 89 | Y170: 73 | Z170: 9 | AA170: 0 | AB170: 0 | AC170: 147 | AD170: 98 | AE170: 135 | AF170: 89 | AG170: 135 | AH170: 73 | AI170: 197 | AJ170: 9 | AK170: 130 | AL170: 483 | AM170: 261 | AN170: 175 | AO170: 114 | AP170: 107 | AQ170: 235 | AR170: 71 | AS170: 49 | AT170: 30 | AU170: 483 | AV170: 261 | AW170: 175 | AX170: 114 | AY170: 107 | AZ170: 235 | BA170: 681 | BB170: 483 | BC170: 261 | BD170: 175 | BE170: 114 | BF170: 107 | BG170: 235 | BH170: 190 | BI170: 528 | BJ170: 261 | BK170: 175 | BL170: 114 | BM170: 121 | BN170: 260 | BO170: 0 | BP170: 1167 | BQ170: 944 | BR170: 944 | BS170: 944 | BT170: 397 | BU170: 372 | BV170: 0 | BW170: 484 | BX170: 262 | BY170: 177 | BZ170: 115 | CA170: 111 | CB170: 235 | CC170: 0 | CD170: 0 | CE170: 0 | CF170: 0 | CG170: 0 | CH170: 0 | CI170: 0 | CJ170: 0 | CK170: 0 | CL170: 0 | CM170: 0 | CN170: 0 | CO170: 0 | CP170: 0 | CQ170: 0 | CR170: 0 | CS170: 0 | CT170: 0 | CU170: 0 | CV170: 0 | CW170: 0 | CX170: 0 | CY170: 0 | CZ170: 0 | DA170: 0 | DB170: 0 | DC170: 0 | DD170: 0 | DE170: 0 | DF170: 0 | DG170: 0 | DH170: 0 | DI170: 0 | DJ170: 0 | DK170: 0 | DL170: 0 | DM170: 0 | DN170: 0 | DO170: 0 | DP170: 0 | DQ170: 0 | DR170: 0 | DS170: 0 | DT170: 0 | DU170: 0 | DV170: 0 | DW170: 0 | DX170: 0 | DY170: 0 | DZ170: 0 | EA170: 0 | EB170: 0 | EC170: 0 | ED170: 0 | EE170: 0 | EF170: 0 | EG170: 0 | EH170: 0 | EI170: 0 | EJ170: 0 | EK170: 0 | EL170: 0 | EM170: 0 | EN170: 0 | EO170: 0 | EP170: 0 | EQ170: 0 | ER170: 0 | ES170: 0 | ET170: 0 | EU170: 0 | EV170: 0 | EW170: 0 | EX170: 0 | EY170: 0 | EZ170: 0 | FA170: 0 | FB170: 0 | FC170: 0 | FD170: 0 | FE170: 0 | FF170: 0 | FG170: 0 | FH170: 0 | FI170: 0 | FJ170: 0 | FK170: 0 | FL170: 0 | FM170: 0 | FN170: 0 | FO170: 0 | FP170: 0 | FQ170: 0 | FR170: 0 | FS170: 0 | FT170: 0 | FU170: 0 | FV170: 0 | FW170: 0 | FX170: 0 | FY170: 0 | FZ170: 0 | GA170: 0 | GB170: 0 | GC170: 0 | GD170: 0 | GE170: 0 | GF170: 0 | GG170: 0 | GH170: 0 | GI170: 0 | GJ170: 0 | GK170: 0 | GL170: 0 | GM170: 0 | GN170: 0 | GO170: 0 | GP170: 0 | GQ170: 0 | GR170: 0 | GS170: 0 | GT170: 0 | GU170: 0 | GV170: 0 | GW170: 0 | GX170: 0 | GY170: 0 | GZ170: 0 | HA170: 0 | HB170: 0 | HC170: 0 | HD170: 0 | HE170: 0 | HF170: 0 | HG170: 0 | HH170: 0 | HI170: 0 | HJ170: 0 | HK170: 0 | HL170: 0 | HM170: 0 | HN170: 0 | HO170: 0 | HP170: 0 | HQ170: 0 | HR170: 0 | HS170: 0 | HT170: 0 | HU170: 0 | HV170: 0 | HW170: 0
A171: 2 | B171: 55 | C171: 65 | D171: 64 | E171: 56 | F171: 45 | G171: 9 | H171: 4 | I171: 5 | J171: 11 | K171: 76 | L171: 64 | M171: 73 | N171: 72 | O171: 57 | P171: 50 | Q171: 12 | R171: 8 | S171: 9 | T171: 19 | U171: 93 | V171: 0 | W171: 95 | X171: 88 | Y171: 64 | Z171: 3 | AA171: 0 | AB171: 0 | AC171: 118 | AD171: 95 | AE171: 126 | AF171: 88 | AG171: 124 | AH171: 64 | AI171: 269 | AJ171: 3 | AK171: 123 | AL171: 452 | AM171: 273 | AN171: 163 | AO171: 136 | AP171: 111 | AQ171: 182 | AR171: 122 | AS171: 42 | AT171: 33 | AU171: 452 | AV171: 273 | AW171: 163 | AX171: 136 | AY171: 111 | AZ171: 182 | BA171: 570 | BB171: 452 | BC171: 273 | BD171: 163 | BE171: 136 | BF171: 111 | BG171: 182 | BH171: 167 | BI171: 482 | BJ171: 274 | BK171: 163 | BL171: 137 | BM171: 118 | BN171: 197 | BO171: 0 | BP171: 1080 | BQ171: 1040 | BR171: 1040 | BS171: 1040 | BT171: 416 | BU171: 339 | BV171: 0 | BW171: 457 | BX171: 282 | BY171: 174 | BZ171: 145 | CA171: 117 | CB171: 182 | CC171: 0 | CD171: 0 | CE171: 0 | CF171: 0 | CG171: 0 | CH171: 0 | CI171: 0 | CJ171: 0 | CK171: 0 | CL171: 0 | CM171: 0 | CN171: 0 | CO171: 0 | CP171: 0 | CQ171: 0 | CR171: 0 | CS171: 0 | CT171: 0 | CU171: 0 | CV171: 0 | CW171: 0 | CX171: 0 | CY171: 0 | CZ171: 0 | DA171: 0 | DB171: 0 | DC171: 0 | DD171: 0 | DE171: 0 | DF171: 0 | DG171: 0 | DH171: 0 | DI171: 0 | DJ171: 0 | DK171: 0 | DL171: 0 | DM171: 0 | DN171: 0 | DO171: 0 | DP171: 0 | DQ171: 0 | DR171: 0 | DS171: 0 | DT171: 0 | DU171: 0 | DV171: 0 | DW171: 0 | DX171: 0 | DY171: 0 | DZ171: 0 | EA171: 0 | EB171: 0 | EC171: 0 | ED171: 0 | EE171: 0 | EF171: 0 | EG171: 0 | EH171: 0 | EI171: 0 | EJ171: 0 | EK171: 0 | EL171: 0 | EM171: 0 | EN171: 0 | EO171: 0 | EP171: 0 | EQ171: 0 | ER171: 0 | ES171: 0 | ET171: 0 | EU171: 0 | EV171: 0 | EW171: 0 | EX171: 0 | EY171: 0 | EZ171: 0 | FA171: 0 | FB171: 0 | FC171: 0 | FD171: 0 | FE171: 0 | FF171: 0 | FG171: 0 | FH171: 0 | FI171: 0 | FJ171: 0 | FK171: 0 | FL171: 0 | FM171: 0 | FN171: 0 | FO171: 0 | FP171: 0 | FQ171: 0 | FR171: 0 | FS171: 0 | FT171: 0 | FU171: 0 | FV171: 0 | FW171: 0 | FX171: 0 | FY171: 0 | FZ171: 0 | GA171: 0 | GB171: 0 | GC171: 0 | GD171: 0 | GE171: 0 | GF171: 0 | GG171: 0 | GH171: 0 | GI171: 0 | GJ171: 0 | GK171: 0 | GL171: 0 | GM171: 0 | GN171: 0 | GO171: 0 | GP171: 0 | GQ171: 0 | GR171: 0 | GS171: 0 | GT171: 0 | GU171: 0 | GV171: 0 | GW171: 0 | GX171: 0 | GY171: 0 | GZ171: 0 | HA171: 0 | HB171: 0 | HC171: 0 | HD171: 0 | HE171: 0 | HF171: 0 | HG171: 0 | HH171: 0 | HI171: 0 | HJ171: 0 | HK171: 0 | HL171: 0 | HM171: 0 | HN171: 0 | HO171: 0 | HP171: 0 | HQ171: 0 | HR171: 0 | HS171: 0 | HT171: 0 | HU171: 0 | HV171: 0 | HW171: 0
A172: 3 | B172: 63 | C172: 63 | D172: 47 | E172: 46 | F172: 37 | G172: 5 | H172: 12 | I172: 10 | J172: 10 | K172: 72 | L172: 65 | M172: 65 | N172: 48 | O172: 52 | P172: 40 | Q172: 8 | R172: 21 | S172: 13 | T172: 14 | U172: 91 | V172: 0 | W172: 130 | X172: 95 | Y172: 82 | Z172: 12 | AA172: 0 | AB172: 0 | AC172: 126 | AD172: 130 | AE172: 113 | AF172: 95 | AG172: 126 | AH172: 82 | AI172: 157 | AJ172: 12 | AK172: 146 | AL172: 451 | AM172: 247 | AN172: 163 | AO172: 112 | AP172: 107 | AQ172: 137 | AR172: 272 | AS172: 47 | AT172: 40 | AU172: 451 | AV172: 247 | AW172: 163 | AX172: 112 | AY172: 107 | AZ172: 137 | BA172: 661 | BB172: 451 | BC172: 247 | BD172: 163 | BE172: 112 | BF172: 107 | BG172: 137 | BH172: 183 | BI172: 493 | BJ172: 248 | BK172: 163 | BL172: 112 | BM172: 111 | BN172: 142 | BO172: 0 | BP172: 1124 | BQ172: 1107 | BR172: 1107 | BS172: 1107 | BT172: 480 | BU172: 470 | BV172: 0 | BW172: 454 | BX172: 251 | BY172: 199 | BZ172: 124 | CA172: 115 | CB172: 137 | CC172: 0 | CD172: 0 | CE172: 0 | CF172: 0 | CG172: 0 | CH172: 0 | CI172: 0 | CJ172: 0 | CK172: 0 | CL172: 0 | CM172: 0 | CN172: 0 | CO172: 0 | CP172: 0 | CQ172: 0 | CR172: 0 | CS172: 0 | CT172: 0 | CU172: 0 | CV172: 0 | CW172: 0 | CX172: 0 | CY172: 0 | CZ172: 0 | DA172: 0 | DB172: 0 | DC172: 0 | DD172: 0 | DE172: 0 | DF172: 0 | DG172: 0 | DH172: 0 | DI172: 0 | DJ172: 0 | DK172: 0 | DL172: 0 | DM172: 0 | DN172: 0 | DO172: 0 | DP172: 0 | DQ172: 0 | DR172: 0 | DS172: 0 | DT172: 0 | DU172: 0 | DV172: 0 | DW172: 0 | DX172: 0 | DY172: 0 | DZ172: 0 | EA172: 0 | EB172: 0 | EC172: 0 | ED172: 0 | EE172: 0 | EF172: 0 | EG172: 0 | EH172: 0 | EI172: 0 | EJ172: 0 | EK172: 0 | EL172: 0 | EM172: 0 | EN172: 0 | EO172: 0 | EP172: 0 | EQ172: 0 | ER172: 0 | ES172: 0 | ET172: 0 | EU172: 0 | EV172: 0 | EW172: 0 | EX172: 0 | EY172: 0 | EZ172: 0 | FA172: 0 | FB172: 0 | FC172: 0 | FD172: 0 | FE172: 0 | FF172: 0 | FG172: 0 | FH172: 0 | FI172: 0 | FJ172: 0 | FK172: 0 | FL172: 0 | FM172: 0 | FN172: 0 | FO172: 0 | FP172: 0 | FQ172: 0 | FR172: 0 | FS172: 0 | FT172: 0 | FU172: 0 | FV172: 0 | FW172: 0 | FX172: 0 | FY172: 0 | FZ172: 0 | GA172: 0 | GB172: 0 | GC172: 0 | GD172: 0 | GE172: 0 | GF172: 0 | GG172: 0 | GH172: 0 | GI172: 0 | GJ172: 0 | GK172: 0 | GL172: 0 | GM172: 0 | GN172: 0 | GO172: 0 | GP172: 0 | GQ172: 0 | GR172: 0 | GS172: 0 | GT172: 0 | GU172: 0 | GV172: 0 | GW172: 0 | GX172: 0 | GY172: 0 | GZ172: 0 | HA172: 0 | HB172: 0 | HC172: 0 | HD172: 0 | HE172: 0 | HF172: 0 | HG172: 0 | HH172: 0 | HI172: 0 | HJ172: 0 | HK172: 0 | HL172: 0 | HM172: 0 | HN172: 0 | HO172: 0 | HP172: 0 | HQ172: 0 | HR172: 0 | HS172: 0 | HT172: 0 | HU172: 0 | HV172: 0 | HW172: 0
A173: 4 | B173: 62 | C173: 69 | D173: 70 | E173: 51 | F173: 40 | G173: 11 | H173: 5 | I173: 12 | J173: 12 | K173: 56 | L173: 68 | M173: 74 | N173: 76 | O173: 60 | P173: 45 | Q173: 17 | R173: 11 | S173: 14 | T173: 18 | U173: 76 | V173: 1 | W173: 92 | X173: 93 | Y173: 73 | Z173: 13 | AA173: 4 | AB173: 1 | AC173: 128 | AD173: 92 | AE173: 147 | AF173: 93 | AG173: 156 | AH173: 73 | AI173: 940 | AJ173: 13 | AK173: 120 | AL173: 389 | AM173: 267 | AN173: 161 | AO173: 137 | AP173: 91 | AQ173: 92 | AR173: 277 | AS173: 92 | AT173: 26 | AU173: 389 | AV173: 267 | AW173: 161 | AX173: 137 | AY173: 91 | AZ173: 92 | BA173: 594 | BB173: 389 | BC173: 267 | BD173: 161 | BE173: 137 | BF173: 91 | BG173: 92 | BH173: 153 | BI173: 428 | BJ173: 267 | BK173: 162 | BL173: 138 | BM173: 99 | BN173: 123 | BO173: 0 | BP173: 1032 | BQ173: 1192 | BR173: 1192 | BS173: 1192 | BT173: 510 | BU173: 390 | BV173: 0 | BW173: 391 | BX173: 271 | BY173: 184 | BZ173: 152 | CA173: 101 | CB173: 92 | CC173: 0 | CD173: 0 | CE173: 0 | CF173: 0 | CG173: 0 | CH173: 0 | CI173: 0 | CJ173: 0 | CK173: 0 | CL173: 0 | CM173: 0 | CN173: 0 | CO173: 0 | CP173: 0 | CQ173: 0 | CR173: 0 | CS173: 0 | CT173: 0 | CU173: 0 | CV173: 0 | CW173: 0 | CX173: 0 | CY173: 0 | CZ173: 0 | DA173: 0 | DB173: 0 | DC173: 0 | DD173: 0 | DE173: 0 | DF173: 0 | DG173: 0 | DH173: 0 | DI173: 0 | DJ173: 0 | DK173: 0 | DL173: 0 | DM173: 0 | DN173: 0 | DO173: 0 | DP173: 0 | DQ173: 0 | DR173: 0 | DS173: 0 | DT173: 0 | DU173: 0 | DV173: 0 | DW173: 0 | DX173: 0 | DY173: 0 | DZ173: 0 | EA173: 0 | EB173: 0 | EC173: 0 | ED173: 0 | EE173: 0 | EF173: 0 | EG173: 0 | EH173: 0 | EI173: 0 | EJ173: 0 | EK173: 0 | EL173: 0 | EM173: 0 | EN173: 0 | EO173: 0 | EP173: 0 | EQ173: 0 | ER173: 0 | ES173: 0 | ET173: 0 | EU173: 0 | EV173: 0 | EW173: 0 | EX173: 0 | EY173: 0 | EZ173: 0 | FA173: 0 | FB173: 0 | FC173: 0 | FD173: 0 | FE173: 0 | FF173: 0 | FG173: 0 | FH173: 0 | FI173: 0 | FJ173: 0 | FK173: 0 | FL173: 0 | FM173: 0 | FN173: 0 | FO173: 0 | FP173: 0 | FQ173: 0 | FR173: 0 | FS173: 0 | FT173: 0 | FU173: 0 | FV173: 0 | FW173: 0 | FX173: 0 | FY173: 0 | FZ173: 0 | GA173: 0 | GB173: 0 | GC173: 0 | GD173: 0 | GE173: 0 | GF173: 0 | GG173: 0 | GH173: 0 | GI173: 0 | GJ173: 0 | GK173: 0 | GL173: 0 | GM173: 0 | GN173: 0 | GO173: 0 | GP173: 0 | GQ173: 0 | GR173: 0 | GS173: 0 | GT173: 0 | GU173: 0 | GV173: 0 | GW173: 0 | GX173: 0 | GY173: 0 | GZ173: 0 | HA173: 0 | HB173: 0 | HC173: 0 | HD173: 0 | HE173: 0 | HF173: 0 | HG173: 0 | HH173: 0 | HI173: 0 | HJ173: 0 | HK173: 0 | HL173: 0 | HM173: 0 | HN173: 0 | HO173: 0 | HP173: 0 | HQ173: 0 | HR173: 0 | HS173: 0 | HT173: 0 | HU173: 0 | HV173: 0 | HW173: 0
A174: 5 | B174: 53 | C174: 55 | D174: 50 | E174: 46 | F174: 55 | G174: 15 | H174: 5 | I174: 7 | J174: 8 | K174: 47 | L174: 58 | M174: 63 | N174: 50 | O174: 48 | P174: 60 | Q174: 20 | R174: 11 | S174: 13 | T174: 11 | U174: 62 | V174: 1 | W174: 86 | X174: 78 | Y174: 78 | Z174: 29 | AA174: 1 | AB174: 1 | AC174: 108 | AD174: 86 | AE174: 156 | AF174: 78 | AG174: 209 | AH174: 78 | AI174: 2656 | AJ174: 29 | AK174: 107 | AL174: 421 | AM174: 270 | AN174: 132 | AO174: 120 | AP174: 104 | AQ174: 145 | AR174: 170 | AS174: 44 | AT174: 29 | AU174: 421 | AV174: 270 | AW174: 132 | AX174: 120 | AY174: 104 | AZ174: 145 | BA174: 575 | BB174: 421 | BC174: 270 | BD174: 132 | BE174: 120 | BF174: 104 | BG174: 145 | BH174: 172 | BI174: 455 | BJ174: 271 | BK174: 132 | BL174: 122 | BM174: 107 | BN174: 151 | BO174: 0 | BP174: 1034 | BQ174: 1131 | BR174: 1131 | BS174: 1131 | BT174: 496 | BU174: 431 | BV174: 0 | BW174: 424 | BX174: 272 | BY174: 159 | BZ174: 132 | CA174: 109 | CB174: 146 | CC174: 0 | CD174: 0 | CE174: 0 | CF174: 0 | CG174: 0 | CH174: 0 | CI174: 0 | CJ174: 0 | CK174: 0 | CL174: 0 | CM174: 0 | CN174: 0 | CO174: 0 | CP174: 0 | CQ174: 0 | CR174: 0 | CS174: 0 | CT174: 0 | CU174: 0 | CV174: 0 | CW174: 0 | CX174: 0 | CY174: 0 | CZ174: 0 | DA174: 0 | DB174: 0 | DC174: 0 | DD174: 0 | DE174: 0 | DF174: 0 | DG174: 0 | DH174: 0 | DI174: 0 | DJ174: 0 | DK174: 0 | DL174: 0 | DM174: 0 | DN174: 0 | DO174: 0 | DP174: 0 | DQ174: 0 | DR174: 0 | DS174: 0 | DT174: 0 | DU174: 0 | DV174: 0 | DW174: 0 | DX174: 0 | DY174: 0 | DZ174: 0 | EA174: 0 | EB174: 0 | EC174: 0 | ED174: 0 | EE174: 0 | EF174: 0 | EG174: 0 | EH174: 0 | EI174: 0 | EJ174: 0 | EK174: 0 | EL174: 0 | EM174: 0 | EN174: 0 | EO174: 0 | EP174: 0 | EQ174: 0 | ER174: 0 | ES174: 0 | ET174: 0 | EU174: 0 | EV174: 0 | EW174: 0 | EX174: 0 | EY174: 0 | EZ174: 0 | FA174: 0 | FB174: 0 | FC174: 0 | FD174: 0 | FE174: 0 | FF174: 0 | FG174: 0 | FH174: 0 | FI174: 0 | FJ174: 0 | FK174: 0 | FL174: 0 | FM174: 0 | FN174: 0 | FO174: 0 | FP174: 0 | FQ174: 0 | FR174: 0 | FS174: 0 | FT174: 0 | FU174: 0 | FV174: 0 | FW174: 0 | FX174: 0 | FY174: 0 | FZ174: 0 | GA174: 0 | GB174: 0 | GC174: 0 | GD174: 0 | GE174: 0 | GF174: 0 | GG174: 0 | GH174: 0 | GI174: 0 | GJ174: 0 | GK174: 0 | GL174: 0 | GM174: 0 | GN174: 0 | GO174: 0 | GP174: 0 | GQ174: 0 | GR174: 0 | GS174: 0 | GT174: 0 | GU174: 0 | GV174: 0 | GW174: 0 | GX174: 0 | GY174: 0 | GZ174: 0 | HA174: 0 | HB174: 0 | HC174: 0 | HD174: 0 | HE174: 0 | HF174: 0 | HG174: 0 | HH174: 0 | HI174: 0 | HJ174: 0 | HK174: 0 | HL174: 0 | HM174: 0 | HN174: 0 | HO174: 0 | HP174: 0 | HQ174: 0 | HR174: 0 | HS174: 0 | HT174: 0 | HU174: 0 | HV174: 0 | HW174: 0
A175: T | B175: 279 | C175: 336 | D175: 296 | E175: 256 | F175: 223 | G175: 52 | H175: 35 | I175: 50 | J175: 54 | K175: 321 | L175: 307 | M175: 366 | N175: 317 | O175: 273 | P175: 246 | Q175: 71 | R175: 63 | S175: 70 | T175: 80 | U175: 407 | V175: 2 | W175: 501 | X175: 443 | Y175: 370 | Z175: 66 | AA175: 5 | AB175: 2 | AC175: 627 | AD175: 501 | AE175: 677 | AF175: 443 | AG175: 750 | AH175: 370 | AI175: 4219 | AJ175: 66 | AK175: 626 | AL175: 2196 | AM175: 1318 | AN175: 794 | AO175: 619 | AP175: 520 | AQ175: 791 | AR175: 912 | AS175: 274 | AT175: 158 | AU175: 2196 | AV175: 1318 | AW175: 794 | AX175: 619 | AY175: 520 | AZ175: 791 | BA175: 3081 | BB175: 2196 | BC175: 1318 | BD175: 794 | BE175: 619 | BF175: 520 | BG175: 791 | BH175: 865 | BI175: 2386 | BJ175: 1321 | BK175: 795 | BL175: 623 | BM175: 556 | BN175: 873 | BO175: 0 | BP175: 5437 | BQ175: 5414 | BR175: 5414 | BS175: 5414 | BT175: 2299 | BU175: 2002 | BV175: 0 | BW175: 2210 | BX175: 1338 | BY175: 893 | BZ175: 668 | CA175: 553 | CB175: 792 | CC175: 0 | CD175: 0 | CE175: 0 | CF175: 0 | CG175: 0 | CH175: 0 | CI175: 0 | CJ175: 0 | CK175: 0 | CL175: 0 | CM175: 0 | CN175: 0 | CO175: 0 | CP175: 0 | CQ175: 0 | CR175: 0 | CS175: 0 | CT175: 0 | CU175: 0 | CV175: 0 | CW175: 0 | CX175: 0 | CY175: 0 | CZ175: 0 | DA175: 0 | DB175: 0 | DC175: 0 | DD175: 0 | DE175: 0 | DF175: 0 | DG175: 0 | DH175: 0 | DI175: 0 | DJ175: 0 | DK175: 0 | DL175: 0 | DM175: 0 | DN175: 0 | DO175: 0 | DP175: 0 | DQ175: 0 | DR175: 0 | DS175: 0 | DT175: 0 | DU175: 0 | DV175: 0 | DW175: 0 | DX175: 0 | DY175: 0 | DZ175: 0 | EA175: 0 | EB175: 0 | EC175: 0 | ED175: 0 | EE175: 0 | EF175: 0 | EG175: 0 | EH175: 0 | EI175: 0 | EJ175: 0 | EK175: 0 | EL175: 0 | EM175: 0 | EN175: 0 | EO175: 0 | EP175: 0 | EQ175: 0 | ER175: 0 | ES175: 0 | ET175: 0 | EU175: 0 | EV175: 0 | EW175: 0 | EX175: 0 | EY175: 0 | EZ175: 0 | FA175: 0 | FB175: 0 | FC175: 0 | FD175: 0 | FE175: 0 | FF175: 0 | FG175: 0 | FH175: 0 | FI175: 0 | FJ175: 0 | FK175: 0 | FL175: 0 | FM175: 0 | FN175: 0 | FO175: 0 | FP175: 0 | FQ175: 0 | FR175: 0 | FS175: 0 | FT175: 0 | FU175: 0 | FV175: 0 | FW175: 0 | FX175: 0 | FY175: 0 | FZ175: 0 | GA175: 0 | GB175: 0 | GC175: 0 | GD175: 0 | GE175: 0 | GF175: 0 | GG175: 0 | GH175: 0 | GI175: 0 | GJ175: 0 | GK175: 0 | GL175: 0 | GM175: 0 | GN175: 0 | GO175: 0 | GP175: 0 | GQ175: 0 | GR175: 0 | GS175: 0 | GT175: 0 | GU175: 0 | GV175: 0 | GW175: 0 | GX175: 0 | GY175: 0 | GZ175: 0 | HA175: 0 | HB175: 0 | HC175: 0 | HD175: 0 | HE175: 0 | HF175: 0 | HG175: 0 | HH175: 0 | HI175: 0 | HJ175: 0 | HK175: 0 | HL175: 0 | HM175: 0 | HN175: 0 | HO175: 0 | HP175: 0 | HQ175: 0 | HR175: 0 | HS175: 0 | HT175: 0 | HU175: 0 | HV175: 0 | HW175: 0
A188: TOTAL
A189: =COUNT(A170:A186) -> 5 | B189: =SUM(B170:B186) -> 558 | C189: =SUM(C170:C186) -> 672 | D189: 592 | E189: 512 | F189: 446 | G189: 104 | H189: 70 | I189: 100 | J189: 108 | K189: 642 | L189: 614 | M189: 732 | N189: 634 | O189: 546 | P189: 492 | Q189: 142 | R189: 126 | S189: 140 | T189: 160 | U189: 814 | V189: 4 | W189: 1002 | X189: 886 | Y189: 740 | Z189: 132 | AA189: 10 | AB189: 4 | AC189: 1254 | AD189: 1002 | AE189: 1354 | AF189: 886 | AG189: 1500 | AH189: 740 | AI189: 8438 | AJ189: 132 | AK189: 1252 | AL189: 4392 | AM189: 2636 | AN189: 1588 | AO189: 1238 | AP189: 1040 | AQ189: 1582 | AR189: 1824 | AS189: 548 | AT189: 316 | AU189: 4392 | AV189: 2636 | AW189: 1588 | AX189: 1238 | AY189: 1040 | AZ189: 1582 | BA189: 6162 | BB189: 4392 | BC189: 2636 | BD189: 1588 | BE189: 1238 | BF189: 1040 | BG189: 1582 | BH189: 1730 | BI189: 4772 | BJ189: 2642 | BK189: 1590 | BL189: 1246 | BM189: 1112 | BN189: 1746 | BO189: =SUM(BO170:BO186) -> 0 | BP189: 10874 | BQ189: 10828 | BR189: 10828 | BS189: 10828 | BT189: 4598 | BU189: 4004 | BV189: 0 | BW189: 4420 | BX189: 2676 | BY189: 1786 | BZ189: 1336 | CA189: 1106 | CB189: 1584 | CC189: 0 | CD189: 0 | CE189: 0 | CF189: 0 | CG189: 0 | CH189: 0 | CI189: 0 | CJ189: 0 | CK189: 0 | CL189: 0 | CM189: 0 | CN189: 0 | CO189: 0 | CP189: 0 | CQ189: 0 | CR189: 0 | CS189: 0 | CT189: 0 | CU189: 0 | CV189: 0 | CW189: 0 | CX189: 0 | CY189: 0 | CZ189: 0 | DA189: 0 | DB189: 0 | DC189: 0 | DD189: 0 | DE189: 0 | DF189: 0 | DG189: 0 | DH189: 0 | DI189: 0 | DJ189: 0 | DK189: 0 | DL189: 0 | DM189: 0 | DN189: 0 | DO189: 0 | DP189: 0 | DQ189: 0 | DR189: 0 | DS189: 0 | DT189: 0 | DU189: 0 | DV189: 0 | DW189: 0 | DX189: 0 | DY189: 0 | DZ189: 0 | EA189: =SUM(EA170:EA186) -> 0 | EB189: 0 | EC189: 0 | ED189: 0 | EE189: 0 | EF189: 0 | EG189: 0 | EH189: 0 | EI189: 0 | EJ189: 0 | EK189: 0 | EL189: 0 | EM189: 0 | EN189: 0 | EO189: 0 | EP189: 0 | EQ189: 0 | ER189: 0 | ES189: 0 | ET189: 0 | EU189: 0 | EV189: 0 | EW189: 0 | EX189: 0 | EY189: 0 | EZ189: 0 | FA189: 0 | FB189: 0 | FC189: 0 | FD189: 0 | FE189: 0 | FF189: 0 | FG189: 0 | FH189: 0 | FI189: 0 | FJ189: 0 | FK189: 0 | FL189: 0 | FM189: 0 | FN189: 0 | FO189: 0 | FP189: 0 | FQ189: 0 | FR189: 0 | FS189: 0 | FT189: 0 | FU189: 0 | FV189: 0 | FW189: 0 | FX189: 0 | FY189: 0 | FZ189: 0 | GA189: 0 | GB189: 0 | GC189: 0 | GD189: 0 | GE189: 0 | GF189: 0 | GG189: 0 | GH189: 0 | GI189: 0 | GJ189: 0 | GK189: 0 | GL189: 0 | GM189: =SUM(GM170:GM186) -> 0 | GN189: 0 | GO189: 0 | GP189: 0 | GQ189: 0 | GR189: 0 | GS189: 0 | GT189: 0 | GU189: 0 | GV189: 0 | GW189: 0 | GX189: 0 | GY189: 0 | GZ189: 0 | HA189: 0 | HB189: 0 | HC189: 0 | HD189: 0 | HE189: 0 | HF189: 0 | HG189: 0 | HH189: 0 | HI189: 0 | HJ189: 0 | HK189: 0 | HL189: 0 | HM189: 0 | HN189: 0 | HO189: 0 | HP189: 0 | HQ189: 0 | HR189: 0 | HS189: 0 | HT189: 0 | HU189: 0 | HV189: 0 | HW189: 0
A190: =CONCATENATE(A170,"-",A171,"-",A172,"-",A173,"-",A174,"-",A175,"-",A176,"-",A177,"-",A178,"-",A179,"-",A180,"-",A181) -> 1-2-3-4-5-T------
B191: BAS001 | C191: BAS002 | D191: BAS003 | E191: BAS004 | F191: BAS005 | G191: BAS006 | H191: BAS007 | I191: BAS008 | J191: BAS009 | K191: BAS010 | L191: BAS011 | M191: BAS012 | N191: BAS013 | O191: BAS014 | P191: BAS015 | Q191: BAS016 | R191: BAS017 | S191: BAS018 | T191: BAS019 | U191: BAS020 | V191: BAS021 | W191: BAS022 | X191: BAS023 | Y191: BAS024 | Z191: BAS025 | AA191: BAS026 | AB191: BAS027 | AC191: BAS028 | AD191: BAS029 | AE191: BAS030 | AF191: BAS031 | AG191: BAS032 | AH191: BAS033 | AI191: BAS034 | AJ191: BAS035 | AK191: BAS036 | AL191: BAS037 | AM191: BAS038 | AN191: BAS039 | AO191: BAS040 | AP191: BAS041 | AQ191: BAS042 | AR191: BAS043 | AS191: BAS044 | AT191: BAS045 | AU191: BAS046 | AV191: BAS047 | AW191: BAS048 | AX191: BAS049 | AY191: BAS050 | AZ191: BAS051 | BA191: BAS052 | BB191: BAS053 | BC191: BAS054 | BD191: BAS055 | BE191: BAS056 | BF191: BAS057 | BG191: BAS058 | BH191: BAS059 | BI191: BAS060 | BJ191: BAS061 | BK191: BAS062 | BL191: BAS063 | BM191: BAS064 | BN191: BAS065 | BO191: BAS066 | BP191: BAS067 | BQ191: BAS068 | BR191: BAS069 | BS191: BAS070 | BT191: BAS071 | BU191: BAS072 | BV191: BAS073 | BW191: BAS074 | BX191: BAS075 | BY191: BAS076 | BZ191: BAS077 | CA191: BAS078 | CB191: BAS079 | CC191: BAS080 | CD191: BAS081 | CE191: BAS082 | CF191: BAS083 | CG191: BAS084 | CH191: BAS085 | CI191: BAS086 | CJ191: BAS087 | CK191: BAS088 | CL191: BAS089 | CM191: BAS090 | CN191: BAS091 | CO191: BAS092 | CP191: BAS093 | CQ191: BAS094 | CR191: BAS095 | CS191: BAS096 | CT191: BAS097 | CU191: BAS098 | CV191: BAS099 | CW191: BAS100 | CX191: BAS101 | CY191: BAS102 | CZ191: BAS103 | DA191: BAS104 | DB191: BAS105 | DC191: BAS106 | DD191: BAS107 | DE191: BAS108 | DF191: BAS109 | DG191: BAS110 | DH191: BAS111 | DI191: BAS112 | DJ191: BAS113 | DK191: BAS114 | DL191: BAS115 | DM191: BAS116 | DN191: BAS117 | DO191: BAS118 | DP191: BAS119 | DQ191: BAS120 | DR191: BAS121 | DS191: BAS122 | DT191: BAS123 | DU191: BAS124 | DV191: BAS125 | DW191: BAS126 | DX191: BAS127 | DY191: BAS128 | DZ191: BAS129 | EA191: BAS130 | EB191: BAS131 | EC191: BAS132 | ED191: BAS133 | EE191: BAS134 | EF191: BAS135 | EG191: BAS136 | EH191: BAS137 | EI191: BAS138 | EJ191: BAS139 | EK191: BAS140 | EL191: BAS141 | EM191: BAS142 | EN191: BAS143 | EO191: BAS144 | EP191: BAS145 | EQ191: BAS146 | ER191: BAS147 | ES191: BAS148 | ET191: BAS149 | EU191: BAS150 | EV191: BAS151 | EW191: BAS152 | EX191: BAS153 | EY191: BAS154 | EZ191: BAS155 | FA191: BAS156 | FB191: BAS157 | FC191: BAS158 | FD191: BAS159 | FE191: BAS160 | FF191: BAS161 | FG191: BAS162 | FH191: BAS163 | FI191: BAS164 | FJ191: BAS165 | FK191: BAS166 | FL191: BAS167 | FM191: BAS168 | FN191: BAS169 | FO191: BAS170 | FP191: BAS171 | FQ191: BAS172 | FR191: BAS173 | FS191: BAS174 | FT191: BAS175 | FU191: BAS176 | FV191: BAS177 | FW191: BAS178 | FX191: BAS179 | FY191: BAS180 | FZ191: BAS181 | GA191: BAS182 | GB191: BAS183 | GC191: BAS184 | GD191: BAS185 | GE191: BAS186 | GF191: BAS187 | GG191: BAS188 | GH191: BAS189 | GI191: BAS190 | GJ191: BAS191 | GK191: BAS192 | GL191: BAS193 | GM191: BAS194 | GN191: BAS195 | GO191: BAS196 | GP191: BAS197 | GQ191: BAS198 | GR191: BAS199 | GS191: BAS200 | GT191: BAS201 | GU191: BAS202 | GV191: BAS203 | GW191: BAS204 | GX191: BAS205 | GY191: BAS206 | GZ191: BAS207 | HA191: BAS208 | HB191: BAS209 | HC191: BAS210 | HD191: BAS211 | HE191: BAS212 | HF191: BAS213 | HG191: BAS214 | HH191: BAS215 | HI191: BAS216 | HJ191: BAS217 | HK191: BAS218 | HL191: BAS219 | HM191: BAS220 | HN191: BAS221 | HO191: BAS222 | HP191: BAS223 | HQ191: BAS224 | HR191: BAS225 | HS191: BAS226 | HT191: BAS227 | HU191: BAS228 | HV191: BAS229 | HW191: BAS230
B192: =IF(B191=B169,"SI","NO") -> SI | C192: =IF(C191=C169,"SI","NO") -> SI | D192: SI | E192: SI | F192: SI | G192: SI | H192: SI | I192: SI | J192: SI | K192: SI | L192: SI | M192: SI | N192: SI | O192: SI | P192: SI | Q192: SI | R192: SI | S192: SI | T192: SI | U192: SI | V192: SI | W192: SI | X192: SI | Y192: SI | Z192: SI | AA192: SI | AB192: SI | AC192: SI | AD192: SI | AE192: SI | AF192: SI | AG192: SI | AH192: SI | AI192: SI | AJ192: SI | AK192: SI | AL192: SI | AM192: SI | AN192: SI | AO192: SI | AP192: SI | AQ192: SI | AR192: SI | AS192: SI | AT192: SI | AU192: SI | AV192: SI | AW192: SI | AX192: SI | AY192: SI | AZ192: SI | BA192: SI | BB192: SI | BC192: SI | BD192: SI | BE192: SI | BF192: SI | BG192: SI | BH192: SI | BI192: SI | BJ192: SI | BK192: SI | BL192: SI | BM192: SI | BN192: SI | BO192: =IF(BO191=BO169,"SI","NO") -> SI | BP192: SI | BQ192: SI | BR192: SI | BS192: SI | BT192: SI | BU192: SI | BV192: SI | BW192: SI | BX192: SI | BY192: SI | BZ192: SI | CA192: SI | CB192: SI | CC192: SI | CD192: SI | CE192: SI | CF192: SI | CG192: SI | CH192: SI | CI192: SI | CJ192: SI | CK192: SI | CL192: SI | CM192: SI | CN192: SI | CO192: SI | CP192: SI | CQ192: SI | CR192: SI | CS192: SI | CT192: SI | CU192: SI | CV192: SI | CW192: SI | CX192: SI | CY192: SI | CZ192: SI | DA192: SI | DB192: SI | DC192: SI | DD192: SI | DE192: SI | DF192: SI | DG192: SI | DH192: SI | DI192: SI | DJ192: SI | DK192: SI | DL192: SI | DM192: SI | DN192: SI | DO192: SI | DP192: SI | DQ192: SI | DR192: SI | DS192: SI | DT192: SI | DU192: SI | DV192: SI | DW192: SI | DX192: SI | DY192: SI | DZ192: SI | EA192: =IF(EA191=EA169,"SI","NO") -> SI | EB192: SI | EC192: SI | ED192: SI | EE192: SI | EF192: SI | EG192: SI | EH192: SI | EI192: SI | EJ192: SI | EK192: SI | EL192: SI | EM192: SI | EN192: SI | EO192: SI | EP192: SI | EQ192: SI | ER192: SI | ES192: SI | ET192: SI | EU192: SI | EV192: SI | EW192: SI | EX192: SI | EY192: SI | EZ192: SI | FA192: SI | FB192: SI | FC192: SI | FD192: SI | FE192: SI | FF192: SI | FG192: SI | FH192: SI | FI192: SI | FJ192: SI | FK192: SI | FL192: SI | FM192: SI | FN192: SI | FO192: SI | FP192: SI | FQ192: SI | FR192: SI | FS192: SI | FT192: SI | FU192: SI | FV192: SI | FW192: SI | FX192: SI | FY192: SI | FZ192: SI | GA192: SI | GB192: SI | GC192: SI | GD192: SI | GE192: SI | GF192: SI | GG192: SI | GH192: SI | GI192: SI | GJ192: SI | GK192: SI | GL192: SI | GM192: =IF(GM191=GM169,"SI","NO") -> SI | GN192: SI | GO192: SI | GP192: SI | GQ192: SI | GR192: SI | GS192: SI | GT192: SI | GU192: SI | GV192: SI | GW192: SI | GX192: SI | GY192: SI | GZ192: SI | HA192: SI | HB192: SI | HC192: SI | HD192: SI | HE192: SI | HF192: SI | HG192: SI | HH192: SI | HI192: SI | HJ192: SI | HK192: SI | HL192: SI | HM192: SI | HN192: SI | HO192: SI | HP192: SI | HQ192: SI | HR192: SI | HS192: SI | HT192: SI | HU192: SI | HV192: SI | HW192: SI

Sheet Datos (hidden)
B9: ANO | D9: MESES | F9: COD_RED | G9: DESC_RED | H9: CONCATENAR | J9: COD_RED | K9: COD_MIC | L9: DESC_MICRO | M9: CONCATENAR | O9: COD_ESTAB | P9: DESC_ESTAB | Q9: COD_RED | R9: COD_MIC | S9: COD_PROV | T9: COD_DIST | U9: REDMIC | V9: CONCATENAR | X9: COD_PROV | Y9: DESC_PROV | Z9: CONCATENAR | AB9: COD_PROV | AC9: COD_DIST | AD9: DESC_DIST | AE9: PROVDIST | AF9: CONCATENAR
B10: 2025 | D10: 01-Enero | F10: 00 | G10: NO TIENE ASIGNADO NINGUNA RED | H10: =CONCATENATE(F10," - ",G10) -> 00 - NO TIENE ASIGNADO NINGUNA RED | J10: 00 | K10: 00 | L10: NO PERTENECE A NINGUNA MICRORED | M10: =CONCATENATE(J10,K10," - ",L10) -> 0000 - NO PERTENECE A NINGUNA MICRORED | O10: 000000000 | P10: (All) | Q10: 00 | R10: 00 | U10: =CONCATENATE(Q10,R10) -> 0000 | V10: =CONCATENATE(O10," - ",P10) -> 000000000 - (All) | X10: 00 | Y10: (All) | Z10: =CONCATENATE(X10," - ",Y10) -> 00 - (All) | AB10: 01 | AC10: 00 | AD10: (All) | AE10: =CONCATENATE(AB10,AC10) -> 0100 | AF10: =CONCATENATE(AB10,AC10," - ",AD10) -> 0100 - (All)
D11: 02-Febrero | F11: 01 | G11: CUSCO SUR | H11: =CONCATENATE(F11," - ",G11) -> 01 - CUSCO SUR | J11: 00 | K11: 99 | L11: (All) | M11: 0099 - (All) | N11: 1 | O11: 000002289 | P11: HOSPITAL DE APOYO DEPARTAMENTAL CUSCO | Q11: 00 | R11: 00 | S11: 01 | T11: 01 | U11: =CONCATENATE(Q11,R11) -> 0000 | V11: =CONCATENATE(O11," - ",P11) -> 000002289 - HOSPITAL DE APOYO DEPARTAMENTAL CUSCO | X11: 01 | Y11: CUSCO | Z11: =CONCATENATE(X11," - ",Y11) -> 01 - CUSCO | AB11: 01 | AC11: 01 | AD11: CUSCO | AE11: =CONCATENATE(AB11,AC11) -> 0101 | AF11: =CONCATENATE(AB11,AC11," - ",AD11) -> 0101 - CUSCO
D12: 03-Marzo | F12: 02 | G12: CUSCO NORTE | H12: 02 - CUSCO NORTE | J12: 01 | K12: 00 | L12: NO PERTENECE A NINGUNA MICRORED | M12: 0100 - NO PERTENECE A NINGUNA MICRORED | N12: =+N11+1 -> 2 | O12: 000002305 | P12: ANTONIO LORENA DEL CUSCO | Q12: 00 | R12: 00 | S12: 01 | T12: 06 | U12: 0000 | V12: 000002305 - ANTONIO LORENA DEL CUSCO | X12: 02 | Y12: ACOMAYO | Z12: =CONCATENATE(X12," - ",Y12) -> 02 - ACOMAYO | AB12: 01 | AC12: 02 | AD12: CCORCA | AE12: 0102 | AF12: 0102 - CCORCA
D13: 04-Abril | F13: 03 | G13: LA CONVENCION | H13: 03 - LA CONVENCION | J13: 01 | K13: 16 | L13: CUSCO | M13: 0116 - CUSCO | N13: =+N12+1 -> 3 | O13: 999999999 | P13: (All) | Q13: 00 | R13: 99 | U13: 0099 | V13: 999999999 - (All) | X13: 03 | Y13: ANTA | Z13: 03 - ANTA | AB13: 01 | AC13: 03 | AD13: POROY | AE13: 0103 | AF13: 0103 - POROY
D14: 05-Mayo | F14: 04 | G14: CANAS-CANCHIS-ESPINAR | H14: 04 - CANAS-CANCHIS-ESPINAR | J14: 01 | K14: 03 | L14: PARURO | M14: 0103 - PARURO | O14: 000025210 | P14: TUPAC AMARU | Q14: 01 | R14: 00 | S14: 01 | T14: 05 | U14: 0100 | V14: 000025210 - TUPAC AMARU | X14: 04 | Y14: CALCA | Z14: 04 - CALCA | AB14: 01 | AC14: 04 | AD14: SAN JERONIMO | AE14: 0104 | AF14: 0104 - SAN JERONIMO
D15: 06-Junio | F15: 05 | G15: KIMBIRI PICHARI | H15: 05 - KIMBIRI PICHARI | J15: 01 | K15: 06 | L15: PAUCARTAMBO | M15: 0106 - PAUCARTAMBO | N15: =+N13+1 -> 4 | O15: 000000000 | P15: (All) | Q15: 01 | R15: 03 | U15: 0103 | V15: 000000000 - (All) | X15: 05 | Y15: CANAS | Z15: 05 - CANAS | AB15: 01 | AC15: 05 | AD15: SAN SEBASTIAN | AE15: 0105 | AF15: 0105 - SAN SEBASTIAN
D16: 07-Julio | F16: 06 | G16: CHUMBIVILCAS | H16: 06 - CHUMBIVILCAS | J16: 01 | K16: 12 | L16: URCOS | M16: 0112 - URCOS | O16: 000002499 | P16: PARURO | Q16: 01 | R16: 03 | S16: 10 | T16: 01 | U16: 0103 | V16: 000002499 - PARURO | X16: 06 | Y16: CANCHIS | Z16: 06 - CANCHIS | AB16: 01 | AC16: 06 | AD16: SANTIAGO | AE16: 0106 | AF16: 0106 - SANTIAGO
D17: 08-Agosto | F17: 99 | G17: (All) | H17: 99 - (All) | J17: 01 | K17: 13 | L17: ACOMAYO | M17: 0113 - ACOMAYO | N17: =+N15+1 -> 5 | O17: 000002500 | P17: ACCHA | Q17: 01 | R17: 03 | S17: 10 | T17: 02 | U17: 0103 | V17: 000002500 - ACCHA | X17: 07 | Y17: CHUMBIVILCAS | Z17: 07 - CHUMBIVILCAS | AB17: 01 | AC17: 07 | AD17: SAYLLA | AE17: 0107 | AF17: 0107 - SAYLLA
D18: 09-Setiembre | J18: 01 | K18: 15 | L18: OCONGATE | M18: 0115 - OCONGATE | N18: 6 | O18: 000002501 | P18: CCAPI | Q18: 01 | R18: 03 | S18: 10 | T18: 03 | U18: 0103 | V18: 000002501 - CCAPI | X18: 08 | Y18: ESPINAR | Z18: 08 - ESPINAR | AB18: 01 | AC18: 08 | AD18: WANCHAQ | AE18: 0108 | AF18: 0108 - WANCHAQ
D19: 10-Octubre | J19: 01 | K19: 99 | L19: (All) | M19: 0199 - (All) | N19: 7 | O19: 000002502 | P19: CCOYABAMBA | Q19: 01 | R19: 03 | S19: 10 | T19: 03 | U19: 0103 | V19: 000002502 - CCOYABAMBA | X19: 09 | Y19: LA CONVENCION | Z19: 09 - LA CONVENCION | AB19: 02 | AC19: 00 | AD19: (All) | AE19: 0200 | AF19: 0200 - (All)
D20: 11-Noviembre | F20: EJECUTORAS | J20: 02 | K20: 01 | L20: BELEMPAMPA | M20: 0201 - BELEMPAMPA | N20: 8 | O20: 000002503 | P20: COLCHA | Q20: 01 | R20: 03 | S20: 10 | T20: 04 | U20: 0103 | V20: 000002503 - COLCHA | X20: 10 | Y20: PARURO | Z20: 10 - PARURO | AB20: 02 | AC20: 01 | AD20: ACOMAYO | AE20: 0201 | AF20: 0201 - ACOMAYO
D21: 12-Diciembre | F21: COD_RED | G21: DESC_RED | H21: CONCATENAR | J21: 02 | K21: 02 | L21: WANCHAQ | M21: 0202 - WANCHAQ | N21: 9 | O21: 000006978 | P21: CCOCHIRIHUAY | Q21: 01 | R21: 03 | S21: 10 | T21: 04 | U21: 0103 | V21: 000006978 - CCOCHIRIHUAY | X21: 11 | Y21: PAUCARTAMBO | Z21: 11 - PAUCARTAMBO | AB21: 02 | AC21: 02 | AD21: ACOPIA | AE21: 0202 | AF21: 0202 - ACOPIA
F22: 01 | G22: HOSPITAL REGIONAL CUSCO | H22: =CONCATENATE(F22," - ",G22) -> 01 - HOSPITAL REGIONAL CUSCO | J22: 02 | K22: 03 | L22: ANTA | M22: 0203 - ANTA | N22: 10 | O22: 000002504 | P22: HUANOQUITE | Q22: 01 | R22: 03 | S22: 10 | T22: 05 | U22: 0103 | V22: 000002504 - HUANOQUITE | X22: 12 | Y22: QUISPICANCHI | Z22: 12 - QUISPICANCHI | AB22: 02 | AC22: 03 | AD22: ACOS | AE22: 0203 | AF22: 0203 - ACOS
F23: 02 | G23: HOSPITAL ANTONIO LORENA | H23: =CONCATENATE(F23," - ",G23) -> 02 - HOSPITAL ANTONIO LORENA | J23: 02 | K23: 04 | L23: LIMATAMBO | M23: 0204 - LIMATAMBO | N23: 11 | O23: 000002505 | P23: OMACHA | Q23: 01 | R23: 03 | S23: 10 | T23: 06 | U23: 0103 | V23: 000002505 - OMACHA | X23: 13 | Y23: URUBAMBA | Z23: 13 - URUBAMBA | AB23: 02 | AC23: 04 | AD23: MOSOC LLACTA | AE23: 0204 | AF23: 0204 - MOSOC LLACTA
F24: 03 | G24: CUSCO NORTE | H24: 03 - CUSCO NORTE | J24: 02 | K24: 05 | L24: PISAC | M24: 0205 - PISAC | N24: 12 | O24: 000002506 | P24: ANTAPALLPA | Q24: 01 | R24: 03 | S24: 10 | T24: 06 | U24: 0103 | V24: 000002506 - ANTAPALLPA | AB24: 02 | AC24: 05 | AD24: POMACANCHI | AE24: 0205 | AF24: 0205 - POMACANCHI
F25: 04 | G25: CUSCO SUR | H25: 04 - CUSCO SUR | J25: 02 | K25: 06 | L25: CALCA | M25: 0206 - CALCA | N25: 13 | O25: 000007147 | P25: PUESTO DE SALUD DE HUASQUILLAY | Q25: 01 | R25: 03 | S25: 10 | T25: 06 | U25: 0103 | V25: 000007147 - PUESTO DE SALUD DE HUASQUILLAY | AB25: 02 | AC25: 06 | AD25: RONDOCAN | AE25: 0206 | AF25: 0206 - RONDOCAN
F26: 05 | G26: LA CONVENCION | H26: 05 - LA CONVENCION | J26: 02 | K26: 07 | L26: URUBAMBA | M26: 0207 - URUBAMBA | N26: 14 | O26: 000012924 | P26: SAHUA SAHUA | Q26: 01 | R26: 03 | S26: 10 | T26: 06 | U26: 0103 | V26: 000012924 - SAHUA SAHUA | AB26: 02 | AC26: 07 | AD26: SANGARARA | AE26: 0207 | AF26: 0207 - SANGARARA
F27: 06 | G27: HOSPITAL QUILLABAMBA | H27: 06 - HOSPITAL QUILLABAMBA | J27: 02 | K27: 08 | L27: YANATILE | M27: 0208 - YANATILE | N27: 15 | O27: 000002507 | P27: PACCARECTAMBO | Q27: 01 | R27: 03 | S27: 10 | T27: 07 | U27: 0103 | V27: 000002507 - PACCARECTAMBO | AB27: 03 | AC27: 00 | AD27: (All) | AE27: 0300 | AF27: 0300 - (All)
F28: 07 | G28: CANAS CANCHIS ESPINAR | H28: 07 - CANAS CANCHIS ESPINAR | J28: 02 | K28: 09 | L28: SIETE CUARTONES | M28: 0209 - SIETE CUARTONES | N28: 16 | O28: 000002509 | P28: YAURISQUE | Q28: 01 | R28: 03 | S28: 10 | T28: 09 | U28: 0103 | V28: 000002509 - YAURISQUE | AB28: 03 | AC28: 01 | AD28: ANTA | AE28: 0301 | AF28: 0301 - ANTA
F29: 08 | G29: HOSPITAL SICUANI | H29: 08 - HOSPITAL SICUANI | J29: 02 | K29: 99 | L29: (All) | M29: 0299 - (All) | N29: 17 | O29: 000000000 | P29: (All) | Q29: 01 | R29: 06 | U29: 0106 | V29: 000000000 - (All) | AB29: 03 | AC29: 02 | AD29: ANCAHUASI | AE29: 0302 | AF29: 0302 - ANCAHUASI
F30: 09 | G30: HOSPITAL ESPINAR | H30: 09 - HOSPITAL ESPINAR | J30: 03 | K30: 00 | L30: NO PERTENECE A NINGUNA MICRORED | M30: 0300 - NO PERTENECE A NINGUNA MICRORED | O30: 000002520 | P30: HUANCARANI | Q30: 01 | R30: 06 | S30: 11 | T30: 05 | U30: 0106 | V30: 000002520 - HUANCARANI | AB30: 03 | AC30: 03 | AD30: CACHIMAYO | AE30: 0303 | AF30: 0303 - CACHIMAYO
F31: 10 | G31: KIMBIRI PICHARI | H31: 10 - KIMBIRI PICHARI | J31: 03 | K31: 01 | L31: SANTA ANA | M31: 0301 - SANTA ANA | N31: =+N29+1 -> 18 | O31: 000002521 | P31: PILCOPATA | Q31: 01 | R31: 06 | S31: 11 | T31: 06 | U31: 0106 | V31: 000002521 - PILCOPATA | AB31: 03 | AC31: 04 | AD31: CHINCHAYPUJIO | AE31: 0304 | AF31: 0304 - CHINCHAYPUJIO
F32: 11 | G32: CHUMBIVILCAS | H32: 11 - CHUMBIVILCAS | J32: 03 | K32: 02 | L32: MARANURA | M32: 0302 - MARANURA | N32: 19 | O32: 000002522 | P32: PATRIA | Q32: 01 | R32: 06 | S32: 11 | T32: 06 | U32: 0106 | V32: 000002522 - PATRIA | AB32: 03 | AC32: 05 | AD32: HUAROCONDO | AE32: 0305 | AF32: 0305 - HUAROCONDO
F33: 99 | G33: (ALL) | H33: =CONCATENATE(F33," - ",G33) -> 99 - (ALL) | J33: 03 | K33: 03 | L33: QUELLOUNO | M33: 0303 - QUELLOUNO | N33: 20 | O33: 000002510 | P33: PAUCARTAMBO | Q33: 01 | R33: 06 | S33: 11 | T33: 01 | U33: 0106 | V33: 000002510 - PAUCARTAMBO | AB33: 03 | AC33: 06 | AD33: LIMATAMBO | AE33: 0306 | AF33: 0306 - LIMATAMBO
J34: 03 | K34: 04 | L34: KITENI | M34: 0304 - KITENI | N34: 21 | O34: 000002511 | P34: MOLLOMARCA | Q34: 01 | R34: 06 | S34: 11 | T34: 01 | U34: 0106 | V34: 000002511 - MOLLOMARCA | AB34: 03 | AC34: 07 | AD34: MOLLEPATA | AE34: 0307 | AF34: 0307 - MOLLEPATA
J35: 03 | K35: 05 | L35: KAMISEA | M35: 0305 - KAMISEA | N35: 22 | O35: 000010077 | P35: PAUCARTAMBO -ESSALUD | Q35: 01 | R35: 06 | S35: 11 | T35: 01 | U35: 0106 | V35: 000010077 - PAUCARTAMBO -ESSALUD | AB35: 03 | AC35: 08 | AD35: PUCYURA | AE35: 0308 | AF35: 0308 - PUCYURA
F36: SECTORES | J36: 03 | K36: 06 | L36: PUCYURA | M36: 0306 - PUCYURA | N36: 23 | O36: 000033777 | P36: MENTAL COMUNITARIO VIRGEN DEL ROSARIO | Q36: 01 | R36: 06 | S36: 11 | T36: 01 | U36: 0106 | V36: 000033777 - MENTAL COMUNITARIO VIRGEN DEL ROSARIO | AB36: 03 | AC36: 09 | AD36: ZURITE | AE36: 0309 | AF36: 0309 - ZURITE
F37: COD_SECTOR | G37: DESC_RED | H37: CONCATENAR | J37: 03 | K37: 07 | L37: PALMA REAL | M37: 0307 - PALMA REAL | N37: 24 | O37: 000002512 | P37: CAICAY | Q37: 01 | R37: 06 | S37: 11 | T37: 02 | U37: 0106 | V37: 000002512 - CAICAY | AB37: 04 | AC37: 00 | AD37: (All) | AE37: 0400 | AF37: 0400 - (All)
F38: 1 | G38: GORE | H38: =CONCATENATE(F38," - ",G38) -> 1 - GORE | J38: 03 | K38: 99 | L38: (All) | M38: 0399 - (All) | N38: 25 | O38: 000002513 | P38: HUASAC | Q38: 01 | R38: 06 | S38: 11 | T38: 02 | U38: 0106 | V38: 000002513 - HUASAC | AB38: 04 | AC38: 01 | AD38: CALCA | AE38: 0401 | AF38: 0401 - CALCA
F39: 2 | G39: ESSALUD | H39: =CONCATENATE(F39," - ",G39) -> 2 - ESSALUD | J39: 04 | K39: 00 | L39: NO PERTENECE A NINGUNA MICRORED | M39: 0400 - NO PERTENECE A NINGUNA MICRORED | N39: 26 | O39: 000002514 | P39: CHALLABAMBA | Q39: 01 | R39: 06 | S39: 11 | T39: 03 | U39: 0106 | V39: 000002514 - CHALLABAMBA | AB39: 04 | AC39: 02 | AD39: COYA | AE39: 0402 | AF39: 0402 - COYA
F40: 3 | G40: OTROS | H40: =CONCATENATE(F40," - ",G40) -> 3 - OTROS | J40: 04 | K40: 01 | L40: YANAOCA | M40: 0401 - YANAOCA | N40: 27 | O40: 000002516 | P40: COLQUEPATA | Q40: 01 | R40: 06 | S40: 11 | T40: 04 | U40: 0106 | V40: 000002516 - COLQUEPATA | AB40: 04 | AC40: 03 | AD40: LAMAY | AE40: 0403 | AF40: 0403 - LAMAY
F41: 99 | G41: (ALL) | H41: =CONCATENATE(F41," - ",G41) -> 99 - (ALL) | J41: 04 | K41: 02 | L41: EL DESCANSO | M41: 0402 - EL DESCANSO | N41: 28 | O41: 000002517 | P41: PICHIHUA COLQUEPATA | Q41: 01 | R41: 06 | S41: 11 | T41: 04 | U41: 0106 | V41: 000002517 - PICHIHUA COLQUEPATA | AB41: 04 | AC41: 04 | AD41: LARES | AE41: 0404 | AF41: 0404 - LARES
J42: 04 | K42: 03 | L42: COMBAPATA | M42: 0403 - COMBAPATA | N42: 29 | O42: 000002518 | P42: VIZCOCHONI | Q42: 01 | R42: 06 | S42: 11 | T42: 04 | U42: 0106 | V42: 000002518 - VIZCOCHONI | AB42: 04 | AC42: 05 | AD42: PISAC | AE42: 0405 | AF42: 0405 - PISAC
J43: 04 | K43: 04 | L43: TECHO OBRERO | M43: 0404 - TECHO OBRERO | N43: 30 | O43: 000002519 | P43: AYRE | Q43: 01 | R43: 06 | S43: 11 | T43: 04 | U43: 0106 | V43: 000002519 - AYRE | AB43: 04 | AC43: 06 | AD43: SAN SALVADOR | AE43: 0406 | AF43: 0406 - SAN SALVADOR
J44: 04 | K44: 05 | L44: PAMPAPHALLA | M44: 0405 - PAMPAPHALLA | N44: 31 | O44: 000006979 | P44: TOCRA | Q44: 01 | R44: 06 | S44: 11 | T44: 04 | U44: 0106 | V44: 000006979 - TOCRA | AB44: 04 | AC44: 07 | AD44: TARAY | AE44: 0407 | AF44: 0407 - TARAY
J45: 04 | K45: 06 | L45: YAURI | M45: 0406 - YAURI | N45: 32 | O45: 000000000 | P45: (All) | Q45: 01 | R45: 12 | U45: 0112 | V45: 000000000 - (All) | AB45: 04 | AC45: 08 | AD45: YANATILE | AE45: 0408 | AF45: 0408 - YANATILE
J46: 04 | K46: 99 | L46: (All) | M46: 0499 - (All) | O46: 000002523 | P46: URCOS | Q46: 01 | R46: 12 | S46: 12 | T46: 01 | U46: 0112 | V46: 000002523 - URCOS | AB46: 05 | AC46: 00 | AD46: (All) | AE46: 0500 | AF46: 0500 - (All)
J47: 05 | K47: 00 | L47: NO PERTENECE A NINGUNA MICRORED | M47: 0500 - NO PERTENECE A NINGUNA MICRORED | N47: =+N45+1 -> 33 | O47: 000026385 | P47: ESSALUD-URCOS | Q47: 01 | R47: 12 | S47: 12 | T47: 01 | U47: 0112 | V47: 000026385 - ESSALUD-URCOS | AB47: 05 | AC47: 01 | AD47: YANAOCA | AE47: 0501 | AF47: 0501 - YANAOCA
J48: 05 | K48: 01 | L48: KIMBIRI | M48: 0501 - KIMBIRI | N48: 34 | O48: 000002525 | P48: ANDAHUAYLILLAS | Q48: 01 | R48: 12 | S48: 12 | T48: 02 | U48: 0112 | V48: 000002525 - ANDAHUAYLILLAS | AB48: 05 | AC48: 02 | AD48: CHECCA | AE48: 0502 | AF48: 0502 - CHECCA
J49: 05 | K49: 02 | L49: PICHARI | M49: 0502 - PICHARI | N49: 35 | O49: 000008911 | P49: HUARA HUARA | Q49: 01 | R49: 12 | S49: 12 | T49: 05 | U49: 0112 | V49: 000008911 - HUARA HUARA | AB49: 05 | AC49: 03 | AD49: KUNTURKANKI | AE49: 0503 | AF49: 0503 - KUNTURKANKI
J50: 05 | K50: 99 | L50: (All) | M50: 0599 - (All) | N50: 36 | O50: 000002530 | P50: CUSIPATA | Q50: 01 | R50: 12 | S50: 12 | T50: 06 | U50: 0112 | V50: 000002530 - CUSIPATA | AB50: 05 | AC50: 04 | AD50: LANGUI | AE50: 0504 | AF50: 0504 - LANGUI
J51: 06 | K51: 00 | L51: NO PERTENECE A NINGUNA MICRORED | M51: 0600 - NO PERTENECE A NINGUNA MICRORED | N51: 37 | O51: 000006980 | P51: CHILLIHUANI | Q51: 01 | R51: 12 | S51: 12 | T51: 06 | U51: 0112 | V51: 000006980 - CHILLIHUANI | AB51: 05 | AC51: 05 | AD51: LAYO | AE51: 0505 | AF51: 0505 - LAYO
J52: 06 | K52: 09 | L52: SANTO TOMAS | M52: 0609 - SANTO TOMAS | N52: 38 | O52: 000002532 | P52: HUARO | Q52: 01 | R52: 12 | S52: 12 | T52: 07 | U52: 0112 | V52: 000002532 - HUARO | AB52: 05 | AC52: 06 | AD52: PAMPAMARCA | AE52: 0506 | AF52: 0506 - PAMPAMARCA
J53: 06 | K53: 01 | L53: LIVITACA | M53: 0601 - LIVITACA | N53: 39 | O53: 000002533 | P53: URPAY | Q53: 01 | R53: 12 | S53: 12 | T53: 07 | U53: 0112 | V53: 000002533 - URPAY | AB53: 05 | AC53: 07 | AD53: QUEHUE | AE53: 0507 | AF53: 0507 - QUEHUE
J54: 06 | K54: 99 | L54: (All) | M54: 0699 - (All) | N54: 40 | O54: 000011747 | P54: POSTA MEDICA POLICIAL PUCUTO | Q54: 01 | R54: 12 | S54: 12 | T54: 07 | U54: 0112 | V54: 000011747 - POSTA MEDICA POLICIAL PUCUTO | AB54: 05 | AC54: 08 | AD54: TUPAC AMARU | AE54: 0508 | AF54: 0508 - TUPAC AMARU
J55: 99 | K55: 99 | L55: (All) | M55: 9999 - (All) | N55: 41 | O55: 000030708 | P55: MENTAL COMUNITARIO HUARO | Q55: 01 | R55: 12 | S55: 12 | T55: 07 | U55: 0112 | V55: 000030708 - MENTAL COMUNITARIO HUARO | AB55: 06 | AC55: 00 | AD55: (All) | AE55: 0600 | AF55: 0600 - (All)
N56: 42 | O56: 000002534 | P56: LUCRE | Q56: 01 | R56: 12 | S56: 12 | T56: 08 | U56: 0112 | V56: 000002534 - LUCRE | AB56: 06 | AC56: 01 | AD56: SICUANI | AE56: 0601 | AF56: 0601 - SICUANI
N57: 43 | O57: 000002537 | P57: OROPESA | Q57: 01 | R57: 12 | S57: 12 | T57: 11 | U57: 0112 | V57: 000002537 - OROPESA | AB57: 06 | AC57: 02 | AD57: CHECACUPE | AE57: 0602 | AF57: 0602 - CHECACUPE
N58: 44 | O58: 000002538 | P58: QUIQUIJANA | Q58: 01 | R58: 12 | S58: 12 | T58: 12 | U58: 0112 | V58: 000002538 - QUIQUIJANA | AB58: 06 | AC58: 03 | AD58: COMBAPATA | AE58: 0603 | AF58: 0603 - COMBAPATA
N59: 45 | O59: 000002539 | P59: CCOLCA | Q59: 01 | R59: 12 | S59: 12 | T59: 12 | U59: 0112 | V59: 000002539 - CCOLCA | AB59: 06 | AC59: 04 | AD59: MARANGANI | AE59: 0604 | AF59: 0604 - MARANGANI
N60: 46 | O60: 000000000 | P60: (All) | Q60: 01 | R60: 13 | U60: 0113 | V60: 000000000 - (All) | AB60: 06 | AC60: 05 | AD60: PITUMARCA | AE60: 0605 | AF60: 0605 - PITUMARCA
O61: 000002317 | P61: ACOMAYO | Q61: 01 | R61: 13 | S61: 02 | T61: 01 | U61: 0113 | V61: 000002317 - ACOMAYO | AB61: 06 | AC61: 06 | AD61: SAN PABLO | AE61: 0606 | AF61: 0606 - SAN PABLO
N62: =+N60+1 -> 47 | O62: 000010076 | P62: ACOMAYO - ESSALUD | Q62: 01 | R62: 13 | S62: 02 | T62: 01 | U62: 0113 | V62: 000010076 - ACOMAYO - ESSALUD | AB62: 06 | AC62: 07 | AD62: SAN PEDRO | AE62: 0607 | AF62: 0607 - SAN PEDRO
N63: 48 | O63: 000002318 | P63: ACOPIA | Q63: 01 | R63: 13 | S63: 02 | T63: 02 | U63: 0113 | V63: 000002318 - ACOPIA | AB63: 06 | AC63: 08 | AD63: TINTA | AE63: 0608 | AF63: 0608 - TINTA
N64: 49 | O64: 000002319 | P64: ACOS | Q64: 01 | R64: 13 | S64: 02 | T64: 03 | U64: 0113 | V64: 000002319 - ACOS | AB64: 07 | AC64: 00 | AD64: (All) | AE64: 0700 | AF64: 0700 - (All)
N65: 50 | O65: 000002321 | P65: POMACANCHI | Q65: 01 | R65: 13 | S65: 02 | T65: 05 | U65: 0113 | V65: 000002321 - POMACANCHI | AB65: 07 | AC65: 01 | AD65: SANTO TOMAS | AE65: 0701 | AF65: 0701 - SANTO TOMAS
N66: 51 | O66: 000002322 | P66: SAN JUAN DE POMACANCHI | Q66: 01 | R66: 13 | S66: 02 | T66: 05 | U66: 0113 | V66: 000002322 - SAN JUAN DE POMACANCHI | AB66: 07 | AC66: 02 | AD66: CAPACMARCA | AE66: 0702 | AF66: 0702 - CAPACMARCA
N67: 52 | O67: 000012926 | P67: SANTA LUCIA | Q67: 01 | R67: 13 | S67: 02 | T67: 05 | U67: 0113 | V67: 000012926 - SANTA LUCIA | AB67: 07 | AC67: 03 | AD67: CHAMACA | AE67: 0703 | AF67: 0703 - CHAMACA
N68: 53 | O68: 000002324 | P68: PUESTO DE SALUD SANGARARA | Q68: 01 | R68: 13 | S68: 02 | T68: 07 | U68: 0113 | V68: 000002324 - PUESTO DE SALUD SANGARARA | AB68: 07 | AC68: 04 | AD68: COLQUEMARCA | AE68: 0704 | AF68: 0704 - COLQUEMARCA
N69: 54 | O69: 000002325 | P69: PUESTO DE SALUD MARCACONGA | Q69: 01 | R69: 13 | S69: 02 | T69: 07 | U69: 0113 | V69: 000002325 - PUESTO DE SALUD MARCACONGA | AB69: 07 | AC69: 05 | AD69: LIVITACA | AE69: 0705 | AF69: 0705 - LIVITACA
N70: 55 | O70: 000002508 | P70: PILLPINTO | Q70: 01 | R70: 13 | S70: 10 | T70: 08 | U70: 0113 | V70: 000002508 - PILLPINTO | AB70: 07 | AC70: 06 | AD70: LLUSCO | AE70: 0706 | AF70: 0706 - LLUSCO
N71: 56 | O71: 000000000 | P71: (All) | Q71: 01 | R71: 15 | U71: 0115 | V71: 000000000 - (All) | AB71: 07 | AC71: 07 | AD71: QUIÑOTA | AE71: 0707 | AF71: 0707 - QUIÑOTA
O72: 000002526 | P72: QUINCE MIL | Q72: 01 | R72: 15 | S72: 12 | T72: 03 | U72: 0115 | V72: 000002526 - QUINCE MIL | AB72: 07 | AC72: 08 | AD72: VELILLE | AE72: 0708 | AF72: 0708 - VELILLE
N73: =+N71+1 -> 57 | O73: 000002527 | P73: CCARHUAYO | Q73: 01 | R73: 15 | S73: 12 | T73: 04 | U73: 0115 | V73: 000002527 - CCARHUAYO | AB73: 08 | AC73: 00 | AD73: (All) | AE73: 0800 | AF73: 0800 - (All)
N74: 58 | O74: 000002524 | P74: PAMPACAMARA | Q74: 01 | R74: 15 | S74: 12 | T74: 05 | U74: 0115 | V74: 000002524 - PAMPACAMARA | AB74: 08 | AC74: 01 | AD74: ESPINAR | AE74: 0801 | AF74: 0801 - ESPINAR
N75: 59 | O75: 000002528 | P75: CCATCCA | Q75: 01 | R75: 15 | S75: 12 | T75: 05 | U75: 0115 | V75: 000002528 - CCATCCA | AB75: 08 | AC75: 02 | AD75: CONDOROMA | AE75: =CONCATENATE(AB75,AC75) -> 0802 | AF75: =CONCATENATE(AB75,AC75," - ",AD75) -> 0802 - CONDOROMA
N76: 60 | O76: 000002529 | P76: KCAURY | Q76: 01 | R76: 15 | S76: 12 | T76: 05 | U76: 0115 | V76: 000002529 - KCAURY | AB76: 08 | AC76: 03 | AD76: COPORAQUE | AE76: 0803 | AF76: 0803 - COPORAQUE
N77: =+N76+1 -> 61 | O77: 000012931 | P77: CHICHINA | Q77: 01 | R77: 15 | S77: 12 | T77: 05 | U77: 0115 | V77: 000012931 - CHICHINA | AB77: 08 | AC77: 04 | AD77: OCORURO | AE77: 0804 | AF77: 0804 - OCORURO
N78: 62 | O78: 000016335 | P78: CCAPANA | Q78: 01 | R78: 15 | S78: 12 | T78: 05 | U78: 0115 | V78: 000016335 - CCAPANA | AB78: 08 | AC78: 05 | AD78: PALLPATA | AE78: 0805 | AF78: 0805 - PALLPATA
N79: 63 | O79: 000002535 | P79: MARCAPATA | Q79: 01 | R79: 15 | S79: 12 | T79: 09 | U79: 0115 | V79: 000002535 - MARCAPATA | AB79: 08 | AC79: 06 | AD79: PICHIGUA | AE79: 0806 | AF79: 0806 - PICHIGUA
N80: 64 | O80: 000007110 | P80: INCACANCHA | Q80: 01 | R80: 15 | S80: 12 | T80: 09 | U80: =CONCATENATE(Q80,R80) -> 0115 | V80: =CONCATENATE(O80," - ",P80) -> 000007110 - INCACANCHA | AB80: 08 | AC80: 07 | AD80: SUYCKUTAMBO | AE80: 0807 | AF80: 0807 - SUYCKUTAMBO
N81: 65 | O81: 000002536 | P81: OCONGATE | Q81: 01 | R81: 15 | S81: 12 | T81: 10 | U81: 0115 | V81: 000002536 - OCONGATE | AB81: 08 | AC81: 08 | AD81: ALTO PICHIGUA | AE81: 0808 | AF81: 0808 - ALTO PICHIGUA
N82: 66 | O82: 000006977 | P82: TINKI | Q82: 01 | R82: 15 | S82: 12 | T82: 10 | U82: 0115 | V82: 000006977 - TINKI | AB82: 09 | AC82: 00 | AD82: (All) | AE82: 0900 | AF82: 0900 - (All)
N83: 67 | O83: 000000000 | P83: (All) | Q83: 01 | R83: 16 | U83: 0116 | V83: 000000000 - (All) | AB83: 09 | AC83: 01 | AD83: SANTA ANA | AE83: 0901 | AF83: 0901 - SANTA ANA
O84: 000002300 | P84: SAN JERONIMO | Q84: 01 | R84: 16 | S84: 01 | T84: 04 | U84: 0116 | V84: 000002300 - SAN JERONIMO | AB84: 09 | AC84: 02 | AD84: ECHARATE | AE84: 0902 | AF84: 0902 - ECHARATE
N85: =+N83+1 -> 68 | O85: 000007699 | P85: CONCHACALLE | Q85: 01 | R85: 16 | S85: 01 | T85: 04 | U85: 0116 | V85: 000007699 - CONCHACALLE | AB85: 09 | AC85: 03 | AD85: HUAYOPATA | AE85: 0903 | AF85: 0903 - HUAYOPATA
N86: 69 | O86: 000018926 | P86: ESTABLECIMIENTO PENITENCIARIO CUSCO VARONES | Q86: 01 | R86: 16 | S86: 01 | T86: 04 | U86: 0116 | V86: 000018926 - ESTABLECIMIENTO PENITENCIARIO CUSCO VARONES | AB86: 09 | AC86: 04 | AD86: MARANURA | AE86: 0904 | AF86: 0904 - MARANURA
N87: 70 | O87: 000021187 | P87: ESTABLECIMIENTO PENITENCIARIO CUSCO MUJERES | Q87: 01 | R87: 16 | S87: 01 | T87: 04 | U87: 0116 | V87: 000021187 - ESTABLECIMIENTO PENITENCIARIO CUSCO MUJERES | AB87: 09 | AC87: 05 | AD87: OCOBAMBA | AE87: 0905 | AF87: 0905 - OCOBAMBA
N88: 71 | O88: 000030727 | P88: PATRÓN SAN SEBASTIAN | Q88: 01 | R88: 16 | S88: 01 | T88: 04 | U88: 0116 | V88: 000030727 - PATRÓN SAN SEBASTIAN | AB88: 09 | AC88: 06 | AD88: QUELLOUNO | AE88: 0906 | AF88: 0906 - QUELLOUNO
N89: 72 | O89: 000002301 | P89: SAN SEBASTIAN | Q89: 01 | R89: 16 | S89: 01 | T89: 05 | U89: 0116 | V89: 000002301 - SAN SEBASTIAN | AB89: 09 | AC89: 07 | AD89: KIMBIRI | AE89: 0907 | AF89: 0907 - KIMBIRI
N90: 73 | O90: 000002303 | P90: SANTA ROSA | Q90: 01 | R90: 16 | S90: 01 | T90: 05 | U90: 0116 | V90: 000002303 - SANTA ROSA | AB90: 09 | AC90: 08 | AD90: SANTA TERESA | AE90: 0908 | AF90: 0908 - SANTA TERESA
N91: 74 | O91: 000010065 | P91: SAN SEBASTIAN ESSALUD | Q91: 01 | R91: 16 | S91: 01 | T91: 05 | U91: 0116 | V91: 000010065 - SAN SEBASTIAN ESSALUD | AB91: 09 | AC91: 09 | AD91: VILCABAMBA | AE91: 0909 | AF91: 0909 - VILCABAMBA
N92: 75 | O92: 000011743 | P92: POLICIAL "SANTA ROSA" CUSCO | Q92: 01 | R92: 16 | S92: 01 | T92: 05 | U92: 0116 | V92: 000011743 - POLICIAL "SANTA ROSA" CUSCO | AB92: 09 | AC92: 10 | AD92: PICHARI | AE92: 0910 | AF92: 0910 - PICHARI
N93: 76 | O93: 000026181 | P93: MENTAL SAN SEBASTIAN | Q93: 01 | R93: 16 | S93: 01 | T93: 05 | U93: 0116 | V93: 000026181 - MENTAL SAN SEBASTIAN | AB93: 09 | AC93: 11 | AD93: INKAWASI | AE93: 0911 | AF93: 0911 - INKAWASI
N94: 77 | O94: 000002314 | P94: SAYLLA | Q94: 01 | R94: 16 | S94: 01 | T94: 07 | U94: 0116 | V94: 000002314 - SAYLLA | AB94: 09 | AC94: 12 | AD94: VILLA VIRGEN | AE94: 0912 | AF94: 0912 - VILLA VIRGEN
N95: 78 | O95: 000002323 | P95: RONDOCAN | Q95: 01 | R95: 16 | S95: 02 | T95: 06 | U95: 0116 | V95: 000002323 - RONDOCAN | AB95: 09 | AC95: 13 | AD95: VILLA KINTIARINA | AE95: 0913 | AF95: 0913 - VILLA KINTIARINA
N96: 79 | O96: 999999999 | P96: (All) | Q96: 01 | R96: 99 | U96: 0199 | V96: 999999999 - (All) | AB96: 09 | AC96: 14 | AD96: MEGANTONI | AE96: 0914 | AF96: 0914 - MEGANTONI
O97: 000000000 | P97: (All) | Q97: 02 | R97: 01 | U97: 0201 | V97: 000000000 - (All) | AB97: 09 | AC97: 15 | AD97: KUMPIRUSHIATO | AE97: 0915 | AF97: 0915 - KUMPIRUSHIATO
O98: 000002292 | P98: INDEPENDENCIA | Q98: 02 | R98: 01 | S98: 01 | T98: 01 | U98: 0201 | V98: 000002292 - INDEPENDENCIA | AB98: 09 | AC98: 16 | AD98: CIELO PUNCO | AE98: 0916 | AF98: 0916 - CIELO PUNCO
N99: =+N96+1 -> 80 | O99: 000002297 | P99: CCORCCA | Q99: 02 | R99: 01 | S99: 01 | T99: 02 | U99: 0201 | V99: 000002297 - CCORCCA | AB99: 09 | AC99: 17 | AD99: MANITEA | AE99: 0917 | AF99: 0917 - MANITEA
N100: 81 | O100: 000002306 | P100: BELEMPAMPA | Q100: 02 | R100: 01 | S100: 01 | T100: 06 | U100: 0201 | V100: 000002306 - BELEMPAMPA | AB100: 09 | AC100: 18 | AD100: UNION ASHANINKA | AE100: 0918 | AF100: 0918 - UNION ASHANINKA
N101: 82 | O101: 000002308 | P101: ZARZUELA ALTA | Q101: 02 | R101: 01 | S101: 01 | T101: 06 | U101: 0201 | V101: 000002308 - ZARZUELA ALTA | AB101: 09 | AC101: 00 | AD101: (All) | AE101: 0900 | AF101: 0900 - (All)
N102: 83 | O102: 000002309 | P102: DIGNIDAD NACIONAL | Q102: 02 | R102: 01 | S102: 01 | T102: 06 | U102: 0201 | V102: 000002309 - DIGNIDAD NACIONAL | AB102: 10 | AC102: 01 | AD102: PARURO | AE102: 1001 | AF102: 1001 - PARURO
N103: 84 | O103: 000002313 | P103: OCCOPATA | Q103: 02 | R103: 01 | S103: 01 | T103: 06 | U103: 0201 | V103: 000002313 - OCCOPATA | AB103: 10 | AC103: 02 | AD103: ACCHA | AE103: 1002 | AF103: 1002 - ACCHA
N104: 85 | O104: 000010920 | P104: QUINTA BRIGADA DE MONTAÑA | Q104: 02 | R104: 01 | S104: 01 | T104: 06 | U104: 0201 | V104: 000010920 - QUINTA BRIGADA DE MONTAÑA | AB104: 10 | AC104: 03 | AD104: CCAPI | AE104: 1003 | AF104: 1003 - CCAPI
N105: 86 | O105: 000026182 | P105: MENTAL SANTIAGO | Q105: 02 | R105: 01 | S105: 01 | T105: 06 | U105: 0201 | V105: 000026182 - MENTAL SANTIAGO | AB105: 10 | AC105: 04 | AD105: COLCHA | AE105: 1004 | AF105: 1004 - COLCHA
N106: 87 | O106: 000034933 | P106: SANTIAGO ESSALUD | Q106: 02 | R106: 01 | S106: 01 | T106: 06 | U106: 0201 | V106: 000034933 - SANTIAGO ESSALUD | AB106: 10 | AC106: 05 | AD106: HUANOQUITE | AE106: 1005 | AF106: 1005 - HUANOQUITE
N107: 88 | O107: 000023721 | P107: EJERCITO-PERUANO 5TA BM | Q107: 02 | R107: 01 | S107: 01 | T107: 06 | U107: 0201 | V107: 000023721 - EJERCITO-PERUANO 5TA BM | AB107: 10 | AC107: 06 | AD107: OMACHA | AE107: 1006 | AF107: 1006 - OMACHA
O108: 000000000 | P108: (All) | Q108: 02 | R108: 02 | U108: 0202 | V108: 000000000 - (All) | AB108: 10 | AC108: 07 | AD108: PACCARITAMBO | AE108: 1007 | AF108: 1007 - PACCARITAMBO
N109: =+N107+1 -> 89 | O109: 000034419 | P109: MENTAL COMUNITARIO CUSCO | Q109: 02 | R109: 02 | S109: 01 | T109: 01 | U109: 0202 | V109: 000034419 - MENTAL COMUNITARIO CUSCO | AB109: 10 | AC109: 08 | AD109: PILLPINTO | AE109: 1008 | AF109: 1008 - PILLPINTO
N110: 90 | O110: 000002302 | P110: CCORAO | Q110: 02 | R110: 02 | S110: 01 | T110: 05 | U110: 0202 | V110: 000002302 - CCORAO | AB110: 10 | AC110: 09 | AD110: YAURISQUE | AE110: 1009 | AF110: 1009 - YAURISQUE
N111: 91 | O111: 000002307 | P111: MANCO CAPAC | Q111: 02 | R111: 02 | S111: 01 | T111: 06 | U111: 0202 | V111: 000002307 - MANCO CAPAC | AB111: 11 | AC111: 00 | AD111: (All) | AE111: 1100 | AF111: 1100 - (All)
N112: 92 | O112: 000002310 | P112: CHOCCO | Q112: 02 | R112: 02 | S112: 01 | T112: 06 | U112: 0202 | V112: 000002310 - CHOCCO | AB112: 11 | AC112: 01 | AD112: PAUCARTAMBO | AE112: 1101 | AF112: 1101 - PAUCARTAMBO
N113: 93 | O113: 000002315 | P113: WANCHAQ | Q113: 02 | R113: 02 | S113: 01 | T113: 08 | U113: 0202 | V113: 000002315 - WANCHAQ | AB113: 11 | AC113: 02 | AD113: CAICAY | AE113: 1102 | AF113: 1102 - CAICAY
N114: 94 | O114: 000002316 | P114: TTIO | Q114: 02 | R114: 02 | S114: 01 | T114: 08 | U114: 0202 | V114: 000002316 - TTIO | AB114: 11 | AC114: 03 | AD114: CHALLABAMBA | AE114: 1103 | AF114: 1103 - CHALLABAMBA
N115: 95 | O115: 000010041 | P115: ADOLFO GUEVARA VELASCO | Q115: 02 | R115: 02 | S115: 01 | T115: 08 | U115: 0202 | V115: 000010041 - ADOLFO GUEVARA VELASCO | AB115: 11 | AC115: 04 | AD115: COLQUEPATA | AE115: 1104 | AF115: 1104 - COLQUEPATA
N116: 96 | O116: 000026183 | P116: METROPOLITANO | Q116: 02 | R116: 02 | S116: 01 | T116: 08 | U116: 0202 | V116: 000026183 - METROPOLITANO | AB116: 11 | AC116: 05 | AD116: HUANCARANI | AE116: 1105 | AF116: 1105 - HUANCARANI
O117: 000030730 | P117: PATRON SANTIAGO | Q117: 02 | R117: 02 | S117: 01 | T117: 08 | U117: 0202 | V117: 000030730 - PATRON SANTIAGO | AB117: 11 | AC117: 06 | AD117: KOSÑIPATA | AE117: 1106 | AF117: 1106 - KOSÑIPATA
N118: =+N116+1 -> 97 | O118: 000000000 | P118: (All) | Q118: 02 | R118: 03 | U118: 0203 | V118: 000000000 - (All) | AB118: 12 | AC118: 00 | AD118: (All) | AE118: 1200 | AF118: 1200 - (All)
N119: 98 | O119: 000002326 | P119: ANTA | Q119: 02 | R119: 03 | S119: 03 | T119: 01 | U119: 0203 | V119: 000002326 - ANTA | AB119: 12 | AC119: 01 | AD119: URCOS | AE119: 1201 | AF119: 1201 - URCOS
N120: 99 | O120: 000002328 | P120: COMPONE | Q120: 02 | R120: 03 | S120: 03 | T120: 01 | U120: 0203 | V120: 000002328 - COMPONE | AB120: 12 | AC120: 02 | AD120: ANDAHUAYLILLAS | AE120: 1202 | AF120: 1202 - ANDAHUAYLILLAS
N121: 100 | O121: 000002329 | P121: CONCHACALLA | Q121: 02 | R121: 03 | S121: 03 | T121: 01 | U121: 0203 | V121: 000002329 - CONCHACALLA | AB121: 12 | AC121: 03 | AD121: CAMANTI | AE121: 1203 | AF121: 1203 - CAMANTI
N122: 101 | O122: 000027790 | P122: MENTAL COMUNITARIO ANTA | Q122: 02 | R122: 03 | S122: 03 | T122: 01 | U122: 0203 | V122: 000027790 - MENTAL COMUNITARIO ANTA | AB122: 12 | AC122: 04 | AD122: CCARHUAYO | AE122: 1204 | AF122: 1204 - CCARHUAYO
N123: 102 | O123: 000029514 | P123: ESSALUD ANTA | Q123: 02 | R123: 03 | S123: 03 | T123: 01 | U123: 0203 | V123: 000029514 - ESSALUD ANTA | AB123: 12 | AC123: 05 | AD123: CCATCA | AE123: 1205 | AF123: 1205 - CCATCA
N124: 103 | O124: 000002330 | P124: ANCAHUASI | Q124: 02 | R124: 03 | S124: 03 | T124: 02 | U124: 0203 | V124: 000002330 - ANCAHUASI | AB124: 12 | AC124: 06 | AD124: CUSIPATA | AE124: 1206 | AF124: 1206 - CUSIPATA
N125: 104 | O125: 000002331 | P125: CACHIMAYO | Q125: 02 | R125: 03 | S125: 03 | T125: 03 | U125: 0203 | V125: 000002331 - CACHIMAYO | AB125: 12 | AC125: 07 | AD125: HUARO | AE125: 1207 | AF125: 1207 - HUARO
N126: 105 | O126: 000006972 | P126: PANTIPATA | Q126: 02 | R126: 03 | S126: 03 | T126: 04 | U126: 0203 | V126: 000006972 - PANTIPATA | AB126: 12 | AC126: 08 | AD126: LUCRE | AE126: 1208 | AF126: 1208 - LUCRE
N127: 106 | O127: 000036240 | P127: CHINCHAYPUJIO | Q127: 02 | R127: 03 | S127: 03 | T127: 04 | U127: 0203 | V127: 000036240 - CHINCHAYPUJIO | AB127: 12 | AC127: 09 | AD127: MARCAPATA | AE127: 1209 | AF127: 1209 - MARCAPATA
N128: 107 | O128: 000035838 | P128: PARCCOTICA | Q128: 02 | R128: 03 | S128: 03 | T128: 04 | U128: 0203 | V128: 000035838 - PARCCOTICA | AB128: 12 | AC128: 10 | AD128: OCONGATE | AE128: 1210 | AF128: 1210 - OCONGATE
N129: 108 | O129: 000002333 | P129: HUAROCONDO | Q129: 02 | R129: 03 | S129: 03 | T129: 05 | U129: 0203 | V129: 000002333 - HUAROCONDO | AB129: 12 | AC129: 11 | AD129: OROPESA | AE129: 1211 | AF129: 1211 - OROPESA
N130: 109 | O130: 000002334 | P130: HUAYLLACOCHA | Q130: 02 | R130: 03 | S130: 03 | T130: 05 | U130: 0203 | V130: 000002334 - HUAYLLACOCHA | AB130: 12 | AC130: 12 | AD130: QUIQUIJANA | AE130: 1212 | AF130: 1212 - QUIQUIJANA
N131: 110 | O131: 000002339 | P131: PUCYURA ANTA | Q131: 02 | R131: 03 | S131: 03 | T131: 08 | U131: 0203 | V131: 000002339 - PUCYURA ANTA | AB131: 13 | AC131: 00 | AD131: (All) | AE131: 1300 | AF131: 1300 - (All)
O132: 000002340 | P132: ZURITE | Q132: 02 | R132: 03 | S132: 03 | T132: 09 | U132: 0203 | V132: 000002340 - ZURITE | AB132: 13 | AC132: 01 | AD132: URUBAMBA | AE132: 1301 | AF132: 1301 - URUBAMBA
N133: =+N131+1 -> 111 | O133: 000002327 | P133: CHACAN | Q133: 02 | R133: 03 | S133: 03 | T133: 01 | U133: 0203 | V133: 000002327 - CHACAN | AB133: 13 | AC133: 02 | AD133: CHINCHERO | AE133: 1302 | AF133: 1302 - CHINCHERO
N134: 112 | O134: 000000000 | P134: (All) | Q134: 02 | R134: 04 | U134: 0204 | V134: 000000000 - (All) | AB134: 13 | AC134: 03 | AD134: HUAYLLABAMBA | AE134: 1303 | AF134: 1303 - HUAYLLABAMBA
N135: 113 | O135: 000002336 | P135: LIMATAMBO | Q135: 02 | R135: 04 | S135: 03 | T135: 06 | U135: 0204 | V135: 000002336 - LIMATAMBO | AB135: 13 | AC135: 04 | AD135: MACHUPICCHU | AE135: 1304 | AF135: 1304 - MACHUPICCHU
N136: 114 | O136: 000002337 | P136: PAMPACONGA | Q136: 02 | R136: 04 | S136: 03 | T136: 06 | U136: 0204 | V136: 000002337 - PAMPACONGA | AB136: 13 | AC136: 05 | AD136: MARAS | AE136: 1305 | AF136: 1305 - MARAS
N137: 115 | O137: 000010761 | P137: URATARI | Q137: 02 | R137: 04 | S137: 03 | T137: 06 | U137: 0204 | V137: 000010761 - URATARI | AB137: 13 | AC137: 06 | AD137: OLLANTAYTAMBO | AE137: 1306 | AF137: 1306 - OLLANTAYTAMBO
O138: 000002338 | P138: MOLLEPATA | Q138: 02 | R138: 04 | S138: 03 | T138: 07 | U138: 0204 | V138: 000002338 - MOLLEPATA | AB138: 13 | AC138: 07 | AD138: YUCAY | AE138: =CONCATENATE(AB138,AC138) -> 1307 | AF138: 1307 - YUCAY
N139: =+N137+1 -> 116 | O139: 000021061 | P139: HUAMANPATA | Q139: 02 | R139: 04 | S139: 03 | T139: 07 | U139: 0204 | V139: 000021061 - HUAMANPATA | AB139: 00 | AC139: 00 | AD139: (All) | AE139: =CONCATENATE(AB139,AC139) -> 0000 | AF139: 0000 - (All)
N140: 117 | O140: 000000000 | P140: (All) | Q140: 02 | R140: 05 | U140: 0205 | V140: 000000000 - (All)
N141: =+N140+1 -> 118 | O141: 000002343 | P141: COYA | Q141: 02 | R141: 05 | S141: 04 | T141: 02 | U141: 0205 | V141: 000002343 - COYA
N142: 119 | O142: 000002344 | P142: LAMAY | Q142: 02 | R142: 05 | S142: 04 | T142: 03 | U142: 0205 | V142: 000002344 - LAMAY
N143: 120 | O143: 000006975 | P143: SAYLLAFAYA | Q143: 02 | R143: 05 | S143: 04 | T143: 03 | U143: 0205 | V143: 000006975 - SAYLLAFAYA
N144: 121 | O144: 000007145 | P144: HUAMA | Q144: 02 | R144: 05 | S144: 04 | T144: 03 | U144: 0205 | V144: 000007145 - HUAMA
N145: 122 | O145: 000007146 | P145: POQUES | Q145: 02 | R145: 05 | S145: 04 | T145: 03 | U145: 0205 | V145: 000007146 - POQUES
N146: 123 | O146: 000036012 | P146: HUARQUI | Q146: 02 | R146: 05 | S146: 04 | T146: 03 | U146: 0205 | V146: 000036012 - HUARQUI
N147: 124 | O147: 000002348 | P147: PISAC | Q147: 02 | R147: 05 | S147: 04 | T147: 05 | U147: 0205 | V147: 000002348 - PISAC
N148: 125 | O148: 000002349 | P148: CUYO CHICO | Q148: 02 | R148: 05 | S148: 04 | T148: 05 | U148: 0205 | V148: 000002349 - CUYO CHICO
N149: 126 | O149: 000002350 | P149: CUYO GRANDE | Q149: 02 | R149: 05 | S149: 04 | T149: 05 | U149: 0205 | V149: 000002350 - CUYO GRANDE
N150: 127 | O150: 000002351 | P150: QUELLO QUELLO | Q150: 02 | R150: 05 | S150: 04 | T150: 05 | U150: =CONCATENATE(Q150,R150) -> 0205 | V150: =CONCATENATE(O150," - ",P150) -> 000002351 - QUELLO QUELLO
N151: 128 | O151: 000002352 | P151: SAN SALVADOR | Q151: 02 | R151: 05 | S151: 04 | T151: 06 | U151: 0205 | V151: 000002352 - SAN SALVADOR
N152: 129 | O152: 000036087 | P152: TIRACANCHA | Q152: 02 | R152: 05 | S152: 04 | T152: 06 | U152: 0205 | V152: 000036087 - TIRACANCHA
O153: 000002353 | P153: TARAY | Q153: 02 | R153: 05 | S153: 04 | T153: 07 | U153: 0205 | V153: 000002353 - TARAY
N154: =+N152+1 -> 130 | O154: 000002354 | P154: HUANCALLE | Q154: 02 | R154: 05 | S154: 04 | T154: 07 | U154: 0205 | V154: 000002354 - HUANCALLE
N155: 131 | O155: 000000000 | P155: (All) | Q155: 02 | R155: 06 | U155: 0206 | V155: 000000000 - (All)
N156: 132 | O156: 000002341 | P156: CALCA | Q156: 02 | R156: 06 | S156: 04 | T156: 01 | U156: 0206 | V156: 000002341 - CALCA
N157: 133 | O157: 000010069 | P157: ESSALUD CALCA | Q157: 02 | R157: 06 | S157: 04 | T157: 01 | U157: 0206 | V157: 000010069 - ESSALUD CALCA
N158: 134 | O158: 000010759 | P158: HUARAN | Q158: 02 | R158: 06 | S158: 04 | T158: 01 | U158: 0206 | V158: 000010759 - HUARAN
N159: 135 | O159: 000010762 | P159: ACCHA ALTA - PAMPALLACTA | Q159: 02 | R159: 06 | S159: 04 | T159: 01 | U159: 0206 | V159: 000010762 - ACCHA ALTA - PAMPALLACTA
N160: 136 | O160: 000026273 | P160: MENTAL COMUNITARIO VIRGEN ASUNTA DE CALCA | Q160: 02 | R160: 06 | S160: 04 | T160: 01 | U160: 0206 | V160: 000026273 - MENTAL COMUNITARIO VIRGEN ASUNTA DE CALCA
N161: 137 | O161: 000002342 | P161: AMPARAES | Q161: 02 | R161: 06 | S161: 04 | T161: 04 | U161: 0206 | V161: 000002342 - AMPARAES
N162: 138 | O162: 000002345 | P162: CCACHIN | Q162: 02 | R162: 06 | S162: 04 | T162: 04 | U162: 0206 | V162: 000002345 - CCACHIN
N163: 139 | O163: 000002346 | P163: CHOQUECANCHA | Q163: 02 | R163: 06 | S163: 04 | T163: 04 | U163: 0206 | V163: 000002346 - CHOQUECANCHA
N164: 140 | O164: 000002347 | P164: LARES | Q164: 02 | R164: 06 | S164: 04 | T164: 04 | U164: 0206 | V164: 000002347 - LARES
N165: 141 | O165: 000002361 | P165: SUYO | Q165: 02 | R165: 06 | S165: 04 | T165: 04 | U165: 0206 | V165: 000002361 - SUYO
N166: 142 | O166: 000007144 | P166: PATABAMBA | Q166: 02 | R166: 06 | S166: 04 | T166: 07 | U166: 0206 | V166: 000007144 - PATABAMBA
N167: 143 | O167: 000002515 | P167: PAROBAMBA | Q167: 02 | R167: 06 | S167: 11 | T167: 03 | U167: 0206 | V167: 000002515 - PAROBAMBA
N168: 144 | O168: 000007143 | P168: OTOCANI | Q168: 02 | R168: 06 | S168: 11 | T168: 03 | U168: 0206 | V168: 000007143 - OTOCANI
N169: 145 | O169: 000000000 | P169: (All) | Q169: 02 | R169: 07 | U169: 0207 | V169: 000000000 - (All)
N170: 146 | O170: 000002540 | P170: URUBAMBA | Q170: 02 | R170: 07 | S170: 13 | T170: 01 | U170: 0207 | V170: 000002540 - URUBAMBA
N171: 147 | O171: 000002541 | P171: YANAHUARA | Q171: 02 | R171: 07 | S171: 13 | T171: 01 | U171: 0207 | V171: 000002541 - YANAHUARA
N172: 148 | O172: 000010060 | P172: CAS URUBAMBA -ESSALUD | Q172: 02 | R172: 07 | S172: 13 | T172: 01 | U172: 0207 | V172: 000010060 - CAS URUBAMBA -ESSALUD
N173: 149 | O173: 000030666 | P173: MENTAL COMUNITARIO URUBAMBA | Q173: 02 | R173: 07 | S173: 13 | T173: 01 | U173: 0207 | V173: 000030666 - MENTAL COMUNITARIO URUBAMBA
N174: 150 | O174: 000035851 | P174: URUBAMBA - ESSALUD | Q174: 02 | R174: 07 | S174: 13 | T174: 01 | U174: 0207 | V174: 000035851 - URUBAMBA - ESSALUD
N175: 151 | O175: 000002543 | P175: CHINCHERO | Q175: 02 | R175: 07 | S175: 13 | T175: 02 | U175: 0207 | V175: 000002543 - CHINCHERO
N176: 152 | O176: 000002544 | P176: OCCOTUAN | Q176: 02 | R176: 07 | S176: 13 | T176: 02 | U176: 0207 | V176: 000002544 - OCCOTUAN
N177: 153 | O177: 000002545 | P177: HUAYLLABAMBA | Q177: 02 | R177: 07 | S177: 13 | T177: 03 | U177: 0207 | V177: 000002545 - HUAYLLABAMBA
N178: 154 | O178: 000002546 | P178: MACHUPICCHU | Q178: 02 | R178: 07 | S178: 13 | T178: 04 | U178: 0207 | V178: 000002546 - MACHUPICCHU
N179: 155 | O179: 000002547 | P179: COLLPANI | Q179: 02 | R179: 07 | S179: 13 | T179: 04 | U179: 0207 | V179: 000002547 - COLLPANI
N180: 156 | O180: 000006974 | P180: CAMINO INCA HUAYLLABAMBA | Q180: 02 | R180: 07 | S180: 13 | T180: 04 | U180: 0207 | V180: 000006974 - CAMINO INCA HUAYLLABAMBA
N181: 157 | O181: 000010073 | P181: MACHU PICCHU - ESSALUD | Q181: 02 | R181: 07 | S181: 13 | T181: 04 | U181: 0207 | V181: 000010073 - MACHU PICCHU - ESSALUD
N182: 158 | O182: 000002548 | P182: MARAS | Q182: 02 | R182: 07 | S182: 13 | T182: 05 | U182: 0207 | V182: 000002548 - MARAS
N183: 159 | O183: 000010758 | P183: CRUZPATA | Q183: 02 | R183: 07 | S183: 13 | T183: 05 | U183: 0207 | V183: 000010758 - CRUZPATA
N184: 160 | O184: 000002549 | P184: OLLANTAYTAMBO | Q184: 02 | R184: 07 | S184: 13 | T184: 06 | U184: 0207 | V184: 000002549 - OLLANTAYTAMBO
N185: 161 | O185: 000002550 | P185: CHILLCA | Q185: 02 | R185: 07 | S185: 13 | T185: 06 | U185: 0207 | V185: 000002550 - CHILLCA
N186: 162 | O186: 000010760 | P186: PATACANCHA | Q186: 02 | R186: 07 | S186: 13 | T186: 06 | U186: 0207 | V186: 000010760 - PATACANCHA
N187: 163 | O187: 000002551 | P187: YUCAY | Q187: 02 | R187: 07 | S187: 13 | T187: 07 | U187: 0207 | V187: 000002551 - YUCAY
N188: 164 | O188: 000000000 | P188: (All) | Q188: 02 | R188: 08 | U188: 0208 | V188: 000000000 - (All)
N189: 165 | O189: 000002355 | P189: LA QUEBRADA | Q189: 02 | R189: 08 | S189: 04 | T189: 08 | U189: 0208 | V189: 000002355 - LA QUEBRADA
N190: 166 | O190: 000002356 | P190: CCORIMAYO | Q190: 02 | R190: 08 | S190: 04 | T190: 08 | U190: 0208 | V190: 000002356 - CCORIMAYO
N191: 167 | O191: 000002357 | P191: COLCCA YANATILE | Q191: 02 | R191: 08 | S191: 04 | T191: 08 | U191: 0208 | V191: 000002357 - COLCCA YANATILE
N192: 168 | O192: 000002358 | P192: MUYUPAY | Q192: 02 | R192: 08 | S192: 04 | T192: 08 | U192: 0208 | V192: 000002358 - MUYUPAY
N193: 169 | O193: 000002359 | P193: PUTUCUSI | Q193: 02 | R193: 08 | S193: 04 | T193: 08 | U193: 0208 | V193: 000002359 - PUTUCUSI
N194: 170 | O194: 000002360 | P194: QUESQUENTO | Q194: 02 | R194: 08 | S194: 04 | T194: 08 | U194: 0208 | V194: 000002360 - QUESQUENTO
N195: 171 | O195: 000002362 | P195: HUACHIBAMBA | Q195: 02 | R195: 08 | S195: 04 | T195: 08 | U195: 0208 | V195: 000002362 - HUACHIBAMBA
N196: 172 | O196: 000006971 | P196: COMBAPATA YANATILE | Q196: 02 | R196: 08 | S196: 04 | T196: 08 | U196: 0208 | V196: 000006971 - COMBAPATA YANATILE
N197: 173 | O197: 000006973 | P197: BELLAVISTA | Q197: 02 | R197: 08 | S197: 04 | T197: 08 | U197: 0208 | V197: 000006973 - BELLAVISTA
N198: 174 | O198: 000007142 | P198: CHANCAMAYO | Q198: 02 | R198: 08 | S198: 04 | T198: 08 | U198: 0208 | V198: 000007142 - CHANCAMAYO
N199: 175 | O199: 000002464 | P199: VERSALLES | Q199: 02 | R199: 08 | S199: 09 | T199: 05 | U199: 0208 | V199: 000002464 - VERSALLES
N200: 176 | O200: 000002467 | P200: PUENTE SANTIAGO | Q200: 02 | R200: 08 | S200: 09 | T200: 06 | U200: 0208 | V200: 000002467 - PUENTE SANTIAGO
N201: 177 | O201: 000000000 | P201: (All) | Q201: 02 | R201: 09 | U201: 0209 | V201: 000000000 - (All)
N202: 178 | O202: 000002290 | P202: SAN PEDRO CUSCO | Q202: 02 | R202: 09 | S202: 01 | T202: 01 | U202: 0209 | V202: 000002290 - SAN PEDRO CUSCO
N203: 179 | O203: 000002291 | P203: SIETE CUARTONES | Q203: 02 | R203: 09 | S203: 01 | T203: 01 | U203: 0209 | V203: 000002291 - SIETE CUARTONES
N204: 180 | O204: 000002293 | P204: MIRAFLORES | Q204: 02 | R204: 09 | S204: 01 | T204: 01 | U204: 0209 | V204: 000002293 - MIRAFLORES
N205: =+N204+1 -> 181 | O205: 000002294 | P205: PICCHU LA RINCONADA | Q205: 02 | R205: 09 | S205: 01 | T205: 01 | U205: 0209 | V205: 000002294 - PICCHU LA RINCONADA
N206: 182 | O206: 000002295 | P206: BUENA VISTA | Q206: 02 | R206: 09 | S206: 01 | T206: 01 | U206: 0209 | V206: 000002295 - BUENA VISTA
N207: 183 | O207: 000002299 | P207: POROY | Q207: 02 | R207: 09 | S207: 01 | T207: 03 | U207: 0209 | V207: 000002299 - POROY
N208: 184 | O208: 999999999 | P208: (All) | Q208: 02 | R208: 99 | U208: 0299 | V208: 999999999 - (All)
... 247 more rows

Sheet INFORME
A1: GERENCIA REGIONAL DE SALUD CUSCO
A2: DIRECCION DE ESTADISTICA E INFORMATICA Y TELECOMUNICACION
A4: INFORME MENSUAL DEL CUIDADO INTEGRAL DEL NIÑO(A)
B8: DIRESA | C8: CUSCO
B10: RED DE SALUD | C10: =+TABLAS!O9 ->  | F10: EJECUTORA | G10: =+TABLAS!O14 ->  | L10: AÑO | M10: =+TABLAS!J16 -> 2025
B12: MICRO RED | C12: =+TABLAS!O10 ->  | L12: MES | M12: =+TABLAS!N26 -> ENE - MAY
B14: EE.SS. | C14: =+TABLAS!O11 ->  | BR14: =+IMPORTARDATOSDINAMICOS(" BAS
B16: PROVINCIA | C16: =+TABLAS!O12 ->  | BR16: "|TABLAS!$A$59)
B18: DISTRITO | C18: =+TABLAS!O13 ->  | BR18: =+GETPIVOTDATA(" BAS001",TABLAS!$A$59) -> 482
D20: =+C20+1 -> 1 | E20: 2 | F20: 3 | G20: 4 | H20: 5 | I20: 6 | J20: 7 | K20: 8 | L20: 9 | M20: 10 | N20: 11 | O20: 12 | P20: 13 | Q20: 14 | T20: =+Q20+1 -> 15 | W20: =+T20+1 -> 16 | Z20: =+W20+1 -> 17 | AC20: =+Z20+1 -> 18 | AF20: =+AC20+1 -> 19 | AG20: =+AF20+1 -> 20
A21: Nro de Controles de Crecimiento y Desarrollo de 0 a 11 años | Q21: Niños con Desarrollo Normal | T21: Niños con Crecimiento Adecuado o Normal | W21: Niños con Lactancia materna exclusiva | Z21: Niños con Lactancia materna prolongada | AC21: Niños con Alimentacion complementaria | AF21: Plan de Atencion Integral de Salud (*) (Z01.9) | BR21: =+BQ21+1 -> 1 | BS21: 2 | BT21: 3 | BU21: 4 | BV21: 5 | BW21: 6 | BX21: 7 | BY21: 8 | BZ21: 9 | CA21: 10 | CB21: 11 | CC21: 12 | CD21: 13 | CE21: 14 | CH21: =+CE21+1 -> 15 | CK21: =+CH21+1 -> 16 | CN21: =+CK21+1 -> 17 | CQ21: =+CN21+1 -> 18 | CT21: =+CQ21+1 -> 19 | CU21: =+CT21+1 -> 20
A22: GRUPO ETAREO | C22: PROGRAMACION | D22: Atencion Inmediata de recien Nacido | E22: Recien Nacido de parto Domiciliario /Trayecto | F22: 1er Ctrol | G22: 2do Ctrol | H22: 3er Ctrol | I22: 4to Ctrol | J22: 5to Ctrol | K22: 6to Ctrol | L22: 7mo Ctrol | M22: 8vo Ctrol | N22: 9no Ctrol | O22: 10mo Ctrol | P22: 11vo Ctrol | AK22: 1 | AL22: =+AK22+1 -> 2 | AM22: 3 | AN22: 4 | AO22: 5 | AP22: 6 | AQ22: 7 | AR22: 8 | AS22: 9 | AT22: 10 | AU22: 11 | AV22: 12 | AW22: 13 | AX22: 14 | BA22: =+AX22+1 -> 15 | BD22: =+BA22+1 -> 16 | BG22: =+BD22+1 -> 17 | BJ22: =+BG22+1 -> 18 | BM22: =+BJ22+1 -> 19 | BN22: =+BM22+1 -> 20
Q23: Mens | R23: Acum | S23: % | T23: Mens | U23: Acum | V23: % | W23: Mens | X23: Acum | Y23: % | Z23: Mens | AA23: Acum | AB23: % | AC23: Mens | AD23: Acum | AE23: % | AF23: ATD (Inicio del Plan AIS) | AG23: Niños controlados con plan de AIS completo
A24: Recien Nacido Sano | D24: =+GETPIVOTDATA(" BAS001",TABLAS!$A$59) -> 482 | E24: =+GETPIVOTDATA(" BAS002",TABLAS!$A$59) -> 0 | F24: =+GETPIVOTDATA(" BAS003",TABLAS!$A$59) -> 545 | G24: =+GETPIVOTDATA(" BAS004",TABLAS!$A$59) -> 553 | H24: =+GETPIVOTDATA(" BAS005",TABLAS!$A$59) -> 551 | I24: =+GETPIVOTDATA(" BAS006",TABLAS!$A$59) -> 550 | J24: =+GETPIVOTDATA(" BAS007",TABLAS!$A$59) -> 1 | K24: =+GETPIVOTDATA(" BAS008",TABLAS!$A$59) -> 0 | L24: =+GETPIVOTDATA(" BAS009",TABLAS!$A$59) -> 0 | M24: =+GETPIVOTDATA(" BAS010",TABLAS!$A$59) -> 0 | N24: =+GETPIVOTDATA(" BAS011",TABLAS!$A$59) -> 0 | O24: =+GETPIVOTDATA(" BAS012",TABLAS!$A$59) -> 0 | P24: =+GETPIVOTDATA(" BAS013",TABLAS!$A$59) -> 0 | Q24: =+GETPIVOTDATA(" BAS014",TABLAS!$A$59) -> 164 | T24: =+GETPIVOTDATA(" BAS015",TABLAS!$A$59) -> 163 | W24: =+GETPIVOTDATA(" BAS016",TABLAS!$A$59) -> 0 | Z24: =+GETPIVOTDATA(" BAS017",TABLAS!$A$59) -> 0 | AC24: =+GETPIVOTDATA(" BAS018",TABLAS!$A$59) -> 0 | AF24: =+GETPIVOTDATA(" BAS019",TABLAS!$A$59) -> 0 | AG24: =+GETPIVOTDATA(" BAS020",TABLAS!$A$59) -> 0 | AK24: 1 | AL24: =+AK24+1 -> 2 | AM24: 3 | AN24: 4 | AO24: 5 | AP24: 6 | AQ24: 7 | AR24: 8 | AS24: 9 | AT24: 10 | AU24: 11 | AV24: 12 | AW24: 13 | AX24: 14 | BA24: =+AX24+1 -> 15 | BD24: =+BA24+1 -> 16 | BG24: =+BD24+1 -> 17 | BJ24: =+BG24+1 -> 18 | BM24: =+BJ24+1 -> 19 | BN24: =+BM24+1 -> 20 | BR24: =IF(AK24<10,CONCATENATE($BR$14,"00",AK24,$BR$16),IF(AND(AK24>9,AK24<100),CONCATENATE($BR$14,"0",AK24,$BR$16),IF(AK24>99,CONCATENATE($BR$14,AK24,$BR$16)))) -> =+IMPORTARDATOSDINAMICOS(" BAS001"|TABLAS!$A$59) | BS24: =IF(AL24<10,CONCATENATE($BR$14,"00",AL24,$BR$16),IF(AND(AL24>9,AL24<100),CONCATENATE($BR$14,"0",AL24,$BR$16),IF(AL24>99,CONCATENATE($BR$14,AL24,$BR$16)))) -> =+IMPORTARDATOSDINAMICOS(" BAS002"|TABLAS!$A$59) | BT24: =+IMPORTARDATOSDINAMICOS(" BAS003"|TABLAS!$A$59) | BU24: =+IMPORTARDATOSDINAMICOS(" BAS004"|TABLAS!$A$59) | BV24: =+IMPORTARDATOSDINAMICOS(" BAS005"|TABLAS!$A$59) | BW24: =+IMPORTARDATOSDINAMICOS(" BAS006"|TABLAS!$A$59) | BX24: =+IMPORTARDATOSDINAMICOS(" BAS007"|TABLAS!$A$59) | BY24: =+IMPORTARDATOSDINAMICOS(" BAS008"|TABLAS!$A$59) | BZ24: =+IMPORTARDATOSDINAMICOS(" BAS009"|TABLAS!$A$59) | CA24: =+IMPORTARDATOSDINAMICOS(" BAS010"|TABLAS!$A$59) | CB24: =+IMPORTARDATOSDINAMICOS(" BAS011"|TABLAS!$A$59) | CC24: =+IMPORTARDATOSDINAMICOS(" BAS012"|TABLAS!$A$59) | CD24: =+IMPORTARDATOSDINAMICOS(" BAS013"|TABLAS!$A$59) | CE24: =+IMPORTARDATOSDINAMICOS(" BAS014"|TABLAS!$A$59) | CH24: =+IMPORTARDATOSDINAMICOS(" BAS015"|TABLAS!$A$59) | CK24: =+IMPORTARDATOSDINAMICOS(" BAS016"|TABLAS!$A$59) | CN24: =+IMPORTARDATOSDINAMICOS(" BAS017"|TABLAS!$A$59) | CQ24: =+IMPORTARDATOSDINAMICOS(" BAS018"|TABLAS!$A$59) | CT24: =+IMPORTARDATOSDINAMICOS(" BAS019"|TABLAS!$A$59) | CU24: =+IMPORTARDATOSDINAMICOS(" BAS020"|TABLAS!$A$59)
A25: RN Bajo Peso | D25: =+GETPIVOTDATA(" BAS021",TABLAS!$A$59) -> 7 | E25: =+GETPIVOTDATA(" BAS022",TABLAS!$A$59) -> 0 | F25: =+GETPIVOTDATA(" BAS023",TABLAS!$A$59) -> 15 | G25: =+GETPIVOTDATA(" BAS024",TABLAS!$A$59) -> 14 | H25: =+GETPIVOTDATA(" BAS025",TABLAS!$A$59) -> 11 | I25: =+GETPIVOTDATA(" BAS026",TABLAS!$A$59) -> 8 | J25: =+GETPIVOTDATA(" BAS027",TABLAS!$A$59) -> 0 | K25: =+GETPIVOTDATA(" BAS028",TABLAS!$A$59) -> 0 | L25: =+GETPIVOTDATA(" BAS029",TABLAS!$A$59) -> 0 | M25: =+GETPIVOTDATA(" BAS030",TABLAS!$A$59) -> 0 | N25: =+GETPIVOTDATA(" BAS031",TABLAS!$A$59) -> 0 | O25: =+GETPIVOTDATA(" BAS032",TABLAS!$A$59) -> 0 | P25: =+GETPIVOTDATA(" BAS033",TABLAS!$A$59) -> 0 | Q25: =+GETPIVOTDATA(" BAS034",TABLAS!$A$59) -> 0 | T25: =+GETPIVOTDATA(" BAS035",TABLAS!$A$59) -> 0 | W25: =+GETPIVOTDATA(" BAS036",TABLAS!$A$59) -> 0 | Z25: =+GETPIVOTDATA(" BAS037",TABLAS!$A$59) -> 0 | AC25: =+GETPIVOTDATA(" BAS038",TABLAS!$A$59) -> 0 | AF25: =+GETPIVOTDATA(" BAS039",TABLAS!$A$59) -> 0 | AG25: =+GETPIVOTDATA(" BAS040",TABLAS!$A$59) -> 0 | AK25: =+BN24+1 -> 21 | AL25: =+AK25+1 -> 22 | AM25: 23 | AN25: 24 | AO25: 25 | AP25: 26 | AQ25: 27 | AR25: 28 | AS25: 29 | AT25: 30 | AU25: 31 | AV25: 32 | AW25: 33 | AX25: 34 | BA25: 35 | BD25: 36 | BG25: 37 | BJ25: 38 | BM25: 39 | BN25: =+BM25+1 -> 40 | BR25: =IF(AK25<10,CONCATENATE($BR$14,"00",AK25,$BR$16),IF(AND(AK25>9,AK25<100),CONCATENATE($BR$14,"0",AK25,$BR$16),IF(AK25>99,CONCATENATE($BR$14,AK25,$BR$16)))) -> =+IMPORTARDATOSDINAMICOS(" BAS021"|TABLAS!$A$59) | BS25: =IF(AL25<10,CONCATENATE($BR$14,"00",AL25,$BR$16),IF(AND(AL25>9,AL25<100),CONCATENATE($BR$14,"0",AL25,$BR$16),IF(AL25>99,CONCATENATE($BR$14,AL25,$BR$16)))) -> =+IMPORTARDATOSDINAMICOS(" BAS022"|TABLAS!$A$59) | BT25: =IF(AM25<10,CONCATENATE($BR$14,"00",AM25,$BR$16),IF(AND(AM25>9,AM25<100),CONCATENATE($BR$14,"0",AM25,$BR$16),IF(AM25>99,CONCATENATE($BR$14,AM25,$BR$16)))) -> =+IMPORTARDATOSDINAMICOS(" BAS023"|TABLAS!$A$59) | BU25: =IF(AN25<10,CONCATENATE($BR$14,"00",AN25,$BR$16),IF(AND(AN25>9,AN25<100),CONCATENATE($BR$14,"0",AN25,$BR$16),IF(AN25>99,CONCATENATE($BR$14,AN25,$BR$16)))) -> =+IMPORTARDATOSDINAMICOS(" BAS024"|TABLAS!$A$59) | BV25: =IF(AO25<10,CONCATENATE($BR$14,"00",AO25,$BR$16),IF(AND(AO25>9,AO25<100),CONCATENATE($BR$14,"0",AO25,$BR$16),IF(AO25>99,CONCATENATE($BR$14,AO25,$BR$16)))) -> =+IMPORTARDATOSDINAMICOS(" BAS025"|TABLAS!$A$59) | BW25: =IF(AP25<10,CONCATENATE($BR$14,"00",AP25,$BR$16),IF(AND(AP25>9,AP25<100),CONCATENATE($BR$14,"0",AP25,$BR$16),IF(AP25>99,CONCATENATE($BR$14,AP25,$BR$16)))) -> =+IMPORTARDATOSDINAMICOS(" BAS026"|TABLAS!$A$59) | BX25: =IF(AQ25<10,CONCATENATE($BR$14,"00",AQ25,$BR$16),IF(AND(AQ25>9,AQ25<100),CONCATENATE($BR$14,"0",AQ25,$BR$16),IF(AQ25>99,CONCATENATE($BR$14,AQ25,$BR$16)))) -> =+IMPORTARDATOSDINAMICOS(" BAS027"|TABLAS!$A$59) | BY25: =IF(AR25<10,CONCATENATE($BR$14,"00",AR25,$BR$16),IF(AND(AR25>9,AR25<100),CONCATENATE($BR$14,"0",AR25,$BR$16),IF(AR25>99,CONCATENATE($BR$14,AR25,$BR$16)))) -> =+IMPORTARDATOSDINAMICOS(" BAS028"|TABLAS!$A$59) | BZ25: =IF(AS25<10,CONCATENATE($BR$14,"00",AS25,$BR$16),IF(AND(AS25>9,AS25<100),CONCATENATE($BR$14,"0",AS25,$BR$16),IF(AS25>99,CONCATENATE($BR$14,AS25,$BR$16)))) -> =+IMPORTARDATOSDINAMICOS(" BAS029"|TABLAS!$A$59) | CA25: =IF(AT25<10,CONCATENATE($BR$14,"00",AT25,$BR$16),IF(AND(AT25>9,AT25<100),CONCATENATE($BR$14,"0",AT25,$BR$16),IF(AT25>99,CONCATENATE($BR$14,AT25,$BR$16)))) -> =+IMPORTARDATOSDINAMICOS(" BAS030"|TABLAS!$A$59) | CB25: =IF(AU25<10,CONCATENATE($BR$14,"00",AU25,$BR$16),IF(AND(AU25>9,AU25<100),CONCATENATE($BR$14,"0",AU25,$BR$16),IF(AU25>99,CONCATENATE($BR$14,AU25,$BR$16)))) -> =+IMPORTARDATOSDINAMICOS(" BAS031"|TABLAS!$A$59) | CC25: =IF(AV25<10,CONCATENATE($BR$14,"00",AV25,$BR$16),IF(AND(AV25>9,AV25<100),CONCATENATE($BR$14,"0",AV25,$BR$16),IF(AV25>99,CONCATENATE($BR$14,AV25,$BR$16)))) -> =+IMPORTARDATOSDINAMICOS(" BAS032"|TABLAS!$A$59) | CD25: =IF(AW25<10,CONCATENATE($BR$14,"00",AW25,$BR$16),IF(AND(AW25>9,AW25<100),CONCATENATE($BR$14,"0",AW25,$BR$16),IF(AW25>99,CONCATENATE($BR$14,AW25,$BR$16)))) -> =+IMPORTARDATOSDINAMICOS(" BAS033"|TABLAS!$A$59) | CE25: =IF(AX25<10,CONCATENATE($BR$14,"00",AX25,$BR$16),IF(AND(AX25>9,AX25<100),CONCATENATE($BR$14,"0",AX25,$BR$16),IF(AX25>99,CONCATENATE($BR$14,AX25,$BR$16)))) -> =+IMPORTARDATOSDINAMICOS(" BAS034"|TABLAS!$A$59) | CH25: =IF(BA25<10,CONCATENATE($BR$14,"00",BA25,$BR$16),IF(AND(BA25>9,BA25<100),CONCATENATE($BR$14,"0",BA25,$BR$16),IF(BA25>99,CONCATENATE($BR$14,BA25,$BR$16)))) -> =+IMPORTARDATOSDINAMICOS(" BAS035"|TABLAS!$A$59) | CK25: =IF(BD25<10,CONCATENATE($BR$14,"00",BD25,$BR$16),IF(AND(BD25>9,BD25<100),CONCATENATE($BR$14,"0",BD25,$BR$16),IF(BD25>99,CONCATENATE($BR$14,BD25,$BR$16)))) -> =+IMPORTARDATOSDINAMICOS(" BAS036"|TABLAS!$A$59) | CN25: =IF(BG25<10,CONCATENATE($BR$14,"00",BG25,$BR$16),IF(AND(BG25>9,BG25<100),CONCATENATE($BR$14,"0",BG25,$BR$16),IF(BG25>99,CONCATENATE($BR$14,BG25,$BR$16)))) -> =+IMPORTARDATOSDINAMICOS(" BAS037"|TABLAS!$A$59) | CQ25: =IF(BJ25<10,CONCATENATE($BR$14,"00",BJ25,$BR$16),IF(AND(BJ25>9,BJ25<100),CONCATENATE($BR$14,"0",BJ25,$BR$16),IF(BJ25>99,CONCATENATE($BR$14,BJ25,$BR$16)))) -> =+IMPORTARDATOSDINAMICOS(" BAS038"|TABLAS!$A$59) | CT25: =IF(BM25<10,CONCATENATE($BR$14,"00",BM25,$BR$16),IF(AND(BM25>9,BM25<100),CONCATENATE($BR$14,"0",BM25,$BR$16),IF(BM25>99,CONCATENATE($BR$14,BM25,$BR$16)))) -> =+IMPORTARDATOSDINAMICOS(" BAS039"|TABLAS!$A$59) | CU25: =IF(BN25<10,CONCATENATE($BR$14,"00",BN25,$BR$16),IF(AND(BN25>9,BN25<100),CONCATENATE($BR$14,"0",BN25,$BR$16),IF(BN25>99,CONCATENATE($BR$14,BN25,$BR$16)))) -> =+IMPORTARDATOSDINAMICOS(" BAS040"|TABLAS!$A$59)
A26: RN Prematuro | D26: =+GETPIVOTDATA(" BAS041",TABLAS!$A$59) -> 0 | E26: =+GETPIVOTDATA(" BAS042",TABLAS!$A$59) -> 0 | F26: =+GETPIVOTDATA(" BAS043",TABLAS!$A$59) -> 0 | G26: =+GETPIVOTDATA(" BAS044",TABLAS!$A$59) -> 0 | H26: =+GETPIVOTDATA(" BAS045",TABLAS!$A$59) -> 0 | I26: =+GETPIVOTDATA(" BAS046",TABLAS!$A$59) -> 0 | J26: =+GETPIVOTDATA(" BAS047",TABLAS!$A$59) -> 0 | K26: =+GETPIVOTDATA(" BAS048",TABLAS!$A$59) -> 0 | L26: =+GETPIVOTDATA(" BAS049",TABLAS!$A$59) -> 0 | M26: =+GETPIVOTDATA(" BAS050",TABLAS!$A$59) -> 0 | N26: =+GETPIVOTDATA(" BAS051",TABLAS!$A$59) -> 0 | O26: =+GETPIVOTDATA(" BAS052",TABLAS!$A$59) -> 0 | P26: =+GETPIVOTDATA(" BAS053",TABLAS!$A$59) -> 0 | Q26: =+GETPIVOTDATA(" BAS054",TABLAS!$A$59) -> 0 | T26: =+GETPIVOTDATA(" BAS055",TABLAS!$A$59) -> 0 | W26: =+GETPIVOTDATA(" BAS056",TABLAS!$A$59) -> 0 | Z26: =+GETPIVOTDATA(" BAS057",TABLAS!$A$59) -> 0 | AC26: =+GETPIVOTDATA(" BAS058",TABLAS!$A$59) -> 0 | AF26: =+GETPIVOTDATA(" BAS059",TABLAS!$A$59) -> 0 | AG26: =+GETPIVOTDATA(" BAS060",TABLAS!$A$59) -> 0 | AK26: =+BN25+1 -> 41 | AL26: =+AK26+1 -> 42 | AM26: 43 | AN26: 44 | AO26: 45 | AP26: 46 | AQ26: 47 | AR26: 48 | AS26: 49 | AT26: 50 | AU26: 51 | AV26: 52 | AW26: 53 | AX26: 54 | BA26: 55 | BD26: 56 | BG26: 57 | BJ26: 58 | BM26: 59 | BN26: 60 | BR26: =+IMPORTARDATOSDINAMICOS(" BAS041"|TABLAS!$A$59) | BS26: =+IMPORTARDATOSDINAMICOS(" BAS042"|TABLAS!$A$59) | BT26: =+IMPORTARDATOSDINAMICOS(" BAS043"|TABLAS!$A$59) | BU26: =+IMPORTARDATOSDINAMICOS(" BAS044"|TABLAS!$A$59) | BV26: =+IMPORTARDATOSDINAMICOS(" BAS045"|TABLAS!$A$59) | BW26: =+IMPORTARDATOSDINAMICOS(" BAS046"|TABLAS!$A$59) | BX26: =+IMPORTARDATOSDINAMICOS(" BAS047"|TABLAS!$A$59) | BY26: =+IMPORTARDATOSDINAMICOS(" BAS048"|TABLAS!$A$59) | BZ26: =+IMPORTARDATOSDINAMICOS(" BAS049"|TABLAS!$A$59) | CA26: =+IMPORTARDATOSDINAMICOS(" BAS050"|TABLAS!$A$59) | CB26: =+IMPORTARDATOSDINAMICOS(" BAS051"|TABLAS!$A$59) | CC26: =+IMPORTARDATOSDINAMICOS(" BAS052"|TABLAS!$A$59) | CD26: =+IMPORTARDATOSDINAMICOS(" BAS053"|TABLAS!$A$59) | CE26: =+IMPORTARDATOSDINAMICOS(" BAS054"|TABLAS!$A$59) | CH26: =+IMPORTARDATOSDINAMICOS(" BAS055"|TABLAS!$A$59) | CK26: =+IMPORTARDATOSDINAMICOS(" BAS056"|TABLAS!$A$59) | CN26: =+IMPORTARDATOSDINAMICOS(" BAS057"|TABLAS!$A$59) | CQ26: =+IMPORTARDATOSDINAMICOS(" BAS058"|TABLAS!$A$59) | CT26: =+IMPORTARDATOSDINAMICOS(" BAS059"|TABLAS!$A$59) | CU26: =+IMPORTARDATOSDINAMICOS(" BAS060"|TABLAS!$A$59)
A27: RN con complicaciones | D27: =+GETPIVOTDATA(" BAS061",TABLAS!$A$59) -> 0 | E27: =+GETPIVOTDATA(" BAS062",TABLAS!$A$59) -> 0 | F27: =+GETPIVOTDATA(" BAS063",TABLAS!$A$59) -> 0 | G27: =+GETPIVOTDATA(" BAS064",TABLAS!$A$59) -> 0 | H27: =+GETPIVOTDATA(" BAS065",TABLAS!$A$59) -> 0 | I27: =+GETPIVOTDATA(" BAS066",TABLAS!$A$59) -> 0 | J27: =+GETPIVOTDATA(" BAS067",TABLAS!$A$59) -> 0 | K27: =+GETPIVOTDATA(" BAS068",TABLAS!$A$59) -> 0 | L27: =+GETPIVOTDATA(" BAS069",TABLAS!$A$59) -> 0 | M27: =+GETPIVOTDATA(" BAS070",TABLAS!$A$59) -> 0 | N27: =+GETPIVOTDATA(" BAS071",TABLAS!$A$59) -> 0 | O27: =+GETPIVOTDATA(" BAS072",TABLAS!$A$59) -> 0 | P27: =+GETPIVOTDATA(" BAS073",TABLAS!$A$59) -> 0 | Q27: =+GETPIVOTDATA(" BAS074",TABLAS!$A$59) -> 0 | T27: =+GETPIVOTDATA(" BAS075",TABLAS!$A$59) -> 0 | W27: =+GETPIVOTDATA(" BAS076",TABLAS!$A$59) -> 0 | Z27: =+GETPIVOTDATA(" BAS077",TABLAS!$A$59) -> 0 | AC27: =+GETPIVOTDATA(" BAS078",TABLAS!$A$59) -> 0 | AF27: =+GETPIVOTDATA(" BAS079",TABLAS!$A$59) -> 0 | AG27: =+GETPIVOTDATA(" BAS080",TABLAS!$A$59) -> 0 | AK27: 61 | AL27: =+AK27+1 -> 62 | AM27: 63 | AN27: 64 | AO27: 65 | AP27: 66 | AQ27: 67 | AR27: 68 | AS27: 69 | AT27: 70 | AU27: 71 | AV27: 72 | AW27: 73 | AX27: 74 | BA27: 75 | BD27: 76 | BG27: 77 | BJ27: 78 | BM27: 79 | BN27: 80 | BR27: =+IMPORTARDATOSDINAMICOS(" BAS061"|TABLAS!$A$59) | BS27: =+IMPORTARDATOSDINAMICOS(" BAS062"|TABLAS!$A$59) | BT27: =+IMPORTARDATOSDINAMICOS(" BAS063"|TABLAS!$A$59) | BU27: =+IMPORTARDATOSDINAMICOS(" BAS064"|TABLAS!$A$59) | BV27: =+IMPORTARDATOSDINAMICOS(" BAS065"|TABLAS!$A$59) | BW27: =+IMPORTARDATOSDINAMICOS(" BAS066"|TABLAS!$A$59) | BX27: =+IMPORTARDATOSDINAMICOS(" BAS067"|TABLAS!$A$59) | BY27: =+IMPORTARDATOSDINAMICOS(" BAS068"|TABLAS!$A$59) | BZ27: =+IMPORTARDATOSDINAMICOS(" BAS069"|TABLAS!$A$59) | CA27: =+IMPORTARDATOSDINAMICOS(" BAS070"|TABLAS!$A$59) | CB27: =+IMPORTARDATOSDINAMICOS(" BAS071"|TABLAS!$A$59) | CC27: =+IMPORTARDATOSDINAMICOS(" BAS072"|TABLAS!$A$59) | CD27: =+IMPORTARDATOSDINAMICOS(" BAS073"|TABLAS!$A$59) | CE27: =+IMPORTARDATOSDINAMICOS(" BAS074"|TABLAS!$A$59) | CH27: =+IMPORTARDATOSDINAMICOS(" BAS075"|TABLAS!$A$59) | CK27: =+IMPORTARDATOSDINAMICOS(" BAS076"|TABLAS!$A$59) | CN27: =+IMPORTARDATOSDINAMICOS(" BAS077"|TABLAS!$A$59) | CQ27: =+IMPORTARDATOSDINAMICOS(" BAS078"|TABLAS!$A$59) | CT27: =+IMPORTARDATOSDINAMICOS(" BAS079"|TABLAS!$A$59) | CU27: =+IMPORTARDATOSDINAMICOS(" BAS080"|TABLAS!$A$59)
A28: < 1a | F28: =+GETPIVOTDATA(" BAS081",TABLAS!$A$59) -> 640 | G28: =+GETPIVOTDATA(" BAS082",TABLAS!$A$59) -> 629 | H28: =+GETPIVOTDATA(" BAS083",TABLAS!$A$59) -> 626 | I28: =+GETPIVOTDATA(" BAS084",TABLAS!$A$59) -> 647 | J28: =+GETPIVOTDATA(" BAS085",TABLAS!$A$59) -> 636 | K28: =+GETPIVOTDATA(" BAS086",TABLAS!$A$59) -> 631 | L28: =+GETPIVOTDATA(" BAS087",TABLAS!$A$59) -> 614 | M28: =+GETPIVOTDATA(" BAS088",TABLAS!$A$59) -> 606 | N28: =+GETPIVOTDATA(" BAS089",TABLAS!$A$59) -> 596 | O28: =+GETPIVOTDATA(" BAS090",TABLAS!$A$59) -> 583 | P28: =+GETPIVOTDATA(" BAS091",TABLAS!$A$59) -> 550 | Q28: =+GETPIVOTDATA(" BAS092",TABLAS!$A$59) -> 5304 | T28: =+GETPIVOTDATA(" BAS093",TABLAS!$A$59) -> 5257 | W28: =+GETPIVOTDATA(" BAS094",TABLAS!$A$59) -> 0 | Z28: =+GETPIVOTDATA(" BAS095",TABLAS!$A$59) -> 0 | AC28: =+GETPIVOTDATA(" BAS096",TABLAS!$A$59) -> 0 | AF28: =+GETPIVOTDATA(" BAS097",TABLAS!$A$59) -> 0 | AG28: =+GETPIVOTDATA(" BAS098",TABLAS!$A$59) -> 0 | AM28: =+BN27+1 -> 81 | AN28: =+AM28+1 -> 82 | AO28: 83 | AP28: 84 | AQ28: 85 | AR28: 86 | AS28: 87 | AT28: 88 | AU28: 89 | AV28: 90 | AW28: 91 | AX28: 92 | BA28: 93 | BD28: 94 | BG28: 95 | BJ28: 96 | BM28: 97 | BN28: 98 | BR28: =+IMPORTARDATOSDINAMICOS(" BAS00"|TABLAS!$A$59) | BS28: =+IMPORTARDATOSDINAMICOS(" BAS00"|TABLAS!$A$59) | BT28: =+IMPORTARDATOSDINAMICOS(" BAS081"|TABLAS!$A$59) | BU28: =+IMPORTARDATOSDINAMICOS(" BAS082"|TABLAS!$A$59) | BV28: =+IMPORTARDATOSDINAMICOS(" BAS083"|TABLAS!$A$59) | BW28: =+IMPORTARDATOSDINAMICOS(" BAS084"|TABLAS!$A$59) | BX28: =+IMPORTARDATOSDINAMICOS(" BAS085"|TABLAS!$A$59) | BY28: =+IMPORTARDATOSDINAMICOS(" BAS086"|TABLAS!$A$59) | BZ28: =+IMPORTARDATOSDINAMICOS(" BAS087"|TABLAS!$A$59) | CA28: =+IMPORTARDATOSDINAMICOS(" BAS088"|TABLAS!$A$59) | CB28: =+IMPORTARDATOSDINAMICOS(" BAS089"|TABLAS!$A$59) | CC28: =+IMPORTARDATOSDINAMICOS(" BAS090"|TABLAS!$A$59) | CD28: =+IMPORTARDATOSDINAMICOS(" BAS091"|TABLAS!$A$59) | CE28: =+IMPORTARDATOSDINAMICOS(" BAS092"|TABLAS!$A$59) | CH28: =+IMPORTARDATOSDINAMICOS(" BAS093"|TABLAS!$A$59) | CK28: =+IMPORTARDATOSDINAMICOS(" BAS094"|TABLAS!$A$59) | CN28: =+IMPORTARDATOSDINAMICOS(" BAS095"|TABLAS!$A$59) | CQ28: =+IMPORTARDATOSDINAMICOS(" BAS096"|TABLAS!$A$59) | CT28: =+IMPORTARDATOSDINAMICOS(" BAS097"|TABLAS!$A$59) | CU28: =+IMPORTARDATOSDINAMICOS(" BAS098"|TABLAS!$A$59)
A29: 1 año | F29: =+GETPIVOTDATA(" BAS099",TABLAS!$A$59) -> 654 | G29: =+GETPIVOTDATA(" BAS100",TABLAS!$A$59) -> 663 | H29: =+GETPIVOTDATA(" BAS101",TABLAS!$A$59) -> 651 | I29: =+GETPIVOTDATA(" BAS102",TABLAS!$A$59) -> 670 | J29: =+GETPIVOTDATA(" BAS103",TABLAS!$A$59) -> 581 | K29: =+GETPIVOTDATA(" BAS104",TABLAS!$A$59) -> 493 | L29: =+GETPIVOTDATA(" BAS105",TABLAS!$A$59) -> 0 | M29: =+GETPIVOTDATA(" BAS106",TABLAS!$A$59) -> 0 | N29: =+GETPIVOTDATA(" BAS107",TABLAS!$A$59) -> 0 | O29: =+GETPIVOTDATA(" BAS108",TABLAS!$A$59) -> 0 | P29: =+GETPIVOTDATA(" BAS109",TABLAS!$A$59) -> 0 | Q29: =+GETPIVOTDATA(" BAS110",TABLAS!$A$59) -> 2864 | T29: =+GETPIVOTDATA(" BAS111",TABLAS!$A$59) -> 2839 | W29: =+GETPIVOTDATA(" BAS112",TABLAS!$A$59) -> 0 | Z29: =+GETPIVOTDATA(" BAS113",TABLAS!$A$59) -> 0 | AC29: =+GETPIVOTDATA(" BAS114",TABLAS!$A$59) -> 0 | AF29: =+GETPIVOTDATA(" BAS115",TABLAS!$A$59) -> 0 | AG29: =+GETPIVOTDATA(" BAS116",TABLAS!$A$59) -> 0 | AM29: 99 | AN29: =+AM29+1 -> 100 | AO29: 101 | AP29: 102 | AQ29: 103 | AR29: 104 | AS29: 105 | AT29: 106 | AU29: 107 | AV29: 108 | AW29: 109 | AX29: 110 | BA29: 111 | BD29: 112 | BG29: 113 | BJ29: 114 | BM29: 115 | BN29: 116 | BR29: =+IMPORTARDATOSDINAMICOS(" BAS00"|TABLAS!$A$59) | BS29: =+IMPORTARDATOSDINAMICOS(" BAS00"|TABLAS!$A$59) | BT29: =+IMPORTARDATOSDINAMICOS(" BAS099"|TABLAS!$A$59) | BU29: =+IMPORTARDATOSDINAMICOS(" BAS100"|TABLAS!$A$59) | BV29: =+IMPORTARDATOSDINAMICOS(" BAS101"|TABLAS!$A$59) | BW29: =+IMPORTARDATOSDINAMICOS(" BAS102"|TABLAS!$A$59) | BX29: =+IMPORTARDATOSDINAMICOS(" BAS103"|TABLAS!$A$59) | BY29: =+IMPORTARDATOSDINAMICOS(" BAS104"|TABLAS!$A$59) | BZ29: =+IMPORTARDATOSDINAMICOS(" BAS105"|TABLAS!$A$59) | CA29: =+IMPORTARDATOSDINAMICOS(" BAS106"|TABLAS!$A$59) | CB29: =+IMPORTARDATOSDINAMICOS(" BAS107"|TABLAS!$A$59) | CC29: =+IMPORTARDATOSDINAMICOS(" BAS108"|TABLAS!$A$59) | CD29: =+IMPORTARDATOSDINAMICOS(" BAS109"|TABLAS!$A$59) | CE29: =+IMPORTARDATOSDINAMICOS(" BAS110"|TABLAS!$A$59) | CH29: =+IMPORTARDATOSDINAMICOS(" BAS111"|TABLAS!$A$59) | CK29: =+IMPORTARDATOSDINAMICOS(" BAS112"|TABLAS!$A$59) | CN29: =+IMPORTARDATOSDINAMICOS(" BAS113"|TABLAS!$A$59) | CQ29: =+IMPORTARDATOSDINAMICOS(" BAS114"|TABLAS!$A$59) | CT29: =+IMPORTARDATOSDINAMICOS(" BAS115"|TABLAS!$A$59) | CU29: =+IMPORTARDATOSDINAMICOS(" BAS116"|TABLAS!$A$59)
A30: 2 años | F30: =+GETPIVOTDATA(" BAS117",TABLAS!$A$59) -> 664 | G30: =+GETPIVOTDATA(" BAS118",TABLAS!$A$59) -> 597 | H30: =+GETPIVOTDATA(" BAS119",TABLAS!$A$59) -> 514 | I30: =+GETPIVOTDATA(" BAS120",TABLAS!$A$59) -> 508 | J30: =+GETPIVOTDATA(" BAS121",TABLAS!$A$59) -> 1 | K30: =+GETPIVOTDATA(" BAS122",TABLAS!$A$59) -> 8 | L30: =+GETPIVOTDATA(" BAS123",TABLAS!$A$59) -> 0 | M30: =+GETPIVOTDATA(" BAS124",TABLAS!$A$59) -> 0 | N30: =+GETPIVOTDATA(" BAS125",TABLAS!$A$59) -> 0 | O30: =+GETPIVOTDATA(" BAS126",TABLAS!$A$59) -> 0 | P30: =+GETPIVOTDATA(" BAS127",TABLAS!$A$59) -> 0 | Q30: =+GETPIVOTDATA(" BAS128",TABLAS!$A$59) -> 1848 | T30: =+GETPIVOTDATA(" BAS129",TABLAS!$A$59) -> 1836 | W30: =+GETPIVOTDATA(" BAS130",TABLAS!$A$59) -> 0 | Z30: =+GETPIVOTDATA(" BAS131",TABLAS!$A$59) -> 0 | AC30: =+GETPIVOTDATA(" BAS132",TABLAS!$A$59) -> 0 | AF30: =+GETPIVOTDATA(" BAS133",TABLAS!$A$59) -> 0 | AG30: =+GETPIVOTDATA(" BAS134",TABLAS!$A$59) -> 0 | AM30: 117 | AN30: =+AM30+1 -> 118 | AO30: 119 | AP30: 120 | AQ30: 121 | AR30: 122 | AS30: 123 | AT30: 124 | AU30: 125 | AV30: 126 | AW30: 127 | AX30: 128 | BA30: 129 | BD30: 130 | BG30: 131 | BJ30: 132 | BM30: 133 | BN30: 134 | BR30: =+IMPORTARDATOSDINAMICOS(" BAS00"|TABLAS!$A$59) | BS30: =+IMPORTARDATOSDINAMICOS(" BAS00"|TABLAS!$A$59) | BT30: =+IMPORTARDATOSDINAMICOS(" BAS117"|TABLAS!$A$59) | BU30: =+IMPORTARDATOSDINAMICOS(" BAS118"|TABLAS!$A$59) | BV30: =+IMPORTARDATOSDINAMICOS(" BAS119"|TABLAS!$A$59) | BW30: =+IMPORTARDATOSDINAMICOS(" BAS120"|TABLAS!$A$59) | BX30: =+IMPORTARDATOSDINAMICOS(" BAS121"|TABLAS!$A$59) | BY30: =+IMPORTARDATOSDINAMICOS(" BAS122"|TABLAS!$A$59) | BZ30: =+IMPORTARDATOSDINAMICOS(" BAS123"|TABLAS!$A$59) | CA30: =+IMPORTARDATOSDINAMICOS(" BAS124"|TABLAS!$A$59) | CB30: =+IMPORTARDATOSDINAMICOS(" BAS125"|TABLAS!$A$59) | CC30: =+IMPORTARDATOSDINAMICOS(" BAS126"|TABLAS!$A$59) | CD30: =+IMPORTARDATOSDINAMICOS(" BAS127"|TABLAS!$A$59) | CE30: =+IMPORTARDATOSDINAMICOS(" BAS128"|TABLAS!$A$59) | CH30: =+IMPORTARDATOSDINAMICOS(" BAS129"|TABLAS!$A$59) | CK30: =+IMPORTARDATOSDINAMICOS(" BAS130"|TABLAS!$A$59) | CN30: =+IMPORTARDATOSDINAMICOS(" BAS131"|TABLAS!$A$59) | CQ30: =+IMPORTARDATOSDINAMICOS(" BAS132"|TABLAS!$A$59) | CT30: =+IMPORTARDATOSDINAMICOS(" BAS133"|TABLAS!$A$59) | CU30: =+IMPORTARDATOSDINAMICOS(" BAS134"|TABLAS!$A$59)
A31: 3 años | F31: =+GETPIVOTDATA(" BAS135",TABLAS!$A$59) -> 650 | G31: =+GETPIVOTDATA(" BAS136",TABLAS!$A$59) -> 554 | H31: =+GETPIVOTDATA(" BAS137",TABLAS!$A$59) -> 452 | I31: =+GETPIVOTDATA(" BAS138",TABLAS!$A$59) -> 416 | J31: =+GETPIVOTDATA(" BAS139",TABLAS!$A$59) -> 1 | K31: =+GETPIVOTDATA(" BAS140",TABLAS!$A$59) -> 1 | L31: =+GETPIVOTDATA(" BAS141",TABLAS!$A$59) -> 0 | M31: =+GETPIVOTDATA(" BAS142",TABLAS!$A$59) -> 0 | N31: =+GETPIVOTDATA(" BAS143",TABLAS!$A$59) -> 0 | O31: =+GETPIVOTDATA(" BAS144",TABLAS!$A$59) -> 0 | P31: =+GETPIVOTDATA(" BAS145",TABLAS!$A$59) -> 0 | Q31: =+GETPIVOTDATA(" BAS146",TABLAS!$A$59) -> 1608 | T31: =+GETPIVOTDATA(" BAS147",TABLAS!$A$59) -> 1590 | W31: =+GETPIVOTDATA(" BAS148",TABLAS!$A$59) -> 0 | Z31: =+GETPIVOTDATA(" BAS149",TABLAS!$A$59) -> 0 | AC31: =+GETPIVOTDATA(" BAS150",TABLAS!$A$59) -> 0 | AF31: =+GETPIVOTDATA(" BAS151",TABLAS!$A$59) -> 0 | AG31: =+GETPIVOTDATA(" BAS152",TABLAS!$A$59) -> 0 | AM31: 135 | AN31: =+AM31+1 -> 136 | AO31: 137 | AP31: 138 | AQ31: 139 | AR31: 140 | AS31: 141 | AT31: 142 | AU31: 143 | AV31: 144 | AW31: 145 | AX31: 146 | BA31: 147 | BD31: 148 | BG31: 149 | BJ31: 150 | BM31: 151 | BN31: 152 | BR31: =+IMPORTARDATOSDINAMICOS(" BAS00"|TABLAS!$A$59) | BS31: =+IMPORTARDATOSDINAMICOS(" BAS00"|TABLAS!$A$59) | BT31: =+IMPORTARDATOSDINAMICOS(" BAS135"|TABLAS!$A$59) | BU31: =+IMPORTARDATOSDINAMICOS(" BAS136"|TABLAS!$A$59) | BV31: =+IMPORTARDATOSDINAMICOS(" BAS137"|TABLAS!$A$59) | BW31: =+IMPORTARDATOSDINAMICOS(" BAS138"|TABLAS!$A$59) | BX31: =+IMPORTARDATOSDINAMICOS(" BAS139"|TABLAS!$A$59) | BY31: =+IMPORTARDATOSDINAMICOS(" BAS140"|TABLAS!$A$59) | BZ31: =+IMPORTARDATOSDINAMICOS(" BAS141"|TABLAS!$A$59) | CA31: =+IMPORTARDATOSDINAMICOS(" BAS142"|TABLAS!$A$59) | CB31: =+IMPORTARDATOSDINAMICOS(" BAS143"|TABLAS!$A$59) | CC31: =+IMPORTARDATOSDINAMICOS(" BAS144"|TABLAS!$A$59) | CD31: =+IMPORTARDATOSDINAMICOS(" BAS145"|TABLAS!$A$59) | CE31: =+IMPORTARDATOSDINAMICOS(" BAS146"|TABLAS!$A$59) | CH31: =+IMPORTARDATOSDINAMICOS(" BAS147"|TABLAS!$A$59) | CK31: =+IMPORTARDATOSDINAMICOS(" BAS148"|TABLAS!$A$59) | CN31: =+IMPORTARDATOSDINAMICOS(" BAS149"|TABLAS!$A$59) | CQ31: =+IMPORTARDATOSDINAMICOS(" BAS150"|TABLAS!$A$59) | CT31: =+IMPORTARDATOSDINAMICOS(" BAS151"|TABLAS!$A$59) | CU31: =+IMPORTARDATOSDINAMICOS(" BAS152"|TABLAS!$A$59)
A32: 4 años | F32: =+GETPIVOTDATA(" BAS153",TABLAS!$A$59) -> 704 | G32: =+GETPIVOTDATA(" BAS154",TABLAS!$A$59) -> 498 | H32: =+GETPIVOTDATA(" BAS155",TABLAS!$A$59) -> 396 | I32: =+GETPIVOTDATA(" BAS156",TABLAS!$A$59) -> 319 | J32: =+GETPIVOTDATA(" BAS157",TABLAS!$A$59) -> 0 | K32: =+GETPIVOTDATA(" BAS158",TABLAS!$A$59) -> 0 | L32: =+GETPIVOTDATA(" BAS159",TABLAS!$A$59) -> 0 | M32: =+GETPIVOTDATA(" BAS160",TABLAS!$A$59) -> 0 | N32: =+GETPIVOTDATA(" BAS161",TABLAS!$A$59) -> 0 | O32: =+GETPIVOTDATA(" BAS162",TABLAS!$A$59) -> 0 | P32: =+GETPIVOTDATA(" BAS163",TABLAS!$A$59) -> 0 | Q32: =+GETPIVOTDATA(" BAS164",TABLAS!$A$59) -> 1375 | T32: =+GETPIVOTDATA(" BAS165",TABLAS!$A$59) -> 1361 | W32: =+GETPIVOTDATA(" BAS166",TABLAS!$A$59) -> 0 | Z32: =+GETPIVOTDATA(" BAS167",TABLAS!$A$59) -> 0 | AC32: =+GETPIVOTDATA(" BAS168",TABLAS!$A$59) -> 0 | AF32: =+GETPIVOTDATA(" BAS169",TABLAS!$A$59) -> 0 | AG32: =+GETPIVOTDATA(" BAS170",TABLAS!$A$59) -> 0 | AM32: 153 | AN32: =+AM32+1 -> 154 | AO32: 155 | AP32: 156 | AQ32: 157 | AR32: 158 | AS32: 159 | AT32: 160 | AU32: 161 | AV32: 162 | AW32: 163 | AX32: 164 | BA32: 165 | BD32: 166 | BG32: 167 | BJ32: 168 | BM32: 169 | BN32: 170 | BR32: =+IMPORTARDATOSDINAMICOS(" BAS00"|TABLAS!$A$59) | BS32: =+IMPORTARDATOSDINAMICOS(" BAS00"|TABLAS!$A$59) | BT32: =+IMPORTARDATOSDINAMICOS(" BAS153"|TABLAS!$A$59) | BU32: =+IMPORTARDATOSDINAMICOS(" BAS154"|TABLAS!$A$59) | BV32: =+IMPORTARDATOSDINAMICOS(" BAS155"|TABLAS!$A$59) | BW32: =+IMPORTARDATOSDINAMICOS(" BAS156"|TABLAS!$A$59) | BX32: =+IMPORTARDATOSDINAMICOS(" BAS157"|TABLAS!$A$59) | BY32: =+IMPORTARDATOSDINAMICOS(" BAS158"|TABLAS!$A$59) | BZ32: =+IMPORTARDATOSDINAMICOS(" BAS159"|TABLAS!$A$59) | CA32: =+IMPORTARDATOSDINAMICOS(" BAS160"|TABLAS!$A$59) | CB32: =+IMPORTARDATOSDINAMICOS(" BAS161"|TABLAS!$A$59) | CC32: =+IMPORTARDATOSDINAMICOS(" BAS162"|TABLAS!$A$59) | CD32: =+IMPORTARDATOSDINAMICOS(" BAS163"|TABLAS!$A$59) | CE32: =+IMPORTARDATOSDINAMICOS(" BAS164"|TABLAS!$A$59) | CH32: =+IMPORTARDATOSDINAMICOS(" BAS165"|TABLAS!$A$59) | CK32: =+IMPORTARDATOSDINAMICOS(" BAS166"|TABLAS!$A$59) | CN32: =+IMPORTARDATOSDINAMICOS(" BAS167"|TABLAS!$A$59) | CQ32: =+IMPORTARDATOSDINAMICOS(" BAS168"|TABLAS!$A$59) | CT32: =+IMPORTARDATOSDINAMICOS(" BAS169"|TABLAS!$A$59) | CU32: =+IMPORTARDATOSDINAMICOS(" BAS170"|TABLAS!$A$59)
A33: 5-9 años | F33: =+GETPIVOTDATA(" BAS171",TABLAS!$A$59) -> 1125 | Q33: =+GETPIVOTDATA(" BAS172",TABLAS!$A$59) -> 318 | T33: =+GETPIVOTDATA(" BAS173",TABLAS!$A$59) -> 317 | W33: =+GETPIVOTDATA(" BAS174",TABLAS!$A$59) -> 0 | Z33: =+GETPIVOTDATA(" BAS175",TABLAS!$A$59) -> 0 | AC33: =+GETPIVOTDATA(" BAS176",TABLAS!$A$59) -> 0 | AF33: =+GETPIVOTDATA(" BAS177",TABLAS!$A$59) -> 0 | AG33: =+GETPIVOTDATA(" BAS178",TABLAS!$A$59) -> 0 | AM33: 171 | AX33: =+AM33+1 -> 172 | BA33: 173 | BD33: 174 | BG33: 175 | BJ33: 176 | BM33: 177 | BN33: 178 | BR33: =+IMPORTARDATOSDINAMICOS(" BAS00"|TABLAS!$A$59) | BS33: =+IMPORTARDATOSDINAMICOS(" BAS00"|TABLAS!$A$59) | BT33: =+IMPORTARDATOSDINAMICOS(" BAS171"|TABLAS!$A$59) | BU33: =+IMPORTARDATOSDINAMICOS(" BAS00"|TABLAS!$A$59) | BV33: =+IMPORTARDATOSDINAMICOS(" BAS00"|TABLAS!$A$59) | BW33: =+IMPORTARDATOSDINAMICOS(" BAS00"|TABLAS!$A$59) | BX33: =+IMPORTARDATOSDINAMICOS(" BAS00"|TABLAS!$A$59) | BY33: =+IMPORTARDATOSDINAMICOS(" BAS00"|TABLAS!$A$59) | BZ33: =+IMPORTARDATOSDINAMICOS(" BAS00"|TABLAS!$A$59) | CA33: =+IMPORTARDATOSDINAMICOS(" BAS00"|TABLAS!$A$59) | CB33: =+IMPORTARDATOSDINAMICOS(" BAS00"|TABLAS!$A$59) | CC33: =+IMPORTARDATOSDINAMICOS(" BAS00"|TABLAS!$A$59) | CD33: =+IMPORTARDATOSDINAMICOS(" BAS00"|TABLAS!$A$59) | CE33: =+IMPORTARDATOSDINAMICOS(" BAS172"|TABLAS!$A$59) | CH33: =+IMPORTARDATOSDINAMICOS(" BAS173"|TABLAS!$A$59) | CK33: =+IMPORTARDATOSDINAMICOS(" BAS174"|TABLAS!$A$59) | CN33: =+IMPORTARDATOSDINAMICOS(" BAS175"|TABLAS!$A$59) | CQ33: =+IMPORTARDATOSDINAMICOS(" BAS176"|TABLAS!$A$59) | CT33: =+IMPORTARDATOSDINAMICOS(" BAS177"|TABLAS!$A$59) | CU33: =+IMPORTARDATOSDINAMICOS(" BAS178"|TABLAS!$A$59)
A34: 10-11 años | F34: =+GETPIVOTDATA(" BAS179",TABLAS!$A$59) -> 357 | Q34: =+GETPIVOTDATA(" BAS180",TABLAS!$A$59) -> 83 | T34: =+GETPIVOTDATA(" BAS181",TABLAS!$A$59) -> 83 | W34: =+GETPIVOTDATA(" BAS182",TABLAS!$A$59) -> 0 | Z34: =+GETPIVOTDATA(" BAS183",TABLAS!$A$59) -> 0 | AC34: =+GETPIVOTDATA(" BAS184",TABLAS!$A$59) -> 0 | AF34: =+GETPIVOTDATA(" BAS185",TABLAS!$A$59) -> 0 | AG34: =+GETPIVOTDATA(" BAS186",TABLAS!$A$59) -> 0 | AM34: 179 | AX34: =+AM34+1 -> 180 | BA34: 181 | BD34: 182 | BG34: 183 | BJ34: 184 | BM34: 185 | BN34: 186 | BR34: =+IMPORTARDATOSDINAMICOS(" BAS00"|TABLAS!$A$59) | BS34: =+IMPORTARDATOSDINAMICOS(" BAS00"|TABLAS!$A$59) | BT34: =+IMPORTARDATOSDINAMICOS(" BAS179"|TABLAS!$A$59) | BU34: =+IMPORTARDATOSDINAMICOS(" BAS00"|TABLAS!$A$59) | BV34: =+IMPORTARDATOSDINAMICOS(" BAS00"|TABLAS!$A$59) | BW34: =+IMPORTARDATOSDINAMICOS(" BAS00"|TABLAS!$A$59) | BX34: =+IMPORTARDATOSDINAMICOS(" BAS00"|TABLAS!$A$59) | BY34: =+IMPORTARDATOSDINAMICOS(" BAS00"|TABLAS!$A$59) | BZ34: =+IMPORTARDATOSDINAMICOS(" BAS00"|TABLAS!$A$59) | CA34: =+IMPORTARDATOSDINAMICOS(" BAS00"|TABLAS!$A$59) | CB34: =+IMPORTARDATOSDINAMICOS(" BAS00"|TABLAS!$A$59) | CC34: =+IMPORTARDATOSDINAMICOS(" BAS00"|TABLAS!$A$59) | CD34: =+IMPORTARDATOSDINAMICOS(" BAS00"|TABLAS!$A$59) | CE34: =+IMPORTARDATOSDINAMICOS(" BAS180"|TABLAS!$A$59) | CH34: =+IMPORTARDATOSDINAMICOS(" BAS181"|TABLAS!$A$59) | CK34: =+IMPORTARDATOSDINAMICOS(" BAS182"|TABLAS!$A$59) | CN34: =+IMPORTARDATOSDINAMICOS(" BAS183"|TABLAS!$A$59) | CQ34: =+IMPORTARDATOSDINAMICOS(" BAS184"|TABLAS!$A$59) | CT34: =+IMPORTARDATOSDINAMICOS(" BAS185"|TABLAS!$A$59) | CU34: =+IMPORTARDATOSDINAMICOS(" BAS186"|TABLAS!$A$59)
A35: TOTAL | AF35: 99801 + LB=8 | AG35: 99801 + LB=TA
A37: I. ATENCIÓN DEL RECIÉN NACIDO
A39: A) Atención Inmediata | E39: C) Atención de Recién Nacido en Alojamiento Conjunto | K39: D) Resultados del Tamizaje Neonatal | O39: E) Atención de Recién Nacido en la visita domiciliaria | BT39: =+GETPIVOTDATA(" BAS001",TABLAS!$A$95) -> 496
R40: Nº
A41: ACTIVIDADES | C41: Nº | E41: ACTIVIDADES | I41: Nº | K41: DIAGNÓSTICOS | M41: Nº | O41: DIAGNÓSTICOS | R41: Nº | BT41: "|TABLAS!$A$95)
A42: Atención Inmediata del RN | C42: =+GETPIVOTDATA(" BAS001",TABLAS!$A$95) -> 496 | E42: Atención del recien nacido en Alojamiento Conjunto | I42: =+GETPIVOTDATA(" BAS007",TABLAS!$A$95) -> 407 | K42: Hipotiroidismo Congénito | M42: =+GETPIVOTDATA(" BAS013",TABLAS!$A$95) -> 0 | O42: Visita domiciliaria para el cuidado y evaluación neonatal | R42: =+GETPIVOTDATA(" BAS021",TABLAS!$A$95) -> 6 | AM42: 1 | AO42: =+AM47+1 -> 7 | AQ42: =+AO47+1 -> 13 | AS42: =+AQ49+1 -> 21 | BT42: =IF(AM42<10,CONCATENATE($BR$14,"00",AM42,$BT$41),IF(AND(AM42>9,AM42<100),CONCATENATE($BR$14,"0",AM42,$BT$41),IF(AM42>99,CONCATENATE($BR$14,AM42,$BT$41)))) -> =+IMPORTARDATOSDINAMICOS(" BAS001"|TABLAS!$A$95) | BV42: =IF(AO42<10,CONCATENATE($BR$14,"00",AO42,$BT$41),IF(AND(AO42>9,AO42<100),CONCATENATE($BR$14,"0",AO42,$BT$41),IF(AO42>99,CONCATENATE($BR$14,AO42,$BT$41)))) -> =+IMPORTARDATOSDINAMICOS(" BAS007"|TABLAS!$A$95) | BX42: =IF(AQ42<10,CONCATENATE($BR$14,"00",AQ42,$BT$41),IF(AND(AQ42>9,AQ42<100),CONCATENATE($BR$14,"0",AQ42,$BT$41),IF(AQ42>99,CONCATENATE($BR$14,AQ42,$BT$41)))) -> =+IMPORTARDATOSDINAMICOS(" BAS013"|TABLAS!$A$95) | BZ42: =IF(AS42<10,CONCATENATE($BR$14,"00",AS42,$BT$41),IF(AND(AS42>9,AS42<100),CONCATENATE($BR$14,"0",AS42,$BT$41),IF(AS42>99,CONCATENATE($BR$14,AS42,$BT$41)))) -> =+IMPORTARDATOSDINAMICOS(" BAS021"|TABLAS!$A$95)
A43: Tamizaje Neonatal (Enfermed. Metabólicas) | C43: =+GETPIVOTDATA(" BAS002",TABLAS!$A$95) -> 458 | E43: Evaluación médica del recién nacido | I43: =+GETPIVOTDATA(" BAS008",TABLAS!$A$95) -> 48 | K43: Fenilcetonuria Clásica | M43: =+GETPIVOTDATA(" BAS014",TABLAS!$A$95) -> 0 | O43: Anamnesis y el examen físico del recién nacido normal | R43: =+GETPIVOTDATA(" BAS022",TABLAS!$A$95) -> 498 | AM43: =+AM42+1 -> 2 | AO43: =+AO42+1 -> 8 | AQ43: =+AQ42+1 -> 14 | AS43: =+AS42+1 -> 22 | BT43: =+IMPORTARDATOSDINAMICOS(" BAS002"|TABLAS!$A$95) | BV43: =+IMPORTARDATOSDINAMICOS(" BAS008"|TABLAS!$A$95) | BX43: =+IMPORTARDATOSDINAMICOS(" BAS014"|TABLAS!$A$95) | BZ43: =+IMPORTARDATOSDINAMICOS(" BAS022"|TABLAS!$A$95)
A44: Tamizaje Visual y Auditivo | C44: =+GETPIVOTDATA(" BAS003",TABLAS!$A$95) -> 2 | E44: Tamizaje neonatal metabolico: toma de muestra | I44: =+GETPIVOTDATA(" BAS009",TABLAS!$A$95) -> 1 | K44: Hiperplasia Suprarrenal Congénita | M44: =+GETPIVOTDATA(" BAS015",TABLAS!$A$95) -> 0 | O44: Consejería en higiene del recién nacido, niño o niña y cuidado en el hogar | R44: =+GETPIVOTDATA(" BAS023",TABLAS!$A$95) -> 238 | AM44: =+AM43+1 -> 3 | AO44: =+AO43+1 -> 9 | AQ44: 15 | AS44: 23 | BT44: =+IMPORTARDATOSDINAMICOS(" BAS003"|TABLAS!$A$95) | BV44: =+IMPORTARDATOSDINAMICOS(" BAS009"|TABLAS!$A$95) | BX44: =+IMPORTARDATOSDINAMICOS(" BAS015"|TABLAS!$A$95) | BZ44: =+IMPORTARDATOSDINAMICOS(" BAS023"|TABLAS!$A$95)
A45: Contacto Piel a Piel con la madre | C45: =+GETPIVOTDATA(" BAS004",TABLAS!$A$95) -> 491 | E45: Tamizaje de hipoacusia congenita | I45: =+GETPIVOTDATA(" BAS010",TABLAS!$A$95) -> 0 | K45: Tamizaje de Cardiopatia Congenita | M45: =+GETPIVOTDATA(" BAS016",TABLAS!$A$95) -> 0 | O45: Consejería en el cuidado del cordón umbilical | R45: =+GETPIVOTDATA(" BAS024",TABLAS!$A$95) -> 418 | AM45: =+AM44+1 -> 4 | AO45: =+AO44+1 -> 10 | AQ45: 16 | AS45: 24 | BT45: =+IMPORTARDATOSDINAMICOS(" BAS004"|TABLAS!$A$95) | BV45: =+IMPORTARDATOSDINAMICOS(" BAS010"|TABLAS!$A$95) | BX45: =+IMPORTARDATOSDINAMICOS(" BAS016"|TABLAS!$A$95) | BZ45: =+IMPORTARDATOSDINAMICOS(" BAS024"|TABLAS!$A$95)
A46: Alojamiento Conjunto | C46: =+GETPIVOTDATA(" BAS005",TABLAS!$A$95) -> 411 | E46: Tamizaje de catarata congénita | I46: =+GETPIVOTDATA(" BAS011",TABLAS!$A$95) -> 1 | K46: Fibrosis quística, sin otra especificación | M46: =+GETPIVOTDATA(" BAS017",TABLAS!$A$95) -> 0 | O46: Consejería en importancia del control de crecimiento y desarrollo (4 controles) | R46: =+GETPIVOTDATA(" BAS025",TABLAS!$A$95) -> 339 | AM46: =+AM45+1 -> 5 | AO46: =+AO45+1 -> 11 | AQ46: 17 | AS46: 25 | BT46: =+IMPORTARDATOSDINAMICOS(" BAS005"|TABLAS!$A$95) | BV46: =+IMPORTARDATOSDINAMICOS(" BAS011"|TABLAS!$A$95) | BX46: =+IMPORTARDATOSDINAMICOS(" BAS017"|TABLAS!$A$95) | BZ46: =+IMPORTARDATOSDINAMICOS(" BAS025"|TABLAS!$A$95)
A47: Lactancia Materna en la 1º Hora (FUENTE CNV) | C47: =+GETPIVOTDATA(" BAS006",TABLAS!$A$95) -> 423 | E47: Tamizaje de cardiopatía congénita | I47: =+GETPIVOTDATA(" BAS012",TABLAS!$A$95) -> 0 | K47: Catarata Congénita | M47: =+GETPIVOTDATA(" BAS018",TABLAS!$A$95) -> 0 | O47: Consejería de idenficación de signos de alarma | R47: =+GETPIVOTDATA(" BAS026",TABLAS!$A$95) -> 348 | AM47: =+AM46+1 -> 6 | AO47: =+AO46+1 -> 12 | AQ47: 18 | AS47: 26 | BT47: =+IMPORTARDATOSDINAMICOS(" BAS006"|TABLAS!$A$95) | BV47: =+IMPORTARDATOSDINAMICOS(" BAS012"|TABLAS!$A$95) | BX47: =+IMPORTARDATOSDINAMICOS(" BAS018"|TABLAS!$A$95) | BZ47: =+IMPORTARDATOSDINAMICOS(" BAS026"|TABLAS!$A$95)
K48: Cardiopatía congénita | M48: =+GETPIVOTDATA(" BAS019",TABLAS!$A$95) -> 0 | O48: Consejería en higiene de manos | R48: =+GETPIVOTDATA(" BAS027",TABLAS!$A$95) -> 0 | AQ48: 19 | AS48: 27 | BV48: =+IMPORTARDATOSDINAMICOS(" BAS00"|TABLAS!$A$95) | BX48: =+IMPORTARDATOSDINAMICOS(" BAS019"|TABLAS!$A$95) | BZ48: =+IMPORTARDATOSDINAMICOS(" BAS027"|TABLAS!$A$95)
A49: B) Condicion de Nacimiento del Recien Nacido | E49: F) Consejeria en En Atencion del Reci en Nacido Alojamiento Conjunto | I49: Nº | K49: Hipoacusia conductiva, sin otra especificación | M49: =+GETPIVOTDATA(" BAS020",TABLAS!$A$95) -> 0 | O49: Consejería en Lactancia Materna Exclusiva hasta los 6 meses | R49: =+GETPIVOTDATA(" BAS028",TABLAS!$A$95) -> 5606 | AQ49: 20 | AS49: 28 | BX49: =+IMPORTARDATOSDINAMICOS(" BAS020"|TABLAS!$A$95) | BZ49: =+IMPORTARDATOSDINAMICOS(" BAS028"|TABLAS!$A$95)
A50: ACTIVIDADES | C50: Nº | E50: ACTIVIDADES | I50: Nº
A51: Extremadamente bajo peso | C51: =+GETPIVOTDATA(" BAS029",TABLAS!$A$95) -> 0 | E51: Consejería y acompañamiento en alimentación con sucedáneos de leche materna a neonatos expuestos al VIH | I51: =+GETPIVOTDATA(" BAS036",TABLAS!$A$95) -> 1 | AM51: =+AS49+1 -> 29 | AO51: =+AM57+1 -> 36 | BT51: =IF(AM51<10,CONCATENATE($BR$14,"00",AM51,$BT$41),IF(AND(AM51>9,AM51<100),CONCATENATE($BR$14,"0",AM51,$BT$41),IF(AM51>99,CONCATENATE($BR$14,AM51,$BT$41)))) -> =+IMPORTARDATOSDINAMICOS(" BAS029"|TABLAS!$A$95) | BV51: =IF(AO51<10,CONCATENATE($BR$14,"00",AO51,$BT$41),IF(AND(AO51>9,AO51<100),CONCATENATE($BR$14,"0",AO51,$BT$41),IF(AO51>99,CONCATENATE($BR$14,AO51,$BT$41)))) -> =+IMPORTARDATOSDINAMICOS(" BAS036"|TABLAS!$A$95)
A52: Muy bajo peso al nacer | C52: =+GETPIVOTDATA(" BAS030",TABLAS!$A$95) -> 0 | AM52: =+AM51+1 -> 30 | AO52: =+AO51+1 -> 37 | BT52: =+IMPORTARDATOSDINAMICOS(" BAS030"|TABLAS!$A$95) | BV52: =+IMPORTARDATOSDINAMICOS(" BAS037"|TABLAS!$A$95)
A53: Bajo peso al nacer | C53: =+GETPIVOTDATA(" BAS031",TABLAS!$A$95) -> 29 | AM53: 31 | AO53: 38 | BT53: =+IMPORTARDATOSDINAMICOS(" BAS031"|TABLAS!$A$95) | BV53: =+IMPORTARDATOSDINAMICOS(" BAS038"|TABLAS!$A$95)
A54: Macrosomico | C54: =+GETPIVOTDATA(" BAS032",TABLAS!$A$95) -> 4 | AM54: 32 | AO54: 39 | BT54: =+IMPORTARDATOSDINAMICOS(" BAS032"|TABLAS!$A$95) | BV54: =+IMPORTARDATOSDINAMICOS(" BAS039"|TABLAS!$A$95)
A55: Microcefalia | C55: =+GETPIVOTDATA(" BAS033",TABLAS!$A$95) -> 1 | AM55: 33 | AO55: 40 | BT55: =+IMPORTARDATOSDINAMICOS(" BAS033"|TABLAS!$A$95) | BV55: =+IMPORTARDATOSDINAMICOS(" BAS040"|TABLAS!$A$95)
A56: Recien nacido prematuro | C56: =+GETPIVOTDATA(" BAS034",TABLAS!$A$95) -> 16 | AM56: 34 | AO56: 41 | BT56: =+IMPORTARDATOSDINAMICOS(" BAS034"|TABLAS!$A$95) | BV56: =+IMPORTARDATOSDINAMICOS(" BAS041"|TABLAS!$A$95)
A57: Recien Nacido Normal | C57: =+GETPIVOTDATA(" BAS035",TABLAS!$A$95) -> 647 | AM57: 35 | AO57: 42 | BT57: =+IMPORTARDATOSDINAMICOS(" BAS035"|TABLAS!$A$95) | BV57: =+IMPORTARDATOSDINAMICOS(" BAS042"|TABLAS!$A$95)
A60: EVALUACION DEL DESARROLLO | Y60: º
A62: Grupo de Edad | C62: RETARDO DEL DESARROLLO - META | F62: TRANSTORNO / DEFICIT DEL DESARROLLO
F63: Diagnosticado | M63: Recuperado
C64: Mensual | D64: Acum | E64: % | F64: L | G64: M | H64: S | I64: C | J64: COG | K64: Mens | L64: % | M64: L | N64: M | O64: S | P64: C | Q64: COG | R64: Mens | S64: Acum | T64: %
A65: < 1 año | F65: =+GETPIVOTDATA(" BAS043",TABLAS!$A$95) -> 0 | G65: =+GETPIVOTDATA(" BAS044",TABLAS!$A$95) -> 0 | H65: =+GETPIVOTDATA(" BAS045",TABLAS!$A$95) -> 0 | I65: =+GETPIVOTDATA(" BAS046",TABLAS!$A$95) -> 0 | J65: =+GETPIVOTDATA(" BAS047",TABLAS!$A$95) -> 0 | K65: =SUM(F65:I65) -> 0 | M65: =+GETPIVOTDATA(" BAS048",TABLAS!$A$95) -> 0 | N65: =+GETPIVOTDATA(" BAS049",TABLAS!$A$95) -> 0 | O65: =+GETPIVOTDATA(" BAS050",TABLAS!$A$95) -> 0 | P65: =+GETPIVOTDATA(" BAS051",TABLAS!$A$95) -> 0 | Q65: =+GETPIVOTDATA(" BAS052",TABLAS!$A$95) -> 0 | R65: =SUM(M65:P65) -> 0 | AJ65: =+AO57+1 -> 43 | AK65: =+AJ65+1 -> 44 | AL65: 45 | AM65: 46 | AN65: 47 | AQ65: =+AN65+1 -> 48 | AR65: =+AQ65+1 -> 49 | AS65: 50 | AT65: 51 | AU65: 52 | BQ65: =IF(AJ65<10,CONCATENATE($BR$14,"00",AJ65,$BT$41),IF(AND(AJ65>9,AJ65<100),CONCATENATE($BR$14,"0",AJ65,$BT$41),IF(AJ65>99,CONCATENATE($BR$14,AJ65,$BT$41)))) -> =+IMPORTARDATOSDINAMICOS(" BAS043"|TABLAS!$A$95) | BR65: =+IMPORTARDATOSDINAMICOS(" BAS044"|TABLAS!$A$95) | BS65: =+IMPORTARDATOSDINAMICOS(" BAS045"|TABLAS!$A$95) | BT65: =+IMPORTARDATOSDINAMICOS(" BAS046"|TABLAS!$A$95) | BU65: =+IMPORTARDATOSDINAMICOS(" BAS047"|TABLAS!$A$95) | BX65: =IF(AQ65<10,CONCATENATE($BR$14,"00",AQ65,$BT$41),IF(AND(AQ65>9,AQ65<100),CONCATENATE($BR$14,"0",AQ65,$BT$41),IF(AQ65>99,CONCATENATE($BR$14,AQ65,$BT$41)))) -> =+IMPORTARDATOSDINAMICOS(" BAS048"|TABLAS!$A$95) | BY65: =+IMPORTARDATOSDINAMICOS(" BAS049"|TABLAS!$A$95) | BZ65: =+IMPORTARDATOSDINAMICOS(" BAS050"|TABLAS!$A$95) | CA65: =+IMPORTARDATOSDINAMICOS(" BAS051"|TABLAS!$A$95) | CB65: =+IMPORTARDATOSDINAMICOS(" BAS052"|TABLAS!$A$95)
A66: 1 año | F66: =+GETPIVOTDATA(" BAS053",TABLAS!$A$95) -> 0 | G66: =+GETPIVOTDATA(" BAS054",TABLAS!$A$95) -> 0 | H66: =+GETPIVOTDATA(" BAS055",TABLAS!$A$95) -> 0 | I66: =+GETPIVOTDATA(" BAS056",TABLAS!$A$95) -> 0 | J66: =+GETPIVOTDATA(" BAS057",TABLAS!$A$95) -> 0 | K66: =SUM(F66:I66) -> 0 | M66: =+GETPIVOTDATA(" BAS058",TABLAS!$A$95) -> 0 | N66: =+GETPIVOTDATA(" BAS059",TABLAS!$A$95) -> 0 | O66: =+GETPIVOTDATA(" BAS060",TABLAS!$A$95) -> 0 | P66: =+GETPIVOTDATA(" BAS061",TABLAS!$A$95) -> 0 | Q66: =+GETPIVOTDATA(" BAS062",TABLAS!$A$95) -> 0 | R66: =SUM(M66:P66) -> 0 | AJ66: =+AU65+1 -> 53 | AK66: 54 | AL66: 55 | AM66: 56 | AN66: 57 | AQ66: 58 | AR66: 59 | AS66: 60 | AT66: 61 | AU66: 62 | BQ66: =+IMPORTARDATOSDINAMICOS(" BAS053"|TABLAS!$A$95) | BR66: =+IMPORTARDATOSDINAMICOS(" BAS054"|TABLAS!$A$95) | BS66: =+IMPORTARDATOSDINAMICOS(" BAS055"|TABLAS!$A$95) | BT66: =+IMPORTARDATOSDINAMICOS(" BAS056"|TABLAS!$A$95) | BU66: =+IMPORTARDATOSDINAMICOS(" BAS057"|TABLAS!$A$95) | BX66: =+IMPORTARDATOSDINAMICOS(" BAS058"|TABLAS!$A$95) | BY66: =+IMPORTARDATOSDINAMICOS(" BAS059"|TABLAS!$A$95) | BZ66: =+IMPORTARDATOSDINAMICOS(" BAS060"|TABLAS!$A$95) | CA66: =+IMPORTARDATOSDINAMICOS(" BAS061"|TABLAS!$A$95) | CB66: =+IMPORTARDATOSDINAMICOS(" BAS062"|TABLAS!$A$95)
A67: 2 años | F67: =+GETPIVOTDATA(" BAS063",TABLAS!$A$95) -> 1 | G67: =+GETPIVOTDATA(" BAS064",TABLAS!$A$95) -> 1 | H67: =+GETPIVOTDATA(" BAS065",TABLAS!$A$95) -> 0 | I67: =+GETPIVOTDATA(" BAS066",TABLAS!$A$95) -> 0 | J67: =+GETPIVOTDATA(" BAS067",TABLAS!$A$95) -> 0 | K67: =SUM(F67:I67) -> 2 | M67: =+GETPIVOTDATA(" BAS068",TABLAS!$A$95) -> 0 | N67: =+GETPIVOTDATA(" BAS069",TABLAS!$A$95) -> 0 | O67: =+GETPIVOTDATA(" BAS070",TABLAS!$A$95) -> 0 | P67: =+GETPIVOTDATA(" BAS071",TABLAS!$A$95) -> 0 | Q67: =+GETPIVOTDATA(" BAS072",TABLAS!$A$95) -> 0 | R67: =SUM(M67:P67) -> 0 | AJ67: =+AU66+1 -> 63 | AK67: 64 | AL67: 65 | AM67: 66 | AN67: 67 | AQ67: 68 | AR67: 69 | AS67: 70 | AT67: 71 | AU67: 72 | BQ67: =+IMPORTARDATOSDINAMICOS(" BAS063"|TABLAS!$A$95) | BR67: =+IMPORTARDATOSDINAMICOS(" BAS064"|TABLAS!$A$95) | BS67: =+IMPORTARDATOSDINAMICOS(" BAS065"|TABLAS!$A$95) | BT67: =+IMPORTARDATOSDINAMICOS(" BAS066"|TABLAS!$A$95) | BU67: =+IMPORTARDATOSDINAMICOS(" BAS067"|TABLAS!$A$95) | BX67: =+IMPORTARDATOSDINAMICOS(" BAS068"|TABLAS!$A$95) | BY67: =+IMPORTARDATOSDINAMICOS(" BAS069"|TABLAS!$A$95) | BZ67: =+IMPORTARDATOSDINAMICOS(" BAS070"|TABLAS!$A$95) | CA67: =+IMPORTARDATOSDINAMICOS(" BAS071"|TABLAS!$A$95) | CB67: =+IMPORTARDATOSDINAMICOS(" BAS072"|TABLAS!$A$95)
A68: 3 años | F68: =+GETPIVOTDATA(" BAS073",TABLAS!$A$95) -> 1 | G68: =+GETPIVOTDATA(" BAS074",TABLAS!$A$95) -> 0 | H68: =+GETPIVOTDATA(" BAS075",TABLAS!$A$95) -> 0 | I68: =+GETPIVOTDATA(" BAS076",TABLAS!$A$95) -> 0 | J68: =+GETPIVOTDATA(" BAS077",TABLAS!$A$95) -> 0 | K68: =SUM(F68:I68) -> 1 | M68: =+GETPIVOTDATA(" BAS078",TABLAS!$A$95) -> 0 | N68: =+GETPIVOTDATA(" BAS079",TABLAS!$A$95) -> 0 | O68: =+GETPIVOTDATA(" BAS080",TABLAS!$A$95) -> 0 | P68: =+GETPIVOTDATA(" BAS081",TABLAS!$A$95) -> 0 | Q68: =+GETPIVOTDATA(" BAS082",TABLAS!$A$95) -> 0 | R68: =SUM(M68:P68) -> 0 | AJ68: =+AU67+1 -> 73 | AK68: 74 | AL68: 75 | AM68: 76 | AN68: 77 | AQ68: 78 | AR68: 79 | AS68: 80 | AT68: 81 | AU68: 82 | BQ68: =+IMPORTARDATOSDINAMICOS(" BAS073"|TABLAS!$A$95) | BR68: =+IMPORTARDATOSDINAMICOS(" BAS074"|TABLAS!$A$95) | BS68: =+IMPORTARDATOSDINAMICOS(" BAS075"|TABLAS!$A$95) | BT68: =+IMPORTARDATOSDINAMICOS(" BAS076"|TABLAS!$A$95) | BU68: =+IMPORTARDATOSDINAMICOS(" BAS077"|TABLAS!$A$95) | BX68: =+IMPORTARDATOSDINAMICOS(" BAS078"|TABLAS!$A$95) | BY68: =+IMPORTARDATOSDINAMICOS(" BAS079"|TABLAS!$A$95) | BZ68: =+IMPORTARDATOSDINAMICOS(" BAS080"|TABLAS!$A$95) | CA68: =+IMPORTARDATOSDINAMICOS(" BAS081"|TABLAS!$A$95) | CB68: =+IMPORTARDATOSDINAMICOS(" BAS082"|TABLAS!$A$95)
A69: 4 años | F69: =+GETPIVOTDATA(" BAS083",TABLAS!$A$95) -> 0 | G69: =+GETPIVOTDATA(" BAS084",TABLAS!$A$95) -> 0 | H69: =+GETPIVOTDATA(" BAS085",TABLAS!$A$95) -> 0 | I69: =+GETPIVOTDATA(" BAS086",TABLAS!$A$95) -> 0 | J69: =+GETPIVOTDATA(" BAS087",TABLAS!$A$95) -> 0 | K69: =SUM(F69:I69) -> 0 | M69: =+GETPIVOTDATA(" BAS088",TABLAS!$A$95) -> 0 | N69: =+GETPIVOTDATA(" BAS089",TABLAS!$A$95) -> 0 | O69: =+GETPIVOTDATA(" BAS090",TABLAS!$A$95) -> 0 | P69: =+GETPIVOTDATA(" BAS091",TABLAS!$A$95) -> 0 | Q69: =+GETPIVOTDATA(" BAS092",TABLAS!$A$95) -> 0 | R69: =SUM(M69:P69) -> 0 | AJ69: =+AU68+1 -> 83 | AK69: 84 | AL69: 85 | AM69: 86 | AN69: 87 | AQ69: 88 | AR69: 89 | AS69: 90 | AT69: 91 | AU69: 92 | BQ69: =+IMPORTARDATOSDINAMICOS(" BAS083"|TABLAS!$A$95) | BR69: =+IMPORTARDATOSDINAMICOS(" BAS084"|TABLAS!$A$95) | BS69: =+IMPORTARDATOSDINAMICOS(" BAS085"|TABLAS!$A$95) | BT69: =+IMPORTARDATOSDINAMICOS(" BAS086"|TABLAS!$A$95) | BU69: =+IMPORTARDATOSDINAMICOS(" BAS087"|TABLAS!$A$95) | BX69: =+IMPORTARDATOSDINAMICOS(" BAS088"|TABLAS!$A$95) | BY69: =+IMPORTARDATOSDINAMICOS(" BAS089"|TABLAS!$A$95) | BZ69: =+IMPORTARDATOSDINAMICOS(" BAS090"|TABLAS!$A$95) | CA69: =+IMPORTARDATOSDINAMICOS(" BAS091"|TABLAS!$A$95) | CB69: =+IMPORTARDATOSDINAMICOS(" BAS092"|TABLAS!$A$95)
A70: 5-11 años | F70: =+GETPIVOTDATA(" BAS093",TABLAS!$A$95) -> 1 | G70: =+GETPIVOTDATA(" BAS094",TABLAS!$A$95) -> 1 | H70: =+GETPIVOTDATA(" BAS095",TABLAS!$A$95) -> 0 | I70: =+GETPIVOTDATA(" BAS096",TABLAS!$A$95) -> 0 | J70: =+GETPIVOTDATA(" BAS097",TABLAS!$A$95) -> 1 | M70: =+GETPIVOTDATA(" BAS098",TABLAS!$A$95) -> 0 | N70: =+GETPIVOTDATA(" BAS099",TABLAS!$A$95) -> 0 | O70: =+GETPIVOTDATA(" BAS100",TABLAS!$A$95) -> 0 | P70: =+GETPIVOTDATA(" BAS101",TABLAS!$A$95) -> 0 | Q70: =+GETPIVOTDATA(" BAS102",TABLAS!$A$95) -> 0 | AJ70: =+AU69+1 -> 93 | AK70: 94 | AL70: 95 | AM70: 96 | AN70: 97 | AQ70: 98 | AR70: 99 | AS70: 100 | AT70: 101 | AU70: 102 | BQ70: =+IMPORTARDATOSDINAMICOS(" BAS093"|TABLAS!$A$95) | BR70: =+IMPORTARDATOSDINAMICOS(" BAS094"|TABLAS!$A$95) | BS70: =+IMPORTARDATOSDINAMICOS(" BAS095"|TABLAS!$A$95) | BT70: =+IMPORTARDATOSDINAMICOS(" BAS096"|TABLAS!$A$95) | BU70: =+IMPORTARDATOSDINAMICOS(" BAS097"|TABLAS!$A$95) | BX70: =+IMPORTARDATOSDINAMICOS(" BAS098"|TABLAS!$A$95) | BY70: =+IMPORTARDATOSDINAMICOS(" BAS099"|TABLAS!$A$95) | BZ70: =+IMPORTARDATOSDINAMICOS(" BAS100"|TABLAS!$A$95) | CA70: =+IMPORTARDATOSDINAMICOS(" BAS101"|TABLAS!$A$95) | CB70: =+IMPORTARDATOSDINAMICOS(" BAS102"|TABLAS!$A$95)
A71: TOTAL | K71: =SUM(K65:K70) -> 3 | R71: =SUM(R65:R70) -> 0
F72: =+D72+1 -> 1 | G72: =+F72+1 -> 2 | H72: =+G72+1 -> 3 | I72: =+H72+1 -> 4 | J72: =+I72+1 -> 5 | M72: =+J72+1 -> 6 | N72: =+M72+1 -> 7 | O72: =+N72+1 -> 8 | P72: =+O72+1 -> 9 | Q72: =+P72+1 -> 10 | AJ72: 1 | AK72: =+AJ72+1 -> 2 | AL72: =+AK72+1 -> 3 | AM72: =+AL72+1 -> 4 | AN72: =+AM72+1 -> 5 | AQ72: =+AN72+1 -> 6 | AR72: =+AQ72+1 -> 7 | AS72: =+AR72+1 -> 8 | AT72: =+AS72+1 -> 9 | AU72: =+AT72+1 -> 10
A73: SESIONES DE ATENCIÓN TEMPRANA (99411)
A75: Edad | C75: 1º Sesion | D75: 2º Sesion | E75: 3º Sesion | F75: 4º Sesion | G75: 5º Sesion | H75: 6º Sesion | I75: Niño con sesiones completas
I76: Mensual | J76: Acum | BQ76: d | BW76: d
A77: RN | C77: =+GETPIVOTDATA(" BAS103",TABLAS!$A$95) -> 316 | D77: =+GETPIVOTDATA(" BAS104",TABLAS!$A$95) -> 0 | E77: =+GETPIVOTDATA(" BAS105",TABLAS!$A$95) -> 0 | F77: =+GETPIVOTDATA(" BAS106",TABLAS!$A$95) -> 0 | G77: =+GETPIVOTDATA(" BAS107",TABLAS!$A$95) -> 0 | H77: =+GETPIVOTDATA(" BAS108",TABLAS!$A$95) -> 0 | I77: =+GETPIVOTDATA(" BAS109",TABLAS!$A$95) -> 0 | AJ77: =+AU70+1 -> 103 | AK77: =+AJ77+1 -> 104 | AL77: 105 | AM77: 106 | AN77: 107 | AO77: 108 | AP77: 109 | BQ77: =IF(AJ77<10,CONCATENATE($BR$14,"00",AJ77,$BT$41),IF(AND(AJ77>9,AJ77<100),CONCATENATE($BR$14,"0",AJ77,$BT$41),IF(AJ77>99,CONCATENATE($BR$14,AJ77,$BT$41)))) -> =+IMPORTARDATOSDINAMICOS(" BAS103"|TABLAS!$A$95) | BR77: =+IMPORTARDATOSDINAMICOS(" BAS104"|TABLAS!$A$95) | BS77: =+IMPORTARDATOSDINAMICOS(" BAS105"|TABLAS!$A$95) | BT77: =+IMPORTARDATOSDINAMICOS(" BAS106"|TABLAS!$A$95) | BU77: =+IMPORTARDATOSDINAMICOS(" BAS107"|TABLAS!$A$95) | BV77: =+IMPORTARDATOSDINAMICOS(" BAS108"|TABLAS!$A$95) | BW77: =+IMPORTARDATOSDINAMICOS(" BAS109"|TABLAS!$A$95) | BX77: =+IMPORTARDATOSDINAMICOS(" BAS00"|TABLAS!$A$95)
A78: <1a | C78: =+GETPIVOTDATA(" BAS110",TABLAS!$A$95) -> 528 | D78: =+GETPIVOTDATA(" BAS111",TABLAS!$A$95) -> 526 | E78: =+GETPIVOTDATA(" BAS112",TABLAS!$A$95) -> 566 | F78: =+GETPIVOTDATA(" BAS113",TABLAS!$A$95) -> 546 | G78: =+GETPIVOTDATA(" BAS114",TABLAS!$A$95) -> 503 | H78: =+GETPIVOTDATA(" BAS115",TABLAS!$A$95) -> 517 | I78: =+GETPIVOTDATA(" BAS116",TABLAS!$A$95) -> 0 | AJ78: =+AP77+1 -> 110 | AK78: 111 | AL78: 112 | AM78: 113 | AN78: 114 | AO78: 115 | AP78: 116 | BQ78: =+IMPORTARDATOSDINAMICOS(" BAS110"|TABLAS!$A$95) | BR78: =+IMPORTARDATOSDINAMICOS(" BAS111"|TABLAS!$A$95) | BS78: =+IMPORTARDATOSDINAMICOS(" BAS112"|TABLAS!$A$95) | BT78: =+IMPORTARDATOSDINAMICOS(" BAS113"|TABLAS!$A$95) | BU78: =+IMPORTARDATOSDINAMICOS(" BAS114"|TABLAS!$A$95) | BV78: =+IMPORTARDATOSDINAMICOS(" BAS115"|TABLAS!$A$95) | BW78: =+IMPORTARDATOSDINAMICOS(" BAS116"|TABLAS!$A$95) | BX78: =+IMPORTARDATOSDINAMICOS(" BAS00"|TABLAS!$A$95)
A79: 1a | C79: =+GETPIVOTDATA(" BAS117",TABLAS!$A$95) -> 441 | D79: =+GETPIVOTDATA(" BAS118",TABLAS!$A$95) -> 407 | E79: =+GETPIVOTDATA(" BAS119",TABLAS!$A$95) -> 446 | F79: =+GETPIVOTDATA(" BAS120",TABLAS!$A$95) -> 247 | G79: =+GETPIVOTDATA(" BAS121",TABLAS!$A$95) -> 6 | H79: =+GETPIVOTDATA(" BAS122",TABLAS!$A$95) -> 1 | I79: =+GETPIVOTDATA(" BAS123",TABLAS!$A$95) -> 0 | AJ79: =+AP78+1 -> 117 | AK79: 118 | AL79: 119 | AM79: 120 | AN79: 121 | AO79: 122 | AP79: 123 | BQ79: =+IMPORTARDATOSDINAMICOS(" BAS117"|TABLAS!$A$95) | BR79: =+IMPORTARDATOSDINAMICOS(" BAS118"|TABLAS!$A$95) | BS79: =+IMPORTARDATOSDINAMICOS(" BAS119"|TABLAS!$A$95) | BT79: =+IMPORTARDATOSDINAMICOS(" BAS120"|TABLAS!$A$95) | BU79: =+IMPORTARDATOSDINAMICOS(" BAS121"|TABLAS!$A$95) | BV79: =+IMPORTARDATOSDINAMICOS(" BAS122"|TABLAS!$A$95) | BW79: =+IMPORTARDATOSDINAMICOS(" BAS123"|TABLAS!$A$95) | BX79: =+IMPORTARDATOSDINAMICOS(" BAS00"|TABLAS!$A$95)
A80: 2a | C80: =+GETPIVOTDATA(" BAS124",TABLAS!$A$95) -> 383 | D80: =+GETPIVOTDATA(" BAS125",TABLAS!$A$95) -> 245 | E80: =+GETPIVOTDATA(" BAS126",TABLAS!$A$95) -> 14 | F80: =+GETPIVOTDATA(" BAS127",TABLAS!$A$95) -> 3 | G80: =+GETPIVOTDATA(" BAS128",TABLAS!$A$95) -> 0 | H80: =+GETPIVOTDATA(" BAS129",TABLAS!$A$95) -> 0 | I80: =+GETPIVOTDATA(" BAS130",TABLAS!$A$95) -> 0 | AJ80: =+AP79+1 -> 124 | AK80: 125 | AL80: 126 | AM80: 127 | AN80: 128 | AO80: 129 | AP80: 130 | BQ80: =+IMPORTARDATOSDINAMICOS(" BAS124"|TABLAS!$A$95) | BR80: =+IMPORTARDATOSDINAMICOS(" BAS125"|TABLAS!$A$95) | BS80: =+IMPORTARDATOSDINAMICOS(" BAS126"|TABLAS!$A$95) | BT80: =+IMPORTARDATOSDINAMICOS(" BAS127"|TABLAS!$A$95) | BU80: =+IMPORTARDATOSDINAMICOS(" BAS128"|TABLAS!$A$95) | BV80: =+IMPORTARDATOSDINAMICOS(" BAS129"|TABLAS!$A$95) | BW80: =+IMPORTARDATOSDINAMICOS(" BAS130"|TABLAS!$A$95) | BX80: =+IMPORTARDATOSDINAMICOS(" BAS00"|TABLAS!$A$95)
A81: 3a | C81: =+GETPIVOTDATA(" BAS131",TABLAS!$A$95) -> 105 | D81: =+GETPIVOTDATA(" BAS132",TABLAS!$A$95) -> 1 | E81: =+GETPIVOTDATA(" BAS133",TABLAS!$A$95) -> 0 | F81: =+GETPIVOTDATA(" BAS134",TABLAS!$A$95) -> 0 | G81: =+GETPIVOTDATA(" BAS135",TABLAS!$A$95) -> 0 | H81: =+GETPIVOTDATA(" BAS136",TABLAS!$A$95) -> 0 | I81: =+GETPIVOTDATA(" BAS137",TABLAS!$A$95) -> 0 | AJ81: =+AP80+1 -> 131 | AK81: 132 | AL81: 133 | AM81: 134 | AN81: 135 | AO81: 136 | AP81: 137 | BQ81: =+IMPORTARDATOSDINAMICOS(" BAS131"|TABLAS!$A$95) | BR81: =+IMPORTARDATOSDINAMICOS(" BAS132"|TABLAS!$A$95) | BS81: =+IMPORTARDATOSDINAMICOS(" BAS133"|TABLAS!$A$95) | BT81: =+IMPORTARDATOSDINAMICOS(" BAS134"|TABLAS!$A$95) | BU81: =+IMPORTARDATOSDINAMICOS(" BAS135"|TABLAS!$A$95) | BV81: =+IMPORTARDATOSDINAMICOS(" BAS136"|TABLAS!$A$95) | BW81: =+IMPORTARDATOSDINAMICOS(" BAS137"|TABLAS!$A$95) | BX81: =+IMPORTARDATOSDINAMICOS(" BAS00"|TABLAS!$A$95)
C82: 1 | D82: =+C82+1 -> 2 | E82: =+D82+1 -> 3 | F82: =+E82+1 -> 4 | G82: =+F82+1 -> 5 | H82: =+G82+1 -> 6 | AJ82: 1 | AK82: 2 | AL82: 3 | AM82: 4 | AN82: 5 | AO82: 6 | AP82: 7
A83: IV.- Consejeria en la Atención del niño (a)
BQ84: =+GETPIVOTDATA(" BAS001",TABLAS!$A$130) -> 8
A85: Tipos / Edades | E85: Total | F85: RN | G85: <1 año | H85: 01 año | I85: 02 años | J85: 03 años | K85: 04 años | L85: 5 años | M85: 6 años | N85: 7 años | O85: 8 años | P85: 9 años | Q85: 10 años | R85: 11 años | BQ85: "|TABLAS!$A$130) | CC85: e
A86: Consejería en atención temprana del desarrollo | E86: =SUM(F86:R86) -> 59 | F86: =+GETPIVOTDATA(" BAS001",TABLAS!$A$130) -> 8 | G86: =+GETPIVOTDATA(" BAS002",TABLAS!$A$130) -> 29 | H86: =+GETPIVOTDATA(" BAS003",TABLAS!$A$130) -> 16 | I86: =+GETPIVOTDATA(" BAS004",TABLAS!$A$130) -> 0 | J86: =+GETPIVOTDATA(" BAS005",TABLAS!$A$130) -> 1 | K86: =+GETPIVOTDATA(" BAS006",TABLAS!$A$130) -> 2 | L86: =+GETPIVOTDATA(" BAS007",TABLAS!$A$130) -> 1 | M86: =+GETPIVOTDATA(" BAS008",TABLAS!$A$130) -> 1 | N86: =+GETPIVOTDATA(" BAS009",TABLAS!$A$130) -> 0 | O86: =+GETPIVOTDATA(" BAS010",TABLAS!$A$130) -> 0 | P86: =+GETPIVOTDATA(" BAS011",TABLAS!$A$130) -> 0 | Q86: =+GETPIVOTDATA(" BAS012",TABLAS!$A$130) -> 1 | R86: =+GETPIVOTDATA(" BAS013",TABLAS!$A$130) -> 0 | AJ86: 1 | AK86: =+AJ86+1 -> 2 | AL86: 3 | AM86: 4 | AN86: 5 | AO86: 6 | AP86: 7 | AQ86: 8 | AR86: 9 | AS86: 10 | AT86: 11 | AU86: 12 | AV86: 13 | BQ86: =IF(AJ86<10,CONCATENATE($BR$14,"00",AJ86,$BQ$85),IF(AND(AJ86>9,AJ86<100),CONCATENATE($BR$14,"0",AJ86,$BQ$85),IF(AJ86>99,CONCATENATE($BR$14,AJ86,$BQ$85)))) -> =+IMPORTARDATOSDINAMICOS(" BAS001"|TABLAS!$A$130) | BR86: =IF(AK86<10,CONCATENATE($BR$14,"00",AK86,$BQ$85),IF(AND(AK86>9,AK86<100),CONCATENATE($BR$14,"0",AK86,$BQ$85),IF(AK86>99,CONCATENATE($BR$14,AK86,$BQ$85)))) -> =+IMPORTARDATOSDINAMICOS(" BAS002"|TABLAS!$A$130) | BS86: =IF(AL86<10,CONCATENATE($BR$14,"00",AL86,$BQ$85),IF(AND(AL86>9,AL86<100),CONCATENATE($BR$14,"0",AL86,$BQ$85),IF(AL86>99,CONCATENATE($BR$14,AL86,$BQ$85)))) -> =+IMPORTARDATOSDINAMICOS(" BAS003"|TABLAS!$A$130) | BT86: =IF(AM86<10,CONCATENATE($BR$14,"00",AM86,$BQ$85),IF(AND(AM86>9,AM86<100),CONCATENATE($BR$14,"0",AM86,$BQ$85),IF(AM86>99,CONCATENATE($BR$14,AM86,$BQ$85)))) -> =+IMPORTARDATOSDINAMICOS(" BAS004"|TABLAS!$A$130) | BU86: =IF(AN86<10,CONCATENATE($BR$14,"00",AN86,$BQ$85),IF(AND(AN86>9,AN86<100),CONCATENATE($BR$14,"0",AN86,$BQ$85),IF(AN86>99,CONCATENATE($BR$14,AN86,$BQ$85)))) -> =+IMPORTARDATOSDINAMICOS(" BAS005"|TABLAS!$A$130) | BV86: =IF(AO86<10,CONCATENATE($BR$14,"00",AO86,$BQ$85),IF(AND(AO86>9,AO86<100),CONCATENATE($BR$14,"0",AO86,$BQ$85),IF(AO86>99,CONCATENATE($BR$14,AO86,$BQ$85)))) -> =+IMPORTARDATOSDINAMICOS(" BAS006"|TABLAS!$A$130) | BW86: =IF(AP86<10,CONCATENATE($BR$14,"00",AP86,$BQ$85),IF(AND(AP86>9,AP86<100),CONCATENATE($BR$14,"0",AP86,$BQ$85),IF(AP86>99,CONCATENATE($BR$14,AP86,$BQ$85)))) -> =+IMPORTARDATOSDINAMICOS(" BAS007"|TABLAS!$A$130) | BX86: =IF(AQ86<10,CONCATENATE($BR$14,"00",AQ86,$BQ$85),IF(AND(AQ86>9,AQ86<100),CONCATENATE($BR$14,"0",AQ86,$BQ$85),IF(AQ86>99,CONCATENATE($BR$14,AQ86,$BQ$85)))) -> =+IMPORTARDATOSDINAMICOS(" BAS008"|TABLAS!$A$130) | BY86: =IF(AR86<10,CONCATENATE($BR$14,"00",AR86,$BQ$85),IF(AND(AR86>9,AR86<100),CONCATENATE($BR$14,"0",AR86,$BQ$85),IF(AR86>99,CONCATENATE($BR$14,AR86,$BQ$85)))) -> =+IMPORTARDATOSDINAMICOS(" BAS009"|TABLAS!$A$130) | BZ86: =IF(AS86<10,CONCATENATE($BR$14,"00",AS86,$BQ$85),IF(AND(AS86>9,AS86<100),CONCATENATE($BR$14,"0",AS86,$BQ$85),IF(AS86>99,CONCATENATE($BR$14,AS86,$BQ$85)))) -> =+IMPORTARDATOSDINAMICOS(" BAS010"|TABLAS!$A$130) | CA86: =IF(AT86<10,CONCATENATE($BR$14,"00",AT86,$BQ$85),IF(AND(AT86>9,AT86<100),CONCATENATE($BR$14,"0",AT86,$BQ$85),IF(AT86>99,CONCATENATE($BR$14,AT86,$BQ$85)))) -> =+IMPORTARDATOSDINAMICOS(" BAS011"|TABLAS!$A$130) | CB86: =IF(AU86<10,CONCATENATE($BR$14,"00",AU86,$BQ$85),IF(AND(AU86>9,AU86<100),CONCATENATE($BR$14,"0",AU86,$BQ$85),IF(AU86>99,CONCATENATE($BR$14,AU86,$BQ$85)))) -> =+IMPORTARDATOSDINAMICOS(" BAS012"|TABLAS!$A$130) | CC86: =IF(AV86<10,CONCATENATE($BR$14,"00",AV86,$BQ$85),IF(AND(AV86>9,AV86<100),CONCATENATE($BR$14,"0",AV86,$BQ$85),IF(AV86>99,CONCATENATE($BR$14,AV86,$BQ$85)))) -> =+IMPORTARDATOSDINAMICOS(" BAS013"|TABLAS!$A$130)
A87: Consejería en inmunizaciones | E87: =SUM(F87:R87) -> 1945 | F87: =+GETPIVOTDATA(" BAS014",TABLAS!$A$130) -> 349 | G87: =+GETPIVOTDATA(" BAS015",TABLAS!$A$130) -> 992 | H87: =+GETPIVOTDATA(" BAS016",TABLAS!$A$130) -> 497 | I87: =+GETPIVOTDATA(" BAS017",TABLAS!$A$130) -> 27 | J87: =+GETPIVOTDATA(" BAS018",TABLAS!$A$130) -> 22 | K87: =+GETPIVOTDATA(" BAS019",TABLAS!$A$130) -> 52 | L87: =+GETPIVOTDATA(" BAS020",TABLAS!$A$130) -> 1 | M87: =+GETPIVOTDATA(" BAS021",TABLAS!$A$130) -> 3 | N87: =+GETPIVOTDATA(" BAS022",TABLAS!$A$130) -> 1 | O87: =+GETPIVOTDATA(" BAS023",TABLAS!$A$130) -> 0 | P87: =+GETPIVOTDATA(" BAS024",TABLAS!$A$130) -> 0 | Q87: =+GETPIVOTDATA(" BAS025",TABLAS!$A$130) -> 1 | R87: =+GETPIVOTDATA(" BAS026",TABLAS!$A$130) -> 0 | AJ87: =+AV86+1 -> 14 | AK87: =+AJ87+1 -> 15 | AL87: 16 | AM87: 17 | AN87: 18 | AO87: 19 | AP87: 20 | AQ87: 21 | AR87: 22 | AS87: 23 | AT87: 24 | AU87: 25 | AV87: 26 | BQ87: =+IMPORTARDATOSDINAMICOS(" BAS014"|TABLAS!$A$130) | BR87: =+IMPORTARDATOSDINAMICOS(" BAS015"|TABLAS!$A$130) | BS87: =+IMPORTARDATOSDINAMICOS(" BAS016"|TABLAS!$A$130) | BT87: =+IMPORTARDATOSDINAMICOS(" BAS017"|TABLAS!$A$130) | BU87: =+IMPORTARDATOSDINAMICOS(" BAS018"|TABLAS!$A$130) | BV87: =+IMPORTARDATOSDINAMICOS(" BAS019"|TABLAS!$A$130) | BW87: =+IMPORTARDATOSDINAMICOS(" BAS020"|TABLAS!$A$130) | BX87: =+IMPORTARDATOSDINAMICOS(" BAS021"|TABLAS!$A$130) | BY87: =+IMPORTARDATOSDINAMICOS(" BAS022"|TABLAS!$A$130) | BZ87: =+IMPORTARDATOSDINAMICOS(" BAS023"|TABLAS!$A$130) | CA87: =+IMPORTARDATOSDINAMICOS(" BAS024"|TABLAS!$A$130) | CB87: =+IMPORTARDATOSDINAMICOS(" BAS025"|TABLAS!$A$130) | CC87: =+IMPORTARDATOSDINAMICOS(" BAS026"|TABLAS!$A$130)
A88: Consejería de identificación de signos de alarma | E88: 1130 | F88: =+GETPIVOTDATA(" BAS027",TABLAS!$A$130) -> 784 | G88: =+GETPIVOTDATA(" BAS028",TABLAS!$A$130) -> 215 | H88: =+GETPIVOTDATA(" BAS029",TABLAS!$A$130) -> 69 | I88: =+GETPIVOTDATA(" BAS030",TABLAS!$A$130) -> 17 | J88: =+GETPIVOTDATA(" BAS031",TABLAS!$A$130) -> 15 | K88: =+GETPIVOTDATA(" BAS032",TABLAS!$A$130) -> 15 | L88: =+GETPIVOTDATA(" BAS033",TABLAS!$A$130) -> 6 | M88: =+GETPIVOTDATA(" BAS034",TABLAS!$A$130) -> 1 | N88: =+GETPIVOTDATA(" BAS035",TABLAS!$A$130) -> 3 | O88: =+GETPIVOTDATA(" BAS036",TABLAS!$A$130) -> 1 | P88: =+GETPIVOTDATA(" BAS037",TABLAS!$A$130) -> 1 | Q88: =+GETPIVOTDATA(" BAS038",TABLAS!$A$130) -> 2 | R88: =+GETPIVOTDATA(" BAS039",TABLAS!$A$130) -> 1 | AJ88: 27 | AK88: =+AJ88+1 -> 28 | AL88: 29 | AM88: 30 | AN88: 31 | AO88: 32 | AP88: 33 | AQ88: 34 | AR88: 35 | AS88: 36 | AT88: 37 | AU88: 38 | AV88: 39 | BQ88: =+IMPORTARDATOSDINAMICOS(" BAS027"|TABLAS!$A$130) | BR88: =+IMPORTARDATOSDINAMICOS(" BAS028"|TABLAS!$A$130) | BS88: =+IMPORTARDATOSDINAMICOS(" BAS029"|TABLAS!$A$130) | BT88: =+IMPORTARDATOSDINAMICOS(" BAS030"|TABLAS!$A$130) | BU88: =+IMPORTARDATOSDINAMICOS(" BAS031"|TABLAS!$A$130) | BV88: =+IMPORTARDATOSDINAMICOS(" BAS032"|TABLAS!$A$130) | BW88: =+IMPORTARDATOSDINAMICOS(" BAS033"|TABLAS!$A$130) | BX88: =+IMPORTARDATOSDINAMICOS(" BAS034"|TABLAS!$A$130) | BY88: =+IMPORTARDATOSDINAMICOS(" BAS035"|TABLAS!$A$130) | BZ88: =+IMPORTARDATOSDINAMICOS(" BAS036"|TABLAS!$A$130) | CA88: =+IMPORTARDATOSDINAMICOS(" BAS037"|TABLAS!$A$130) | CB88: =+IMPORTARDATOSDINAMICOS(" BAS038"|TABLAS!$A$130) | CC88: =+IMPORTARDATOSDINAMICOS(" BAS039"|TABLAS!$A$130)
A89: Consejería para la prevención de muerte súbita del lactante | E89: 19 | F89: =+GETPIVOTDATA(" BAS040",TABLAS!$A$130) -> 3 | G89: =+GETPIVOTDATA(" BAS041",TABLAS!$A$130) -> 3 | H89: =+GETPIVOTDATA(" BAS042",TABLAS!$A$130) -> 2 | I89: =+GETPIVOTDATA(" BAS043",TABLAS!$A$130) -> 1 | J89: =+GETPIVOTDATA(" BAS044",TABLAS!$A$130) -> 2 | K89: =+GETPIVOTDATA(" BAS045",TABLAS!$A$130) -> 4 | L89: =+GETPIVOTDATA(" BAS046",TABLAS!$A$130) -> 1 | M89: =+GETPIVOTDATA(" BAS047",TABLAS!$A$130) -> 1 | N89: =+GETPIVOTDATA(" BAS048",TABLAS!$A$130) -> 1 | O89: =+GETPIVOTDATA(" BAS049",TABLAS!$A$130) -> 0 | P89: =+GETPIVOTDATA(" BAS050",TABLAS!$A$130) -> 1 | Q89: =+GETPIVOTDATA(" BAS051",TABLAS!$A$130) -> 0 | R89: =+GETPIVOTDATA(" BAS052",TABLAS!$A$130) -> 0 | AJ89: 40 | AK89: =+AJ89+1 -> 41 | AL89: 42 | AM89: 43 | AN89: 44 | AO89: 45 | AP89: 46 | AQ89: 47 | AR89: 48 | AS89: 49 | AT89: 50 | AU89: 51 | AV89: 52 | BQ89: =+IMPORTARDATOSDINAMICOS(" BAS040"|TABLAS!$A$130) | BR89: =+IMPORTARDATOSDINAMICOS(" BAS041"|TABLAS!$A$130) | BS89: =+IMPORTARDATOSDINAMICOS(" BAS042"|TABLAS!$A$130) | BT89: =+IMPORTARDATOSDINAMICOS(" BAS043"|TABLAS!$A$130) | BU89: =+IMPORTARDATOSDINAMICOS(" BAS044"|TABLAS!$A$130) | BV89: =+IMPORTARDATOSDINAMICOS(" BAS045"|TABLAS!$A$130) | BW89: =+IMPORTARDATOSDINAMICOS(" BAS046"|TABLAS!$A$130) | BX89: =+IMPORTARDATOSDINAMICOS(" BAS047"|TABLAS!$A$130) | BY89: =+IMPORTARDATOSDINAMICOS(" BAS048"|TABLAS!$A$130) | BZ89: =+IMPORTARDATOSDINAMICOS(" BAS049"|TABLAS!$A$130) | CA89: =+IMPORTARDATOSDINAMICOS(" BAS050"|TABLAS!$A$130) | CB89: =+IMPORTARDATOSDINAMICOS(" BAS051"|TABLAS!$A$130) | CC89: =+IMPORTARDATOSDINAMICOS(" BAS052"|TABLAS!$A$130)
A90: Consejería para la prevención de enfermedades prevalentes (EDA, IRA, entre otras) | E90: 153 | F90: =+GETPIVOTDATA(" BAS053",TABLAS!$A$130) -> 3 | G90: =+GETPIVOTDATA(" BAS054",TABLAS!$A$130) -> 72 | H90: =+GETPIVOTDATA(" BAS055",TABLAS!$A$130) -> 49 | I90: =+GETPIVOTDATA(" BAS056",TABLAS!$A$130) -> 5 | J90: =+GETPIVOTDATA(" BAS057",TABLAS!$A$130) -> 5 | K90: =+GETPIVOTDATA(" BAS058",TABLAS!$A$130) -> 12 | L90: =+GETPIVOTDATA(" BAS059",TABLAS!$A$130) -> 4 | M90: =+GETPIVOTDATA(" BAS060",TABLAS!$A$130) -> 2 | N90: =+GETPIVOTDATA(" BAS061",TABLAS!$A$130) -> 0 | O90: =+GETPIVOTDATA(" BAS062",TABLAS!$A$130) -> 1 | P90: =+GETPIVOTDATA(" BAS063",TABLAS!$A$130) -> 0 | Q90: =+GETPIVOTDATA(" BAS064",TABLAS!$A$130) -> 0 | R90: =+GETPIVOTDATA(" BAS065",TABLAS!$A$130) -> 0 | AJ90: 53 | AK90: =+AJ90+1 -> 54 | AL90: 55 | AM90: 56 | AN90: 57 | AO90: 58 | AP90: 59 | AQ90: 60 | AR90: 61 | AS90: 62 | AT90: 63 | AU90: 64 | AV90: 65 | BQ90: =+IMPORTARDATOSDINAMICOS(" BAS053"|TABLAS!$A$130) | BR90: =+IMPORTARDATOSDINAMICOS(" BAS054"|TABLAS!$A$130) | BS90: =+IMPORTARDATOSDINAMICOS(" BAS055"|TABLAS!$A$130) | BT90: =+IMPORTARDATOSDINAMICOS(" BAS056"|TABLAS!$A$130) | BU90: =+IMPORTARDATOSDINAMICOS(" BAS057"|TABLAS!$A$130) | BV90: =+IMPORTARDATOSDINAMICOS(" BAS058"|TABLAS!$A$130) | BW90: =+IMPORTARDATOSDINAMICOS(" BAS059"|TABLAS!$A$130) | BX90: =+IMPORTARDATOSDINAMICOS(" BAS060"|TABLAS!$A$130) | BY90: =+IMPORTARDATOSDINAMICOS(" BAS061"|TABLAS!$A$130) | BZ90: =+IMPORTARDATOSDINAMICOS(" BAS062"|TABLAS!$A$130) | CA90: =+IMPORTARDATOSDINAMICOS(" BAS063"|TABLAS!$A$130) | CB90: =+IMPORTARDATOSDINAMICOS(" BAS064"|TABLAS!$A$130) | CC90: =+IMPORTARDATOSDINAMICOS(" BAS065"|TABLAS!$A$130)
A91: Consejería en salud ocular | E91: 615 | F91: =+GETPIVOTDATA(" BAS066",TABLAS!$A$130) -> 0 | G91: =+GETPIVOTDATA(" BAS067",TABLAS!$A$130) -> 3 | H91: =+GETPIVOTDATA(" BAS068",TABLAS!$A$130) -> 8 | I91: =+GETPIVOTDATA(" BAS069",TABLAS!$A$130) -> 6 | J91: =+GETPIVOTDATA(" BAS070",TABLAS!$A$130) -> 46 | K91: =+GETPIVOTDATA(" BAS071",TABLAS!$A$130) -> 31 | L91: =+GETPIVOTDATA(" BAS072",TABLAS!$A$130) -> 30 | M91: =+GETPIVOTDATA(" BAS073",TABLAS!$A$130) -> 66 | N91: =+GETPIVOTDATA(" BAS074",TABLAS!$A$130) -> 69 | O91: =+GETPIVOTDATA(" BAS075",TABLAS!$A$130) -> 74 | P91: =+GETPIVOTDATA(" BAS076",TABLAS!$A$130) -> 86 | Q91: =+GETPIVOTDATA(" BAS077",TABLAS!$A$130) -> 109 | R91: =+GETPIVOTDATA(" BAS078",TABLAS!$A$130) -> 87 | AJ91: 66 | AK91: =+AJ91+1 -> 67 | AL91: 68 | AM91: 69 | AN91: 70 | AO91: 71 | AP91: 72 | AQ91: 73 | AR91: 74 | AS91: 75 | AT91: 76 | AU91: 77 | AV91: 78 | BQ91: =+IMPORTARDATOSDINAMICOS(" BAS066"|TABLAS!$A$130) | BR91: =+IMPORTARDATOSDINAMICOS(" BAS067"|TABLAS!$A$130) | BS91: =+IMPORTARDATOSDINAMICOS(" BAS068"|TABLAS!$A$130) | BT91: =+IMPORTARDATOSDINAMICOS(" BAS069"|TABLAS!$A$130) | BU91: =+IMPORTARDATOSDINAMICOS(" BAS070"|TABLAS!$A$130) | BV91: =+IMPORTARDATOSDINAMICOS(" BAS071"|TABLAS!$A$130) | BW91: =+IMPORTARDATOSDINAMICOS(" BAS072"|TABLAS!$A$130) | BX91: =+IMPORTARDATOSDINAMICOS(" BAS073"|TABLAS!$A$130) | BY91: =+IMPORTARDATOSDINAMICOS(" BAS074"|TABLAS!$A$130) | BZ91: =+IMPORTARDATOSDINAMICOS(" BAS075"|TABLAS!$A$130) | CA91: =+IMPORTARDATOSDINAMICOS(" BAS076"|TABLAS!$A$130) | CB91: =+IMPORTARDATOSDINAMICOS(" BAS077"|TABLAS!$A$130) | CC91: =+IMPORTARDATOSDINAMICOS(" BAS078"|TABLAS!$A$130)
A92: Consejería en higiene de manos | E92: 520 | F92: =+GETPIVOTDATA(" BAS079",TABLAS!$A$130) -> 40 | G92: =+GETPIVOTDATA(" BAS080",TABLAS!$A$130) -> 110 | H92: =+GETPIVOTDATA(" BAS081",TABLAS!$A$130) -> 91 | I92: =+GETPIVOTDATA(" BAS082",TABLAS!$A$130) -> 53 | J92: =+GETPIVOTDATA(" BAS083",TABLAS!$A$130) -> 95 | K92: =+GETPIVOTDATA(" BAS084",TABLAS!$A$130) -> 79 | L92: =+GETPIVOTDATA(" BAS085",TABLAS!$A$130) -> 11 | M92: =+GETPIVOTDATA(" BAS086",TABLAS!$A$130) -> 10 | N92: =+GETPIVOTDATA(" BAS087",TABLAS!$A$130) -> 6 | O92: =+GETPIVOTDATA(" BAS088",TABLAS!$A$130) -> 4 | P92: =+GETPIVOTDATA(" BAS089",TABLAS!$A$130) -> 11 | Q92: =+GETPIVOTDATA(" BAS090",TABLAS!$A$130) -> 8 | R92: =+GETPIVOTDATA(" BAS091",TABLAS!$A$130) -> 2 | AJ92: 79 | AK92: =+AJ92+1 -> 80 | AL92: 81 | AM92: 82 | AN92: 83 | AO92: 84 | AP92: 85 | AQ92: 86 | AR92: 87 | AS92: 88 | AT92: 89 | AU92: 90 | AV92: 91 | BQ92: =+IMPORTARDATOSDINAMICOS(" BAS079"|TABLAS!$A$130) | BR92: =+IMPORTARDATOSDINAMICOS(" BAS080"|TABLAS!$A$130) | BS92: =+IMPORTARDATOSDINAMICOS(" BAS081"|TABLAS!$A$130) | BT92: =+IMPORTARDATOSDINAMICOS(" BAS082"|TABLAS!$A$130) | BU92: =+IMPORTARDATOSDINAMICOS(" BAS083"|TABLAS!$A$130) | BV92: =+IMPORTARDATOSDINAMICOS(" BAS084"|TABLAS!$A$130) | BW92: =+IMPORTARDATOSDINAMICOS(" BAS085"|TABLAS!$A$130) | BX92: =+IMPORTARDATOSDINAMICOS(" BAS086"|TABLAS!$A$130) | BY92: =+IMPORTARDATOSDINAMICOS(" BAS087"|TABLAS!$A$130) | BZ92: =+IMPORTARDATOSDINAMICOS(" BAS088"|TABLAS!$A$130) | CA92: =+IMPORTARDATOSDINAMICOS(" BAS089"|TABLAS!$A$130) | CB92: =+IMPORTARDATOSDINAMICOS(" BAS090"|TABLAS!$A$130) | CC92: =+IMPORTARDATOSDINAMICOS(" BAS091"|TABLAS!$A$130)
A93: Consejería en pautas de crianza, buen trato, comunicación y cuidados adecuados | E93: 1459 | F93: =+GETPIVOTDATA(" BAS092",TABLAS!$A$130) -> 107 | G93: =+GETPIVOTDATA(" BAS093",TABLAS!$A$130) -> 363 | H93: =+GETPIVOTDATA(" BAS094",TABLAS!$A$130) -> 338 | I93: =+GETPIVOTDATA(" BAS095",TABLAS!$A$130) -> 272 | J93: =+GETPIVOTDATA(" BAS096",TABLAS!$A$130) -> 219 | K93: =+GETPIVOTDATA(" BAS097",TABLAS!$A$130) -> 131 | L93: =+GETPIVOTDATA(" BAS098",TABLAS!$A$130) -> 19 | M93: =+GETPIVOTDATA(" BAS099",TABLAS!$A$130) -> 2 | N93: =+GETPIVOTDATA(" BAS100",TABLAS!$A$130) -> 2 | O93: =+GETPIVOTDATA(" BAS101",TABLAS!$A$130) -> 1 | P93: =+GETPIVOTDATA(" BAS102",TABLAS!$A$130) -> 1 | Q93: =+GETPIVOTDATA(" BAS103",TABLAS!$A$130) -> 2 | R93: =+GETPIVOTDATA(" BAS104",TABLAS!$A$130) -> 2 | AJ93: 92 | AK93: =+AJ93+1 -> 93 | AL93: 94 | AM93: 95 | AN93: 96 | AO93: 97 | AP93: 98 | AQ93: 99 | AR93: 100 | AS93: 101 | AT93: 102 | AU93: 103 | AV93: 104 | BQ93: =+IMPORTARDATOSDINAMICOS(" BAS092"|TABLAS!$A$130) | BR93: =+IMPORTARDATOSDINAMICOS(" BAS093"|TABLAS!$A$130) | BS93: =+IMPORTARDATOSDINAMICOS(" BAS094"|TABLAS!$A$130) | BT93: =+IMPORTARDATOSDINAMICOS(" BAS095"|TABLAS!$A$130) | BU93: =+IMPORTARDATOSDINAMICOS(" BAS096"|TABLAS!$A$130) | BV93: =+IMPORTARDATOSDINAMICOS(" BAS097"|TABLAS!$A$130) | BW93: =+IMPORTARDATOSDINAMICOS(" BAS098"|TABLAS!$A$130) | BX93: =+IMPORTARDATOSDINAMICOS(" BAS099"|TABLAS!$A$130) | BY93: =+IMPORTARDATOSDINAMICOS(" BAS100"|TABLAS!$A$130) | BZ93: =+IMPORTARDATOSDINAMICOS(" BAS101"|TABLAS!$A$130) | CA93: =+IMPORTARDATOSDINAMICOS(" BAS102"|TABLAS!$A$130) | CB93: =+IMPORTARDATOSDINAMICOS(" BAS103"|TABLAS!$A$130) | CC93: =+IMPORTARDATOSDINAMICOS(" BAS104"|TABLAS!$A$130)
A94: Consejería nutricional: Alimentación saludable | E94: 19652 | F94: =+GETPIVOTDATA(" BAS105",TABLAS!$A$130) -> 95 | G94: =+GETPIVOTDATA(" BAS106",TABLAS!$A$130) -> 4670 | H94: =+GETPIVOTDATA(" BAS107",TABLAS!$A$130) -> 4757 | I94: =+GETPIVOTDATA(" BAS108",TABLAS!$A$130) -> 3416 | J94: =+GETPIVOTDATA(" BAS109",TABLAS!$A$130) -> 2514 | K94: =+GETPIVOTDATA(" BAS110",TABLAS!$A$130) -> 2228 | L94: =+GETPIVOTDATA(" BAS111",TABLAS!$A$130) -> 627 | M94: =+GETPIVOTDATA(" BAS112",TABLAS!$A$130) -> 326 | N94: =+GETPIVOTDATA(" BAS113",TABLAS!$A$130) -> 214 | O94: =+GETPIVOTDATA(" BAS114",TABLAS!$A$130) -> 195 | P94: =+GETPIVOTDATA(" BAS115",TABLAS!$A$130) -> 204 | Q94: =+GETPIVOTDATA(" BAS116",TABLAS!$A$130) -> 231 | R94: =+GETPIVOTDATA(" BAS117",TABLAS!$A$130) -> 175 | AJ94: 105 | AK94: =+AJ94+1 -> 106 | AL94: 107 | AM94: 108 | AN94: 109 | AO94: 110 | AP94: 111 | AQ94: 112 | AR94: 113 | AS94: 114 | AT94: 115 | AU94: 116 | AV94: 117 | BQ94: =+IMPORTARDATOSDINAMICOS(" BAS105"|TABLAS!$A$130) | BR94: =+IMPORTARDATOSDINAMICOS(" BAS106"|TABLAS!$A$130) | BS94: =+IMPORTARDATOSDINAMICOS(" BAS107"|TABLAS!$A$130) | BT94: =+IMPORTARDATOSDINAMICOS(" BAS108"|TABLAS!$A$130) | BU94: =+IMPORTARDATOSDINAMICOS(" BAS109"|TABLAS!$A$130) | BV94: =+IMPORTARDATOSDINAMICOS(" BAS110"|TABLAS!$A$130) | BW94: =+IMPORTARDATOSDINAMICOS(" BAS111"|TABLAS!$A$130) | BX94: =+IMPORTARDATOSDINAMICOS(" BAS112"|TABLAS!$A$130) | BY94: =+IMPORTARDATOSDINAMICOS(" BAS113"|TABLAS!$A$130) | BZ94: =+IMPORTARDATOSDINAMICOS(" BAS114"|TABLAS!$A$130) | CA94: =+IMPORTARDATOSDINAMICOS(" BAS115"|TABLAS!$A$130) | CB94: =+IMPORTARDATOSDINAMICOS(" BAS116"|TABLAS!$A$130) | CC94: =+IMPORTARDATOSDINAMICOS(" BAS117"|TABLAS!$A$130)
A95: Consejería en Lactancia Materna Exclusiva hasta los 06 meses | E95: 5708 | F95: =+GETPIVOTDATA(" BAS118",TABLAS!$A$130) -> 3075 | G95: =+GETPIVOTDATA(" BAS119",TABLAS!$A$130) -> 2565 | H95: =+GETPIVOTDATA(" BAS120",TABLAS!$A$130) -> 23 | I95: =+GETPIVOTDATA(" BAS121",TABLAS!$A$130) -> 16 | J95: =+GETPIVOTDATA(" BAS122",TABLAS!$A$130) -> 4 | K95: =+GETPIVOTDATA(" BAS123",TABLAS!$A$130) -> 6 | L95: =+GETPIVOTDATA(" BAS124",TABLAS!$A$130) -> 8 | M95: =+GETPIVOTDATA(" BAS125",TABLAS!$A$130) -> 6 | N95: =+GETPIVOTDATA(" BAS126",TABLAS!$A$130) -> 1 | O95: =+GETPIVOTDATA(" BAS127",TABLAS!$A$130) -> 3 | P95: =+GETPIVOTDATA(" BAS128",TABLAS!$A$130) -> 0 | Q95: =+GETPIVOTDATA(" BAS129",TABLAS!$A$130) -> 1 | R95: =+GETPIVOTDATA(" BAS130",TABLAS!$A$130) -> 0 | AJ95: 118 | AK95: =+AJ95+1 -> 119 | AL95: 120 | AM95: 121 | AN95: 122 | AO95: 123 | AP95: 124 | AQ95: 125 | AR95: 126 | AS95: 127 | AT95: 128 | AU95: 129 | AV95: 130 | BQ95: =+IMPORTARDATOSDINAMICOS(" BAS118"|TABLAS!$A$130) | BR95: =+IMPORTARDATOSDINAMICOS(" BAS119"|TABLAS!$A$130) | BS95: =+IMPORTARDATOSDINAMICOS(" BAS120"|TABLAS!$A$130) | BT95: =+IMPORTARDATOSDINAMICOS(" BAS121"|TABLAS!$A$130) | BU95: =+IMPORTARDATOSDINAMICOS(" BAS122"|TABLAS!$A$130) | BV95: =+IMPORTARDATOSDINAMICOS(" BAS123"|TABLAS!$A$130) | BW95: =+IMPORTARDATOSDINAMICOS(" BAS124"|TABLAS!$A$130) | BX95: =+IMPORTARDATOSDINAMICOS(" BAS125"|TABLAS!$A$130) | BY95: =+IMPORTARDATOSDINAMICOS(" BAS126"|TABLAS!$A$130) | BZ95: =+IMPORTARDATOSDINAMICOS(" BAS127"|TABLAS!$A$130) | CA95: =+IMPORTARDATOSDINAMICOS(" BAS128"|TABLAS!$A$130) | CB95: =+IMPORTARDATOSDINAMICOS(" BAS129"|TABLAS!$A$130) | CC95: =+IMPORTARDATOSDINAMICOS(" BAS130"|TABLAS!$A$130)
F96: 1 | G96: =+F96+1 -> 2 | H96: 3 | I96: 4 | J96: 5 | K96: 6 | L96: 7 | M96: 8 | N96: 9 | O96: 10 | P96: 11 | Q96: 12 | R96: 13 | AJ96: 1 | AK96: =+AJ96+1 -> 2 | AL96: 3 | AM96: 4 | AN96: 5 | AO96: 6 | AP96: 7 | AQ96: 8 | AR96: 9 | AS96: 10 | AT96: 11 | AU96: 12 | AV96: 13
A101: V. EVALUACIÓN DEL ESTADO NUTRICIONAL
A103: GRUPO DE EDAD | C103: Riesgo Nutricional | G103: Desnutrición Aguda E44.0 | I103: Desnutrición Crónica E45 | K103: Desnutrición Severa E43 | M103: Exceso
C104: Ganancia Inadecuada de Peso(Z72.4) | E104: Ganancia Inadecuada de Talla(Z72.4) | M104: Sobre Peso P/T (E66.90) | O104: Obeso (E66.9)
C105: Diagnosticado | D105: Recuperado | E105: Diagnosticado | F105: Recuperado | G105: DX | H105: Rec. | I105: DX | J105: Rec. | K105: DX | L105: Rec. | M105: DX | N105: Rec. | O105: DX | P105: Rec.
C106: P/E | D106: P/E | E106: T/E | F106: T/E | G106: P/T | H106: P/T | I106: T/E | J106: T/E | K106: P/E | L106: P/E | BQ106: d | CD106: f
A107: Recien Nacido>2500gr
A108: Recien Nacido de Bajo peso
A109: < 1 año | C109: =+GETPIVOTDATA(" BAS131",TABLAS!$A$130) -> 42 | D109: =+GETPIVOTDATA(" BAS132",TABLAS!$A$130) -> 16 | E109: =+GETPIVOTDATA(" BAS133",TABLAS!$A$130) -> 24 | F109: =+GETPIVOTDATA(" BAS134",TABLAS!$A$130) -> 11 | G109: =+GETPIVOTDATA(" BAS135",TABLAS!$A$130) -> 0 | H109: =+GETPIVOTDATA(" BAS136",TABLAS!$A$130) -> 11 | I109: =+GETPIVOTDATA(" BAS137",TABLAS!$A$130) -> 58 | J109: =+GETPIVOTDATA(" BAS138",TABLAS!$A$130) -> 1 | K109: =+GETPIVOTDATA(" BAS139",TABLAS!$A$130) -> 0 | L109: =+GETPIVOTDATA(" BAS140",TABLAS!$A$130) -> 0 | M109: =+GETPIVOTDATA(" BAS141",TABLAS!$A$130) -> 104 | N109: =+GETPIVOTDATA(" BAS142",TABLAS!$A$130) -> 0 | O109: =+GETPIVOTDATA(" BAS143",TABLAS!$A$130) -> 13 | P109: =+GETPIVOTDATA(" BAS144",TABLAS!$A$130) -> 0 | AJ109: =+AV95+1 -> 131 | AK109: =+AJ109+1 -> 132 | AL109: 133 | AM109: 134 | AN109: 135 | AO109: 136 | AP109: 137 | AQ109: 138 | AR109: 139 | AS109: 140 | AT109: 141 | AU109: 142 | AV109: 143 | AW109: 144 | BQ109: =IF(AJ109<10,CONCATENATE($BR$14,"00",AJ109,$BQ$85),IF(AND(AJ109>9,AJ109<100),CONCATENATE($BR$14,"0",AJ109,$BQ$85),IF(AJ109>99,CONCATENATE($BR$14,AJ109,$BQ$85)))) -> =+IMPORTARDATOSDINAMICOS(" BAS131"|TABLAS!$A$130) | BR109: =+IMPORTARDATOSDINAMICOS(" BAS132"|TABLAS!$A$130) | BS109: =+IMPORTARDATOSDINAMICOS(" BAS133"|TABLAS!$A$130) | BT109: =+IMPORTARDATOSDINAMICOS(" BAS134"|TABLAS!$A$130) | BU109: =+IMPORTARDATOSDINAMICOS(" BAS135"|TABLAS!$A$130) | BV109: =+IMPORTARDATOSDINAMICOS(" BAS136"|TABLAS!$A$130) | BW109: =+IMPORTARDATOSDINAMICOS(" BAS137"|TABLAS!$A$130) | BX109: =+IMPORTARDATOSDINAMICOS(" BAS138"|TABLAS!$A$130) | BY109: =+IMPORTARDATOSDINAMICOS(" BAS139"|TABLAS!$A$130) | BZ109: =+IMPORTARDATOSDINAMICOS(" BAS140"|TABLAS!$A$130) | CA109: =+IMPORTARDATOSDINAMICOS(" BAS141"|TABLAS!$A$130) | CB109: =+IMPORTARDATOSDINAMICOS(" BAS142"|TABLAS!$A$130) | CC109: =+IMPORTARDATOSDINAMICOS(" BAS143"|TABLAS!$A$130) | CD109: =+IMPORTARDATOSDINAMICOS(" BAS144"|TABLAS!$A$130)
A110: 1 año | C110: =+GETPIVOTDATA(" BAS145",TABLAS!$A$130) -> 36 | D110: =+GETPIVOTDATA(" BAS146",TABLAS!$A$130) -> 3 | E110: =+GETPIVOTDATA(" BAS147",TABLAS!$A$130) -> 21 | F110: =+GETPIVOTDATA(" BAS148",TABLAS!$A$130) -> 5 | G110: =+GETPIVOTDATA(" BAS149",TABLAS!$A$130) -> 0 | H110: =+GETPIVOTDATA(" BAS150",TABLAS!$A$130) -> 0 | I110: =+GETPIVOTDATA(" BAS151",TABLAS!$A$130) -> 50 | J110: =+GETPIVOTDATA(" BAS152",TABLAS!$A$130) -> 1 | K110: =+GETPIVOTDATA(" BAS153",TABLAS!$A$130) -> 0 | L110: =+GETPIVOTDATA(" BAS154",TABLAS!$A$130) -> 0 | M110: =+GETPIVOTDATA(" BAS155",TABLAS!$A$130) -> 40 | N110: =+GETPIVOTDATA(" BAS156",TABLAS!$A$130) -> 0 | O110: =+GETPIVOTDATA(" BAS157",TABLAS!$A$130) -> 11 | P110: =+GETPIVOTDATA(" BAS158",TABLAS!$A$130) -> 0 | AJ110: =+AW109+1 -> 145 | AK110: =+AJ110+1 -> 146 | AL110: 147 | AM110: 148 | AN110: 149 | AO110: 150 | AP110: 151 | AQ110: 152 | AR110: 153 | AS110: 154 | AT110: 155 | AU110: 156 | AV110: 157 | AW110: 158 | BQ110: =+IMPORTARDATOSDINAMICOS(" BAS145"|TABLAS!$A$130) | BR110: =+IMPORTARDATOSDINAMICOS(" BAS146"|TABLAS!$A$130) | BS110: =+IMPORTARDATOSDINAMICOS(" BAS147"|TABLAS!$A$130) | BT110: =+IMPORTARDATOSDINAMICOS(" BAS148"|TABLAS!$A$130) | BU110: =+IMPORTARDATOSDINAMICOS(" BAS149"|TABLAS!$A$130) | BV110: =+IMPORTARDATOSDINAMICOS(" BAS150"|TABLAS!$A$130) | BW110: =+IMPORTARDATOSDINAMICOS(" BAS151"|TABLAS!$A$130) | BX110: =+IMPORTARDATOSDINAMICOS(" BAS152"|TABLAS!$A$130) | BY110: =+IMPORTARDATOSDINAMICOS(" BAS153"|TABLAS!$A$130) | BZ110: =+IMPORTARDATOSDINAMICOS(" BAS154"|TABLAS!$A$130) | CA110: =+IMPORTARDATOSDINAMICOS(" BAS155"|TABLAS!$A$130) | CB110: =+IMPORTARDATOSDINAMICOS(" BAS156"|TABLAS!$A$130) | CC110: =+IMPORTARDATOSDINAMICOS(" BAS157"|TABLAS!$A$130) | CD110: =+IMPORTARDATOSDINAMICOS(" BAS158"|TABLAS!$A$130)
A111: 2 años | C111: =+GETPIVOTDATA(" BAS159",TABLAS!$A$130) -> 15 | D111: =+GETPIVOTDATA(" BAS160",TABLAS!$A$130) -> 1 | E111: =+GETPIVOTDATA(" BAS161",TABLAS!$A$130) -> 25 | F111: =+GETPIVOTDATA(" BAS162",TABLAS!$A$130) -> 1 | G111: =+GETPIVOTDATA(" BAS163",TABLAS!$A$130) -> 1 | H111: =+GETPIVOTDATA(" BAS164",TABLAS!$A$130) -> 0 | I111: =+GETPIVOTDATA(" BAS165",TABLAS!$A$130) -> 18 | J111: =+GETPIVOTDATA(" BAS166",TABLAS!$A$130) -> 0 | K111: =+GETPIVOTDATA(" BAS167",TABLAS!$A$130) -> 0 | L111: =+GETPIVOTDATA(" BAS168",TABLAS!$A$130) -> 0 | M111: =+GETPIVOTDATA(" BAS169",TABLAS!$A$130) -> 21 | N111: =+GETPIVOTDATA(" BAS170",TABLAS!$A$130) -> 0 | O111: =+GETPIVOTDATA(" BAS171",TABLAS!$A$130) -> 5 | P111: =+GETPIVOTDATA(" BAS172",TABLAS!$A$130) -> 0 | AJ111: =+AW110+1 -> 159 | AK111: =+AJ111+1 -> 160 | AL111: 161 | AM111: 162 | AN111: 163 | AO111: 164 | AP111: 165 | AQ111: 166 | AR111: 167 | AS111: 168 | AT111: 169 | AU111: 170 | AV111: 171 | AW111: 172 | BQ111: =+IMPORTARDATOSDINAMICOS(" BAS159"|TABLAS!$A$130) | BR111: =+IMPORTARDATOSDINAMICOS(" BAS160"|TABLAS!$A$130) | BS111: =+IMPORTARDATOSDINAMICOS(" BAS161"|TABLAS!$A$130) | BT111: =+IMPORTARDATOSDINAMICOS(" BAS162"|TABLAS!$A$130) | BU111: =+IMPORTARDATOSDINAMICOS(" BAS163"|TABLAS!$A$130) | BV111: =+IMPORTARDATOSDINAMICOS(" BAS164"|TABLAS!$A$130) | BW111: =+IMPORTARDATOSDINAMICOS(" BAS165"|TABLAS!$A$130) | BX111: =+IMPORTARDATOSDINAMICOS(" BAS166"|TABLAS!$A$130) | BY111: =+IMPORTARDATOSDINAMICOS(" BAS167"|TABLAS!$A$130) | BZ111: =+IMPORTARDATOSDINAMICOS(" BAS168"|TABLAS!$A$130) | CA111: =+IMPORTARDATOSDINAMICOS(" BAS169"|TABLAS!$A$130) | CB111: =+IMPORTARDATOSDINAMICOS(" BAS170"|TABLAS!$A$130) | CC111: =+IMPORTARDATOSDINAMICOS(" BAS171"|TABLAS!$A$130) | CD111: =+IMPORTARDATOSDINAMICOS(" BAS172"|TABLAS!$A$130)
A112: 3 años | C112: =+GETPIVOTDATA(" BAS173",TABLAS!$A$130) -> 15 | D112: =+GETPIVOTDATA(" BAS174",TABLAS!$A$130) -> 0 | E112: =+GETPIVOTDATA(" BAS175",TABLAS!$A$130) -> 26 | F112: =+GETPIVOTDATA(" BAS176",TABLAS!$A$130) -> 1 | G112: =+GETPIVOTDATA(" BAS177",TABLAS!$A$130) -> 1 | H112: =+GETPIVOTDATA(" BAS178",TABLAS!$A$130) -> 0 | I112: =+GETPIVOTDATA(" BAS179",TABLAS!$A$130) -> 17 | J112: =+GETPIVOTDATA(" BAS180",TABLAS!$A$130) -> 0 | K112: =+GETPIVOTDATA(" BAS181",TABLAS!$A$130) -> 0 | L112: =+GETPIVOTDATA(" BAS182",TABLAS!$A$130) -> 0 | M112: =+GETPIVOTDATA(" BAS183",TABLAS!$A$130) -> 17 | N112: =+GETPIVOTDATA(" BAS184",TABLAS!$A$130) -> 0 | O112: =+GETPIVOTDATA(" BAS185",TABLAS!$A$130) -> 5 | P112: =+GETPIVOTDATA(" BAS186",TABLAS!$A$130) -> 0 | AJ112: =+AW111+1 -> 173 | AK112: =+AJ112+1 -> 174 | AL112: 175 | AM112: 176 | AN112: 177 | AO112: 178 | AP112: 179 | AQ112: 180 | AR112: 181 | AS112: 182 | AT112: 183 | AU112: 184 | AV112: 185 | AW112: 186 | BQ112: =+IMPORTARDATOSDINAMICOS(" BAS173"|TABLAS!$A$130) | BR112: =+IMPORTARDATOSDINAMICOS(" BAS174"|TABLAS!$A$130) | BS112: =+IMPORTARDATOSDINAMICOS(" BAS175"|TABLAS!$A$130) | BT112: =+IMPORTARDATOSDINAMICOS(" BAS176"|TABLAS!$A$130) | BU112: =+IMPORTARDATOSDINAMICOS(" BAS177"|TABLAS!$A$130) | BV112: =+IMPORTARDATOSDINAMICOS(" BAS178"|TABLAS!$A$130) | BW112: =+IMPORTARDATOSDINAMICOS(" BAS179"|TABLAS!$A$130) | BX112: =+IMPORTARDATOSDINAMICOS(" BAS180"|TABLAS!$A$130) | BY112: =+IMPORTARDATOSDINAMICOS(" BAS181"|TABLAS!$A$130) | BZ112: =+IMPORTARDATOSDINAMICOS(" BAS182"|TABLAS!$A$130) | CA112: =+IMPORTARDATOSDINAMICOS(" BAS183"|TABLAS!$A$130) | CB112: =+IMPORTARDATOSDINAMICOS(" BAS184"|TABLAS!$A$130) | CC112: =+IMPORTARDATOSDINAMICOS(" BAS185"|TABLAS!$A$130) | CD112: =+IMPORTARDATOSDINAMICOS(" BAS186"|TABLAS!$A$130)
A113: 4 años | C113: =+GETPIVOTDATA(" BAS187",TABLAS!$A$130) -> 9 | D113: =+GETPIVOTDATA(" BAS188",TABLAS!$A$130) -> 1 | E113: =+GETPIVOTDATA(" BAS189",TABLAS!$A$130) -> 18 | F113: =+GETPIVOTDATA(" BAS190",TABLAS!$A$130) -> 0 | G113: =+GETPIVOTDATA(" BAS191",TABLAS!$A$130) -> 0 | H113: =+GETPIVOTDATA(" BAS192",TABLAS!$A$130) -> 0 | I113: =+GETPIVOTDATA(" BAS193",TABLAS!$A$130) -> 18 | J113: =+GETPIVOTDATA(" BAS194",TABLAS!$A$130) -> 0 | K113: =+GETPIVOTDATA(" BAS195",TABLAS!$A$130) -> 0 | L113: =+GETPIVOTDATA(" BAS196",TABLAS!$A$130) -> 0 | M113: =+GETPIVOTDATA(" BAS197",TABLAS!$A$130) -> 16 | N113: =+GETPIVOTDATA(" BAS198",TABLAS!$A$130) -> 0 | O113: =+GETPIVOTDATA(" BAS199",TABLAS!$A$130) -> 4 | P113: =+GETPIVOTDATA(" BAS200",TABLAS!$A$130) -> 0 | AJ113: =+AW112+1 -> 187 | AK113: =+AJ113+1 -> 188 | AL113: 189 | AM113: 190 | AN113: 191 | AO113: 192 | AP113: 193 | AQ113: 194 | AR113: 195 | AS113: 196 | AT113: 197 | AU113: 198 | AV113: 199 | AW113: 200 | BQ113: =+IMPORTARDATOSDINAMICOS(" BAS187"|TABLAS!$A$130) | BR113: =+IMPORTARDATOSDINAMICOS(" BAS188"|TABLAS!$A$130) | BS113: =+IMPORTARDATOSDINAMICOS(" BAS189"|TABLAS!$A$130) | BT113: =+IMPORTARDATOSDINAMICOS(" BAS190"|TABLAS!$A$130) | BU113: =+IMPORTARDATOSDINAMICOS(" BAS191"|TABLAS!$A$130) | BV113: =+IMPORTARDATOSDINAMICOS(" BAS192"|TABLAS!$A$130) | BW113: =+IMPORTARDATOSDINAMICOS(" BAS193"|TABLAS!$A$130) | BX113: =+IMPORTARDATOSDINAMICOS(" BAS194"|TABLAS!$A$130) | BY113: =+IMPORTARDATOSDINAMICOS(" BAS195"|TABLAS!$A$130) | BZ113: =+IMPORTARDATOSDINAMICOS(" BAS196"|TABLAS!$A$130) | CA113: =+IMPORTARDATOSDINAMICOS(" BAS197"|TABLAS!$A$130) | CB113: =+IMPORTARDATOSDINAMICOS(" BAS198"|TABLAS!$A$130) | CC113: =+IMPORTARDATOSDINAMICOS(" BAS199"|TABLAS!$A$130) | CD113: =+IMPORTARDATOSDINAMICOS(" BAS200"|TABLAS!$A$130)
C114: 1 | D114: =+C114+1 -> 2 | E114: 3 | F114: 4 | G114: 5 | H114: 6 | I114: 7 | J114: 8 | K114: 9 | L114: 10 | M114: 11 | N114: 12 | O114: 13 | P114: 14 | AJ114: 1 | AK114: =+AJ114+1 -> 2 | AL114: 3 | AM114: 4 | AN114: 5 | AO114: 6 | AP114: 7 | AQ114: 8 | AR114: 9 | AS114: 10 | AT114: 11 | AU114: 12 | AV114: 13 | AW114: 14
A116: VI. PARASITOSIS
A117: Ervaluacion por IMC de 5 a 11 años | C117: Dx | D117: Recup
A118: Deldadez
A119: Normal
A120: Sobrepeso
A121: Obeso
A124: EXAMENES DE LABORATORIO / TAMIZAJES
A125: ACTIVIDAD | D125: 1 año | G125: 2 años | J125: 3 años | M125: 4 años | P125: 5 a 11 años | BR125: =+GETPIVOTDATA(" BAS001",TABLAS!$A$168) -> 279
D126: Prog | E126: Mensual | F126: % | G126: Prog | H126: Mensual | I126: % | J126: Prog | K126: Mensual | L126: % | M126: Prog | N126: Mensual | O126: % | P126: Prog | Q126: Mensual | R126: % | BR126: "|TABLAS!$A$168)
A127: Total de tamizaje de anemia (Dosaje de Hemoglobina) Z001.7
A128: Nro Total de Test de Graham 87172 | E128: =+GETPIVOTDATA(" BAS001",TABLAS!$A$168) -> 279 | H128: =+GETPIVOTDATA(" BAS002",TABLAS!$A$168) -> 336 | K128: =+GETPIVOTDATA(" BAS003",TABLAS!$A$168) -> 296 | N128: =+GETPIVOTDATA(" BAS004",TABLAS!$A$168) -> 256 | Q128: =+GETPIVOTDATA(" BAS005",TABLAS!$A$168) -> 223 | AK128: 1 | AN128: =+AK128+1 -> 2 | AQ128: =+AN128+1 -> 3 | AT128: =+AQ128+1 -> 4 | AW128: =+AT128+1 -> 5 | BR128: =IF(AK128<10,CONCATENATE($BR$14,"00",AK128,$BR$126),IF(AND(AK128>9,AK128<100),CONCATENATE($BR$14,"0",AK128,$BR$126),IF(AK128>99,CONCATENATE($BR$14,AK128,$BR$126)))) -> =+IMPORTARDATOSDINAMICOS(" BAS001"|TABLAS!$A$168) | BU128: =IF(AN128<10,CONCATENATE($BR$14,"00",AN128,$BR$126),IF(AND(AN128>9,AN128<100),CONCATENATE($BR$14,"0",AN128,$BR$126),IF(AN128>99,CONCATENATE($BR$14,AN128,$BR$126)))) -> =+IMPORTARDATOSDINAMICOS(" BAS002"|TABLAS!$A$168) | BX128: =IF(AQ128<10,CONCATENATE($BR$14,"00",AQ128,$BR$126),IF(AND(AQ128>9,AQ128<100),CONCATENATE($BR$14,"0",AQ128,$BR$126),IF(AQ128>99,CONCATENATE($BR$14,AQ128,$BR$126)))) -> =+IMPORTARDATOSDINAMICOS(" BAS003"|TABLAS!$A$168) | CA128: =IF(AT128<10,CONCATENATE($BR$14,"00",AT128,$BR$126),IF(AND(AT128>9,AT128<100),CONCATENATE($BR$14,"0",AT128,$BR$126),IF(AT128>99,CONCATENATE($BR$14,AT128,$BR$126)))) -> =+IMPORTARDATOSDINAMICOS(" BAS004"|TABLAS!$A$168) | CD128: =IF(AW128<10,CONCATENATE($BR$14,"00",AW128,$BR$126),IF(AND(AW128>9,AW128<100),CONCATENATE($BR$14,"0",AW128,$BR$126),IF(AW128>99,CONCATENATE($BR$14,AW128,$BR$126)))) -> =+IMPORTARDATOSDINAMICOS(" BAS005"|TABLAS!$A$168)
A129: Nro de Test de Graham Positivos | E129: =+GETPIVOTDATA(" BAS006",TABLAS!$A$168) -> 52 | H129: =+GETPIVOTDATA(" BAS007",TABLAS!$A$168) -> 35 | K129: =+GETPIVOTDATA(" BAS008",TABLAS!$A$168) -> 50 | N129: =+GETPIVOTDATA(" BAS009",TABLAS!$A$168) -> 54 | Q129: =+GETPIVOTDATA(" BAS010",TABLAS!$A$168) -> 321 | AK129: =+AW128+1 -> 6 | AN129: =+AK129+1 -> 7 | AQ129: =+AN129+1 -> 8 | AT129: =+AQ129+1 -> 9 | AW129: =+AT129+1 -> 10 | BR129: =IF(AK129<10,CONCATENATE($BR$14,"00",AK129,$BR$126),IF(AND(AK129>9,AK129<100),CONCATENATE($BR$14,"0",AK129,$BR$126),IF(AK129>99,CONCATENATE($BR$14,AK129,$BR$126)))) -> =+IMPORTARDATOSDINAMICOS(" BAS006"|TABLAS!$A$168) | BU129: =IF(AN129<10,CONCATENATE($BR$14,"00",AN129,$BR$126),IF(AND(AN129>9,AN129<100),CONCATENATE($BR$14,"0",AN129,$BR$126),IF(AN129>99,CONCATENATE($BR$14,AN129,$BR$126)))) -> =+IMPORTARDATOSDINAMICOS(" BAS007"|TABLAS!$A$168) | BX129: =IF(AQ129<10,CONCATENATE($BR$14,"00",AQ129,$BR$126),IF(AND(AQ129>9,AQ129<100),CONCATENATE($BR$14,"0",AQ129,$BR$126),IF(AQ129>99,CONCATENATE($BR$14,AQ129,$BR$126)))) -> =+IMPORTARDATOSDINAMICOS(" BAS008"|TABLAS!$A$168) | CA129: =IF(AT129<10,CONCATENATE($BR$14,"00",AT129,$BR$126),IF(AND(AT129>9,AT129<100),CONCATENATE($BR$14,"0",AT129,$BR$126),IF(AT129>99,CONCATENATE($BR$14,AT129,$BR$126)))) -> =+IMPORTARDATOSDINAMICOS(" BAS009"|TABLAS!$A$168) | CD129: =IF(AW129<10,CONCATENATE($BR$14,"00",AW129,$BR$126),IF(AND(AW129>9,AW129<100),CONCATENATE($BR$14,"0",AW129,$BR$126),IF(AW129>99,CONCATENATE($BR$14,AW129,$BR$126)))) -> =+IMPORTARDATOSDINAMICOS(" BAS010"|TABLAS!$A$168)
A130: Nro Total de Examen Seriado de Heces 87177.01 | E130: =+GETPIVOTDATA(" BAS011",TABLAS!$A$168) -> 307 | H130: =+GETPIVOTDATA(" BAS012",TABLAS!$A$168) -> 366 | K130: =+GETPIVOTDATA(" BAS013",TABLAS!$A$168) -> 317 | N130: =+GETPIVOTDATA(" BAS014",TABLAS!$A$168) -> 273 | Q130: =+GETPIVOTDATA(" BAS015",TABLAS!$A$168) -> 246 | AK130: =+AW129+1 -> 11 | AN130: =+AK130+1 -> 12 | AQ130: =+AN130+1 -> 13 | AT130: =+AQ130+1 -> 14 | AW130: =+AT130+1 -> 15 | BR130: =IF(AK130<10,CONCATENATE($BR$14,"00",AK130,$BR$126),IF(AND(AK130>9,AK130<100),CONCATENATE($BR$14,"0",AK130,$BR$126),IF(AK130>99,CONCATENATE($BR$14,AK130,$BR$126)))) -> =+IMPORTARDATOSDINAMICOS(" BAS011"|TABLAS!$A$168) | BU130: =IF(AN130<10,CONCATENATE($BR$14,"00",AN130,$BR$126),IF(AND(AN130>9,AN130<100),CONCATENATE($BR$14,"0",AN130,$BR$126),IF(AN130>99,CONCATENATE($BR$14,AN130,$BR$126)))) -> =+IMPORTARDATOSDINAMICOS(" BAS012"|TABLAS!$A$168) | BX130: =IF(AQ130<10,CONCATENATE($BR$14,"00",AQ130,$BR$126),IF(AND(AQ130>9,AQ130<100),CONCATENATE($BR$14,"0",AQ130,$BR$126),IF(AQ130>99,CONCATENATE($BR$14,AQ130,$BR$126)))) -> =+IMPORTARDATOSDINAMICOS(" BAS013"|TABLAS!$A$168) | CA130: =IF(AT130<10,CONCATENATE($BR$14,"00",AT130,$BR$126),IF(AND(AT130>9,AT130<100),CONCATENATE($BR$14,"0",AT130,$BR$126),IF(AT130>99,CONCATENATE($BR$14,AT130,$BR$126)))) -> =+IMPORTARDATOSDINAMICOS(" BAS014"|TABLAS!$A$168) | CD130: =IF(AW130<10,CONCATENATE($BR$14,"00",AW130,$BR$126),IF(AND(AW130>9,AW130<100),CONCATENATE($BR$14,"0",AW130,$BR$126),IF(AW130>99,CONCATENATE($BR$14,AW130,$BR$126)))) -> =+IMPORTARDATOSDINAMICOS(" BAS015"|TABLAS!$A$168)
A131: Nro de Examen Seriado de Heces Positivos | E131: =+GETPIVOTDATA(" BAS016",TABLAS!$A$168) -> 71 | H131: =+GETPIVOTDATA(" BAS017",TABLAS!$A$168) -> 63 | K131: =+GETPIVOTDATA(" BAS018",TABLAS!$A$168) -> 70 | N131: =+GETPIVOTDATA(" BAS019",TABLAS!$A$168) -> 80 | Q131: =+GETPIVOTDATA(" BAS020",TABLAS!$A$168) -> 407 | AK131: =+AW130+1 -> 16 | AN131: =+AK131+1 -> 17 | AQ131: =+AN131+1 -> 18 | AT131: =+AQ131+1 -> 19 | AW131: =+AT131+1 -> 20 | BR131: =IF(AK131<10,CONCATENATE($BR$14,"00",AK131,$BR$126),IF(AND(AK131>9,AK131<100),CONCATENATE($BR$14,"0",AK131,$BR$126),IF(AK131>99,CONCATENATE($BR$14,AK131,$BR$126)))) -> =+IMPORTARDATOSDINAMICOS(" BAS016"|TABLAS!$A$168) | BU131: =IF(AN131<10,CONCATENATE($BR$14,"00",AN131,$BR$126),IF(AND(AN131>9,AN131<100),CONCATENATE($BR$14,"0",AN131,$BR$126),IF(AN131>99,CONCATENATE($BR$14,AN131,$BR$126)))) -> =+IMPORTARDATOSDINAMICOS(" BAS017"|TABLAS!$A$168) | BX131: =IF(AQ131<10,CONCATENATE($BR$14,"00",AQ131,$BR$126),IF(AND(AQ131>9,AQ131<100),CONCATENATE($BR$14,"0",AQ131,$BR$126),IF(AQ131>99,CONCATENATE($BR$14,AQ131,$BR$126)))) -> =+IMPORTARDATOSDINAMICOS(" BAS018"|TABLAS!$A$168) | CA131: =IF(AT131<10,CONCATENATE($BR$14,"00",AT131,$BR$126),IF(AND(AT131>9,AT131<100),CONCATENATE($BR$14,"0",AT131,$BR$126),IF(AT131>99,CONCATENATE($BR$14,AT131,$BR$126)))) -> =+IMPORTARDATOSDINAMICOS(" BAS019"|TABLAS!$A$168) | CD131: =IF(AW131<10,CONCATENATE($BR$14,"00",AW131,$BR$126),IF(AND(AW131>9,AW131<100),CONCATENATE($BR$14,"0",AW131,$BR$126),IF(AW131>99,CONCATENATE($BR$14,AW131,$BR$126)))) -> =+IMPORTARDATOSDINAMICOS(" BAS020"|TABLAS!$A$168)
A132: PARASITOSIS TEST GRAHAN O EXAMEN HECES TRATADOS | E132: =+GETPIVOTDATA(" BAS021",TABLAS!$A$168) -> 2 | H132: =+GETPIVOTDATA(" BAS022",TABLAS!$A$168) -> 501 | K132: =+GETPIVOTDATA(" BAS023",TABLAS!$A$168) -> 443 | N132: =+GETPIVOTDATA(" BAS024",TABLAS!$A$168) -> 370 | Q132: =+GETPIVOTDATA(" BAS025",TABLAS!$A$168) -> 66 | AK132: =+AW131+1 -> 21 | AN132: =+AK132+1 -> 22 | AQ132: =+AN132+1 -> 23 | AT132: =+AQ132+1 -> 24 | AW132: =+AT132+1 -> 25 | BR132: =IF(AK132<10,CONCATENATE($BR$14,"00",AK132,$BR$126),IF(AND(AK132>9,AK132<100),CONCATENATE($BR$14,"0",AK132,$BR$126),IF(AK132>99,CONCATENATE($BR$14,AK132,$BR$126)))) -> =+IMPORTARDATOSDINAMICOS(" BAS021"|TABLAS!$A$168) | BU132: =IF(AN132<10,CONCATENATE($BR$14,"00",AN132,$BR$126),IF(AND(AN132>9,AN132<100),CONCATENATE($BR$14,"0",AN132,$BR$126),IF(AN132>99,CONCATENATE($BR$14,AN132,$BR$126)))) -> =+IMPORTARDATOSDINAMICOS(" BAS022"|TABLAS!$A$168) | BX132: =IF(AQ132<10,CONCATENATE($BR$14,"00",AQ132,$BR$126),IF(AND(AQ132>9,AQ132<100),CONCATENATE($BR$14,"0",AQ132,$BR$126),IF(AQ132>99,CONCATENATE($BR$14,AQ132,$BR$126)))) -> =+IMPORTARDATOSDINAMICOS(" BAS023"|TABLAS!$A$168) | CA132: =IF(AT132<10,CONCATENATE($BR$14,"00",AT132,$BR$126),IF(AND(AT132>9,AT132<100),CONCATENATE($BR$14,"0",AT132,$BR$126),IF(AT132>99,CONCATENATE($BR$14,AT132,$BR$126)))) -> =+IMPORTARDATOSDINAMICOS(" BAS024"|TABLAS!$A$168) | CD132: =IF(AW132<10,CONCATENATE($BR$14,"00",AW132,$BR$126),IF(AND(AW132>9,AW132<100),CONCATENATE($BR$14,"0",AW132,$BR$126),IF(AW132>99,CONCATENATE($BR$14,AW132,$BR$126)))) -> =+IMPORTARDATOSDINAMICOS(" BAS025"|TABLAS!$A$168)
A134: VII. ADMINISTRACIÓN DE PROFILAXIS ANTIPARASITARIA
A136: ACTIVIDADES | C136: 01 año | E136: 02 años | G136: 03 años | I136: 04 años | K136: 05 - 11 años
C137: 1º | D137: 2º | E137: 1º | F137: 2º | G137: 1º | H137: 2º | I137: 1º | J137: 2º | K137: 1º | L137: 2º | BQ137: d | BZ137: d
A138: Administración de Profilaxis Antiparasitaria | C138: =+GETPIVOTDATA(" BAS026",TABLAS!$A$168) -> 5 | D138: =+GETPIVOTDATA(" BAS027",TABLAS!$A$168) -> 2 | E138: =+GETPIVOTDATA(" BAS028",TABLAS!$A$168) -> 627 | F138: =+GETPIVOTDATA(" BAS029",TABLAS!$A$168) -> 501 | G138: =+GETPIVOTDATA(" BAS030",TABLAS!$A$168) -> 677 | H138: =+GETPIVOTDATA(" BAS031",TABLAS!$A$168) -> 443 | I138: =+GETPIVOTDATA(" BAS032",TABLAS!$A$168) -> 750 | J138: =+GETPIVOTDATA(" BAS033",TABLAS!$A$168) -> 370 | K138: =+GETPIVOTDATA(" BAS034",TABLAS!$A$168) -> 4219 | L138: =+GETPIVOTDATA(" BAS035",TABLAS!$A$168) -> 66 | AJ138: =+AW132+1 -> 26 | AK138: =+AJ138+1 -> 27 | AL138: 28 | AM138: 29 | AN138: 30 | AO138: 31 | AP138: 32 | AQ138: 33 | AR138: 34 | AS138: 35 | BQ138: =IF(AJ138<10,CONCATENATE($BR$14,"00",AJ138,$BR$126),IF(AND(AJ138>9,AJ138<100),CONCATENATE($BR$14,"0",AJ138,$BR$126),IF(AJ138>99,CONCATENATE($BR$14,AJ138,$BR$126)))) -> =+IMPORTARDATOSDINAMICOS(" BAS026"|TABLAS!$A$168) | BR138: =+IMPORTARDATOSDINAMICOS(" BAS027"|TABLAS!$A$168) | BS138: =+IMPORTARDATOSDINAMICOS(" BAS028"|TABLAS!$A$168) | BT138: =+IMPORTARDATOSDINAMICOS(" BAS029"|TABLAS!$A$168) | BU138: =+IMPORTARDATOSDINAMICOS(" BAS030"|TABLAS!$A$168) | BV138: =+IMPORTARDATOSDINAMICOS(" BAS031"|TABLAS!$A$168) | BW138: =+IMPORTARDATOSDINAMICOS(" BAS032"|TABLAS!$A$168) | BX138: =+IMPORTARDATOSDINAMICOS(" BAS033"|TABLAS!$A$168) | BY138: =+IMPORTARDATOSDINAMICOS(" BAS034"|TABLAS!$A$168) | BZ138: =+IMPORTARDATOSDINAMICOS(" BAS035"|TABLAS!$A$168)
C139: 1 | D139: =+C139+1 -> 2 | E139: 3 | F139: 4 | G139: 5 | H139: 6 | I139: 7 | J139: 8 | K139: 9 | L139: 10 | AJ139: 1 | AK139: =+AJ139+1 -> 2 | AL139: 3 | AM139: 4 | AN139: 5 | AO139: 6 | AP139: 7 | AQ139: 8 | AR139: 9 | AS139: 10
A142: 2.1- Total de Evaluación del desarrollo psicosocial con test de habilidades | E142: 2.2.- Total de Evaluación de Agudeza visual | K142: 2.5.- Total de Evaluacion Fisico Postural
A143: Muy Bajo | E143: Normal | K143: Normal
A144: Bajo | E144: Disminución de Agudeza visual | K144: Hiperlordosis
A145: Promedio Bajo | E145: 2.3.- Total de Evaluación agudeza auditiva | K145: Hipersifosis
A146: Promedio | E146: Normal | K146: Escoliosis
A147: Promedio Alto | E147: Disminución de agudeza auditiva
A148: Alto | E148: 2.4 .- Total de Evaluacion del Desarrollo sexual según Tanner
A149: Muy Alto | E149: Adecuado
E150: Retardo
E151: Precoz
A154: VII. VISITAS DOMICILIARIA DE SEGUIMIENTO
A156: VISITA FAMILIAR INTEGRAL | D156: Prog | E156: MENS | F156: ACUM | G156: %
A157: Nº de visitas domiciliarias a RN | E157: =+GETPIVOTDATA(" BAS036",TABLAS!$A$168) -> 626 | AL157: =+AS138+1 -> 36 | BS157: =IF(AL157<10,CONCATENATE($BR$14,"00",AL157,$BR$126),IF(AND(AL157>9,AL157<100),CONCATENATE($BR$14,"0",AL157,$BR$126),IF(AL157>99,CONCATENATE($BR$14,AL157,$BR$126)))) -> =+IMPORTARDATOSDINAMICOS(" BAS036"|TABLAS!$A$168)
A158: Nº de visitas domiciliarias a niños < 1 año | E158: =+GETPIVOTDATA(" BAS037",TABLAS!$A$168) -> 2196 | AL158: =+AL157+1 -> 37 | BS158: =+IMPORTARDATOSDINAMICOS(" BAS037"|TABLAS!$A$168)
A159: Nº de visitas domiciliarias a niños 1 año | E159: =+GETPIVOTDATA(" BAS038",TABLAS!$A$168) -> 1318 | AL159: 38 | BS159: =+IMPORTARDATOSDINAMICOS(" BAS038"|TABLAS!$A$168)
A160: Nº de visitas domiciliarias a niños 2 años | E160: =+GETPIVOTDATA(" BAS039",TABLAS!$A$168) -> 794 | AL160: 39 | BS160: =+IMPORTARDATOSDINAMICOS(" BAS039"|TABLAS!$A$168)
A161: Nº de visitas domiciliarias a niños 3 años | E161: =+GETPIVOTDATA(" BAS040",TABLAS!$A$168) -> 619 | AL161: 40 | BS161: =+IMPORTARDATOSDINAMICOS(" BAS040"|TABLAS!$A$168)
A162: Nº de visitas domiciliarias a niños 4 años | E162: =+GETPIVOTDATA(" BAS041",TABLAS!$A$168) -> 520 | AL162: 41 | BS162: =+IMPORTARDATOSDINAMICOS(" BAS041"|TABLAS!$A$168)
A163: Nº de visitas domiciliarias a niños 5 a 11 años | E163: =+GETPIVOTDATA(" BAS042",TABLAS!$A$168) -> 791 | AL163: 42 | BS163: =+IMPORTARDATOSDINAMICOS(" BAS042"|TABLAS!$A$168)
A164: Sesiones Demostrativas | E164: =+GETPIVOTDATA(" BAS043",TABLAS!$A$168) -> 912 | AL164: 43 | BS164: =+IMPORTARDATOSDINAMICOS(" BAS043"|TABLAS!$A$168)
A165: Sesiones Educativas | E165: =+GETPIVOTDATA(" BAS044",TABLAS!$A$168) -> 274 | AL165: 44 | BS165: =+IMPORTARDATOSDINAMICOS(" BAS044"|TABLAS!$A$168)
D166: 1 | E166: 2 | AK166: 1
A167: IX. VISITA DOMICILIARIA
A168: TIPOS DE VISITA / EDADES | D168: Total | E168: RN | F168: <1 año | G168: 01 año | H168: 02 años | I168: 03 años | J168: 04 años | K168: 05 - 11 a | BR168: d | BX168: f
A169: Seguimiento al Control CRED | D169: =SUM(E169:K169) -> 6396 | E169: =+GETPIVOTDATA(" BAS045",TABLAS!$A$168) -> 158 | F169: =+GETPIVOTDATA(" BAS046",TABLAS!$A$168) -> 2196 | G169: =+GETPIVOTDATA(" BAS047",TABLAS!$A$168) -> 1318 | H169: =+GETPIVOTDATA(" BAS048",TABLAS!$A$168) -> 794 | I169: =+GETPIVOTDATA(" BAS049",TABLAS!$A$168) -> 619 | J169: =+GETPIVOTDATA(" BAS050",TABLAS!$A$168) -> 520 | K169: =+GETPIVOTDATA(" BAS051",TABLAS!$A$168) -> 791 | AK169: =+AL165+1 -> 45 | AL169: =+AK169+1 -> 46 | AM169: 47 | AN169: 48 | AO169: 49 | AP169: 50 | AQ169: 51 | BR169: =IF(AK169<10,CONCATENATE($BR$14,"00",AK169,$BR$126),IF(AND(AK169>9,AK169<100),CONCATENATE($BR$14,"0",AK169,$BR$126),IF(AK169>99,CONCATENATE($BR$14,AK169,$BR$126)))) -> =+IMPORTARDATOSDINAMICOS(" BAS045"|TABLAS!$A$168) | BS169: =+IMPORTARDATOSDINAMICOS(" BAS046"|TABLAS!$A$168) | BT169: =+IMPORTARDATOSDINAMICOS(" BAS047"|TABLAS!$A$168) | BU169: =+IMPORTARDATOSDINAMICOS(" BAS048"|TABLAS!$A$168) | BV169: =+IMPORTARDATOSDINAMICOS(" BAS049"|TABLAS!$A$168) | BW169: =+IMPORTARDATOSDINAMICOS(" BAS050"|TABLAS!$A$168) | BX169: =+IMPORTARDATOSDINAMICOS(" BAS051"|TABLAS!$A$168)
A170: Seguimiento a Problemas Nutricionales | D170: =SUM(E170:K170) -> 9319 | E170: =+GETPIVOTDATA(" BAS052",TABLAS!$A$168) -> 3081 | F170: =+GETPIVOTDATA(" BAS053",TABLAS!$A$168) -> 2196 | G170: =+GETPIVOTDATA(" BAS054",TABLAS!$A$168) -> 1318 | H170: =+GETPIVOTDATA(" BAS055",TABLAS!$A$168) -> 794 | I170: =+GETPIVOTDATA(" BAS056",TABLAS!$A$168) -> 619 | J170: =+GETPIVOTDATA(" BAS057",TABLAS!$A$168) -> 520 | K170: =+GETPIVOTDATA(" BAS058",TABLAS!$A$168) -> 791 | AK170: =+AQ169+1 -> 52 | AL170: 53 | AM170: 54 | AN170: 55 | AO170: 56 | AP170: 57 | AQ170: 58 | BR170: =+IMPORTARDATOSDINAMICOS(" BAS052"|TABLAS!$A$168) | BS170: =+IMPORTARDATOSDINAMICOS(" BAS053"|TABLAS!$A$168) | BT170: =+IMPORTARDATOSDINAMICOS(" BAS054"|TABLAS!$A$168) | BU170: =+IMPORTARDATOSDINAMICOS(" BAS055"|TABLAS!$A$168) | BV170: =+IMPORTARDATOSDINAMICOS(" BAS056"|TABLAS!$A$168) | BW170: =+IMPORTARDATOSDINAMICOS(" BAS057"|TABLAS!$A$168) | BX170: =+IMPORTARDATOSDINAMICOS(" BAS058"|TABLAS!$A$168)
A171: Seguimiento a Problemas del Desarrollo | D171: 7419 | E171: =+GETPIVOTDATA(" BAS059",TABLAS!$A$168) -> 865 | F171: =+GETPIVOTDATA(" BAS060",TABLAS!$A$168) -> 2386 | G171: =+GETPIVOTDATA(" BAS061",TABLAS!$A$168) -> 1321 | H171: =+GETPIVOTDATA(" BAS062",TABLAS!$A$168) -> 795 | I171: =+GETPIVOTDATA(" BAS063",TABLAS!$A$168) -> 623 | J171: =+GETPIVOTDATA(" BAS064",TABLAS!$A$168) -> 556 | K171: =+GETPIVOTDATA(" BAS065",TABLAS!$A$168) -> 873 | AK171: =+AQ170+1 -> 59 | AL171: 60 | AM171: 61 | AN171: 62 | AO171: 63 | AP171: 64 | AQ171: 65 | BR171: =+IMPORTARDATOSDINAMICOS(" BAS059"|TABLAS!$A$168) | BS171: =+IMPORTARDATOSDINAMICOS(" BAS060"|TABLAS!$A$168) | BT171: =+IMPORTARDATOSDINAMICOS(" BAS061"|TABLAS!$A$168) | BU171: =+IMPORTARDATOSDINAMICOS(" BAS062"|TABLAS!$A$168) | BV171: =+IMPORTARDATOSDINAMICOS(" BAS063"|TABLAS!$A$168) | BW171: =+IMPORTARDATOSDINAMICOS(" BAS064"|TABLAS!$A$168) | BX171: =+IMPORTARDATOSDINAMICOS(" BAS065"|TABLAS!$A$168)
A172: Entrega de Suplementación | D172: 25980 | E172: =+GETPIVOTDATA(" BAS066",TABLAS!$A$168) -> 0 | F172: =+GETPIVOTDATA(" BAS067",TABLAS!$A$168) -> 5437 | G172: =+GETPIVOTDATA(" BAS068",TABLAS!$A$168) -> 5414 | H172: =+GETPIVOTDATA(" BAS069",TABLAS!$A$168) -> 5414 | I172: =+GETPIVOTDATA(" BAS070",TABLAS!$A$168) -> 5414 | J172: =+GETPIVOTDATA(" BAS071",TABLAS!$A$168) -> 2299 | K172: =+GETPIVOTDATA(" BAS072",TABLAS!$A$168) -> 2002 | AK172: =+AQ171+1 -> 66 | AL172: 67 | AM172: 68 | AN172: 69 | AO172: 70 | AP172: 71 | AQ172: 72 | BR172: =+IMPORTARDATOSDINAMICOS(" BAS066"|TABLAS!$A$168) | BS172: =+IMPORTARDATOSDINAMICOS(" BAS067"|TABLAS!$A$168) | BT172: =+IMPORTARDATOSDINAMICOS(" BAS068"|TABLAS!$A$168) | BU172: =+IMPORTARDATOSDINAMICOS(" BAS069"|TABLAS!$A$168) | BV172: =+IMPORTARDATOSDINAMICOS(" BAS070"|TABLAS!$A$168) | BW172: =+IMPORTARDATOSDINAMICOS(" BAS071"|TABLAS!$A$168) | BX172: =+IMPORTARDATOSDINAMICOS(" BAS072"|TABLAS!$A$168)
A173: Verificación de Consumo de Micronutrientes | D173: 6454 | E173: =+GETPIVOTDATA(" BAS073",TABLAS!$A$168) -> 0 | F173: =+GETPIVOTDATA(" BAS074",TABLAS!$A$168) -> 2210 | G173: =+GETPIVOTDATA(" BAS075",TABLAS!$A$168) -> 1338 | H173: =+GETPIVOTDATA(" BAS076",TABLAS!$A$168) -> 893 | I173: =+GETPIVOTDATA(" BAS077",TABLAS!$A$168) -> 668 | J173: =+GETPIVOTDATA(" BAS078",TABLAS!$A$168) -> 553 | K173: =+GETPIVOTDATA(" BAS079",TABLAS!$A$168) -> 792 | AK173: =+AQ172+1 -> 73 | AL173: 74 | AM173: 75 | AN173: 76 | AO173: 77 | AP173: 78 | AQ173: 79 | BR173: =+IMPORTARDATOSDINAMICOS(" BAS073"|TABLAS!$A$168) | BS173: =+IMPORTARDATOSDINAMICOS(" BAS074"|TABLAS!$A$168) | BT173: =+IMPORTARDATOSDINAMICOS(" BAS075"|TABLAS!$A$168) | BU173: =+IMPORTARDATOSDINAMICOS(" BAS076"|TABLAS!$A$168) | BV173: =+IMPORTARDATOSDINAMICOS(" BAS077"|TABLAS!$A$168) | BW173: =+IMPORTARDATOSDINAMICOS(" BAS078"|TABLAS!$A$168) | BX173: =+IMPORTARDATOSDINAMICOS(" BAS079"|TABLAS!$A$168)
D174: 1 | E174: =+D174+1 -> 2 | F174: 3 | G174: 4 | H174: 5 | I174: 6 | J174: 7 | AJ174: 1 | AK174: 2 | AL174: 3 | AM174: 4 | AN174: 5 | AO174: 6 | AP174: 7
